Workbook

Sheet Basic Sculpting - Interpolate
B2: Case 1: Basic | F2: 0 | G2: 1 | H2: 2 | I2: 3 | J2: 4 | K2: 5 | L2: 6 | M2: 7 | N2: 8 | O2: 9 | P2: 10 | Q2: 11 | R2: 12 | S2: 13 | T2: 14 | U2: 15 | V2: 16 | W2: 17 | X2: 18 | Y2: 19 | Z2: 20 | AA2: 21 | AB2: 22 | AC2: 23
D3: Repayment Flag | E3: =E7 -> 15 | G3: =G2<=$E$3 -> TRUE | H3: TRUE | I3: TRUE | J3: TRUE | K3: TRUE | L3: TRUE | M3: TRUE | N3: TRUE | O3: TRUE | P3: TRUE | Q3: TRUE | R3: TRUE | S3: TRUE | T3: TRUE | U3: TRUE | V3: FALSE | W3: FALSE | X3: FALSE | Y3: FALSE | Z3: FALSE | AA3: FALSE | AB3: FALSE | AC3: FALSE
B5: Inputs
D6: Target DSCR | E6: 1.4
D7: Tenor | E7: 15
D8: Intrest Rate | E8: 0.05
D10: CFADS Growth Year | F10: 0 | G10: 1 | H10: 3 | I10: 7 | J10: 10
D11: CFADS Growth Rate | F11: 0.08 | G11: 0.08 | H11: 0.05 | I11: 0.03 | J11: 0.02
D13: Base CFADS | G13: 100 | H13: =G13 -> 100 | I13: =H13 -> 100 | J13: 100 | K13: 100 | L13: 100 | M13: 100 | N13: 100 | O13: 100 | P13: 100 | Q13: 100 | R13: 100 | S13: 100 | T13: 100 | U13: 100 | V13: 100 | W13: 100 | X13: 100 | Y13: 100 | Z13: 100 | AA13: 100 | AB13: 100 | AC13: 100
B15: CFADS
D16: Growth Rate | G16: =LOOKUP(G2,10:10,11:11) -> 0.08 | H16: 0.08 | I16: 0.05 | J16: 0.05 | K16: 0.05 | L16: 0.05 | M16: 0.03 | N16: 0.03 | O16: 0.03 | P16: 0.02 | Q16: 0.02 | R16: 0.02 | S16: 0.02 | T16: 0.02 | U16: 0.02 | V16: 0.02 | W16: 0.02 | X16: 0.02 | Y16: 0.02 | Z16: 0.02 | AA16: 0.02 | AB16: 0.02 | AC16: 0.02
D17: CFADS Index - Lookup | F17: 1 | G17: =F17*(1+G16) -> 1.08 | H17: =G17*(1+H16) -> 1.1664 | I17: 1.22472 | J17: 1.285956 | K17: 1.3502538 | L17: 1.41776649 | M17: 1.460299485 | N17: 1.504108469 | O17: 1.549231723 | P17: 1.580216358 | Q17: 1.611820685 | R17: 1.644057099 | S17: 1.676938241 | T17: 1.710477005 | U17: 1.744686546 | V17: 1.779580276 | W17: 1.815171882 | X17: 1.85147532 | Y17: 1.888504826 | Z17: 1.926274923 | AA17: 1.964800421 | AB17: 2.004096429 | AC17: 2.044178358
D18: Growth Rate Interpolate | G18: =interpolate_look_up(G2,10:10,11:11) -> 0.08 | H18: =interpolate_look_up(H2,10:10,11:11) -> 0.0632455532 | I18: =interpolate_look_up(I2,10:10,11:11) -> 0.05 | J18: =interpolate_look_up(J2,10:10,11:11) -> 0.04400558684 | K18: =interpolate_look_up(K2,10:10,11:11) -> 0.03872983346 | L18: =interpolate_look_up(L2,10:10,11:11) -> 0.03408658099 | M18: =interpolate_look_up(M2,10:10,11:11) -> 0.03 | N18: =interpolate_look_up(N2,10:10,11:11) -> 0.02620741394 | O18: =interpolate_look_up(O2,10:10,11:11) -> 0.02289428485 | P18: =interpolate_look_up(P2,10:10,11:11) -> 0.02 | Q18: =interpolate_look_up(Q2,10:10,11:11) -> 0.02 | R18: =interpolate_look_up(R2,10:10,11:11) -> 0.02 | S18: =interpolate_look_up(S2,10:10,11:11) -> 0.02 | T18: =interpolate_look_up(T2,10:10,11:11) -> 0.02 | U18: =interpolate_look_up(U2,10:10,11:11) -> 0.02 | V18: =interpolate_look_up(V2,10:10,11:11) -> 0.02 | W18: =interpolate_look_up(W2,10:10,11:11) -> 0.02 | X18: =interpolate_look_up(X2,10:10,11:11) -> 0.02 | Y18: =interpolate_look_up(Y2,10:10,11:11) -> 0.02 | Z18: =interpolate_look_up(Z2,10:10,11:11) -> 0.02 | AA18: =interpolate_look_up(AA2,10:10,11:11) -> 0.02 | AB18: =interpolate_look_up(AB2,10:10,11:11) -> 0.02 | AC18: =interpolate_look_up(AC2,10:10,11:11) -> 0.02
D19: CFADS Index - Interpolate | F19: 1 | G19: =F19*(1+G18) -> 1.08 | H19: =G19*(1+H18) -> 1.148305197 | I19: 1.205720457 | J19: 1.258778894 | K19: 1.307531191 | L19: 1.352100458 | M19: 1.392663472 | N19: 1.42916158 | O19: 1.461881213 | P19: 1.491118837 | Q19: 1.520941214 | R19: 1.551360038 | S19: 1.582387239 | T19: 1.614034983 | U19: 1.646315683 | V19: 1.679241997 | W19: 1.712826837 | X19: 1.747083373 | Y19: 1.782025041 | Z19: 1.817665542 | AA19: 1.854018852 | AB19: 1.891099229 | AC19: 1.928921214
D20: CFADS | G20: =G13*G19 -> 108 | H20: =H13*H19 -> 114.8305197 | I20: 120.5720457 | J20: 125.8778894 | K20: 130.7531191 | L20: 135.2100458 | M20: 139.2663472 | N20: 142.916158 | O20: 146.1881213 | P20: 149.1118837 | Q20: 152.0941214 | R20: 155.1360038 | S20: 158.2387239 | T20: 161.4034983 | U20: 164.6315683 | V20: 167.9241997 | W20: 171.2826837 | X20: 174.7083373 | Y20: 178.2025041 | Z20: 181.7665542 | AA20: 185.4018852 | AB20: 189.1099229 | AC20: 192.8921214
D22: Target Debt Service | F22: =E6 -> 1.4 | G22: =G20/$F$22*G3 -> 77.14285714 | H22: 82.02179982 | I22: 86.12288981 | J22: 89.91277812 | K22: 93.39508504 | L22: 96.57860417 | M22: 99.47596229 | N22: 102.08297 | O22: 104.4200866 | P22: 106.5084883 | Q22: 108.6386581 | R22: 110.8114313 | S22: 113.0276599 | T22: 115.2882131 | U22: 117.5939774 | V22: 0 | W22: 0 | X22: 0 | Y22: 0 | Z22: 0 | AA22: 0 | AB22: 0 | AC22: 0
D24: Debt Amount from PV | E24: =E8 -> 0.05 | F24: =NPV(E24,G22:AC22) -> 1013.922542
B26: Results
C27: Debt Balance
D28: Opening Balance | G28: =F30 -> 1013.922542 | H28: 987.4758122 | I28: 954.827803 | J28: 916.4463034 | K28: 872.3558404 | L28: 822.5785474 | M28: 767.1288706 | N28: 706.0093518 | O28: 639.2268494 | P28: 566.7681053 | Q28: 488.5980222 | R28: 404.3892652 | S28: 313.7972972 | T28: 216.4595021 | U28: 111.9942641 | V28: -3.410605132e-13 | W28: -3.581135388e-13 | X28: -3.760192158e-13 | Y28: -3.948201766e-13 | Z28: -4.145611854e-13 | AA28: -4.352892446e-13 | AB28: -4.570537069e-13 | AC28: -4.799063922e-13
D29: Repayments | G29: =G22-G31 -> 26.44673003 | H29: 32.64800921 | I29: 38.38149966 | J29: 44.09046295 | K29: 49.77729302 | L29: 55.4496768 | M29: 61.11951876 | N29: 66.78250242 | O29: 72.45874414 | P29: 78.17008308 | Q29: 84.208757 | R29: 90.59196801 | S29: 97.33779504 | T29: 104.465238 | U29: 111.9942641 | V29: 1.705302566e-14 | W29: 1.790567694e-14 | X29: 1.880096079e-14 | Y29: 1.974100883e-14 | Z29: 2.072805927e-14 | AA29: 2.176446223e-14 | AB29: 2.285268534e-14 | AC29: 2.399531961e-14
D30: Closing Balance | F30: =F24 -> 1013.922542 | G30: =G28-G29 -> 987.4758122 | H30: 954.827803 | I30: 916.4463034 | J30: 872.3558404 | K30: 822.5785474 | L30: 767.1288706 | M30: 706.0093518 | N30: 639.2268494 | O30: 566.7681053 | P30: 488.5980222 | Q30: 404.3892652 | R30: 313.7972972 | S30: 216.4595021 | T30: 111.9942641 | U30: -3.410605132e-13 | V30: -3.581135388e-13 | W30: -3.760192158e-13 | X30: -3.948201766e-13 | Y30: -4.145611854e-13 | Z30: -4.352892446e-13 | AA30: -4.570537069e-13 | AB30: -4.799063922e-13 | AC30: -5.039017118e-13
D31: Interest | G31: =$E$8*G28 -> 50.69612711 | H31: 49.37379061 | I31: 47.74139015 | J31: 45.82231517 | K31: 43.61779202 | L31: 41.12892737 | M31: 38.35644353 | N31: 35.30046759 | O31: 31.96134247 | P31: 28.33840526 | Q31: 24.42990111 | R31: 20.21946326 | S31: 15.68986486 | T31: 10.82297511 | U31: 5.599713207 | V31: -1.705302566e-14 | W31: -1.790567694e-14 | X31: -1.880096079e-14 | Y31: -1.974100883e-14 | Z31: -2.072805927e-14 | AA31: -2.176446223e-14 | AB31: -2.285268534e-14 | AC31: -2.399531961e-14
D33: DSCR | E33: =MIN(G33:AC33) -> 1.4 | G33: =IF(G31+G29>0.1,G20/(G31+G29)) -> 1.4 | H33: =IF(H31+H29>0.1,H20/(H31+H29)) -> 1.4 | I33: 1.4 | J33: 1.4 | K33: 1.4 | L33: 1.4 | M33: 1.4 | N33: 1.4 | O33: 1.4 | P33: 1.4 | Q33: 1.4 | R33: 1.4 | S33: 1.4 | T33: 1.4 | U33: 1.4 | V33: FALSE | W33: FALSE | X33: FALSE | Y33: FALSE | Z33: FALSE | AA33: FALSE | AB33: FALSE | AC33: FALSE
D35: PV CFADS | E35: =E8 -> 0.05 | F35: =NPV(E35,G20:AC20) -> 1976.767179
D36: Debt =PV Debt Service | F36: =F24 -> 1013.922542
D38: PLCR | F38: =F35/F36 -> 1.949623463
D40: CFADS over Debt Life | G40: =G20*G3 -> 108 | H40: =H20*H3 -> 114.8305197 | I40: 120.5720457 | J40: 125.8778894 | K40: 130.7531191 | L40: 135.2100458 | M40: 139.2663472 | N40: 142.916158 | O40: 146.1881213 | P40: 149.1118837 | Q40: 152.0941214 | R40: 155.1360038 | S40: 158.2387239 | T40: 161.4034983 | U40: 164.6315683 | V40: 0 | W40: 0 | X40: 0 | Y40: 0 | Z40: 0 | AA40: 0 | AB40: 0 | AC40: 0
D41: PV CFADS over Debt Life | E41: =E8 -> 0.05 | F41: =NPV(E41,G40:AC40) -> 1419.491559
D42: Debt =PV Debt Service | F42: =F36 -> 1013.922542
D44: LLCR | F44: =F41/F42 -> 1.4
C46: IRR's
D47: Capital Expenditure | F47: 1700
D48: Project Cash Flow | F48: =F20-F47 -> -1700 | G48: =G20-G47 -> 108 | H48: 114.8305197 | I48: 120.5720457 | J48: 125.8778894 | K48: 130.7531191 | L48: 135.2100458 | M48: 139.2663472 | N48: 142.916158 | O48: 146.1881213 | P48: 149.1118837 | Q48: 152.0941214 | R48: 155.1360038 | S48: 158.2387239 | T48: 161.4034983 | U48: 164.6315683 | V48: 167.9241997 | W48: 171.2826837 | X48: 174.7083373 | Y48: 178.2025041 | Z48: 181.7665542 | AA48: 185.4018852 | AB48: 189.1099229 | AC48: 192.8921214
D49: Project IRR | E49: =IRR(F48:AC48) -> 0.06500548226
D51: Equity Issued | F51: =F48+F36 -> -686.0774577
D52: Equity Cash Flow | F52: =F51 -> -686.0774577 | G52: =G20-G22 -> 30.85714286 | H52: =H20-H22 -> 32.80871993 | I52: 34.44915592 | J52: 35.96511125 | K52: 37.35803402 | L52: 38.63144167 | M52: 39.79038492 | N52: 40.83318801 | O52: 41.76803464 | P52: 42.60339534 | Q52: 43.45546324 | R52: 44.32457251 | S52: 45.21106396 | T52: 46.11528524 | U52: 47.03759094 | V52: 167.9241997 | W52: 171.2826837 | X52: 174.7083373 | Y52: 178.2025041 | Z52: 181.7665542 | AA52: 185.4018852 | AB52: 189.1099229 | AC52: 192.8921214
D53: Equity IRR | E53: =IRR(F52:AC52) -> 0.07600463707
C55: Graph
G56: =G2 -> 1 | H56: =H2 -> 2 | I56: 3 | J56: 4 | K56: 5 | L56: 6 | M56: 7 | N56: 8 | O56: 9 | P56: 10 | Q56: 11 | R56: 12 | S56: 13 | T56: 14 | U56: 15 | V56: 16 | W56: 17 | X56: 18 | Y56: 19 | Z56: 20 | AA56: 21 | AB56: 22 | AC56: 23
D57: CFADS | G57: =G20 -> 108 | H57: =H20 -> 114.8305197 | I57: 120.5720457 | J57: 125.8778894 | K57: 130.7531191 | L57: 135.2100458 | M57: 139.2663472 | N57: 142.916158 | O57: 146.1881213 | P57: 149.1118837 | Q57: 152.0941214 | R57: 155.1360038 | S57: 158.2387239 | T57: 161.4034983 | U57: 164.6315683 | V57: 167.9241997 | W57: 171.2826837 | X57: 174.7083373 | Y57: 178.2025041 | Z57: 181.7665542 | AA57: 185.4018852 | AB57: 189.1099229 | AC57: 192.8921214
D58: Debt Service | G58: =G22 -> 77.14285714 | H58: =H22 -> 82.02179982 | I58: 86.12288981 | J58: 89.91277812 | K58: 93.39508504 | L58: 96.57860417 | M58: 99.47596229 | N58: 102.08297 | O58: 104.4200866 | P58: 106.5084883 | Q58: 108.6386581 | R58: 110.8114313 | S58: 113.0276599 | T58: 115.2882131 | U58: 117.5939774 | V58: 0 | W58: 0 | X58: 0 | Y58: 0 | Z58: 0 | AA58: 0 | AB58: 0 | AC58: 0

Sheet Changing DSCR, Interest
B2: Case 1: Basic | F2: 0 | G2: 1 | H2: 2 | I2: 3 | J2: 4 | K2: 5 | L2: 6 | M2: 7 | N2: 8 | O2: 9 | P2: 10 | Q2: 11 | R2: 12 | S2: 13 | T2: 14 | U2: 15 | V2: 16 | W2: 17 | X2: 18 | Y2: 19 | Z2: 20 | AA2: 21 | AB2: 22 | AC2: 23
D3: Repayment Flag | E3: =E6 -> 15 | G3: =G2<=$E$3 -> TRUE | H3: TRUE | I3: TRUE | J3: TRUE | K3: TRUE | L3: TRUE | M3: TRUE | N3: TRUE | O3: TRUE | P3: TRUE | Q3: TRUE | R3: TRUE | S3: TRUE | T3: TRUE | U3: TRUE | V3: FALSE | W3: FALSE | X3: FALSE | Y3: FALSE | Z3: FALSE | AA3: FALSE | AB3: FALSE | AC3: FALSE
B5: Inputs
D6: Tenor | E6: 15
D8: CFADS Growth Year | F8: 0 | G8: 1 | H8: 3 | I8: 7 | J8: 10
D9: CFADS Growth Rate | F9: 0.08 | G9: 0.08 | H9: 0.05 | I9: 0.03 | J9: 0.02
D11: Intrest Rate | F11: 0.04 | G11: 0.0425 | H11: 0.045 | I11: 0.05 | J11: 0.0525
D13: Target DSCR | F13: 1.3 | G13: 1.3 | H13: 1.4 | I13: 1.42 | J13: 1.45
D15: Base CFADS | G15: 100 | H15: =G15 -> 100 | I15: =H15 -> 100 | J15: 100 | K15: 100 | L15: 100 | M15: 100 | N15: 100 | O15: 100 | P15: 100 | Q15: 100 | R15: 100 | S15: 100 | T15: 100 | U15: 100 | V15: 100 | W15: 100 | X15: 100 | Y15: 100 | Z15: 100 | AA15: 100 | AB15: 100 | AC15: 100
B17: CFADS
D18: Growth Rate | G18: =LOOKUP(G2,8:8,9:9) -> 0.08 | H18: 0.08 | I18: 0.05 | J18: 0.05 | K18: 0.05 | L18: 0.05 | M18: 0.03 | N18: 0.03 | O18: 0.03 | P18: 0.02 | Q18: 0.02 | R18: 0.02 | S18: 0.02 | T18: 0.02 | U18: 0.02 | V18: 0.02 | W18: 0.02 | X18: 0.02 | Y18: 0.02 | Z18: 0.02 | AA18: 0.02 | AB18: 0.02 | AC18: 0.02
D19: CFADS Index - Lookup | F19: 1 | G19: =F19*(1+G18) -> 1.08 | H19: =G19*(1+H18) -> 1.1664 | I19: 1.22472 | J19: 1.285956 | K19: 1.3502538 | L19: 1.41776649 | M19: 1.460299485 | N19: 1.504108469 | O19: 1.549231723 | P19: 1.580216358 | Q19: 1.611820685 | R19: 1.644057099 | S19: 1.676938241 | T19: 1.710477005 | U19: 1.744686546 | V19: 1.779580276 | W19: 1.815171882 | X19: 1.85147532 | Y19: 1.888504826 | Z19: 1.926274923 | AA19: 1.964800421 | AB19: 2.004096429 | AC19: 2.044178358
D20: Growth Rate Interpolate | G20: =interpolate_look_up(G2,8:8,9:9) -> 0.08 | H20: =interpolate_look_up(H2,8:8,9:9) -> 0.0632455532 | I20: =interpolate_look_up(I2,8:8,9:9) -> 0.05 | J20: =interpolate_look_up(J2,8:8,9:9) -> 0.04400558684 | K20: =interpolate_look_up(K2,8:8,9:9) -> 0.03872983346 | L20: =interpolate_look_up(L2,8:8,9:9) -> 0.03408658099 | M20: =interpolate_look_up(M2,8:8,9:9) -> 0.03 | N20: =interpolate_look_up(N2,8:8,9:9) -> 0.02620741394 | O20: =interpolate_look_up(O2,8:8,9:9) -> 0.02289428485 | P20: =interpolate_look_up(P2,8:8,9:9) -> 0.02 | Q20: =interpolate_look_up(Q2,8:8,9:9) -> 0.02 | R20: =interpolate_look_up(R2,8:8,9:9) -> 0.02 | S20: =interpolate_look_up(S2,8:8,9:9) -> 0.02 | T20: =interpolate_look_up(T2,8:8,9:9) -> 0.02 | U20: =interpolate_look_up(U2,8:8,9:9) -> 0.02 | V20: =interpolate_look_up(V2,8:8,9:9) -> 0.02 | W20: =interpolate_look_up(W2,8:8,9:9) -> 0.02 | X20: =interpolate_look_up(X2,8:8,9:9) -> 0.02 | Y20: =interpolate_look_up(Y2,8:8,9:9) -> 0.02 | Z20: =interpolate_look_up(Z2,8:8,9:9) -> 0.02 | AA20: =interpolate_look_up(AA2,8:8,9:9) -> 0.02 | AB20: =interpolate_look_up(AB2,8:8,9:9) -> 0.02 | AC20: =interpolate_look_up(AC2,8:8,9:9) -> 0.02
D21: CFADS Index - Interpolate | F21: 1 | G21: =F21*(1+G20) -> 1.08 | H21: =G21*(1+H20) -> 1.148305197 | I21: 1.205720457 | J21: 1.258778894 | K21: 1.307531191 | L21: 1.352100458 | M21: 1.392663472 | N21: 1.42916158 | O21: 1.461881213 | P21: 1.491118837 | Q21: 1.520941214 | R21: 1.551360038 | S21: 1.582387239 | T21: 1.614034983 | U21: 1.646315683 | V21: 1.679241997 | W21: 1.712826837 | X21: 1.747083373 | Y21: 1.782025041 | Z21: 1.817665542 | AA21: 1.854018852 | AB21: 1.891099229 | AC21: 1.928921214
D22: CFADS | G22: =G15*G21 -> 108 | H22: =H15*H21 -> 114.8305197 | I22: 120.5720457 | J22: 125.8778894 | K22: 130.7531191 | L22: 135.2100458 | M22: 139.2663472 | N22: 142.916158 | O22: 146.1881213 | P22: 149.1118837 | Q22: 152.0941214 | R22: 155.1360038 | S22: 158.2387239 | T22: 161.4034983 | U22: 164.6315683 | V22: 167.9241997 | W22: 171.2826837 | X22: 174.7083373 | Y22: 178.2025041 | Z22: 181.7665542 | AA22: 185.4018852 | AB22: 189.1099229 | AC22: 192.8921214
D24: Target DSCR | G24: =LOOKUP(G2,8:8,13:13) -> 1.3 | H24: 1.3 | I24: 1.4 | J24: 1.4 | K24: 1.4 | L24: 1.4 | M24: 1.42 | N24: 1.42 | O24: 1.42 | P24: 1.45 | Q24: 1.45 | R24: 1.45 | S24: 1.45 | T24: 1.45 | U24: 1.45 | V24: 1.45 | W24: 1.45 | X24: 1.45 | Y24: 1.45 | Z24: 1.45 | AA24: 1.45 | AB24: 1.45 | AC24: 1.45
D25: Target Debt Service | G25: =G22/G24*G3 -> 83.07692308 | H25: 88.33116904 | I25: 86.12288981 | J25: 89.91277812 | K25: 93.39508504 | L25: 96.57860417 | M25: 98.0748924 | N25: 100.6451817 | O25: 102.9493812 | P25: 102.8357818 | Q25: 104.8924975 | R25: 106.9903474 | S25: 109.1301544 | T25: 111.3127575 | U25: 113.5390126 | V25: 0 | W25: 0 | X25: 0 | Y25: 0 | Z25: 0 | AA25: 0 | AB25: 0 | AC25: 0
D27: Interest Rate | G27: =LOOKUP(G2,8:8,11:11) -> 0.0425 | H27: 0.0425 | I27: 0.045 | J27: 0.045 | K27: 0.045 | L27: 0.045 | M27: 0.05 | N27: 0.05 | O27: 0.05 | P27: 0.0525 | Q27: 0.0525 | R27: 0.0525 | S27: 0.0525 | T27: 0.0525 | U27: 0.0525 | V27: 0.0525 | W27: 0.0525 | X27: 0.0525 | Y27: 0.0525 | Z27: 0.0525 | AA27: 0.0525 | AB27: 0.0525 | AC27: 0.0525
D28: Interest Rate Index | F28: 1 | G28: =F28*(1+G27) -> 1.0425 | H28: =G28*(1+H27) -> 1.08680625 | I28: 1.135712531 | J28: 1.186819595 | K28: 1.240226477 | L28: 1.296036668 | M28: 1.360838502 | N28: 1.428880427 | O28: 1.500324448 | P28: 1.579091482 | Q28: 1.661993785 | R28: 1.749248458 | S28: 1.841084002 | T28: 1.937740912 | U28: 2.03947231 | V28: 2.146544607 | W28: 2.259238199 | X28: 2.377848204 | Y28: 2.502685235 | Z28: 2.634076209 | AA28: 2.77236521 | AB28: 2.917914384 | AC28: 3.071104889
D29: Debt Amount from PV | F29: =SUMPRODUCT(G25:AC25/G28:AC28) -> 1035.29401
B31: Results
C32: Debt Balance
D33: Opening Balance | G33: =F35 -> 1035.29401 | H33: 996.2170827 | I33: 950.2251396 | J33: 906.8623811 | K33: 857.7584101 | L33: 802.9624536 | M33: 742.5171598 | N33: 681.5681254 | O33: 615.00135 | P33: 542.8020363 | Q33: 468.4633613 | R33: 388.1651903 | S33: 301.5535154 | T33: 208.2549206 | U33: 107.8755464 | V33: 0 | W33: 0 | X33: 0 | Y33: 0 | Z33: 0 | AA33: 0 | AB33: 0 | AC33: 0
D34: Repayments | G34: =G25-G36 -> 39.07692764 | H34: 45.99194302 | I34: 43.36275853 | J34: 49.10397097 | K34: 54.79595658 | L34: 60.44529376 | M34: 60.94903441 | N34: 66.56677544 | O34: 72.19931367 | P34: 74.33867494 | Q34: 80.29817101 | R34: 86.61167494 | S34: 93.29859482 | T34: 100.3793741 | U34: 107.8755464 | V34: 0 | W34: 0 | X34: 0 | Y34: 0 | Z34: 0 | AA34: 0 | AB34: 0 | AC34: 0
D35: Closing Balance | F35: =F29 -> 1035.29401 | G35: =G33-G34 -> 996.2170827 | H35: 950.2251396 | I35: 906.8623811 | J35: 857.7584101 | K35: 802.9624536 | L35: 742.5171598 | M35: 681.5681254 | N35: 615.00135 | O35: 542.8020363 | P35: 468.4633613 | Q35: 388.1651903 | R35: 301.5535154 | S35: 208.2549206 | T35: 107.8755464 | U35: 0 | V35: 0 | W35: 0 | X35: 0 | Y35: 0 | Z35: 0 | AA35: 0 | AB35: 0 | AC35: 0
D36: Interest | G36: =G33*G27 -> 43.99999544 | H36: =H33*H27 -> 42.33922601 | I36: 42.76013128 | J36: 40.80880715 | K36: 38.59912846 | L36: 36.13331041 | M36: 37.12585799 | N36: 34.07840627 | O36: 30.7500675 | P36: 28.49710691 | Q36: 24.59432647 | R36: 20.37867249 | S36: 15.83155956 | T36: 10.93338333 | U36: 5.663466188 | V36: 0 | W36: 0 | X36: 0 | Y36: 0 | Z36: 0 | AA36: 0 | AB36: 0 | AC36: 0
D38: Check | E38: =ROUND(LOOKUP(E6,2:2,35:35),0)=0 -> TRUE
D40: DSCR | E40: =MIN(G40:AC40) -> 1.3 | G40: =IF(G36+G34>0.1,G22/(G36+G34)) -> 1.3 | H40: =IF(H36+H34>0.1,H22/(H36+H34)) -> 1.3 | I40: 1.4 | J40: 1.4 | K40: 1.4 | L40: 1.4 | M40: 1.42 | N40: 1.42 | O40: 1.42 | P40: 1.45 | Q40: 1.45 | R40: 1.45 | S40: 1.45 | T40: 1.45 | U40: 1.45 | V40: FALSE | W40: FALSE | X40: FALSE | Y40: FALSE | Z40: FALSE | AA40: FALSE | AB40: FALSE | AC40: FALSE
D42: PV CFADS | E42: =E11 -> 0 | F42: =NPV(E42,G22:AC22) -> 3545.518254
D43: Debt =PV Debt Service | F43: =F29 -> 1035.29401
D45: PLCR | F45: =F42/F43 -> 3.424648669
D47: CFADS over Debt Life | G47: =G22*G3 -> 108 | H47: 114.8305197 | I47: 120.5720457 | J47: 125.8778894 | K47: 130.7531191 | L47: 135.2100458 | M47: 139.2663472 | N47: 142.916158 | O47: 146.1881213 | P47: 149.1118837 | Q47: 152.0941214 | R47: 155.1360038 | S47: 158.2387239 | T47: 161.4034983 | U47: 164.6315683 | V47: 0 | W47: 0 | X47: 0 | Y47: 0 | Z47: 0 | AA47: 0 | AB47: 0 | AC47: 0
D48: PV CFADS over Debt Life | E48: =E11 -> 0 | F48: =NPV(E48,G47:AC47) -> 2104.230046
D49: Debt =PV Debt Service | F49: =F43 -> 1035.29401
D51: LLCR | F51: =F48/F49 -> 2.032495141
C53: IRR's
D54: Capital Expenditure | F54: 1700
D55: Project Cash Flow | F55: =F22-F54 -> -1700 | G55: =G22-G54 -> 108 | H55: 114.8305197 | I55: 120.5720457 | J55: 125.8778894 | K55: 130.7531191 | L55: 135.2100458 | M55: 139.2663472 | N55: 142.916158 | O55: 146.1881213 | P55: 149.1118837 | Q55: 152.0941214 | R55: 155.1360038 | S55: 158.2387239 | T55: 161.4034983 | U55: 164.6315683 | V55: 167.9241997 | W55: 171.2826837 | X55: 174.7083373 | Y55: 178.2025041 | Z55: 181.7665542 | AA55: 185.4018852 | AB55: 189.1099229 | AC55: 192.8921214
D56: Project IRR | E56: =IRR(F55:AC55) -> 0.06500548226
D58: Equity Issued | F58: =F55+F43 -> -664.7059897
D59: Equity Cash Flow | F59: =F58 -> -664.7059897 | G59: =G22-G25 -> 24.92307692 | H59: =H22-H25 -> 26.49935071 | I59: 34.44915592 | J59: 35.96511125 | K59: 37.35803402 | L59: 38.63144167 | M59: 41.19145481 | N59: 42.27097632 | O59: 43.23874009 | P59: 46.27610183 | Q59: 47.20162387 | R59: 48.14565635 | S59: 49.10856947 | T59: 50.09074086 | U59: 51.09255568 | V59: 167.9241997 | W59: 171.2826837 | X59: 174.7083373 | Y59: 178.2025041 | Z59: 181.7665542 | AA59: 185.4018852 | AB59: 189.1099229 | AC59: 192.8921214
D60: Equity IRR | E60: =IRR(F59:AC59) -> 0.07863900393
D62: Debt to Capital | F62: =F49/F54 -> 0.6089964766
C64: Graph
G65: =G2 -> 1 | H65: 2 | I65: 3 | J65: 4 | K65: 5 | L65: 6 | M65: 7 | N65: 8 | O65: 9 | P65: 10 | Q65: 11 | R65: 12 | S65: 13 | T65: 14 | U65: 15 | V65: 16 | W65: 17 | X65: 18 | Y65: 19 | Z65: 20 | AA65: 21 | AB65: 22 | AC65: 23
D66: CFADS | G66: =G22 -> 108 | H66: =H22 -> 114.8305197 | I66: 120.5720457 | J66: 125.8778894 | K66: 130.7531191 | L66: 135.2100458 | M66: 139.2663472 | N66: 142.916158 | O66: 146.1881213 | P66: 149.1118837 | Q66: 152.0941214 | R66: 155.1360038 | S66: 158.2387239 | T66: 161.4034983 | U66: 164.6315683 | V66: 167.9241997 | W66: 171.2826837 | X66: 174.7083373 | Y66: 178.2025041 | Z66: 181.7665542 | AA66: 185.4018852 | AB66: 189.1099229 | AC66: 192.8921214
D67: Debt Service | G67: =G25 -> 83.07692308 | H67: =H25 -> 88.33116904 | I67: 86.12288981 | J67: 89.91277812 | K67: 93.39508504 | L67: 96.57860417 | M67: 98.0748924 | N67: 100.6451817 | O67: 102.9493812 | P67: 102.8357818 | Q67: 104.8924975 | R67: 106.9903474 | S67: 109.1301544 | T67: 111.3127575 | U67: 113.5390126 | V67: 0 | W67: 0 | X67: 0 | Y67: 0 | Z67: 0 | AA67: 0 | AB67: 0 | AC67: 0

Sheet Fixed Debt and DSCR
B2: Case 1: Basic | F2: 0 | G2: 1 | H2: 2 | I2: 3 | J2: 4 | K2: 5 | L2: 6 | M2: 7 | N2: 8 | O2: 9 | P2: 10 | Q2: 11 | R2: 12 | S2: 13 | T2: 14 | U2: 15 | V2: 16 | W2: 17 | X2: 18 | Y2: 19 | Z2: 20 | AA2: 21 | AB2: 22 | AC2: 23
D3: Repayment Flag | E3: =E6 -> 20 | G3: =G2<=$E$3 -> TRUE | H3: TRUE | I3: TRUE | J3: TRUE | K3: TRUE | L3: TRUE | M3: TRUE | N3: TRUE | O3: TRUE | P3: TRUE | Q3: TRUE | R3: TRUE | S3: TRUE | T3: TRUE | U3: TRUE | V3: TRUE | W3: TRUE | X3: TRUE | Y3: TRUE | Z3: TRUE | AA3: FALSE | AB3: FALSE | AC3: FALSE
B5: Inputs
D6: Tenor | E6: 20
D7: Capital Expenditure | F7: 1700
D8: Debt to Capital | F8: 0.8
D9: Debt Target | F9: =F7*F8 -> 1360
D11: Apply Target DSCR with Minimum | F11: FALSE
D13: CFADS Growth Year | F13: 0 | G13: 1 | H13: 3 | I13: 7 | J13: 10
D14: CFADS Growth Rate | F14: 0.08 | G14: 0.08 | H14: 0.05 | I14: 0.03 | J14: 0.02
D16: Intrest Rate | F16: 0.04 | G16: 0.0425 | H16: 0.045 | I16: 0.05 | J16: 0.0525
D18: Target DSCR | F18: 1.2 | G18: 1.2 | H18: 1.2 | I18: 1.2 | J18: 1.2
D20: Base CFADS | G20: 100 | H20: =G20 -> 100 | I20: =H20 -> 100 | J20: 100 | K20: 100 | L20: 100 | M20: 100 | N20: 100 | O20: 100 | P20: 100 | Q20: 100 | R20: 100 | S20: 100 | T20: 100 | U20: 100 | V20: 100 | W20: 100 | X20: 100 | Y20: 100 | Z20: 100 | AA20: 100 | AB20: 100 | AC20: 100
B22: CFADS
D23: Growth Rate | G23: =LOOKUP(G2,13:13,14:14) -> 0.08 | H23: 0.08 | I23: 0.05 | J23: 0.05 | K23: 0.05 | L23: 0.05 | M23: 0.03 | N23: 0.03 | O23: 0.03 | P23: 0.02 | Q23: 0.02 | R23: 0.02 | S23: 0.02 | T23: 0.02 | U23: 0.02 | V23: 0.02 | W23: 0.02 | X23: 0.02 | Y23: 0.02 | Z23: 0.02 | AA23: 0.02 | AB23: 0.02 | AC23: 0.02
D24: CFADS Index - Lookup | F24: 1 | G24: =F24*(1+G23) -> 1.08 | H24: =G24*(1+H23) -> 1.1664 | I24: 1.22472 | J24: 1.285956 | K24: 1.3502538 | L24: 1.41776649 | M24: 1.460299485 | N24: 1.504108469 | O24: 1.549231723 | P24: 1.580216358 | Q24: 1.611820685 | R24: 1.644057099 | S24: 1.676938241 | T24: 1.710477005 | U24: 1.744686546 | V24: 1.779580276 | W24: 1.815171882 | X24: 1.85147532 | Y24: 1.888504826 | Z24: 1.926274923 | AA24: 1.964800421 | AB24: 2.004096429 | AC24: 2.044178358
D25: Growth Rate Interpolate | G25: =interpolate_look_up(G2,13:13,14:14) -> 0.08 | H25: =interpolate_look_up(H2,13:13,14:14) -> 0.0632455532 | I25: =interpolate_look_up(I2,13:13,14:14) -> 0.05 | J25: =interpolate_look_up(J2,13:13,14:14) -> 0.04400558684 | K25: =interpolate_look_up(K2,13:13,14:14) -> 0.03872983346 | L25: =interpolate_look_up(L2,13:13,14:14) -> 0.03408658099 | M25: =interpolate_look_up(M2,13:13,14:14) -> 0.03 | N25: =interpolate_look_up(N2,13:13,14:14) -> 0.02620741394 | O25: =interpolate_look_up(O2,13:13,14:14) -> 0.02289428485 | P25: =interpolate_look_up(P2,13:13,14:14) -> 0.02 | Q25: =interpolate_look_up(Q2,13:13,14:14) -> 0.02 | R25: =interpolate_look_up(R2,13:13,14:14) -> 0.02 | S25: =interpolate_look_up(S2,13:13,14:14) -> 0.02 | T25: =interpolate_look_up(T2,13:13,14:14) -> 0.02 | U25: =interpolate_look_up(U2,13:13,14:14) -> 0.02 | V25: =interpolate_look_up(V2,13:13,14:14) -> 0.02 | W25: =interpolate_look_up(W2,13:13,14:14) -> 0.02 | X25: =interpolate_look_up(X2,13:13,14:14) -> 0.02 | Y25: =interpolate_look_up(Y2,13:13,14:14) -> 0.02 | Z25: =interpolate_look_up(Z2,13:13,14:14) -> 0.02 | AA25: =interpolate_look_up(AA2,13:13,14:14) -> 0.02 | AB25: =interpolate_look_up(AB2,13:13,14:14) -> 0.02 | AC25: =interpolate_look_up(AC2,13:13,14:14) -> 0.02
D26: CFADS Index - Interpolate | F26: 1 | G26: =F26*(1+G25) -> 1.08 | H26: =G26*(1+H25) -> 1.148305197 | I26: 1.205720457 | J26: 1.258778894 | K26: 1.307531191 | L26: 1.352100458 | M26: 1.392663472 | N26: 1.42916158 | O26: 1.461881213 | P26: 1.491118837 | Q26: 1.520941214 | R26: 1.551360038 | S26: 1.582387239 | T26: 1.614034983 | U26: 1.646315683 | V26: 1.679241997 | W26: 1.712826837 | X26: 1.747083373 | Y26: 1.782025041 | Z26: 1.817665542 | AA26: 1.854018852 | AB26: 1.891099229 | AC26: 1.928921214
D27: CFADS | G27: =G20*G26 -> 108 | H27: =H20*H26 -> 114.8305197 | I27: 120.5720457 | J27: 125.8778894 | K27: 130.7531191 | L27: 135.2100458 | M27: 139.2663472 | N27: 142.916158 | O27: 146.1881213 | P27: 149.1118837 | Q27: 152.0941214 | R27: 155.1360038 | S27: 158.2387239 | T27: 161.4034983 | U27: 164.6315683 | V27: 167.9241997 | W27: 171.2826837 | X27: 174.7083373 | Y27: 178.2025041 | Z27: 181.7665542 | AA27: 185.4018852 | AB27: 189.1099229 | AC27: 192.8921214
D29: Interest Rate | G29: =LOOKUP(G2,13:13,16:16) -> 0.0425 | H29: 0.0425 | I29: 0.045 | J29: 0.045 | K29: 0.045 | L29: 0.045 | M29: 0.05 | N29: 0.05 | O29: 0.05 | P29: 0.0525 | Q29: 0.0525 | R29: 0.0525 | S29: 0.0525 | T29: 0.0525 | U29: 0.0525 | V29: 0.0525 | W29: 0.0525 | X29: 0.0525 | Y29: 0.0525 | Z29: 0.0525 | AA29: 0.0525 | AB29: 0.0525 | AC29: 0.0525
D30: Interest Rate Index | F30: 1 | G30: =F30*(1+G29) -> 1.0425 | H30: =G30*(1+H29) -> 1.08680625 | I30: 1.135712531 | J30: 1.186819595 | K30: 1.240226477 | L30: 1.296036668 | M30: 1.360838502 | N30: 1.428880427 | O30: 1.500324448 | P30: 1.579091482 | Q30: 1.661993785 | R30: 1.749248458 | S30: 1.841084002 | T30: 1.937740912 | U30: 2.03947231 | V30: 2.146544607 | W30: 2.259238199 | X30: 2.377848204 | Y30: 2.502685235 | Z30: 2.634076209 | AA30: 2.77236521 | AB30: 2.917914384 | AC30: 3.071104889
D31: CFADS over Debt Term | G31: =G27*G3 -> 108 | H31: =H27*H3 -> 114.8305197 | I31: 120.5720457 | J31: 125.8778894 | K31: 130.7531191 | L31: 135.2100458 | M31: 139.2663472 | N31: 142.916158 | O31: 146.1881213 | P31: 149.1118837 | Q31: 152.0941214 | R31: 155.1360038 | S31: 158.2387239 | T31: 161.4034983 | U31: 164.6315683 | V31: 167.9241997 | W31: 171.2826837 | X31: 174.7083373 | Y31: 178.2025041 | Z31: 181.7665542 | AA31: 0 | AB31: 0 | AC31: 0
D32: PV of CFADS at Interest Rate | E32: =SUMPRODUCT(G31:AC31/G30:AC30) -> 1823.354962
D33: Implied LLCR for Debt Service | E33: =E32/F9 -> 1.340702178
D35: Target DSCR | G35: =LOOKUP(G2,13:13,18:18) -> 1.2 | H35: 1.2 | I35: 1.2 | J35: 1.2 | K35: 1.2 | L35: 1.2 | M35: 1.2 | N35: 1.2 | O35: 1.2 | P35: 1.2 | Q35: 1.2 | R35: 1.2 | S35: 1.2 | T35: 1.2 | U35: 1.2 | V35: 1.2 | W35: 1.2 | X35: 1.2 | Y35: 1.2 | Z35: 1.2 | AA35: 1.2 | AB35: 1.2 | AC35: 1.2
D36: Target Debt Service with Minimum | G36: =G27/G35*G3 -> 90 | H36: 95.69209979 | I36: 100.4767048 | J36: 104.8982411 | K36: 108.9609325 | L36: 112.6750382 | M36: 116.0552893 | N36: 119.0967984 | O36: 121.8234344 | P36: 124.2599031 | Q36: 126.7451011 | R36: 129.2800031 | S36: 131.8656032 | T36: 134.5029153 | U36: 137.1929736 | V36: 139.9368331 | W36: 142.7355697 | X36: 145.5902811 | Y36: 148.5020867 | Z36: 151.4721285 | AA36: 0 | AB36: 0 | AC36: 0
D37: Target Debt Service with LLCR | E37: =E33 -> 1.340702178 | G37: =G31/$E$37*G3 -> 80.55480311 | H37: =H31/$E$37*H3 -> 85.6495362 | I37: 89.93201301 | J37: 93.88952401 | K37: 97.52584964 | L37: 100.8501724 | M37: 103.8756776 | N37: 106.5979905 | O37: 109.0384752 | P37: 111.2192447 | Q37: 113.4436296 | R37: 115.7125022 | S37: 118.0267523 | T37: 120.3872873 | U37: 122.7950331 | V37: 125.2509337 | W37: 127.7559524 | X37: 130.3110714 | Y37: 132.9172929 | Z37: 135.5756387 | AA37: 0 | AB37: 0 | AC37: 0
D38: Target Debt Service Applied | E38: =F11 -> FALSE | G38: =IF($E$38,G36,G37) -> 80.55480311 | H38: =IF($E$38,H36,H37) -> 85.6495362 | I38: 89.93201301 | J38: 93.88952401 | K38: 97.52584964 | L38: 100.8501724 | M38: 103.8756776 | N38: 106.5979905 | O38: 109.0384752 | P38: 111.2192447 | Q38: 113.4436296 | R38: 115.7125022 | S38: 118.0267523 | T38: 120.3872873 | U38: 122.7950331 | V38: 125.2509337 | W38: 127.7559524 | X38: 130.3110714 | Y38: 132.9172929 | Z38: 135.5756387 | AA38: 0 | AB38: 0 | AC38: 0
D40: Debt Amount Fixed | E40: =F9 -> 1360
D42: Repayments with Minimum
B44: Results
C45: Debt Balance
D46: Opening Balance | G46: =F48 -> 1360 | H46: 1337.245197 | I46: 1308.428582 | J46: 1277.375855 | K46: 1240.968244 | L46: 1199.285966 | M46: 1152.403662 | N46: 1106.148167 | O46: 1054.857585 | P46: 998.5619889 | Q46: 939.7672486 | R46: 875.6613996 | S46: 805.9211208 | T46: 730.2052274 | U46: 648.1537145 | V46: 559.3867515 | W46: 463.5036222 | X46: 360.08161 | Y46: 248.6748231 | Z46: 128.8129584 | AA46: 7.105427358e-13 | AB46: 7.478462294e-13 | AC46: 7.871081564e-13
D47: Repayments | G47: =MIN(G38-G49,G46) -> 22.75480311 | H47: =MIN(H38-H49,H46) -> 28.81661533 | I47: 31.05272684 | J47: 36.40761055 | K47: 41.68227866 | L47: 46.88230397 | M47: 46.25549451 | N47: 51.29058212 | O47: 56.29559598 | P47: 58.79474031 | Q47: 64.10584907 | R47: 69.74027874 | S47: 75.71589342 | T47: 82.05151287 | U47: 88.76696304 | V47: 95.88312926 | W47: 103.4220122 | X47: 111.4067869 | Y47: 119.8618647 | Z47: 128.8129584 | AA47: -3.730349363e-14 | AB47: -3.926192704e-14 | AC47: -4.132317821e-14
D48: Closing Balance | F48: =E40 -> 1360 | G48: =G46-G47 -> 1337.245197 | H48: 1308.428582 | I48: 1277.375855 | J48: 1240.968244 | K48: 1199.285966 | L48: 1152.403662 | M48: 1106.148167 | N48: 1054.857585 | O48: 998.5619889 | P48: 939.7672486 | Q48: 875.6613996 | R48: 805.9211208 | S48: 730.2052274 | T48: 648.1537145 | U48: 559.3867515 | V48: 463.5036222 | W48: 360.08161 | X48: 248.6748231 | Y48: 128.8129584 | Z48: 7.105427358e-13 | AA48: 7.478462294e-13 | AB48: 7.871081564e-13 | AC48: 8.284313346e-13
D49: Interest | G49: =G46*G29 -> 57.8 | H49: 56.83292087 | I49: 58.87928617 | J49: 57.48191346 | K49: 55.84357099 | L49: 53.96786845 | M49: 57.62018308 | N49: 55.30740835 | O49: 52.74287925 | P49: 52.42450442 | Q49: 49.33778055 | R49: 45.97222348 | S49: 42.31085884 | T49: 38.33577444 | U49: 34.02807001 | V49: 29.36780445 | W49: 24.33394017 | X49: 18.90428452 | Y49: 13.05542821 | Z49: 6.762680316 | AA49: 3.730349363e-14 | AB49: 3.926192704e-14 | AC49: 4.132317821e-14
D51: Check | E51: =ROUND(LOOKUP(E6,2:2,48:48),0)=0 -> TRUE
D53: DSCR | E53: =MIN(G53:AC53) -> 1.340702178 | G53: =IF(G49+G47>0.1,G27/(G49+G47)) -> 1.340702178 | H53: 1.340702178 | I53: 1.340702178 | J53: 1.340702178 | K53: 1.340702178 | L53: 1.340702178 | M53: 1.340702178 | N53: 1.340702178 | O53: 1.340702178 | P53: 1.340702178 | Q53: 1.340702178 | R53: 1.340702178 | S53: 1.340702178 | T53: 1.340702178 | U53: 1.340702178 | V53: 1.340702178 | W53: 1.340702178 | X53: 1.340702178 | Y53: 1.340702178 | Z53: 1.340702178 | AA53: FALSE | AB53: FALSE | AC53: FALSE
D55: PV CFADS | E55: =E16 -> 0 | F55: =NPV(E55,G27:AC27) -> 3545.518254
D56: Debt =PV Debt Service | F56: =E40 -> 1360
D58: PLCR | F58: =F55/F56 -> 2.606998716
D60: CFADS over Debt Life | G60: =G27*G3 -> 108 | H60: 114.8305197 | I60: 120.5720457 | J60: 125.8778894 | K60: 130.7531191 | L60: 135.2100458 | M60: 139.2663472 | N60: 142.916158 | O60: 146.1881213 | P60: 149.1118837 | Q60: 152.0941214 | R60: 155.1360038 | S60: 158.2387239 | T60: 161.4034983 | U60: 164.6315683 | V60: 167.9241997 | W60: 171.2826837 | X60: 174.7083373 | Y60: 178.2025041 | Z60: 181.7665542 | AA60: 0 | AB60: 0 | AC60: 0
D61: PV CFADS over Debt Life | E61: =E16 -> 0 | F61: =NPV(E61,G60:AC60) -> 2978.114324
D62: Debt =PV Debt Service | F62: =F56 -> 1360
D64: LLCR | F64: =F61/F62 -> 2.189789944
C66: IRR's
D67: Project Cash Flow | F67: =F27-F7 -> -1700 | G67: 108 | H67: 114.8305197 | I67: 120.5720457 | J67: 125.8778894 | K67: 130.7531191 | L67: 135.2100458 | M67: 139.2663472 | N67: 142.916158 | O67: 146.1881213 | P67: 149.1118837 | Q67: 152.0941214 | R67: 155.1360038 | S67: 158.2387239 | T67: 161.4034983 | U67: 164.6315683 | V67: 167.9241997 | W67: 171.2826837 | X67: 174.7083373 | Y67: 178.2025041 | Z67: 181.7665542 | AA67: 185.4018852 | AB67: 189.1099229 | AC67: 192.8921214
D68: Project IRR | E68: =IRR(F67:AC67) -> 0.06500548226
D70: Equity Issued | F70: =F67+F56 -> -340
D71: Equity Cash Flow | F71: =F70 -> -340 | G71: =G27-G38 -> 27.44519689 | H71: =H27-H38 -> 29.18098355 | I71: 30.64003273 | J71: 31.98836535 | K71: 33.22726941 | L71: 34.35987342 | M71: 35.39066962 | N71: 36.31816755 | O71: 37.14964602 | P71: 37.89263895 | Q71: 38.65049172 | R71: 39.42350156 | S71: 40.21197159 | T71: 41.01621102 | U71: 41.83653524 | V71: 42.67326595 | W71: 43.52673127 | X71: 44.39726589 | Y71: 45.28521121 | Z71: 46.19091543 | AA71: 185.4018852 | AB71: 189.1099229 | AC71: 192.8921214
D72: Equity IRR | E72: =IRR(F71:AC71) -> 0.1081761698
C74: Graph
G75: =G2 -> 1 | H75: 2 | I75: 3 | J75: 4 | K75: 5 | L75: 6 | M75: 7 | N75: 8 | O75: 9 | P75: 10 | Q75: 11 | R75: 12 | S75: 13 | T75: 14 | U75: 15 | V75: 16 | W75: 17 | X75: 18 | Y75: 19 | Z75: 20 | AA75: 21 | AB75: 22 | AC75: 23
D76: CFADS | G76: =G27 -> 108 | H76: =H27 -> 114.8305197 | I76: 120.5720457 | J76: 125.8778894 | K76: 130.7531191 | L76: 135.2100458 | M76: 139.2663472 | N76: 142.916158 | O76: 146.1881213 | P76: 149.1118837 | Q76: 152.0941214 | R76: 155.1360038 | S76: 158.2387239 | T76: 161.4034983 | U76: 164.6315683 | V76: 167.9241997 | W76: 171.2826837 | X76: 174.7083373 | Y76: 178.2025041 | Z76: 181.7665542 | AA76: 185.4018852 | AB76: 189.1099229 | AC76: 192.8921214
D77: Debt Service | G77: =G36 -> 90 | H77: =H36 -> 95.69209979 | I77: 100.4767048 | J77: 104.8982411 | K77: 108.9609325 | L77: 112.6750382 | M77: 116.0552893 | N77: 119.0967984 | O77: 121.8234344 | P77: 124.2599031 | Q77: 126.7451011 | R77: 129.2800031 | S77: 131.8656032 | T77: 134.5029153 | U77: 137.1929736 | V77: 139.9368331 | W77: 142.7355697 | X77: 145.5902811 | Y77: 148.5020867 | Z77: 151.4721285 | AA77: 0 | AB77: 0 | AC77: 0

Sheet Fixed Debt
B2: Case 1: Basic | F2: 0 | G2: 1 | H2: 2 | I2: 3 | J2: 4 | K2: 5 | L2: 6 | M2: 7 | N2: 8 | O2: 9 | P2: 10 | Q2: 11 | R2: 12 | S2: 13 | T2: 14 | U2: 15 | V2: 16 | W2: 17 | X2: 18 | Y2: 19 | Z2: 20 | AA2: 21 | AB2: 22 | AC2: 23
D3: Repayment Flag | E3: =E7 -> 15 | G3: =G2<=$E$3 -> TRUE | H3: TRUE | I3: TRUE | J3: TRUE | K3: TRUE | L3: TRUE | M3: TRUE | N3: TRUE | O3: TRUE | P3: TRUE | Q3: TRUE | R3: TRUE | S3: TRUE | T3: TRUE | U3: TRUE | V3: FALSE | W3: FALSE | X3: FALSE | Y3: FALSE | Z3: FALSE | AA3: FALSE | AB3: FALSE | AC3: FALSE
B5: Inputs
D6: Target DSCR | E6: 1.4
D7: Tenor | E7: 15
D9: CFADS Growth Year | F9: 0 | G9: 1 | H9: 3 | I9: 7 | J9: 10
D10: CFADS Growth Rate | F10: 0.08 | G10: 0.08 | H10: 0.05 | I10: 0.03 | J10: 0.02
D12: Intrest Rate | F12: 0.04 | G12: 0.0425 | H12: 0.045 | I12: 0.05 | J12: 0.0525
D14: Target DSCR | F14: 1.3 | G14: 1.35 | H14: 1.4 | I14: 1.42 | J14: 1.45
D16: Base CFADS | G16: 100 | H16: =G16 -> 100 | I16: =H16 -> 100 | J16: 100 | K16: 100 | L16: 100 | M16: 100 | N16: 100 | O16: 100 | P16: 100 | Q16: 100 | R16: 100 | S16: 100 | T16: 100 | U16: 100 | V16: 100 | W16: 100 | X16: 100 | Y16: 100 | Z16: 100 | AA16: 100 | AB16: 100 | AC16: 100
B18: CFADS
D19: Growth Rate | G19: =LOOKUP(G2,9:9,10:10) -> 0.08 | H19: 0.08 | I19: 0.05 | J19: 0.05 | K19: 0.05 | L19: 0.05 | M19: 0.03 | N19: 0.03 | O19: 0.03 | P19: 0.02 | Q19: 0.02 | R19: 0.02 | S19: 0.02 | T19: 0.02 | U19: 0.02 | V19: 0.02 | W19: 0.02 | X19: 0.02 | Y19: 0.02 | Z19: 0.02 | AA19: 0.02 | AB19: 0.02 | AC19: 0.02
D20: CFADS Index - Lookup | F20: 1 | G20: =F20*(1+G19) -> 1.08 | H20: =G20*(1+H19) -> 1.1664 | I20: 1.22472 | J20: 1.285956 | K20: 1.3502538 | L20: 1.41776649 | M20: 1.460299485 | N20: 1.504108469 | O20: 1.549231723 | P20: 1.580216358 | Q20: 1.611820685 | R20: 1.644057099 | S20: 1.676938241 | T20: 1.710477005 | U20: 1.744686546 | V20: 1.779580276 | W20: 1.815171882 | X20: 1.85147532 | Y20: 1.888504826 | Z20: 1.926274923 | AA20: 1.964800421 | AB20: 2.004096429 | AC20: 2.044178358
D21: Growth Rate Interpolate | G21: =interpolate_look_up(G2,9:9,10:10) -> 0.08 | H21: =interpolate_look_up(H2,9:9,10:10) -> 0.0632455532 | I21: =interpolate_look_up(I2,9:9,10:10) -> 0.05 | J21: =interpolate_look_up(J2,9:9,10:10) -> 0.04400558684 | K21: =interpolate_look_up(K2,9:9,10:10) -> 0.03872983346 | L21: =interpolate_look_up(L2,9:9,10:10) -> 0.03408658099 | M21: =interpolate_look_up(M2,9:9,10:10) -> 0.03 | N21: =interpolate_look_up(N2,9:9,10:10) -> 0.02620741394 | O21: =interpolate_look_up(O2,9:9,10:10) -> 0.02289428485 | P21: =interpolate_look_up(P2,9:9,10:10) -> 0.02 | Q21: =interpolate_look_up(Q2,9:9,10:10) -> 0.02 | R21: =interpolate_look_up(R2,9:9,10:10) -> 0.02 | S21: =interpolate_look_up(S2,9:9,10:10) -> 0.02 | T21: =interpolate_look_up(T2,9:9,10:10) -> 0.02 | U21: =interpolate_look_up(U2,9:9,10:10) -> 0.02 | V21: =interpolate_look_up(V2,9:9,10:10) -> 0.02 | W21: =interpolate_look_up(W2,9:9,10:10) -> 0.02 | X21: =interpolate_look_up(X2,9:9,10:10) -> 0.02 | Y21: =interpolate_look_up(Y2,9:9,10:10) -> 0.02 | Z21: =interpolate_look_up(Z2,9:9,10:10) -> 0.02 | AA21: =interpolate_look_up(AA2,9:9,10:10) -> 0.02 | AB21: =interpolate_look_up(AB2,9:9,10:10) -> 0.02 | AC21: =interpolate_look_up(AC2,9:9,10:10) -> 0.02
D22: CFADS Index - Interpolate | F22: 1 | G22: =F22*(1+G21) -> 1.08 | H22: =G22*(1+H21) -> 1.148305197 | I22: 1.205720457 | J22: 1.258778894 | K22: 1.307531191 | L22: 1.352100458 | M22: 1.392663472 | N22: 1.42916158 | O22: 1.461881213 | P22: 1.491118837 | Q22: 1.520941214 | R22: 1.551360038 | S22: 1.582387239 | T22: 1.614034983 | U22: 1.646315683 | V22: 1.679241997 | W22: 1.712826837 | X22: 1.747083373 | Y22: 1.782025041 | Z22: 1.817665542 | AA22: 1.854018852 | AB22: 1.891099229 | AC22: 1.928921214
D23: CFADS | G23: =G16*G22 -> 108 | H23: =H16*H22 -> 114.8305197 | I23: 120.5720457 | J23: 125.8778894 | K23: 130.7531191 | L23: 135.2100458 | M23: 139.2663472 | N23: 142.916158 | O23: 146.1881213 | P23: 149.1118837 | Q23: 152.0941214 | R23: 155.1360038 | S23: 158.2387239 | T23: 161.4034983 | U23: 164.6315683 | V23: 167.9241997 | W23: 171.2826837 | X23: 174.7083373 | Y23: 178.2025041 | Z23: 181.7665542 | AA23: 185.4018852 | AB23: 189.1099229 | AC23: 192.8921214
D25: Target DSCR | G25: =LOOKUP(G2,9:9,14:14) -> 1.35 | H25: =LOOKUP(H2,9:9,14:14) -> 1.35 | I25: 1.4 | J25: 1.4 | K25: 1.4 | L25: 1.4 | M25: 1.42 | N25: 1.42 | O25: 1.42 | P25: 1.45 | Q25: 1.45 | R25: 1.45 | S25: 1.45 | T25: 1.45 | U25: 1.45 | V25: 1.45 | W25: 1.45 | X25: 1.45 | Y25: 1.45 | Z25: 1.45 | AA25: 1.45 | AB25: 1.45 | AC25: 1.45
D26: Target Debt Service | F26: =E6 -> 1.4 | G26: =G23/G25*G3 -> 80 | H26: =H23/H25*H3 -> 85.05964426 | I26: 86.12288981 | J26: 89.91277812 | K26: 93.39508504 | L26: 96.57860417 | M26: 98.0748924 | N26: 100.6451817 | O26: 102.9493812 | P26: 102.8357818 | Q26: 104.8924975 | R26: 106.9903474 | S26: 109.1301544 | T26: 111.3127575 | U26: 113.5390126 | V26: 0 | W26: 0 | X26: 0 | Y26: 0 | Z26: 0 | AA26: 0 | AB26: 0 | AC26: 0
D28: Interest Rate | G28: =LOOKUP(G2,9:9,12:12) -> 0.0425 | H28: =LOOKUP(H2,9:9,12:12) -> 0.0425 | I28: 0.045 | J28: 0.045 | K28: 0.045 | L28: 0.045 | M28: 0.05 | N28: 0.05 | O28: 0.05 | P28: 0.0525 | Q28: 0.0525 | R28: 0.0525 | S28: 0.0525 | T28: 0.0525 | U28: 0.0525 | V28: 0.0525 | W28: 0.0525 | X28: 0.0525 | Y28: 0.0525 | Z28: 0.0525 | AA28: 0.0525 | AB28: 0.0525 | AC28: 0.0525
D29: Interest Rate Index | F29: 1 | G29: =F29*(1+G28) -> 1.0425 | H29: =G29*(1+H28) -> 1.08680625 | I29: 1.135712531 | J29: 1.186819595 | K29: 1.240226477 | L29: 1.296036668 | M29: 1.360838502 | N29: 1.428880427 | O29: 1.500324448 | P29: 1.579091482 | Q29: 1.661993785 | R29: 1.749248458 | S29: 1.841084002 | T29: 1.937740912 | U29: 2.03947231 | V29: 2.146544607 | W29: 2.259238199 | X29: 2.377848204 | Y29: 2.502685235 | Z29: 2.634076209 | AA29: 2.77236521 | AB29: 2.917914384 | AC29: 3.071104889
D30: Debt Amount from PV | F30: =SUMPRODUCT(G26:AC26/G29:AC29) -> 1029.332306
B32: Results
C33: Debt Balance
D34: Opening Balance | G34: =F36 -> 1029.332306 | H34: 993.0789294 | I34: 950.2251396 | J34: 906.8623811 | K34: 857.7584101 | L34: 802.9624536 | M34: 742.5171598 | N34: 681.5681254 | O34: 615.00135 | P34: 542.8020363 | Q34: 468.4633613 | R34: 388.1651903 | S34: 301.5535154 | T34: 208.2549206 | U34: 107.8755464 | V34: 5.542233339e-13 | W34: 5.833200589e-13 | X34: 6.13944362e-13 | Y34: 6.46176441e-13 | Z34: 6.801007042e-13 | AA34: 7.158059911e-13 | AB34: 7.533858057e-13 | AC34: 7.929385605e-13
D35: Repayments | G35: =G26-G37 -> 36.25337698 | H35: 42.85378976 | I35: 43.36275853 | J35: 49.10397097 | K35: 54.79595658 | L35: 60.44529376 | M35: 60.94903441 | N35: 66.56677544 | O35: 72.19931367 | P35: 74.33867494 | Q35: 80.29817101 | R35: 86.61167494 | S35: 93.29859482 | T35: 100.3793741 | U35: 107.8755464 | V35: -2.909672503e-14 | W35: -3.062430309e-14 | X35: -3.223207901e-14 | Y35: -3.392426315e-14 | Z35: -3.570528697e-14 | AA35: -3.757981454e-14 | AB35: -3.95527548e-14 | AC35: -4.162927443e-14
D36: Closing Balance | F36: =F30 -> 1029.332306 | G36: =G34-G35 -> 993.0789294 | H36: 950.2251396 | I36: 906.8623811 | J36: 857.7584101 | K36: 802.9624536 | L36: 742.5171598 | M36: 681.5681254 | N36: 615.00135 | O36: 542.8020363 | P36: 468.4633613 | Q36: 388.1651903 | R36: 301.5535154 | S36: 208.2549206 | T36: 107.8755464 | U36: 5.542233339e-13 | V36: 5.833200589e-13 | W36: 6.13944362e-13 | X36: 6.46176441e-13 | Y36: 6.801007042e-13 | Z36: 7.158059911e-13 | AA36: 7.533858057e-13 | AB36: 7.929385605e-13 | AC36: 8.345678349e-13
D37: Interest | G37: =G34*G28 -> 43.74662302 | H37: =H34*H28 -> 42.2058545 | I37: 42.76013128 | J37: 40.80880715 | K37: 38.59912846 | L37: 36.13331041 | M37: 37.12585799 | N37: 34.07840627 | O37: 30.7500675 | P37: 28.49710691 | Q37: 24.59432647 | R37: 20.37867249 | S37: 15.83155956 | T37: 10.93338333 | U37: 5.663466188 | V37: 2.909672503e-14 | W37: 3.062430309e-14 | X37: 3.223207901e-14 | Y37: 3.392426315e-14 | Z37: 3.570528697e-14 | AA37: 3.757981454e-14 | AB37: 3.95527548e-14 | AC37: 4.162927443e-14
D39: Check | E39: =ROUND(LOOKUP(E7,2:2,36:36),0)=0 -> TRUE
D41: DSCR | E41: =MIN(G41:AC41) -> 1.35 | G41: =IF(G37+G35>0.1,G23/(G37+G35)) -> 1.35 | H41: =IF(H37+H35>0.1,H23/(H37+H35)) -> 1.35 | I41: 1.4 | J41: 1.4 | K41: 1.4 | L41: 1.4 | M41: 1.42 | N41: 1.42 | O41: 1.42 | P41: 1.45 | Q41: 1.45 | R41: 1.45 | S41: 1.45 | T41: 1.45 | U41: 1.45 | V41: FALSE | W41: FALSE | X41: FALSE | Y41: FALSE | Z41: FALSE | AA41: FALSE | AB41: FALSE | AC41: FALSE
D43: PV CFADS | E43: =E12 -> 0 | F43: =NPV(E43,G23:AC23) -> 3545.518254
D44: Debt =PV Debt Service | F44: =F30 -> 1029.332306
D46: PLCR | F46: =F43/F44 -> 3.444483606
D48: CFADS over Debt Life | G48: =G23*G3 -> 108 | H48: 114.8305197 | I48: 120.5720457 | J48: 125.8778894 | K48: 130.7531191 | L48: 135.2100458 | M48: 139.2663472 | N48: 142.916158 | O48: 146.1881213 | P48: 149.1118837 | Q48: 152.0941214 | R48: 155.1360038 | S48: 158.2387239 | T48: 161.4034983 | U48: 164.6315683 | V48: 0 | W48: 0 | X48: 0 | Y48: 0 | Z48: 0 | AA48: 0 | AB48: 0 | AC48: 0
D49: PV CFADS over Debt Life | E49: =E12 -> 0 | F49: =NPV(E49,G48:AC48) -> 2104.230046
D50: Debt =PV Debt Service | F50: =F44 -> 1029.332306
D52: LLCR | F52: =F49/F50 -> 2.04426698
C54: IRR's
D55: Capital Expenditure | F55: 1700
D56: Project Cash Flow | F56: =F23-F55 -> -1700 | G56: =G23-G55 -> 108 | H56: 114.8305197 | I56: 120.5720457 | J56: 125.8778894 | K56: 130.7531191 | L56: 135.2100458 | M56: 139.2663472 | N56: 142.916158 | O56: 146.1881213 | P56: 149.1118837 | Q56: 152.0941214 | R56: 155.1360038 | S56: 158.2387239 | T56: 161.4034983 | U56: 164.6315683 | V56: 167.9241997 | W56: 171.2826837 | X56: 174.7083373 | Y56: 178.2025041 | Z56: 181.7665542 | AA56: 185.4018852 | AB56: 189.1099229 | AC56: 192.8921214
D57: Project IRR | E57: =IRR(F56:AC56) -> 0.06500548226
D59: Equity Issued | F59: =F56+F44 -> -670.6676936
D60: Equity Cash Flow | F60: =F59 -> -670.6676936 | G60: =G23-G26 -> 28 | H60: =H23-H26 -> 29.77087549 | I60: 34.44915592 | J60: 35.96511125 | K60: 37.35803402 | L60: 38.63144167 | M60: 41.19145481 | N60: 42.27097632 | O60: 43.23874009 | P60: 46.27610183 | Q60: 47.20162387 | R60: 48.14565635 | S60: 49.10856947 | T60: 50.09074086 | U60: 51.09255568 | V60: 167.9241997 | W60: 171.2826837 | X60: 174.7083373 | Y60: 178.2025041 | Z60: 181.7665542 | AA60: 185.4018852 | AB60: 189.1099229 | AC60: 192.8921214
D61: Equity IRR | E61: =IRR(F60:AC60) -> 0.07860286016
C63: Graph
G64: =G2 -> 1 | H64: 2 | I64: 3 | J64: 4 | K64: 5 | L64: 6 | M64: 7 | N64: 8 | O64: 9 | P64: 10 | Q64: 11 | R64: 12 | S64: 13 | T64: 14 | U64: 15 | V64: 16 | W64: 17 | X64: 18 | Y64: 19 | Z64: 20 | AA64: 21 | AB64: 22 | AC64: 23
D65: CFADS | G65: =G23 -> 108 | H65: =H23 -> 114.8305197 | I65: 120.5720457 | J65: 125.8778894 | K65: 130.7531191 | L65: 135.2100458 | M65: 139.2663472 | N65: 142.916158 | O65: 146.1881213 | P65: 149.1118837 | Q65: 152.0941214 | R65: 155.1360038 | S65: 158.2387239 | T65: 161.4034983 | U65: 164.6315683 | V65: 167.9241997 | W65: 171.2826837 | X65: 174.7083373 | Y65: 178.2025041 | Z65: 181.7665542 | AA65: 185.4018852 | AB65: 189.1099229 | AC65: 192.8921214
D66: Debt Service | G66: =G26 -> 80 | H66: =H26 -> 85.05964426 | I66: 86.12288981 | J66: 89.91277812 | K66: 93.39508504 | L66: 96.57860417 | M66: 98.0748924 | N66: 100.6451817 | O66: 102.9493812 | P66: 102.8357818 | Q66: 104.8924975 | R66: 106.9903474 | S66: 109.1301544 | T66: 111.3127575 | U66: 113.5390126 | V66: 0 | W66: 0 | X66: 0 | Y66: 0 | Z66: 0 | AA66: 0 | AB66: 0 | AC66: 0

Sheet Curved Sculpting
B2: Case 1: Basic | F2: 0 | G2: 1 | H2: 2 | I2: 3 | J2: 4 | K2: 5 | L2: 6 | M2: 7 | N2: 8 | O2: 9 | P2: 10 | Q2: 11 | R2: 12 | S2: 13 | T2: 14 | U2: 15 | V2: 16 | W2: 17 | X2: 18 | Y2: 19 | Z2: 20 | AA2: 21 | AB2: 22 | AC2: 23
D3: Repayment Flag | E3: =E6 -> 20 | G3: =G2<=$E$3 -> TRUE | H3: TRUE | I3: TRUE | J3: TRUE | K3: TRUE | L3: TRUE | M3: TRUE | N3: TRUE | O3: TRUE | P3: TRUE | Q3: TRUE | R3: TRUE | S3: TRUE | T3: TRUE | U3: TRUE | V3: TRUE | W3: TRUE | X3: TRUE | Y3: TRUE | Z3: TRUE | AA3: FALSE | AB3: FALSE | AC3: FALSE
B5: Inputs
D6: Tenor | E6: 20
D7: Capital Expenditure | F7: 1700
D8: Debt to Capital | F8: 0.8
D9: Debt Target | F9: =F7*F8 -> 1360
D11: Apply Target DSCR with Minimum | F11: TRUE
D13: CFADS Growth Year | F13: 0 | G13: 1 | H13: 3 | I13: 7 | J13: 10
D14: CFADS Growth Rate | F14: 0.08 | G14: 0.08 | H14: 0.05 | I14: 0.03 | J14: 0.02
D16: Intrest Rate | F16: 0.04 | G16: 0.0425 | H16: 0.045 | I16: 0.05 | J16: 0.0525
D18: Start and End Period | F18: 1 | G18: =E6 -> 20
D19: Start and End DSCR | F19: 1.477944167 | G19: 1.2
D20: PV of Debt Service | E20: =E45 -> 1360
D21: Target | E21: =F9 -> 1360
D22: Difference | E22: =E20-E21 -> 3.022632882e-07
D24: DSCR | G24: =interpolate_look_up(G2,18:18,19:19) -> 1.477944167 | H24: =interpolate_look_up(H2,18:18,19:19) -> 1.46182738 | I24: =interpolate_look_up(I2,18:18,19:19) -> 1.445886344 | J24: =interpolate_look_up(J2,18:18,19:19) -> 1.430119143 | K24: =interpolate_look_up(K2,18:18,19:19) -> 1.414523882 | L24: =interpolate_look_up(L2,18:18,19:19) -> 1.399098685 | M24: =interpolate_look_up(M2,18:18,19:19) -> 1.383841697 | N24: =interpolate_look_up(N2,18:18,19:19) -> 1.368751085 | O24: =interpolate_look_up(O2,18:18,19:19) -> 1.353825035 | P24: =interpolate_look_up(P2,18:18,19:19) -> 1.33906175 | Q24: =interpolate_look_up(Q2,18:18,19:19) -> 1.324459458 | R24: =interpolate_look_up(R2,18:18,19:19) -> 1.310016401 | S24: =interpolate_look_up(S2,18:18,19:19) -> 1.295730845 | T24: =interpolate_look_up(T2,18:18,19:19) -> 1.28160107 | U24: =interpolate_look_up(U2,18:18,19:19) -> 1.267625379 | V24: =interpolate_look_up(V2,18:18,19:19) -> 1.25380209 | W24: =interpolate_look_up(W2,18:18,19:19) -> 1.240129543 | X24: =interpolate_look_up(X2,18:18,19:19) -> 1.226606093 | Y24: =interpolate_look_up(Y2,18:18,19:19) -> 1.213230115 | Z24: =interpolate_look_up(Z2,18:18,19:19) -> 1.2 | AA24: =interpolate_look_up(AA2,18:18,19:19) -> 1.2 | AB24: =interpolate_look_up(AB2,18:18,19:19) -> 1.2 | AC24: =interpolate_look_up(AC2,18:18,19:19) -> 1.2
D25: Base CFADS | G25: 100 | H25: =G25 -> 100 | I25: =H25 -> 100 | J25: 100 | K25: 100 | L25: 100 | M25: 100 | N25: 100 | O25: 100 | P25: 100 | Q25: 100 | R25: 100 | S25: 100 | T25: 100 | U25: 100 | V25: 100 | W25: 100 | X25: 100 | Y25: 100 | Z25: 100 | AA25: 100 | AB25: 100 | AC25: 100
B27: CFADS
D28: Growth Rate | G28: =LOOKUP(G2,13:13,14:14) -> 0.08 | H28: 0.08 | I28: 0.05 | J28: 0.05 | K28: 0.05 | L28: 0.05 | M28: 0.03 | N28: 0.03 | O28: 0.03 | P28: 0.02 | Q28: 0.02 | R28: 0.02 | S28: 0.02 | T28: 0.02 | U28: 0.02 | V28: 0.02 | W28: 0.02 | X28: 0.02 | Y28: 0.02 | Z28: 0.02 | AA28: 0.02 | AB28: 0.02 | AC28: 0.02
D29: CFADS Index - Lookup | F29: 1 | G29: =F29*(1+G28) -> 1.08 | H29: =G29*(1+H28) -> 1.1664 | I29: 1.22472 | J29: 1.285956 | K29: 1.3502538 | L29: 1.41776649 | M29: 1.460299485 | N29: 1.504108469 | O29: 1.549231723 | P29: 1.580216358 | Q29: 1.611820685 | R29: 1.644057099 | S29: 1.676938241 | T29: 1.710477005 | U29: 1.744686546 | V29: 1.779580276 | W29: 1.815171882 | X29: 1.85147532 | Y29: 1.888504826 | Z29: 1.926274923 | AA29: 1.964800421 | AB29: 2.004096429 | AC29: 2.044178358
D30: Growth Rate Interpolate | G30: =interpolate_look_up(G2,13:13,14:14) -> 0.08 | H30: =interpolate_look_up(H2,13:13,14:14) -> 0.0632455532 | I30: =interpolate_look_up(I2,13:13,14:14) -> 0.05 | J30: =interpolate_look_up(J2,13:13,14:14) -> 0.04400558684 | K30: =interpolate_look_up(K2,13:13,14:14) -> 0.03872983346 | L30: =interpolate_look_up(L2,13:13,14:14) -> 0.03408658099 | M30: =interpolate_look_up(M2,13:13,14:14) -> 0.03 | N30: =interpolate_look_up(N2,13:13,14:14) -> 0.02620741394 | O30: =interpolate_look_up(O2,13:13,14:14) -> 0.02289428485 | P30: =interpolate_look_up(P2,13:13,14:14) -> 0.02 | Q30: =interpolate_look_up(Q2,13:13,14:14) -> 0.02 | R30: =interpolate_look_up(R2,13:13,14:14) -> 0.02 | S30: =interpolate_look_up(S2,13:13,14:14) -> 0.02 | T30: =interpolate_look_up(T2,13:13,14:14) -> 0.02 | U30: =interpolate_look_up(U2,13:13,14:14) -> 0.02 | V30: =interpolate_look_up(V2,13:13,14:14) -> 0.02 | W30: =interpolate_look_up(W2,13:13,14:14) -> 0.02 | X30: =interpolate_look_up(X2,13:13,14:14) -> 0.02 | Y30: =interpolate_look_up(Y2,13:13,14:14) -> 0.02 | Z30: =interpolate_look_up(Z2,13:13,14:14) -> 0.02 | AA30: =interpolate_look_up(AA2,13:13,14:14) -> 0.02 | AB30: =interpolate_look_up(AB2,13:13,14:14) -> 0.02 | AC30: =interpolate_look_up(AC2,13:13,14:14) -> 0.02
D31: CFADS Index - Interpolate | F31: 1 | G31: =F31*(1+G30) -> 1.08 | H31: =G31*(1+H30) -> 1.148305197 | I31: 1.205720457 | J31: 1.258778894 | K31: 1.307531191 | L31: 1.352100458 | M31: 1.392663472 | N31: 1.42916158 | O31: 1.461881213 | P31: 1.491118837 | Q31: 1.520941214 | R31: 1.551360038 | S31: 1.582387239 | T31: 1.614034983 | U31: 1.646315683 | V31: 1.679241997 | W31: 1.712826837 | X31: 1.747083373 | Y31: 1.782025041 | Z31: 1.817665542 | AA31: 1.854018852 | AB31: 1.891099229 | AC31: 1.928921214
D32: CFADS | G32: =G25*G31 -> 108 | H32: =H25*H31 -> 114.8305197 | I32: 120.5720457 | J32: 125.8778894 | K32: 130.7531191 | L32: 135.2100458 | M32: 139.2663472 | N32: 142.916158 | O32: 146.1881213 | P32: 149.1118837 | Q32: 152.0941214 | R32: 155.1360038 | S32: 158.2387239 | T32: 161.4034983 | U32: 164.6315683 | V32: 167.9241997 | W32: 171.2826837 | X32: 174.7083373 | Y32: 178.2025041 | Z32: 181.7665542 | AA32: 185.4018852 | AB32: 189.1099229 | AC32: 192.8921214
D34: Interest Rate | G34: =LOOKUP(G2,13:13,16:16) -> 0.0425 | H34: 0.0425 | I34: 0.045 | J34: 0.045 | K34: 0.045 | L34: 0.045 | M34: 0.05 | N34: 0.05 | O34: 0.05 | P34: 0.0525 | Q34: 0.0525 | R34: 0.0525 | S34: 0.0525 | T34: 0.0525 | U34: 0.0525 | V34: 0.0525 | W34: 0.0525 | X34: 0.0525 | Y34: 0.0525 | Z34: 0.0525 | AA34: 0.0525 | AB34: 0.0525 | AC34: 0.0525
D35: Interest Rate Index | F35: 1 | G35: =F35*(1+G34) -> 1.0425 | H35: =G35*(1+H34) -> 1.08680625 | I35: 1.135712531 | J35: 1.186819595 | K35: 1.240226477 | L35: 1.296036668 | M35: 1.360838502 | N35: 1.428880427 | O35: 1.500324448 | P35: 1.579091482 | Q35: 1.661993785 | R35: 1.749248458 | S35: 1.841084002 | T35: 1.937740912 | U35: 2.03947231 | V35: 2.146544607 | W35: 2.259238199 | X35: 2.377848204 | Y35: 2.502685235 | Z35: 2.634076209 | AA35: 2.77236521 | AB35: 2.917914384 | AC35: 3.071104889
D36: CFADS over Debt Term | G36: =G32*G3 -> 108 | H36: 114.8305197 | I36: 120.5720457 | J36: 125.8778894 | K36: 130.7531191 | L36: 135.2100458 | M36: 139.2663472 | N36: 142.916158 | O36: 146.1881213 | P36: 149.1118837 | Q36: 152.0941214 | R36: 155.1360038 | S36: 158.2387239 | T36: 161.4034983 | U36: 164.6315683 | V36: 167.9241997 | W36: 171.2826837 | X36: 174.7083373 | Y36: 178.2025041 | Z36: 181.7665542 | AA36: 0 | AB36: 0 | AC36: 0
D37: PV of CFADS at Interest Rate | E37: =SUMPRODUCT(G36:AC36/G35:AC35) -> 1823.354962
D38: Implied LLCR for Debt Service | E38: =E37/F9 -> 1.340702178
D40: Target DSCR | G40: =G24 -> 1.477944167 | H40: =H24 -> 1.46182738 | I40: 1.445886344 | J40: 1.430119143 | K40: 1.414523882 | L40: 1.399098685 | M40: 1.383841697 | N40: 1.368751085 | O40: 1.353825035 | P40: 1.33906175 | Q40: 1.324459458 | R40: 1.310016401 | S40: 1.295730845 | T40: 1.28160107 | U40: 1.267625379 | V40: 1.25380209 | W40: 1.240129543 | X40: 1.226606093 | Y40: 1.213230115 | Z40: 1.2 | AA40: 1.2 | AB40: 1.2 | AC40: 1.2
D41: Target Debt Service with Curved | G41: =G32/G40*G3 -> 73.07447901 | H41: 78.55272198 | I41: 83.38971194 | J41: 88.01916256 | K41: 92.43613396 | L41: 96.64082119 | M41: 100.6374844 | N41: 104.4135486 | O41: 107.9815467 | P41: 111.3554947 | Q41: 114.8348637 | R41: 118.4229477 | S41: 122.1231435 | T41: 125.9389541 | U41: 129.873992 | V41: 133.9319825 | W41: 138.1167674 | X41: 142.4323084 | Y41: 146.882691 | Z41: 151.4721285 | AA41: 0 | AB41: 0 | AC41: 0
D42: Target Debt Service with LLCR | E42: =E38 -> 1.340702178 | G42: =G36/$E$42*G3 -> 80.55480311 | H42: 85.6495362 | I42: 89.93201301 | J42: 93.88952401 | K42: 97.52584964 | L42: 100.8501724 | M42: 103.8756776 | N42: 106.5979905 | O42: 109.0384752 | P42: 111.2192447 | Q42: 113.4436296 | R42: 115.7125022 | S42: 118.0267523 | T42: 120.3872873 | U42: 122.7950331 | V42: 125.2509337 | W42: 127.7559524 | X42: 130.3110714 | Y42: 132.9172929 | Z42: 135.5756387 | AA42: 0 | AB42: 0 | AC42: 0
D43: Target Debt Service Applied | E43: =F11 -> TRUE | G43: =IF($E$43,G41,G42) -> 73.07447901 | H43: =IF($E$43,H41,H42) -> 78.55272198 | I43: 83.38971194 | J43: 88.01916256 | K43: 92.43613396 | L43: 96.64082119 | M43: 100.6374844 | N43: 104.4135486 | O43: 107.9815467 | P43: 111.3554947 | Q43: 114.8348637 | R43: 118.4229477 | S43: 122.1231435 | T43: 125.9389541 | U43: 129.873992 | V43: 133.9319825 | W43: 138.1167674 | X43: 142.4323084 | Y43: 146.882691 | Z43: 151.4721285 | AA43: 0 | AB43: 0 | AC43: 0
D45: PV of Debt Service | E45: =SUMPRODUCT(G41:AC41/G35:AC35) -> 1360
D47: Repayments with Minimum
B49: Results
C50: Debt Balance
D51: Opening Balance | G51: =F53 -> 1360 | H51: 1344.725521 | I51: 1323.323634 | J51: 1299.483486 | K51: 1269.94108 | L51: 1234.652294 | M51: 1193.570827 | N51: 1152.611883 | O51: 1105.828929 | P51: 1053.138829 | Q51: 997.0731226 | R51: 934.5845978 | S51: 865.2273415 | T51: 788.5286334 | U51: 703.9874326 | V51: 611.0727808 | W51: 509.2221192 | X51: 397.8395131 | Y51: 276.2937792 | Z51: 143.9165116 | AA51: 4.547473509e-13 | AB51: 4.786215868e-13 | AC51: 5.037492201e-13
D52: Repayments | G52: =G43-G54 -> 15.274479 | H52: =H43-H54 -> 21.40188733 | I52: 23.84014841 | J52: 29.5424057 | K52: 35.28878537 | L52: 41.08146794 | M52: 40.95894305 | N52: 46.78295445 | O52: 52.69010028 | P52: 56.06570621 | Q52: 62.48852478 | R52: 69.3572563 | S52: 76.69870805 | T52: 84.54120085 | U52: 92.9146518 | V52: 101.8506615 | W52: 111.3826061 | X52: 121.5457339 | Y52: 132.3772676 | Z52: 143.9165116 | AA52: -2.387423592e-14 | AB52: -2.512763331e-14 | AC52: -2.644683406e-14
D53: Closing Balance | F53: =E45 -> 1360 | G53: =G51-G52 -> 1344.725521 | H53: 1323.323634 | I53: 1299.483486 | J53: 1269.94108 | K53: 1234.652294 | L53: 1193.570827 | M53: 1152.611883 | N53: 1105.828929 | O53: 1053.138829 | P53: 997.0731226 | Q53: 934.5845978 | R53: 865.2273415 | S53: 788.5286334 | T53: 703.9874326 | U53: 611.0727808 | V53: 509.2221192 | W53: 397.8395131 | X53: 276.2937792 | Y53: 143.9165116 | Z53: 4.547473509e-13 | AA53: 4.786215868e-13 | AB53: 5.037492201e-13 | AC53: 5.301960542e-13
D54: Interest | G54: =G51*G34 -> 57.80000001 | H54: 57.15083466 | I54: 59.54956353 | J54: 58.47675685 | K54: 57.14734859 | L54: 55.55935325 | M54: 59.67854133 | N54: 57.63059417 | O54: 55.29144645 | P54: 55.28978851 | Q54: 52.34633893 | R54: 49.06569138 | S54: 45.42443543 | T54: 41.39775325 | U54: 36.95934021 | V54: 32.08132099 | W54: 26.73416126 | X54: 20.88657444 | Y54: 14.50542341 | Z54: 7.555616859 | AA54: 2.387423592e-14 | AB54: 2.512763331e-14 | AC54: 2.644683406e-14
D56: Check | E56: =ROUND(LOOKUP(E6,2:2,53:53),0)=0 -> TRUE
D58: DSCR | E58: =MIN(G58:AC58) -> 1.2 | G58: =IF(G54+G52>0.1,G32/(G54+G52)) -> 1.477944167 | H58: 1.46182738 | I58: 1.445886344 | J58: 1.430119143 | K58: 1.414523882 | L58: 1.399098685 | M58: 1.383841697 | N58: 1.368751085 | O58: 1.353825035 | P58: 1.33906175 | Q58: 1.324459458 | R58: 1.310016401 | S58: 1.295730845 | T58: 1.28160107 | U58: 1.267625379 | V58: 1.25380209 | W58: 1.240129543 | X58: 1.226606093 | Y58: 1.213230115 | Z58: 1.2 | AA58: FALSE | AB58: FALSE | AC58: FALSE
D60: PV CFADS | E60: =E16 -> 0 | F60: =NPV(E60,G32:AC32) -> 3545.518254
D61: Debt =PV Debt Service | F61: =E45 -> 1360
D63: PLCR | F63: =F60/F61 -> 2.606998716
D65: CFADS over Debt Life | G65: =G32*G3 -> 108 | H65: 114.8305197 | I65: 120.5720457 | J65: 125.8778894 | K65: 130.7531191 | L65: 135.2100458 | M65: 139.2663472 | N65: 142.916158 | O65: 146.1881213 | P65: 149.1118837 | Q65: 152.0941214 | R65: 155.1360038 | S65: 158.2387239 | T65: 161.4034983 | U65: 164.6315683 | V65: 167.9241997 | W65: 171.2826837 | X65: 174.7083373 | Y65: 178.2025041 | Z65: 181.7665542 | AA65: 0 | AB65: 0 | AC65: 0
D66: PV CFADS over Debt Life | E66: =E16 -> 0 | F66: =NPV(E66,G65:AC65) -> 2978.114324
D67: Debt =PV Debt Service | F67: =F61 -> 1360
D69: LLCR | F69: =F66/F67 -> 2.189789944
C71: IRR's
D72: Project Cash Flow | F72: =F32-F7 -> -1700 | G72: 108 | H72: 114.8305197 | I72: 120.5720457 | J72: 125.8778894 | K72: 130.7531191 | L72: 135.2100458 | M72: 139.2663472 | N72: 142.916158 | O72: 146.1881213 | P72: 149.1118837 | Q72: 152.0941214 | R72: 155.1360038 | S72: 158.2387239 | T72: 161.4034983 | U72: 164.6315683 | V72: 167.9241997 | W72: 171.2826837 | X72: 174.7083373 | Y72: 178.2025041 | Z72: 181.7665542 | AA72: 185.4018852 | AB72: 189.1099229 | AC72: 192.8921214
D73: Project IRR | E73: =IRR(F72:AC72) -> 0.06500548226
D75: Equity Issued | F75: =F72+F61 -> -339.9999997
D76: Equity Cash Flow | F76: =F75 -> -339.9999997 | G76: =G32-G43 -> 34.92552099 | H76: =H32-H43 -> 36.27779776 | I76: 37.1823338 | J76: 37.85872681 | K76: 38.31698509 | L76: 38.56922464 | M76: 38.62886283 | N76: 38.5026094 | O76: 38.20657452 | P76: 37.75638896 | Q76: 37.25925763 | R76: 36.71305609 | S76: 36.11558038 | T76: 35.46454423 | U76: 34.75757629 | V76: 33.99221713 | W76: 33.16591627 | X76: 32.27602897 | Y76: 31.3198131 | Z76: 30.29442569 | AA76: 185.4018852 | AB76: 189.1099229 | AC76: 192.8921214
D77: Equity IRR | E77: =IRR(F76:AC76) -> 0.1131686381
C79: Graph
G80: =G2 -> 1 | H80: 2 | I80: 3 | J80: 4 | K80: 5 | L80: 6 | M80: 7 | N80: 8 | O80: 9 | P80: 10 | Q80: 11 | R80: 12 | S80: 13 | T80: 14 | U80: 15 | V80: 16 | W80: 17 | X80: 18 | Y80: 19 | Z80: 20 | AA80: 21 | AB80: 22 | AC80: 23
D81: CFADS | G81: =G32 -> 108 | H81: =H32 -> 114.8305197 | I81: 120.5720457 | J81: 125.8778894 | K81: 130.7531191 | L81: 135.2100458 | M81: 139.2663472 | N81: 142.916158 | O81: 146.1881213 | P81: 149.1118837 | Q81: 152.0941214 | R81: 155.1360038 | S81: 158.2387239 | T81: 161.4034983 | U81: 164.6315683 | V81: 167.9241997 | W81: 171.2826837 | X81: 174.7083373 | Y81: 178.2025041 | Z81: 181.7665542 | AA81: 185.4018852 | AB81: 189.1099229 | AC81: 192.8921214
D82: Debt Service | G82: =G41 -> 73.07447901 | H82: =H41 -> 78.55272198 | I82: 83.38971194 | J82: 88.01916256 | K82: 92.43613396 | L82: 96.64082119 | M82: 100.6374844 | N82: 104.4135486 | O82: 107.9815467 | P82: 111.3554947 | Q82: 114.8348637 | R82: 118.4229477 | S82: 122.1231435 | T82: 125.9389541 | U82: 129.873992 | V82: 133.9319825 | W82: 138.1167674 | X82: 142.4323084 | Y82: 146.882691 | Z82: 151.4721285 | AA82: 0 | AB82: 0 | AC82: 0

Sheet Curved Sculpting Min
B2: Case 1: Basic | F2: 0 | G2: 1 | H2: 2 | I2: 3 | J2: 4 | K2: 5 | L2: 6 | M2: 7 | N2: 8 | O2: 9 | P2: 10 | Q2: 11 | R2: 12 | S2: 13 | T2: 14 | U2: 15 | V2: 16 | W2: 17 | X2: 18 | Y2: 19 | Z2: 20 | AA2: 21 | AB2: 22 | AC2: 23
D3: Repayment Flag | E3: =E6 -> 24 | G3: =G2<=$E$3 -> TRUE | H3: TRUE | I3: TRUE | J3: TRUE | K3: TRUE | L3: TRUE | M3: TRUE | N3: TRUE | O3: TRUE | P3: TRUE | Q3: TRUE | R3: TRUE | S3: TRUE | T3: TRUE | U3: TRUE | V3: TRUE | W3: TRUE | X3: TRUE | Y3: TRUE | Z3: TRUE | AA3: TRUE | AB3: TRUE | AC3: TRUE
B5: Inputs
D6: Tenor | E6: 24
D7: Capital Expenditure | F7: 1700
D8: Debt to Capital | F8: 0.9
D9: Debt Target | F9: =F7*F8 -> 1530
D11: Apply Target DSCR with Minimum | F11: TRUE
D13: CFADS Growth Year | F13: 0 | G13: 1 | H13: 3 | I13: 7 | J13: 10
D14: CFADS Growth Rate | F14: 0.08 | G14: 0.03 | H14: 0.07 | I14: 0.08 | J14: 0.02
D16: Intrest Rate | F16: 0.04 | G16: 0.0425 | H16: 0.045 | I16: 0.05 | J16: 0.0525
D18: Start and End Period | F18: 1 | G18: =E6 -> 24
D19: Start and End DSCR | F19: 0.9393043128 | G19: 1.2
D20: PV of Debt Service | E20: =E42 -> 1530.000002
D21: Target | E21: =F9 -> 1530
D22: Difference | E22: =E20-E21 -> 2.254140554e-06
D24: DSCR | G24: =interpolate_look_up(G2,18:18,19:19) -> 0.9393043128 | H24: =interpolate_look_up(H2,18:18,19:19) -> 0.9493608394 | I24: =interpolate_look_up(I2,18:18,19:19) -> 0.9595250347 | J24: =interpolate_look_up(J2,18:18,19:19) -> 0.9697980515 | K24: =interpolate_look_up(K2,18:18,19:19) -> 0.9801810549 | L24: =interpolate_look_up(L2,18:18,19:19) -> 0.9906752225 | M24: =interpolate_look_up(M2,18:18,19:19) -> 1.001281744 | N24: =interpolate_look_up(N2,18:18,19:19) -> 1.012001823 | O24: =interpolate_look_up(O2,18:18,19:19) -> 1.022836675 | P24: =interpolate_look_up(P2,18:18,19:19) -> 1.033787529 | Q24: =interpolate_look_up(Q2,18:18,19:19) -> 1.044855627 | R24: =interpolate_look_up(R2,18:18,19:19) -> 1.056042223 | S24: =interpolate_look_up(S2,18:18,19:19) -> 1.067348587 | T24: =interpolate_look_up(T2,18:18,19:19) -> 1.078776002 | U24: =interpolate_look_up(U2,18:18,19:19) -> 1.090325762 | V24: =interpolate_look_up(V2,18:18,19:19) -> 1.101999178 | W24: =interpolate_look_up(W2,18:18,19:19) -> 1.113797574 | X24: =interpolate_look_up(X2,18:18,19:19) -> 1.125722287 | Y24: =interpolate_look_up(Y2,18:18,19:19) -> 1.137774671 | Z24: =interpolate_look_up(Z2,18:18,19:19) -> 1.149956092 | AA24: =interpolate_look_up(AA2,18:18,19:19) -> 1.162267932 | AB24: =interpolate_look_up(AB2,18:18,19:19) -> 1.174711586 | AC24: =interpolate_look_up(AC2,18:18,19:19) -> 1.187288467
D25: Base CFADS | G25: 50 | H25: =G25 -> 50 | I25: =H25 -> 50 | J25: 60 | K25: 60 | L25: 60 | M25: 60 | N25: 80 | O25: 80 | P25: 80 | Q25: 80 | R25: 80 | S25: 80 | T25: 80 | U25: 80 | V25: 80 | W25: 80 | X25: 80 | Y25: 80 | Z25: 80 | AA25: 80 | AB25: 80 | AC25: 80
B27: CFADS
D28: Growth Rate | G28: =LOOKUP(G2,13:13,14:14) -> 0.03 | H28: 0.03 | I28: 0.07 | J28: 0.07 | K28: 0.07 | L28: 0.07 | M28: 0.08 | N28: 0.08 | O28: 0.08 | P28: 0.02 | Q28: 0.02 | R28: 0.02 | S28: 0.02 | T28: 0.02 | U28: 0.02 | V28: 0.02 | W28: 0.02 | X28: 0.02 | Y28: 0.02 | Z28: 0.02 | AA28: 0.02 | AB28: 0.02 | AC28: 0.02
D29: CFADS Index - Lookup | F29: 1 | G29: =F29*(1+G28) -> 1.03 | H29: =G29*(1+H28) -> 1.0609 | I29: 1.135163 | J29: 1.21462441 | K29: 1.299648119 | L29: 1.390623487 | M29: 1.501873366 | N29: 1.622023235 | O29: 1.751785094 | P29: 1.786820796 | Q29: 1.822557212 | R29: 1.859008356 | S29: 1.896188523 | T29: 1.934112294 | U29: 1.97279454 | V29: 2.01225043 | W29: 2.052495439 | X29: 2.093545348 | Y29: 2.135416255 | Z29: 2.17812458 | AA29: 2.221687071 | AB29: 2.266120813 | AC29: 2.311443229
D30: Growth Rate Interpolate | G30: =interpolate_look_up(G2,13:13,14:14) -> 0.03 | H30: =interpolate_look_up(H2,13:13,14:14) -> 0.04582575695 | I30: =interpolate_look_up(I2,13:13,14:14) -> 0.07 | J30: =interpolate_look_up(J2,13:13,14:14) -> 0.07237624155 | K30: =interpolate_look_up(K2,13:13,14:14) -> 0.07483314774 | L30: =interpolate_look_up(L2,13:13,14:14) -> 0.07737345681 | M30: =interpolate_look_up(M2,13:13,14:14) -> 0.08 | N30: =interpolate_look_up(N2,13:13,14:14) -> 0.050396842 | O30: =interpolate_look_up(O2,13:13,14:14) -> 0.03174802104 | P30: =interpolate_look_up(P2,13:13,14:14) -> 0.02 | Q30: =interpolate_look_up(Q2,13:13,14:14) -> 0.02 | R30: =interpolate_look_up(R2,13:13,14:14) -> 0.02 | S30: =interpolate_look_up(S2,13:13,14:14) -> 0.02 | T30: =interpolate_look_up(T2,13:13,14:14) -> 0.02 | U30: =interpolate_look_up(U2,13:13,14:14) -> 0.02 | V30: =interpolate_look_up(V2,13:13,14:14) -> 0.02 | W30: =interpolate_look_up(W2,13:13,14:14) -> 0.02 | X30: =interpolate_look_up(X2,13:13,14:14) -> 0.02 | Y30: =interpolate_look_up(Y2,13:13,14:14) -> 0.02 | Z30: =interpolate_look_up(Z2,13:13,14:14) -> 0.02 | AA30: =interpolate_look_up(AA2,13:13,14:14) -> 0.02 | AB30: =interpolate_look_up(AB2,13:13,14:14) -> 0.02 | AC30: =interpolate_look_up(AC2,13:13,14:14) -> 0.02
D31: CFADS Index - Interpolate | F31: 1 | G31: =F31*(1+G30) -> 1.03 | H31: =G31*(1+H30) -> 1.07720053 | I31: 1.152604567 | J31: 1.236025753 | K31: 1.328521451 | L31: 1.431313748 | M31: 1.545818848 | N31: 1.623723236 | O31: 1.675273236 | P31: 1.7087787 | Q31: 1.742954274 | R31: 1.77781336 | S31: 1.813369627 | T31: 1.84963702 | U31: 1.88662976 | V31: 1.924362355 | W31: 1.962849602 | X31: 2.002106594 | Y31: 2.042148726 | Z31: 2.082991701 | AA31: 2.124651535 | AB31: 2.167144566 | AC31: 2.210487457
D32: CFADS | G32: =G25*G31 -> 51.5 | H32: =H25*H31 -> 53.86002648 | I32: 57.63022834 | J32: 74.1615452 | K32: 79.71128706 | L32: 85.87882489 | M32: 92.74913088 | N32: 129.8978589 | O32: 134.0218589 | P32: 136.702296 | Q32: 139.436342 | R32: 142.2250688 | S32: 145.0695702 | T32: 147.9709616 | U32: 150.9303808 | V32: 153.9489884 | W32: 157.0279682 | X32: 160.1685276 | Y32: 163.3718981 | Z32: 166.6393361 | AA32: 169.9721228 | AB32: 173.3715652 | AC32: 176.8389966
D34: Interest Rate | G34: =LOOKUP(G2,13:13,16:16) -> 0.0425 | H34: 0.0425 | I34: 0.045 | J34: 0.045 | K34: 0.045 | L34: 0.045 | M34: 0.05 | N34: 0.05 | O34: 0.05 | P34: 0.0525 | Q34: 0.0525 | R34: 0.0525 | S34: 0.0525 | T34: 0.0525 | U34: 0.0525 | V34: 0.0525 | W34: 0.0525 | X34: 0.0525 | Y34: 0.0525 | Z34: 0.0525 | AA34: 0.0525 | AB34: 0.0525 | AC34: 0.0525
D35: Interest Rate Index | F35: 1 | G35: =F35*(1+G34) -> 1.0425 | H35: =G35*(1+H34) -> 1.08680625 | I35: 1.135712531 | J35: 1.186819595 | K35: 1.240226477 | L35: 1.296036668 | M35: 1.360838502 | N35: 1.428880427 | O35: 1.500324448 | P35: 1.579091482 | Q35: 1.661993785 | R35: 1.749248458 | S35: 1.841084002 | T35: 1.937740912 | U35: 2.03947231 | V35: 2.146544607 | W35: 2.259238199 | X35: 2.377848204 | Y35: 2.502685235 | Z35: 2.634076209 | AA35: 2.77236521 | AB35: 2.917914384 | AC35: 3.071104889
D36: CFADS over Debt Term | G36: =G32*G3 -> 51.5 | H36: 53.86002648 | I36: 57.63022834 | J36: 74.1615452 | K36: 79.71128706 | L36: 85.87882489 | M36: 92.74913088 | N36: 129.8978589 | O36: 134.0218589 | P36: 136.702296 | Q36: 139.436342 | R36: 142.2250688 | S36: 145.0695702 | T36: 147.9709616 | U36: 150.9303808 | V36: 153.9489884 | W36: 157.0279682 | X36: 160.1685276 | Y36: 163.3718981 | Z36: 166.6393361 | AA36: 169.9721228 | AB36: 173.3715652 | AC36: 176.8389966
D38: Target DSCR | G38: =G24 -> 0.9393043128 | H38: 0.9493608394 | I38: 0.9595250347 | J38: 0.9697980515 | K38: 0.9801810549 | L38: 0.9906752225 | M38: 1.001281744 | N38: 1.012001823 | O38: 1.022836675 | P38: 1.033787529 | Q38: 1.044855627 | R38: 1.056042223 | S38: 1.067348587 | T38: 1.078776002 | U38: 1.090325762 | V38: 1.101999178 | W38: 1.113797574 | X38: 1.125722287 | Y38: 1.137774671 | Z38: 1.149956092 | AA38: 1.162267932 | AB38: 1.174711586 | AC38: 1.187288467
D39: Target Debt Service with Curved | G39: =MAX(G32/G38*G3,G51) -> 65.025 | H39: =MAX(H32/H38*H3,H51) -> 65.025 | I39: 68.85 | J39: 76.47112209 | K39: 81.3230236 | L39: 86.6871634 | M39: 92.63040239 | N39: 128.3573368 | O39: 131.0295789 | P39: 132.2344217 | Q39: 133.4503432 | R39: 134.6774453 | S39: 135.9158309 | T39: 137.1656037 | U39: 138.4268685 | V39: 139.6997307 | W39: 140.9842972 | X39: 142.2806756 | Y39: 143.5889744 | Z39: 144.9093033 | AA39: 146.2417728 | AB39: 147.5864947 | AC39: 148.9435815
D40: Target Debt Service Applied | E40: =F11 -> TRUE | G40: =IF($E$40,G39) -> 65.025 | H40: =IF($E$40,H39) -> 65.025 | I40: 68.85 | J40: 76.47112209 | K40: 81.3230236 | L40: 86.6871634 | M40: 92.63040239 | N40: 128.3573368 | O40: 131.0295789 | P40: 132.2344217 | Q40: 133.4503432 | R40: 134.6774453 | S40: 135.9158309 | T40: 137.1656037 | U40: 138.4268685 | V40: 139.6997307 | W40: 140.9842972 | X40: 142.2806756 | Y40: 143.5889744 | Z40: 144.9093033 | AA40: 146.2417728 | AB40: 147.5864947 | AC40: 148.9435815
D42: PV of Debt Service | E42: =SUMPRODUCT(G39:AC39/G35:AC35) -> 1530.000002
D44: Repayments with Minimum
B46: Results
C47: Debt Balance
D48: Opening Balance | G48: =F50 -> 1530 | H48: 1530 | I48: 1530 | J48: 1530 | K48: 1522.378878 | L48: 1509.562904 | M48: 1490.806071 | N48: 1472.715972 | O48: 1417.994434 | P48: 1357.864577 | Q48: 1296.918045 | R48: 1231.5559 | S48: 1161.535139 | T48: 1086.599903 | U48: 1006.480794 | V48: 920.8941673 | W48: 829.5413804 | X48: 732.1080056 | Y48: 628.2630003 | Z48: 517.6578334 | AA48: 399.9255664 | AB48: 274.6798858 | AC48: 141.5140851
D49: Repayments | G49: =G40-G51 -> 0 | H49: =H40-H51 -> 0 | I49: 0 | J49: 7.621122085 | K49: 12.8159741 | L49: 18.75683273 | M49: 18.09009884 | N49: 54.72153821 | O49: 60.1298572 | P49: 60.94653137 | Q49: 65.36214579 | R49: 70.0207606 | S49: 74.93523614 | T49: 80.11910884 | U49: 85.58662676 | V49: 91.35278696 | W49: 97.43337478 | X49: 103.8450053 | Y49: 110.6051669 | Z49: 117.732267 | AA49: 125.2456806 | AB49: 133.1658007 | AC49: 141.5140921
D50: Closing Balance | F50: =F9 -> 1530 | G50: =G48-G49 -> 1530 | H50: 1530 | I50: 1530 | J50: 1522.378878 | K50: 1509.562904 | L50: 1490.806071 | M50: 1472.715972 | N50: 1417.994434 | O50: 1357.864577 | P50: 1296.918045 | Q50: 1231.5559 | R50: 1161.535139 | S50: 1086.599903 | T50: 1006.480794 | U50: 920.8941673 | V50: 829.5413804 | W50: 732.1080056 | X50: 628.2630003 | Y50: 517.6578334 | Z50: 399.9255664 | AA50: 274.6798858 | AB50: 141.5140851 | AC50: -6.922702283e-06
D51: Interest | G51: =G48*G34 -> 65.025 | H51: 65.025 | I51: 68.85 | J51: 68.85 | K51: 68.50704951 | L51: 67.93033067 | M51: 74.54030355 | N51: 73.63579861 | O51: 70.8997217 | P51: 71.28789028 | Q51: 68.08819739 | R51: 64.65668473 | S51: 60.9805948 | T51: 57.0464949 | U51: 52.84024169 | V51: 48.34694378 | W51: 43.55092247 | X51: 38.43567029 | Y51: 32.98380752 | Z51: 27.17703625 | AA51: 20.99609224 | AB51: 14.42069401 | AC51: 7.42948947
D53: Check | E53: =ROUND(LOOKUP(E6,2:2,50:50),0)=0 -> TRUE
D55: DSCR | E55: =MIN(G55:AC55) -> 0.7920030757 | G55: =IF(G51+G49>0.1,G32/(G51+G49)) -> 0.7920030757 | H55: 0.8282972162 | I55: 0.8370403535 | J55: 0.9697980515 | K55: 0.9801810549 | L55: 0.9906752225 | M55: 1.001281744 | N55: 1.012001823 | O55: 1.022836675 | P55: 1.033787529 | Q55: 1.044855627 | R55: 1.056042223 | S55: 1.067348587 | T55: 1.078776002 | U55: 1.090325762 | V55: 1.101999178 | W55: 1.113797574 | X55: 1.125722287 | Y55: 1.137774671 | Z55: 1.149956092 | AA55: 1.162267932 | AB55: 1.174711586 | AC55: 1.187288467
D57: PV CFADS | E57: =E16 -> 0 | F57: =NPV(E57,G32:AC32) -> 2943.084783
D58: Debt =PV Debt Service | F58: =E42 -> 1530.000002
D60: PLCR | F60: =F57/F58 -> 1.923584823
D62: CFADS over Debt Life | G62: =G32*G3 -> 51.5 | H62: 53.86002648 | I62: 57.63022834 | J62: 74.1615452 | K62: 79.71128706 | L62: 85.87882489 | M62: 92.74913088 | N62: 129.8978589 | O62: 134.0218589 | P62: 136.702296 | Q62: 139.436342 | R62: 142.2250688 | S62: 145.0695702 | T62: 147.9709616 | U62: 150.9303808 | V62: 153.9489884 | W62: 157.0279682 | X62: 160.1685276 | Y62: 163.3718981 | Z62: 166.6393361 | AA62: 169.9721228 | AB62: 173.3715652 | AC62: 176.8389966
D63: PV CFADS over Debt Life | E63: =E16 -> 0 | F63: =NPV(E63,G62:AC62) -> 2943.084783
D64: Debt =PV Debt Service | F64: =F58 -> 1530.000002
D66: LLCR | F66: =F63/F64 -> 1.923584823
C68: IRR's
D69: Project Cash Flow | F69: =F32-F7 -> -1700 | G69: 51.5 | H69: 53.86002648 | I69: 57.63022834 | J69: 74.1615452 | K69: 79.71128706 | L69: 85.87882489 | M69: 92.74913088 | N69: 129.8978589 | O69: 134.0218589 | P69: 136.702296 | Q69: 139.436342 | R69: 142.2250688 | S69: 145.0695702 | T69: 147.9709616 | U69: 150.9303808 | V69: 153.9489884 | W69: 157.0279682 | X69: 160.1685276 | Y69: 163.3718981 | Z69: 166.6393361 | AA69: 169.9721228 | AB69: 173.3715652 | AC69: 176.8389966
D70: Project IRR | E70: =IRR(F69:AC69) -> 0.04242081049
D72: Equity Issued | F72: =F69+F58 -> -169.9999977
D73: Equity Cash Flow | F73: =F72 -> -169.9999977 | G73: =G32-G40 -> -13.525 | H73: -11.16497352 | I73: -11.21977166 | J73: -2.309576889 | K73: -1.611736538 | L73: -0.8083385133 | M73: 0.1187284909 | N73: 1.540522081 | O73: 2.992279957 | P73: 4.467874379 | Q73: 5.98599878 | R73: 7.547623461 | S73: 9.153739233 | T73: 10.80535783 | U73: 12.50351235 | V73: 14.24925768 | W73: 16.04367095 | X73: 17.88785196 | Y73: 19.78292371 | Z73: 21.73003281 | AA73: 23.73034998 | AB73: 25.78507056 | AC73: 27.89541502
D74: Equity IRR | E74: =IRR(F73:AC73) -> 0.003024670123
C76: Graph
G77: =G2 -> 1 | H77: 2 | I77: 3 | J77: 4 | K77: 5 | L77: 6 | M77: 7 | N77: 8 | O77: 9 | P77: 10 | Q77: 11 | R77: 12 | S77: 13 | T77: 14 | U77: 15 | V77: 16 | W77: 17 | X77: 18 | Y77: 19 | Z77: 20 | AA77: 21 | AB77: 22 | AC77: 23
D78: CFADS | G78: =G32 -> 51.5 | H78: 53.86002648 | I78: 57.63022834 | J78: 74.1615452 | K78: 79.71128706 | L78: 85.87882489 | M78: 92.74913088 | N78: 129.8978589 | O78: 134.0218589 | P78: 136.702296 | Q78: 139.436342 | R78: 142.2250688 | S78: 145.0695702 | T78: 147.9709616 | U78: 150.9303808 | V78: 153.9489884 | W78: 157.0279682 | X78: 160.1685276 | Y78: 163.3718981 | Z78: 166.6393361 | AA78: 169.9721228 | AB78: 173.3715652 | AC78: 176.8389966
D79: Debt Service | G79: =G39 -> 65.025 | H79: =H39 -> 65.025 | I79: 68.85 | J79: 76.47112209 | K79: 81.3230236 | L79: 86.6871634 | M79: 92.63040239 | N79: 128.3573368 | O79: 131.0295789 | P79: 132.2344217 | Q79: 133.4503432 | R79: 134.6774453 | S79: 135.9158309 | T79: 137.1656037 | U79: 138.4268685 | V79: 139.6997307 | W79: 140.9842972 | X79: 142.2806756 | Y79: 143.5889744 | Z79: 144.9093033 | AA79: 146.2417728 | AB79: 147.5864947 | AC79: 148.9435815

Sheet Monthly to Semi
D2: Month | F2: 0 | G2: 1 | H2: 2 | I2: 3 | J2: 4 | K2: 5 | L2: 6 | M2: 7 | N2: 8 | O2: 9 | P2: 10 | Q2: 11 | R2: 12 | S2: 13 | T2: 14 | U2: 15 | V2: 16 | W2: 17 | X2: 18 | Y2: 19 | Z2: 20 | AA2: 21 | AB2: 22 | AC2: 23 | AD2: 24 | AE2: 25 | AF2: 26 | AG2: 27 | AH2: 28 | AI2: 29 | AJ2: 30 | AK2: 31 | AL2: 32 | AM2: 33 | AN2: 34 | AO2: 35 | AP2: 36 | AQ2: 37 | AR2: 38 | AS2: 39 | AT2: 40 | AU2: 41 | AV2: 42 | AW2: 43 | AX2: 44 | AY2: 45 | AZ2: 46 | BA2: 47 | BB2: 48 | BC2: 49 | BD2: 50 | BE2: 51 | BF2: 52 | BG2: 53 | BH2: 54 | BI2: 55 | BJ2: 56 | BK2: 57 | BL2: 58 | BM2: 59 | BN2: 60 | BO2: 61 | BP2: 62 | BQ2: 63 | BR2: 64 | BS2: 65 | BT2: 66 | BU2: 67 | BV2: 68 | BW2: 69 | BX2: 70 | BY2: 71 | BZ2: 72 | CA2: 73 | CB2: 74 | CC2: 75 | CD2: 76 | CE2: 77 | CF2: 78 | CG2: 79 | CH2: 80 | CI2: 81 | CJ2: 82 | CK2: 83 | CL2: 84 | CM2: 85 | CN2: 86 | CO2: 87 | CP2: 88 | CQ2: 89 | CR2: 90 | CS2: 91 | CT2: 92 | CU2: 93 | CV2: 94 | CW2: 95 | CX2: 96 | CY2: 97 | CZ2: 98 | DA2: 99 | DB2: 100 | DC2: 101 | DD2: 102 | DE2: 103 | DF2: 104 | DG2: 105 | DH2: 106 | DI2: 107 | DJ2: 108 | DK2: 109 | DL2: 110 | DM2: 111 | DN2: 112 | DO2: 113 | DP2: 114 | DQ2: 115 | DR2: 116 | DS2: 117 | DT2: 118 | DU2: 119 | DV2: 120 | DW2: 121 | DX2: 122 | DY2: 123 | DZ2: 124 | EA2: 125 | EB2: 126 | EC2: 127 | ED2: 128 | EE2: 129 | EF2: 130 | EG2: 131 | EH2: 132 | EI2: 133 | EJ2: 134 | EK2: 135 | EL2: 136 | EM2: 137 | EN2: 138 | EO2: 139 | EP2: 140 | EQ2: 141 | ER2: 142 | ES2: 143 | ET2: 144 | EU2: 145 | EV2: 146 | EW2: 147 | EX2: 148 | EY2: 149 | EZ2: 150 | FA2: 151 | FB2: 152 | FC2: 153 | FD2: 154 | FE2: 155 | FF2: 156 | FG2: 157 | FH2: 158 | FI2: 159 | FJ2: 160 | FK2: 161 | FL2: 162 | FM2: 163 | FN2: 164 | FO2: 165 | FP2: 166 | FQ2: 167 | FR2: 168 | FS2: 169 | FT2: 170 | FU2: 171 | FV2: 172 | FW2: 173 | FX2: 174 | FY2: 175 | FZ2: 176 | GA2: 177 | GB2: 178 | GC2: 179 | GD2: 180 | GE2: 181 | GF2: 182 | GG2: 183 | GH2: 184 | GI2: 185 | GJ2: 186 | GK2: 187 | GL2: 188 | GM2: 189 | GN2: 190 | GO2: 191 | GP2: 192 | GQ2: 193 | GR2: 194 | GS2: 195 | GT2: 196 | GU2: 197 | GV2: 198 | GW2: 199 | GX2: 200 | GY2: 201 | GZ2: 202 | HA2: 203 | HB2: 204 | HC2: 205 | HD2: 206 | HE2: 207 | HF2: 208 | HG2: 209 | HH2: 210 | HI2: 211 | HJ2: 212 | HK2: 213 | HL2: 214 | HM2: 215 | HN2: 216 | HO2: 217 | HP2: 218 | HQ2: 219 | HR2: 220 | HS2: 221 | HT2: 222 | HU2: 223 | HV2: 224 | HW2: 225 | HX2: 226 | HY2: 227 | HZ2: 228 | IA2: 229 | IB2: 230 | IC2: 231 | ID2: 232 | IE2: 233 | IF2: 234 | IG2: 235 | IH2: 236 | II2: 237 | IJ2: 238 | IK2: 239 | IL2: 240 | IM2: 241 | IN2: 242 | IO2: 243 | IP2: 244 | IQ2: 245 | IR2: 246 | IS2: 247 | IT2: 248 | IU2: 249 | IV2: 250 | IW2: 251 | IX2: 252 | IY2: 253 | IZ2: 254 | JA2: 255 | JB2: 256 | JC2: 257 | JD2: 258 | JE2: 259 | JF2: 260 | JG2: 261 | JH2: 262 | JI2: 263 | JJ2: 264 | JK2: 265 | JL2: 266 | JM2: 267 | JN2: 268 | JO2: 269 | JP2: 270 | JQ2: 271 | JR2: 272 | JS2: 273 | JT2: 274 | JU2: 275 | JV2: 276 | JW2: 277 | JX2: 278 | JY2: 279 | JZ2: 280 | KA2: 281 | KB2: 282 | KC2: 283 | KD2: 284 | KE2: 285 | KF2: 286 | KG2: 287 | KH2: 288 | KI2: 289 | KJ2: 290 | KK2: 291 | KL2: 292 | KM2: 293 | KN2: 294 | KO2: 295 | KP2: 296 | KQ2: 297 | KR2: 298 | KS2: 299 | KT2: 300
D3: Year Flag | G3: =MOD(G2,12)=0 -> FALSE | H3: =MOD(H2,12)=0 -> FALSE | I3: FALSE | J3: FALSE | K3: FALSE | L3: FALSE | M3: FALSE | N3: FALSE | O3: FALSE | P3: FALSE | Q3: FALSE | R3: TRUE | S3: FALSE | T3: FALSE | U3: FALSE | V3: FALSE | W3: FALSE | X3: FALSE | Y3: FALSE | Z3: FALSE | AA3: FALSE | AB3: FALSE | AC3: FALSE | AD3: TRUE | AE3: FALSE | AF3: FALSE | AG3: FALSE | AH3: FALSE | AI3: FALSE | AJ3: FALSE | AK3: FALSE | AL3: FALSE | AM3: FALSE | AN3: FALSE | AO3: FALSE | AP3: TRUE | AQ3: FALSE | AR3: FALSE | AS3: FALSE | AT3: FALSE | AU3: FALSE | AV3: FALSE | AW3: FALSE | AX3: FALSE | AY3: FALSE | AZ3: FALSE | BA3: FALSE | BB3: TRUE | BC3: FALSE | BD3: FALSE | BE3: FALSE | BF3: FALSE | BG3: FALSE | BH3: FALSE | BI3: FALSE | BJ3: FALSE | BK3: FALSE | BL3: FALSE | BM3: FALSE | BN3: TRUE | BO3: FALSE | BP3: FALSE | BQ3: FALSE | BR3: FALSE | BS3: FALSE | BT3: =MOD(BT2,12)=0 -> FALSE | BU3: FALSE | BV3: FALSE | BW3: FALSE | BX3: FALSE | BY3: FALSE | BZ3: TRUE | CA3: FALSE | CB3: FALSE | CC3: FALSE | CD3: FALSE | CE3: FALSE | CF3: FALSE | CG3: FALSE | CH3: FALSE | CI3: FALSE | CJ3: FALSE | CK3: FALSE | CL3: TRUE | CM3: FALSE | CN3: FALSE | CO3: FALSE | CP3: FALSE | CQ3: FALSE | CR3: FALSE | CS3: FALSE | CT3: FALSE | CU3: FALSE | CV3: FALSE | CW3: FALSE | CX3: TRUE | CY3: FALSE | CZ3: FALSE | DA3: FALSE | DB3: FALSE | DC3: FALSE | DD3: FALSE | DE3: FALSE | DF3: FALSE | DG3: FALSE | DH3: FALSE | DI3: FALSE | DJ3: TRUE | DK3: FALSE | DL3: FALSE | DM3: FALSE | DN3: FALSE | DO3: FALSE | DP3: FALSE | DQ3: FALSE | DR3: FALSE | DS3: FALSE | DT3: FALSE | DU3: FALSE | DV3: TRUE | DW3: FALSE | DX3: FALSE | DY3: FALSE | DZ3: FALSE | EA3: FALSE | EB3: FALSE | EC3: FALSE | ED3: FALSE | EE3: FALSE | EF3: =MOD(EF2,12)=0 -> FALSE | EG3: FALSE | EH3: TRUE | EI3: FALSE | EJ3: FALSE | EK3: FALSE | EL3: FALSE | EM3: FALSE | EN3: FALSE | EO3: FALSE | EP3: FALSE | EQ3: FALSE | ER3: FALSE | ES3: FALSE | ET3: TRUE | EU3: FALSE | EV3: FALSE | EW3: FALSE | EX3: FALSE | EY3: FALSE | EZ3: FALSE | FA3: FALSE | FB3: FALSE | FC3: FALSE | FD3: FALSE | FE3: FALSE | FF3: TRUE | FG3: FALSE | FH3: FALSE | FI3: FALSE | FJ3: FALSE | FK3: FALSE | FL3: FALSE | FM3: FALSE | FN3: FALSE | FO3: FALSE | FP3: FALSE | FQ3: FALSE | FR3: TRUE | FS3: FALSE | FT3: FALSE | FU3: FALSE | FV3: FALSE | FW3: FALSE | FX3: FALSE | FY3: FALSE | FZ3: FALSE | GA3: FALSE | GB3: FALSE | GC3: FALSE | GD3: TRUE | GE3: FALSE | GF3: FALSE | GG3: FALSE | GH3: FALSE | GI3: FALSE | GJ3: FALSE | GK3: FALSE | GL3: FALSE | GM3: FALSE | GN3: FALSE | GO3: FALSE | GP3: TRUE | GQ3: FALSE | GR3: =MOD(GR2,12)=0 -> FALSE | GS3: FALSE | GT3: FALSE | GU3: FALSE | GV3: FALSE | GW3: FALSE | GX3: FALSE | GY3: FALSE | GZ3: FALSE | HA3: FALSE | HB3: TRUE | HC3: FALSE | HD3: FALSE | HE3: FALSE | HF3: FALSE | HG3: FALSE | HH3: FALSE | HI3: FALSE | HJ3: FALSE | HK3: FALSE | HL3: FALSE | HM3: FALSE | HN3: TRUE | HO3: FALSE | HP3: FALSE | HQ3: FALSE | HR3: FALSE | HS3: FALSE | HT3: FALSE | HU3: FALSE | HV3: FALSE | HW3: FALSE | HX3: FALSE | HY3: FALSE | HZ3: TRUE | IA3: FALSE | IB3: FALSE | IC3: FALSE | ID3: FALSE | IE3: FALSE | IF3: FALSE | IG3: FALSE | IH3: FALSE | II3: FALSE | IJ3: FALSE | IK3: FALSE | IL3: TRUE | IM3: FALSE | IN3: FALSE | IO3: FALSE | IP3: FALSE | IQ3: FALSE | IR3: FALSE | IS3: FALSE | IT3: FALSE | IU3: FALSE | IV3: FALSE | IW3: FALSE | IX3: TRUE | IY3: FALSE | IZ3: FALSE | JA3: FALSE | JB3: FALSE | JC3: FALSE | JD3: =MOD(JD2,12)=0 -> FALSE | JE3: FALSE | JF3: FALSE | JG3: FALSE | JH3: FALSE | JI3: FALSE | JJ3: TRUE | JK3: FALSE | JL3: FALSE | JM3: FALSE | JN3: FALSE | JO3: FALSE | JP3: FALSE | JQ3: FALSE | JR3: FALSE | JS3: FALSE | JT3: FALSE | JU3: FALSE | JV3: TRUE | JW3: =MOD(JW2,12)=0 -> FALSE | JX3: =MOD(JX2,12)=0 -> FALSE | JY3: =MOD(JY2,12)=0 -> FALSE | JZ3: =MOD(JZ2,12)=0 -> FALSE | KA3: =MOD(KA2,12)=0 -> FALSE | KB3: =MOD(KB2,12)=0 -> FALSE | KC3: =MOD(KC2,12)=0 -> FALSE | KD3: =MOD(KD2,12)=0 -> FALSE | KE3: =MOD(KE2,12)=0 -> FALSE | KF3: =MOD(KF2,12)=0 -> FALSE | KG3: =MOD(KG2,12)=0 -> FALSE | KH3: =MOD(KH2,12)=0 -> TRUE | KI3: =MOD(KI2,12)=0 -> FALSE | KJ3: =MOD(KJ2,12)=0 -> FALSE | KK3: =MOD(KK2,12)=0 -> FALSE | KL3: =MOD(KL2,12)=0 -> FALSE | KM3: =MOD(KM2,12)=0 -> FALSE | KN3: =MOD(KN2,12)=0 -> FALSE | KO3: =MOD(KO2,12)=0 -> FALSE | KP3: =MOD(KP2,12)=0 -> FALSE | KQ3: =MOD(KQ2,12)=0 -> FALSE | KR3: =MOD(KR2,12)=0 -> FALSE | KS3: =MOD(KS2,12)=0 -> FALSE | KT3: =MOD(KT2,12)=0 -> TRUE
D4: Year Counter | G4: 1 | H4: =G4+H3 -> 1 | I4: =H4+I3 -> 1 | J4: 1 | K4: 1 | L4: 1 | M4: 1 | N4: 1 | O4: 1 | P4: 1 | Q4: 1 | R4: 2 | S4: 2 | T4: 2 | U4: 2 | V4: 2 | W4: 2 | X4: 2 | Y4: 2 | Z4: 2 | AA4: 2 | AB4: 2 | AC4: 2 | AD4: 3 | AE4: 3 | AF4: 3 | AG4: 3 | AH4: 3 | AI4: 3 | AJ4: 3 | AK4: 3 | AL4: 3 | AM4: 3 | AN4: 3 | AO4: 3 | AP4: 4 | AQ4: 4 | AR4: 4 | AS4: 4 | AT4: 4 | AU4: 4 | AV4: 4 | AW4: 4 | AX4: 4 | AY4: 4 | AZ4: 4 | BA4: 4 | BB4: 5 | BC4: 5 | BD4: 5 | BE4: 5 | BF4: 5 | BG4: 5 | BH4: 5 | BI4: 5 | BJ4: 5 | BK4: 5 | BL4: 5 | BM4: 5 | BN4: 6 | BO4: 6 | BP4: 6 | BQ4: 6 | BR4: 6 | BS4: 6 | BT4: 6 | BU4: =BT4+BU3 -> 6 | BV4: 6 | BW4: 6 | BX4: 6 | BY4: 6 | BZ4: 7 | CA4: 7 | CB4: 7 | CC4: 7 | CD4: 7 | CE4: 7 | CF4: 7 | CG4: 7 | CH4: 7 | CI4: 7 | CJ4: 7 | CK4: 7 | CL4: 8 | CM4: 8 | CN4: 8 | CO4: 8 | CP4: 8 | CQ4: 8 | CR4: 8 | CS4: 8 | CT4: 8 | CU4: 8 | CV4: 8 | CW4: 8 | CX4: 9 | CY4: 9 | CZ4: 9 | DA4: 9 | DB4: 9 | DC4: 9 | DD4: 9 | DE4: 9 | DF4: 9 | DG4: 9 | DH4: 9 | DI4: 9 | DJ4: 10 | DK4: 10 | DL4: 10 | DM4: 10 | DN4: 10 | DO4: 10 | DP4: 10 | DQ4: 10 | DR4: 10 | DS4: 10 | DT4: 10 | DU4: 10 | DV4: 11 | DW4: 11 | DX4: 11 | DY4: 11 | DZ4: 11 | EA4: 11 | EB4: 11 | EC4: 11 | ED4: 11 | EE4: 11 | EF4: 11 | EG4: =EF4+EG3 -> 11 | EH4: 12 | EI4: 12 | EJ4: 12 | EK4: 12 | EL4: 12 | EM4: 12 | EN4: 12 | EO4: 12 | EP4: 12 | EQ4: 12 | ER4: 12 | ES4: 12 | ET4: 13 | EU4: 13 | EV4: 13 | EW4: 13 | EX4: 13 | EY4: 13 | EZ4: 13 | FA4: 13 | FB4: 13 | FC4: 13 | FD4: 13 | FE4: 13 | FF4: 14 | FG4: 14 | FH4: 14 | FI4: 14 | FJ4: 14 | FK4: 14 | FL4: 14 | FM4: 14 | FN4: 14 | FO4: 14 | FP4: 14 | FQ4: 14 | FR4: 15 | FS4: 15 | FT4: 15 | FU4: 15 | FV4: 15 | FW4: 15 | FX4: 15 | FY4: 15 | FZ4: 15 | GA4: 15 | GB4: 15 | GC4: 15 | GD4: 16 | GE4: 16 | GF4: 16 | GG4: 16 | GH4: 16 | GI4: 16 | GJ4: 16 | GK4: 16 | GL4: 16 | GM4: 16 | GN4: 16 | GO4: 16 | GP4: 17 | GQ4: 17 | GR4: 17 | GS4: =GR4+GS3 -> 17 | GT4: 17 | GU4: 17 | GV4: 17 | GW4: 17 | GX4: 17 | GY4: 17 | GZ4: 17 | HA4: 17 | HB4: 18 | HC4: 18 | HD4: 18 | HE4: 18 | HF4: 18 | HG4: 18 | HH4: 18 | HI4: 18 | HJ4: 18 | HK4: 18 | HL4: 18 | HM4: 18 | HN4: 19 | HO4: 19 | HP4: 19 | HQ4: 19 | HR4: 19 | HS4: 19 | HT4: 19 | HU4: 19 | HV4: 19 | HW4: 19 | HX4: 19 | HY4: 19 | HZ4: 20 | IA4: 20 | IB4: 20 | IC4: 20 | ID4: 20 | IE4: 20 | IF4: 20 | IG4: 20 | IH4: 20 | II4: 20 | IJ4: 20 | IK4: 20 | IL4: 21 | IM4: 21 | IN4: 21 | IO4: 21 | IP4: 21 | IQ4: 21 | IR4: 21 | IS4: 21 | IT4: 21 | IU4: 21 | IV4: 21 | IW4: 21 | IX4: 22 | IY4: 22 | IZ4: 22 | JA4: 22 | JB4: 22 | JC4: 22 | JD4: 22 | JE4: =JD4+JE3 -> 22 | JF4: 22 | JG4: 22 | JH4: 22 | JI4: 22 | JJ4: 23 | JK4: 23 | JL4: 23 | JM4: 23 | JN4: 23 | JO4: 23 | JP4: 23 | JQ4: 23 | JR4: 23 | JS4: 23 | JT4: 23 | JU4: 23 | JV4: 24 | JW4: =JV4+JW3 -> 24 | JX4: =JW4+JX3 -> 24 | JY4: =JX4+JY3 -> 24 | JZ4: =JY4+JZ3 -> 24 | KA4: =JZ4+KA3 -> 24 | KB4: =KA4+KB3 -> 24 | KC4: =KB4+KC3 -> 24 | KD4: =KC4+KD3 -> 24 | KE4: =KD4+KE3 -> 24 | KF4: =KE4+KF3 -> 24 | KG4: =KF4+KG3 -> 24 | KH4: =KG4+KH3 -> 25 | KI4: =KH4+KI3 -> 25 | KJ4: =KI4+KJ3 -> 25 | KK4: =KJ4+KK3 -> 25 | KL4: =KK4+KL3 -> 25 | KM4: =KL4+KM3 -> 25 | KN4: =KM4+KN3 -> 25 | KO4: =KN4+KO3 -> 25 | KP4: =KO4+KP3 -> 25 | KQ4: =KP4+KQ3 -> 25 | KR4: =KQ4+KR3 -> 25 | KS4: =KR4+KS3 -> 25 | KT4: =KS4+KT3 -> 26
D5: Semi-annual Flag | G5: =MOD(G2,6)=0 -> FALSE | H5: =MOD(H2,6)=0 -> FALSE | I5: FALSE | J5: FALSE | K5: FALSE | L5: TRUE | M5: FALSE | N5: FALSE | O5: FALSE | P5: FALSE | Q5: FALSE | R5: TRUE | S5: FALSE | T5: FALSE | U5: FALSE | V5: FALSE | W5: FALSE | X5: TRUE | Y5: FALSE | Z5: FALSE | AA5: FALSE | AB5: FALSE | AC5: FALSE | AD5: TRUE | AE5: FALSE | AF5: FALSE | AG5: FALSE | AH5: FALSE | AI5: FALSE | AJ5: TRUE | AK5: FALSE | AL5: FALSE | AM5: FALSE | AN5: FALSE | AO5: FALSE | AP5: TRUE | AQ5: FALSE | AR5: FALSE | AS5: FALSE | AT5: FALSE | AU5: FALSE | AV5: TRUE | AW5: FALSE | AX5: FALSE | AY5: FALSE | AZ5: FALSE | BA5: FALSE | BB5: TRUE | BC5: FALSE | BD5: FALSE | BE5: FALSE | BF5: FALSE | BG5: FALSE | BH5: TRUE | BI5: FALSE | BJ5: FALSE | BK5: FALSE | BL5: FALSE | BM5: FALSE | BN5: TRUE | BO5: FALSE | BP5: FALSE | BQ5: FALSE | BR5: FALSE | BS5: FALSE | BT5: =MOD(BT2,6)=0 -> TRUE | BU5: FALSE | BV5: FALSE | BW5: FALSE | BX5: FALSE | BY5: FALSE | BZ5: TRUE | CA5: FALSE | CB5: FALSE | CC5: FALSE | CD5: FALSE | CE5: FALSE | CF5: TRUE | CG5: FALSE | CH5: FALSE | CI5: FALSE | CJ5: FALSE | CK5: FALSE | CL5: TRUE | CM5: FALSE | CN5: FALSE | CO5: FALSE | CP5: FALSE | CQ5: FALSE | CR5: TRUE | CS5: FALSE | CT5: FALSE | CU5: FALSE | CV5: FALSE | CW5: FALSE | CX5: TRUE | CY5: FALSE | CZ5: FALSE | DA5: FALSE | DB5: FALSE | DC5: FALSE | DD5: TRUE | DE5: FALSE | DF5: FALSE | DG5: FALSE | DH5: FALSE | DI5: FALSE | DJ5: TRUE | DK5: FALSE | DL5: FALSE | DM5: FALSE | DN5: FALSE | DO5: FALSE | DP5: TRUE | DQ5: FALSE | DR5: FALSE | DS5: FALSE | DT5: FALSE | DU5: FALSE | DV5: TRUE | DW5: FALSE | DX5: FALSE | DY5: FALSE | DZ5: FALSE | EA5: FALSE | EB5: TRUE | EC5: FALSE | ED5: FALSE | EE5: FALSE | EF5: =MOD(EF2,6)=0 -> FALSE | EG5: FALSE | EH5: TRUE | EI5: FALSE | EJ5: FALSE | EK5: FALSE | EL5: FALSE | EM5: FALSE | EN5: TRUE | EO5: FALSE | EP5: FALSE | EQ5: FALSE | ER5: FALSE | ES5: FALSE | ET5: TRUE | EU5: FALSE | EV5: FALSE | EW5: FALSE | EX5: FALSE | EY5: FALSE | EZ5: TRUE | FA5: FALSE | FB5: FALSE | FC5: FALSE | FD5: FALSE | FE5: FALSE | FF5: TRUE | FG5: FALSE | FH5: FALSE | FI5: FALSE | FJ5: FALSE | FK5: FALSE | FL5: TRUE | FM5: FALSE | FN5: FALSE | FO5: FALSE | FP5: FALSE | FQ5: FALSE | FR5: TRUE | FS5: FALSE | FT5: FALSE | FU5: FALSE | FV5: FALSE | FW5: FALSE | FX5: TRUE | FY5: FALSE | FZ5: FALSE | GA5: FALSE | GB5: FALSE | GC5: FALSE | GD5: TRUE | GE5: FALSE | GF5: FALSE | GG5: FALSE | GH5: FALSE | GI5: FALSE | GJ5: TRUE | GK5: FALSE | GL5: FALSE | GM5: FALSE | GN5: FALSE | GO5: FALSE | GP5: TRUE | GQ5: FALSE | GR5: =MOD(GR2,6)=0 -> FALSE | GS5: FALSE | GT5: FALSE | GU5: FALSE | GV5: TRUE | GW5: FALSE | GX5: FALSE | GY5: FALSE | GZ5: FALSE | HA5: FALSE | HB5: TRUE | HC5: FALSE | HD5: FALSE | HE5: FALSE | HF5: FALSE | HG5: FALSE | HH5: TRUE | HI5: FALSE | HJ5: FALSE | HK5: FALSE | HL5: FALSE | HM5: FALSE | HN5: TRUE | HO5: FALSE | HP5: FALSE | HQ5: FALSE | HR5: FALSE | HS5: FALSE | HT5: TRUE | HU5: FALSE | HV5: FALSE | HW5: FALSE | HX5: FALSE | HY5: FALSE | HZ5: TRUE | IA5: FALSE | IB5: FALSE | IC5: FALSE | ID5: FALSE | IE5: FALSE | IF5: TRUE | IG5: FALSE | IH5: FALSE | II5: FALSE | IJ5: FALSE | IK5: FALSE | IL5: TRUE | IM5: FALSE | IN5: FALSE | IO5: FALSE | IP5: FALSE | IQ5: FALSE | IR5: TRUE | IS5: FALSE | IT5: FALSE | IU5: FALSE | IV5: FALSE | IW5: FALSE | IX5: TRUE | IY5: FALSE | IZ5: FALSE | JA5: FALSE | JB5: FALSE | JC5: FALSE | JD5: =MOD(JD2,6)=0 -> TRUE | JE5: FALSE | JF5: FALSE | JG5: FALSE | JH5: FALSE | JI5: FALSE | JJ5: TRUE | JK5: FALSE | JL5: FALSE | JM5: FALSE | JN5: FALSE | JO5: FALSE | JP5: TRUE | JQ5: FALSE | JR5: FALSE | JS5: FALSE | JT5: FALSE | JU5: FALSE | JV5: TRUE | JW5: FALSE | JX5: FALSE | JY5: FALSE | JZ5: FALSE | KA5: FALSE | KB5: TRUE | KC5: FALSE | KD5: FALSE | KE5: FALSE | KF5: FALSE | KG5: FALSE | KH5: TRUE | KI5: FALSE | KJ5: FALSE | KK5: FALSE | KL5: FALSE | KM5: FALSE | KN5: TRUE | KO5: FALSE | KP5: FALSE | KQ5: FALSE | KR5: FALSE | KS5: FALSE | KT5: TRUE
D6: Semi Counter | G6: 1 | H6: =G6+H5 -> 1 | I6: =H6+I5 -> 1 | J6: 1 | K6: 1 | L6: 2 | M6: 2 | N6: 2 | O6: 2 | P6: 2 | Q6: 2 | R6: 3 | S6: 3 | T6: 3 | U6: 3 | V6: 3 | W6: 3 | X6: 4 | Y6: 4 | Z6: 4 | AA6: 4 | AB6: 4 | AC6: 4 | AD6: 5 | AE6: 5 | AF6: 5 | AG6: 5 | AH6: 5 | AI6: 5 | AJ6: 6 | AK6: 6 | AL6: 6 | AM6: 6 | AN6: 6 | AO6: 6 | AP6: 7 | AQ6: 7 | AR6: 7 | AS6: 7 | AT6: 7 | AU6: 7 | AV6: 8 | AW6: 8 | AX6: 8 | AY6: 8 | AZ6: 8 | BA6: 8 | BB6: 9 | BC6: 9 | BD6: 9 | BE6: 9 | BF6: 9 | BG6: 9 | BH6: 10 | BI6: 10 | BJ6: 10 | BK6: 10 | BL6: 10 | BM6: 10 | BN6: 11 | BO6: 11 | BP6: 11 | BQ6: 11 | BR6: 11 | BS6: 11 | BT6: 12 | BU6: =BT6+BU5 -> 12 | BV6: 12 | BW6: 12 | BX6: 12 | BY6: 12 | BZ6: 13 | CA6: 13 | CB6: 13 | CC6: 13 | CD6: 13 | CE6: 13 | CF6: 14 | CG6: 14 | CH6: 14 | CI6: 14 | CJ6: 14 | CK6: 14 | CL6: 15 | CM6: 15 | CN6: 15 | CO6: 15 | CP6: 15 | CQ6: 15 | CR6: 16 | CS6: 16 | CT6: 16 | CU6: 16 | CV6: 16 | CW6: 16 | CX6: 17 | CY6: 17 | CZ6: 17 | DA6: 17 | DB6: 17 | DC6: 17 | DD6: 18 | DE6: 18 | DF6: 18 | DG6: 18 | DH6: 18 | DI6: 18 | DJ6: 19 | DK6: 19 | DL6: 19 | DM6: 19 | DN6: 19 | DO6: 19 | DP6: 20 | DQ6: 20 | DR6: 20 | DS6: 20 | DT6: 20 | DU6: 20 | DV6: 21 | DW6: 21 | DX6: 21 | DY6: 21 | DZ6: 21 | EA6: 21 | EB6: 22 | EC6: 22 | ED6: 22 | EE6: 22 | EF6: 22 | EG6: =EF6+EG5 -> 22 | EH6: 23 | EI6: 23 | EJ6: 23 | EK6: 23 | EL6: 23 | EM6: 23 | EN6: 24 | EO6: 24 | EP6: 24 | EQ6: 24 | ER6: 24 | ES6: 24 | ET6: 25 | EU6: 25 | EV6: 25 | EW6: 25 | EX6: 25 | EY6: 25 | EZ6: 26 | FA6: 26 | FB6: 26 | FC6: 26 | FD6: 26 | FE6: 26 | FF6: 27 | FG6: 27 | FH6: 27 | FI6: 27 | FJ6: 27 | FK6: 27 | FL6: 28 | FM6: 28 | FN6: 28 | FO6: 28 | FP6: 28 | FQ6: 28 | FR6: 29 | FS6: 29 | FT6: 29 | FU6: 29 | FV6: 29 | FW6: 29 | FX6: 30 | FY6: 30 | FZ6: 30 | GA6: 30 | GB6: 30 | GC6: 30 | GD6: 31 | GE6: 31 | GF6: 31 | GG6: 31 | GH6: 31 | GI6: 31 | GJ6: 32 | GK6: 32 | GL6: 32 | GM6: 32 | GN6: 32 | GO6: 32 | GP6: 33 | GQ6: 33 | GR6: 33 | GS6: =GR6+GS5 -> 33 | GT6: 33 | GU6: 33 | GV6: 34 | GW6: 34 | GX6: 34 | GY6: 34 | GZ6: 34 | HA6: 34 | HB6: 35 | HC6: 35 | HD6: 35 | HE6: 35 | HF6: 35 | HG6: 35 | HH6: 36 | HI6: 36 | HJ6: 36 | HK6: 36 | HL6: 36 | HM6: 36 | HN6: 37 | HO6: 37 | HP6: 37 | HQ6: 37 | HR6: 37 | HS6: 37 | HT6: 38 | HU6: 38 | HV6: 38 | HW6: 38 | HX6: 38 | HY6: 38 | HZ6: 39 | IA6: 39 | IB6: 39 | IC6: 39 | ID6: 39 | IE6: 39 | IF6: 40 | IG6: 40 | IH6: 40 | II6: 40 | IJ6: 40 | IK6: 40 | IL6: 41 | IM6: 41 | IN6: 41 | IO6: 41 | IP6: 41 | IQ6: 41 | IR6: 42 | IS6: 42 | IT6: 42 | IU6: 42 | IV6: 42 | IW6: 42 | IX6: 43 | IY6: 43 | IZ6: 43 | JA6: 43 | JB6: 43 | JC6: 43 | JD6: 44 | JE6: =JD6+JE5 -> 44 | JF6: 44 | JG6: 44 | JH6: 44 | JI6: 44 | JJ6: 45 | JK6: 45 | JL6: 45 | JM6: 45 | JN6: 45 | JO6: 45 | JP6: 46 | JQ6: 46 | JR6: 46 | JS6: 46 | JT6: 46 | JU6: 46 | JV6: 47 | JW6: 47 | JX6: 47 | JY6: 47 | JZ6: 47 | KA6: 47 | KB6: 48 | KC6: 48 | KD6: 48 | KE6: 48 | KF6: 48 | KG6: 48 | KH6: 49 | KI6: 49 | KJ6: 49 | KK6: 49 | KL6: 49 | KM6: 49 | KN6: 50 | KO6: 50 | KP6: 50 | KQ6: 50 | KR6: 50 | KS6: 50 | KT6: 51
D7: Repayment Flag | E7: =E10 -> 20 | G7: =G4<=$E$7 -> TRUE | H7: =H4<=$E$7 -> TRUE | I7: TRUE | J7: TRUE | K7: TRUE | L7: TRUE | M7: TRUE | N7: TRUE | O7: TRUE | P7: TRUE | Q7: TRUE | R7: TRUE | S7: TRUE | T7: TRUE | U7: TRUE | V7: TRUE | W7: TRUE | X7: TRUE | Y7: TRUE | Z7: TRUE | AA7: TRUE | AB7: TRUE | AC7: TRUE | AD7: TRUE | AE7: TRUE | AF7: TRUE | AG7: TRUE | AH7: TRUE | AI7: TRUE | AJ7: TRUE | AK7: TRUE | AL7: TRUE | AM7: TRUE | AN7: TRUE | AO7: TRUE | AP7: TRUE | AQ7: TRUE | AR7: TRUE | AS7: TRUE | AT7: TRUE | AU7: TRUE | AV7: TRUE | AW7: TRUE | AX7: TRUE | AY7: TRUE | AZ7: TRUE | BA7: TRUE | BB7: TRUE | BC7: TRUE | BD7: TRUE | BE7: TRUE | BF7: TRUE | BG7: TRUE | BH7: TRUE | BI7: TRUE | BJ7: TRUE | BK7: TRUE | BL7: TRUE | BM7: TRUE | BN7: TRUE | BO7: TRUE | BP7: TRUE | BQ7: TRUE | BR7: TRUE | BS7: TRUE | BT7: =BT4<=$E$7 -> TRUE | BU7: TRUE | BV7: TRUE | BW7: TRUE | BX7: TRUE | BY7: TRUE | BZ7: TRUE | CA7: TRUE | CB7: TRUE | CC7: TRUE | CD7: TRUE | CE7: TRUE | CF7: TRUE | CG7: TRUE | CH7: TRUE | CI7: TRUE | CJ7: TRUE | CK7: TRUE | CL7: TRUE | CM7: TRUE | CN7: TRUE | CO7: TRUE | CP7: TRUE | CQ7: TRUE | CR7: TRUE | CS7: TRUE | CT7: TRUE | CU7: TRUE | CV7: TRUE | CW7: TRUE | CX7: TRUE | CY7: TRUE | CZ7: TRUE | DA7: TRUE | DB7: TRUE | DC7: TRUE | DD7: TRUE | DE7: TRUE | DF7: TRUE | DG7: TRUE | DH7: TRUE | DI7: TRUE | DJ7: TRUE | DK7: TRUE | DL7: TRUE | DM7: TRUE | DN7: TRUE | DO7: TRUE | DP7: TRUE | DQ7: TRUE | DR7: TRUE | DS7: TRUE | DT7: TRUE | DU7: TRUE | DV7: TRUE | DW7: TRUE | DX7: TRUE | DY7: TRUE | DZ7: TRUE | EA7: TRUE | EB7: TRUE | EC7: TRUE | ED7: TRUE | EE7: TRUE | EF7: =EF4<=$E$7 -> TRUE | EG7: TRUE | EH7: TRUE | EI7: TRUE | EJ7: TRUE | EK7: TRUE | EL7: TRUE | EM7: TRUE | EN7: TRUE | EO7: TRUE | EP7: TRUE | EQ7: TRUE | ER7: TRUE | ES7: TRUE | ET7: TRUE | EU7: TRUE | EV7: TRUE | EW7: TRUE | EX7: TRUE | EY7: TRUE | EZ7: TRUE | FA7: TRUE | FB7: TRUE | FC7: TRUE | FD7: TRUE | FE7: TRUE | FF7: TRUE | FG7: TRUE | FH7: TRUE | FI7: TRUE | FJ7: TRUE | FK7: TRUE | FL7: TRUE | FM7: TRUE | FN7: TRUE | FO7: TRUE | FP7: TRUE | FQ7: TRUE | FR7: TRUE | FS7: TRUE | FT7: TRUE | FU7: TRUE | FV7: TRUE | FW7: TRUE | FX7: TRUE | FY7: TRUE | FZ7: TRUE | GA7: TRUE | GB7: TRUE | GC7: TRUE | GD7: TRUE | GE7: TRUE | GF7: TRUE | GG7: TRUE | GH7: TRUE | GI7: TRUE | GJ7: TRUE | GK7: TRUE | GL7: TRUE | GM7: TRUE | GN7: TRUE | GO7: TRUE | GP7: TRUE | GQ7: TRUE | GR7: =GR4<=$E$7 -> TRUE | GS7: TRUE | GT7: TRUE | GU7: TRUE | GV7: TRUE | GW7: TRUE | GX7: TRUE | GY7: TRUE | GZ7: TRUE | HA7: TRUE | HB7: TRUE | HC7: TRUE | HD7: TRUE | HE7: TRUE | HF7: TRUE | HG7: TRUE | HH7: TRUE | HI7: TRUE | HJ7: TRUE | HK7: TRUE | HL7: TRUE | HM7: TRUE | HN7: TRUE | HO7: TRUE | HP7: TRUE | HQ7: TRUE | HR7: TRUE | HS7: TRUE | HT7: TRUE | HU7: TRUE | HV7: TRUE | HW7: TRUE | HX7: TRUE | HY7: TRUE | HZ7: TRUE | IA7: TRUE | IB7: TRUE | IC7: TRUE | ID7: TRUE | IE7: TRUE | IF7: TRUE | IG7: TRUE | IH7: TRUE | II7: TRUE | IJ7: TRUE | IK7: TRUE | IL7: FALSE | IM7: FALSE | IN7: FALSE | IO7: FALSE | IP7: FALSE | IQ7: FALSE | IR7: FALSE | IS7: FALSE | IT7: FALSE | IU7: FALSE | IV7: FALSE | IW7: FALSE | IX7: FALSE | IY7: FALSE | IZ7: FALSE | JA7: FALSE | JB7: FALSE | JC7: FALSE | JD7: =JD4<=$E$7 -> FALSE | JE7: FALSE | JF7: FALSE | JG7: FALSE | JH7: FALSE | JI7: FALSE | JJ7: FALSE | JK7: FALSE | JL7: FALSE | JM7: FALSE | JN7: FALSE | JO7: FALSE | JP7: FALSE | JQ7: FALSE | JR7: FALSE | JS7: FALSE | JT7: FALSE | JU7: FALSE | JV7: FALSE | JW7: FALSE | JX7: FALSE | JY7: FALSE | JZ7: FALSE | KA7: FALSE | KB7: FALSE | KC7: FALSE | KD7: FALSE | KE7: FALSE | KF7: FALSE | KG7: FALSE | KH7: FALSE | KI7: FALSE | KJ7: FALSE | KK7: FALSE | KL7: FALSE | KM7: FALSE | KN7: FALSE | KO7: FALSE | KP7: FALSE | KQ7: FALSE | KR7: FALSE | KS7: FALSE | KT7: FALSE
B9: Inputs
D10: Tenor | E10: 20
D11: Capital Expenditure | F11: 1700
D12: Debt to Capital | F12: 0.7
D13: Debt Target | F13: =F11*F12 -> 1190
D15: Apply Target DSCR with Minimum | F15: TRUE
D17: CFADS Growth Year | F17: 0 | G17: 1 | H17: 3 | I17: 7 | J17: 10
D18: CFADS Growth Rate | F18: 0.08 | G18: 0.09 | H18: 0.08 | I18: 0.03 | J18: 0.02
D20: Annual Interest Rate | F20: 0.04 | G20: 0.0425 | H20: 0.045 | I20: 0.05 | J20: 0.0525
D22: Month | F22: 1 | G22: 2 | H22: 3 | I22: 4 | J22: 5 | K22: 6 | L22: 7 | M22: 8 | N22: 9 | O22: 10 | P22: 11 | Q22: 12
D23: Seasonal Factor | F23: 0.03331637671 | G23: 0.05188048971 | H23: 0.07814291044 | I23: 0.1084070947 | J23: 0.1198969037 | K23: 0.1231118798 | L23: 0.1232610981 | M23: 0.108671618 | N23: 0.1052599451 | O23: 0.05841218164 | P23: 0.05014413131 | Q23: 0.03949537084
D25: Start and End Period | F25: 1 | G25: =E10 -> 20
D26: Start and End DSCR | F26: 100 | G26: 1.2
D27: PV of Debt Service | E27: =E57 -> 1190
D28: Target | E28: =F13 -> 1190
D29: Difference | E29: =E27-E28 -> 0
D31: DSCR | G31: =interpolate_look_up(G2,25:25,26:26) -> 100 | H31: =interpolate_look_up(H2,25:25,26:26) -> 79.23266726 | I31: =interpolate_look_up(I2,25:25,26:26) -> 62.77815561 | J31: =interpolate_look_up(J2,25:25,26:26) -> 49.74080715 | K31: =interpolate_look_up(K2,25:25,26:26) -> 39.41096822 | L31: =interpolate_look_up(L2,25:25,26:26) -> 31.22636131 | M31: =interpolate_look_up(M2,25:25,26:26) -> 24.74147896 | N31: =interpolate_look_up(N2,25:25,26:26) -> 19.6033337 | O31: =interpolate_look_up(O2,25:25,26:26) -> 15.53224416 | P31: =interpolate_look_up(P2,25:25,26:26) -> 12.30661133 | Q31: =interpolate_look_up(Q2,25:25,26:26) -> 9.750856409 | R31: =interpolate_look_up(R2,25:25,26:26) -> 7.725863614 | S31: =interpolate_look_up(S2,25:25,26:26) -> 6.12140781 | T31: =interpolate_look_up(T2,25:25,26:26) -> 4.850154682 | U31: =interpolate_look_up(U2,25:25,26:26) -> 3.842906921 | V31: =interpolate_look_up(V2,25:25,26:26) -> 3.044837654 | W31: =interpolate_look_up(W2,25:25,26:26) -> 2.412506087 | X31: =interpolate_look_up(X2,25:25,26:26) -> 1.91149292 | Y31: =interpolate_look_up(Y2,25:25,26:26) -> 1.514526825 | Z31: =interpolate_look_up(Z2,25:25,26:26) -> 1.2 | AA31: =interpolate_look_up(AA2,25:25,26:26) -> 1.2 | AB31: =interpolate_look_up(AB2,25:25,26:26) -> 1.2 | AC31: =interpolate_look_up(AC2,25:25,26:26) -> 1.2 | AD31: =interpolate_look_up(AD2,25:25,26:26) -> 1.2 | AE31: =interpolate_look_up(AE2,25:25,26:26) -> 1.2 | AF31: =interpolate_look_up(AF2,25:25,26:26) -> 1.2 | AG31: =interpolate_look_up(AG2,25:25,26:26) -> 1.2 | AH31: =interpolate_look_up(AH2,25:25,26:26) -> 1.2 | AI31: =interpolate_look_up(AI2,25:25,26:26) -> 1.2 | AJ31: =interpolate_look_up(AJ2,25:25,26:26) -> 1.2 | AK31: =interpolate_look_up(AK2,25:25,26:26) -> 1.2 | AL31: =interpolate_look_up(AL2,25:25,26:26) -> 1.2 | AM31: =interpolate_look_up(AM2,25:25,26:26) -> 1.2 | AN31: =interpolate_look_up(AN2,25:25,26:26) -> 1.2 | AO31: =interpolate_look_up(AO2,25:25,26:26) -> 1.2 | AP31: =interpolate_look_up(AP2,25:25,26:26) -> 1.2 | AQ31: =interpolate_look_up(AQ2,25:25,26:26) -> 1.2 | AR31: =interpolate_look_up(AR2,25:25,26:26) -> 1.2 | AS31: =interpolate_look_up(AS2,25:25,26:26) -> 1.2 | AT31: =interpolate_look_up(AT2,25:25,26:26) -> 1.2 | AU31: =interpolate_look_up(AU2,25:25,26:26) -> 1.2 | AV31: =interpolate_look_up(AV2,25:25,26:26) -> 1.2 | AW31: =interpolate_look_up(AW2,25:25,26:26) -> 1.2 | AX31: =interpolate_look_up(AX2,25:25,26:26) -> 1.2 | AY31: =interpolate_look_up(AY2,25:25,26:26) -> 1.2 | AZ31: =interpolate_look_up(AZ2,25:25,26:26) -> 1.2 | BA31: =interpolate_look_up(BA2,25:25,26:26) -> 1.2 | BB31: =interpolate_look_up(BB2,25:25,26:26) -> 1.2 | BC31: =interpolate_look_up(BC2,25:25,26:26) -> 1.2 | BD31: =interpolate_look_up(BD2,25:25,26:26) -> 1.2 | BE31: =interpolate_look_up(BE2,25:25,26:26) -> 1.2 | BF31: =interpolate_look_up(BF2,25:25,26:26) -> 1.2 | BG31: =interpolate_look_up(BG2,25:25,26:26) -> 1.2 | BH31: =interpolate_look_up(BH2,25:25,26:26) -> 1.2 | BI31: =interpolate_look_up(BI2,25:25,26:26) -> 1.2 | BJ31: =interpolate_look_up(BJ2,25:25,26:26) -> 1.2 | BK31: =interpolate_look_up(BK2,25:25,26:26) -> 1.2 | BL31: =interpolate_look_up(BL2,25:25,26:26) -> 1.2 | BM31: =interpolate_look_up(BM2,25:25,26:26) -> 1.2 | BN31: =interpolate_look_up(BN2,25:25,26:26) -> 1.2 | BO31: =interpolate_look_up(BO2,25:25,26:26) -> 1.2 | BP31: =interpolate_look_up(BP2,25:25,26:26) -> 1.2 | BQ31: =interpolate_look_up(BQ2,25:25,26:26) -> 1.2 | BR31: =interpolate_look_up(BR2,25:25,26:26) -> 1.2 | BS31: =interpolate_look_up(BS2,25:25,26:26) -> 1.2 | BT31: =interpolate_look_up(BT2,25:25,26:26) -> 1.2 | BU31: =interpolate_look_up(BU2,25:25,26:26) -> 1.2 | BV31: =interpolate_look_up(BV2,25:25,26:26) -> 1.2 | BW31: =interpolate_look_up(BW2,25:25,26:26) -> 1.2 | BX31: =interpolate_look_up(BX2,25:25,26:26) -> 1.2 | BY31: =interpolate_look_up(BY2,25:25,26:26) -> 1.2 | BZ31: =interpolate_look_up(BZ2,25:25,26:26) -> 1.2 | CA31: =interpolate_look_up(CA2,25:25,26:26) -> 1.2 | CB31: =interpolate_look_up(CB2,25:25,26:26) -> 1.2 | CC31: =interpolate_look_up(CC2,25:25,26:26) -> 1.2 | CD31: =interpolate_look_up(CD2,25:25,26:26) -> 1.2 | CE31: =interpolate_look_up(CE2,25:25,26:26) -> 1.2 | CF31: =interpolate_look_up(CF2,25:25,26:26) -> 1.2 | CG31: =interpolate_look_up(CG2,25:25,26:26) -> 1.2 | CH31: =interpolate_look_up(CH2,25:25,26:26) -> 1.2 | CI31: =interpolate_look_up(CI2,25:25,26:26) -> 1.2 | CJ31: =interpolate_look_up(CJ2,25:25,26:26) -> 1.2 | CK31: =interpolate_look_up(CK2,25:25,26:26) -> 1.2 | CL31: =interpolate_look_up(CL2,25:25,26:26) -> 1.2 | CM31: =interpolate_look_up(CM2,25:25,26:26) -> 1.2 | CN31: =interpolate_look_up(CN2,25:25,26:26) -> 1.2 | CO31: =interpolate_look_up(CO2,25:25,26:26) -> 1.2 | CP31: =interpolate_look_up(CP2,25:25,26:26) -> 1.2 | CQ31: =interpolate_look_up(CQ2,25:25,26:26) -> 1.2 | CR31: =interpolate_look_up(CR2,25:25,26:26) -> 1.2 | CS31: =interpolate_look_up(CS2,25:25,26:26) -> 1.2 | CT31: =interpolate_look_up(CT2,25:25,26:26) -> 1.2 | CU31: =interpolate_look_up(CU2,25:25,26:26) -> 1.2 | CV31: =interpolate_look_up(CV2,25:25,26:26) -> 1.2 | CW31: =interpolate_look_up(CW2,25:25,26:26) -> 1.2 | CX31: =interpolate_look_up(CX2,25:25,26:26) -> 1.2 | CY31: =interpolate_look_up(CY2,25:25,26:26) -> 1.2 | CZ31: =interpolate_look_up(CZ2,25:25,26:26) -> 1.2 | DA31: =interpolate_look_up(DA2,25:25,26:26) -> 1.2 | DB31: =interpolate_look_up(DB2,25:25,26:26) -> 1.2 | DC31: =interpolate_look_up(DC2,25:25,26:26) -> 1.2 | DD31: =interpolate_look_up(DD2,25:25,26:26) -> 1.2 | DE31: =interpolate_look_up(DE2,25:25,26:26) -> 1.2 | DF31: =interpolate_look_up(DF2,25:25,26:26) -> 1.2 | DG31: =interpolate_look_up(DG2,25:25,26:26) -> 1.2 | DH31: =interpolate_look_up(DH2,25:25,26:26) -> 1.2 | DI31: =interpolate_look_up(DI2,25:25,26:26) -> 1.2 | DJ31: =interpolate_look_up(DJ2,25:25,26:26) -> 1.2 | DK31: =interpolate_look_up(DK2,25:25,26:26) -> 1.2 | DL31: =interpolate_look_up(DL2,25:25,26:26) -> 1.2 | DM31: =interpolate_look_up(DM2,25:25,26:26) -> 1.2 | DN31: =interpolate_look_up(DN2,25:25,26:26) -> 1.2 | DO31: =interpolate_look_up(DO2,25:25,26:26) -> 1.2 | DP31: =interpolate_look_up(DP2,25:25,26:26) -> 1.2 | DQ31: =interpolate_look_up(DQ2,25:25,26:26) -> 1.2 | DR31: =interpolate_look_up(DR2,25:25,26:26) -> 1.2 | DS31: =interpolate_look_up(DS2,25:25,26:26) -> 1.2 | DT31: =interpolate_look_up(DT2,25:25,26:26) -> 1.2 | DU31: =interpolate_look_up(DU2,25:25,26:26) -> 1.2 | DV31: =interpolate_look_up(DV2,25:25,26:26) -> 1.2 | DW31: =interpolate_look_up(DW2,25:25,26:26) -> 1.2 | DX31: =interpolate_look_up(DX2,25:25,26:26) -> 1.2 | DY31: =interpolate_look_up(DY2,25:25,26:26) -> 1.2 | DZ31: =interpolate_look_up(DZ2,25:25,26:26) -> 1.2 | EA31: =interpolate_look_up(EA2,25:25,26:26) -> 1.2 | EB31: =interpolate_look_up(EB2,25:25,26:26) -> 1.2 | EC31: =interpolate_look_up(EC2,25:25,26:26) -> 1.2 | ED31: =interpolate_look_up(ED2,25:25,26:26) -> 1.2 | EE31: =interpolate_look_up(EE2,25:25,26:26) -> 1.2 | EF31: =interpolate_look_up(EF2,25:25,26:26) -> 1.2 | EG31: =interpolate_look_up(EG2,25:25,26:26) -> 1.2 | EH31: =interpolate_look_up(EH2,25:25,26:26) -> 1.2 | EI31: =interpolate_look_up(EI2,25:25,26:26) -> 1.2 | EJ31: =interpolate_look_up(EJ2,25:25,26:26) -> 1.2 | EK31: =interpolate_look_up(EK2,25:25,26:26) -> 1.2 | EL31: =interpolate_look_up(EL2,25:25,26:26) -> 1.2 | EM31: =interpolate_look_up(EM2,25:25,26:26) -> 1.2 | EN31: =interpolate_look_up(EN2,25:25,26:26) -> 1.2 | EO31: =interpolate_look_up(EO2,25:25,26:26) -> 1.2 | EP31: =interpolate_look_up(EP2,25:25,26:26) -> 1.2 | EQ31: =interpolate_look_up(EQ2,25:25,26:26) -> 1.2 | ER31: =interpolate_look_up(ER2,25:25,26:26) -> 1.2 | ES31: =interpolate_look_up(ES2,25:25,26:26) -> 1.2 | ET31: =interpolate_look_up(ET2,25:25,26:26) -> 1.2 | EU31: =interpolate_look_up(EU2,25:25,26:26) -> 1.2 | EV31: =interpolate_look_up(EV2,25:25,26:26) -> 1.2 | EW31: =interpolate_look_up(EW2,25:25,26:26) -> 1.2 | EX31: =interpolate_look_up(EX2,25:25,26:26) -> 1.2 | EY31: =interpolate_look_up(EY2,25:25,26:26) -> 1.2 | EZ31: =interpolate_look_up(EZ2,25:25,26:26) -> 1.2 | FA31: =interpolate_look_up(FA2,25:25,26:26) -> 1.2 | FB31: =interpolate_look_up(FB2,25:25,26:26) -> 1.2 | FC31: =interpolate_look_up(FC2,25:25,26:26) -> 1.2 | FD31: =interpolate_look_up(FD2,25:25,26:26) -> 1.2 | FE31: =interpolate_look_up(FE2,25:25,26:26) -> 1.2 | FF31: =interpolate_look_up(FF2,25:25,26:26) -> 1.2 | FG31: =interpolate_look_up(FG2,25:25,26:26) -> 1.2 | FH31: =interpolate_look_up(FH2,25:25,26:26) -> 1.2 | FI31: =interpolate_look_up(FI2,25:25,26:26) -> 1.2 | FJ31: =interpolate_look_up(FJ2,25:25,26:26) -> 1.2 | FK31: =interpolate_look_up(FK2,25:25,26:26) -> 1.2 | FL31: =interpolate_look_up(FL2,25:25,26:26) -> 1.2 | FM31: =interpolate_look_up(FM2,25:25,26:26) -> 1.2 | FN31: =interpolate_look_up(FN2,25:25,26:26) -> 1.2 | FO31: =interpolate_look_up(FO2,25:25,26:26) -> 1.2 | FP31: =interpolate_look_up(FP2,25:25,26:26) -> 1.2 | FQ31: =interpolate_look_up(FQ2,25:25,26:26) -> 1.2 | FR31: =interpolate_look_up(FR2,25:25,26:26) -> 1.2 | FS31: =interpolate_look_up(FS2,25:25,26:26) -> 1.2 | FT31: =interpolate_look_up(FT2,25:25,26:26) -> 1.2 | FU31: =interpolate_look_up(FU2,25:25,26:26) -> 1.2 | FV31: =interpolate_look_up(FV2,25:25,26:26) -> 1.2 | FW31: =interpolate_look_up(FW2,25:25,26:26) -> 1.2 | FX31: =interpolate_look_up(FX2,25:25,26:26) -> 1.2 | FY31: =interpolate_look_up(FY2,25:25,26:26) -> 1.2 | FZ31: =interpolate_look_up(FZ2,25:25,26:26) -> 1.2 | GA31: =interpolate_look_up(GA2,25:25,26:26) -> 1.2 | GB31: =interpolate_look_up(GB2,25:25,26:26) -> 1.2 | GC31: =interpolate_look_up(GC2,25:25,26:26) -> 1.2 | GD31: =interpolate_look_up(GD2,25:25,26:26) -> 1.2 | GE31: =interpolate_look_up(GE2,25:25,26:26) -> 1.2 | GF31: =interpolate_look_up(GF2,25:25,26:26) -> 1.2 | GG31: =interpolate_look_up(GG2,25:25,26:26) -> 1.2 | GH31: =interpolate_look_up(GH2,25:25,26:26) -> 1.2 | GI31: =interpolate_look_up(GI2,25:25,26:26) -> 1.2 | GJ31: =interpolate_look_up(GJ2,25:25,26:26) -> 1.2 | GK31: =interpolate_look_up(GK2,25:25,26:26) -> 1.2 | GL31: =interpolate_look_up(GL2,25:25,26:26) -> 1.2 | GM31: =interpolate_look_up(GM2,25:25,26:26) -> 1.2 | GN31: =interpolate_look_up(GN2,25:25,26:26) -> 1.2 | GO31: =interpolate_look_up(GO2,25:25,26:26) -> 1.2 | GP31: =interpolate_look_up(GP2,25:25,26:26) -> 1.2 | GQ31: =interpolate_look_up(GQ2,25:25,26:26) -> 1.2 | GR31: =interpolate_look_up(GR2,25:25,26:26) -> 1.2 | GS31: =interpolate_look_up(GS2,25:25,26:26) -> 1.2 | GT31: =interpolate_look_up(GT2,25:25,26:26) -> 1.2 | GU31: =interpolate_look_up(GU2,25:25,26:26) -> 1.2 | GV31: =interpolate_look_up(GV2,25:25,26:26) -> 1.2 | GW31: =interpolate_look_up(GW2,25:25,26:26) -> 1.2 | GX31: =interpolate_look_up(GX2,25:25,26:26) -> 1.2 | GY31: =interpolate_look_up(GY2,25:25,26:26) -> 1.2 | GZ31: =interpolate_look_up(GZ2,25:25,26:26) -> 1.2 | HA31: =interpolate_look_up(HA2,25:25,26:26) -> 1.2 | HB31: =interpolate_look_up(HB2,25:25,26:26) -> 1.2 | HC31: =interpolate_look_up(HC2,25:25,26:26) -> 1.2 | HD31: =interpolate_look_up(HD2,25:25,26:26) -> 1.2 | HE31: =interpolate_look_up(HE2,25:25,26:26) -> 1.2 | HF31: =interpolate_look_up(HF2,25:25,26:26) -> 1.2 | HG31: =interpolate_look_up(HG2,25:25,26:26) -> 1.2 | HH31: =interpolate_look_up(HH2,25:25,26:26) -> 1.2 | HI31: =interpolate_look_up(HI2,25:25,26:26) -> 1.2 | HJ31: =interpolate_look_up(HJ2,25:25,26:26) -> 1.2 | HK31: =interpolate_look_up(HK2,25:25,26:26) -> 1.2 | HL31: =interpolate_look_up(HL2,25:25,26:26) -> 1.2 | HM31: =interpolate_look_up(HM2,25:25,26:26) -> 1.2 | HN31: =interpolate_look_up(HN2,25:25,26:26) -> 1.2 | HO31: =interpolate_look_up(HO2,25:25,26:26) -> 1.2 | HP31: =interpolate_look_up(HP2,25:25,26:26) -> 1.2 | HQ31: =interpolate_look_up(HQ2,25:25,26:26) -> 1.2 | HR31: =interpolate_look_up(HR2,25:25,26:26) -> 1.2 | HS31: =interpolate_look_up(HS2,25:25,26:26) -> 1.2 | HT31: =interpolate_look_up(HT2,25:25,26:26) -> 1.2 | HU31: =interpolate_look_up(HU2,25:25,26:26) -> 1.2 | HV31: =interpolate_look_up(HV2,25:25,26:26) -> 1.2 | HW31: =interpolate_look_up(HW2,25:25,26:26) -> 1.2 | HX31: =interpolate_look_up(HX2,25:25,26:26) -> 1.2 | HY31: =interpolate_look_up(HY2,25:25,26:26) -> 1.2 | HZ31: =interpolate_look_up(HZ2,25:25,26:26) -> 1.2 | IA31: =interpolate_look_up(IA2,25:25,26:26) -> 1.2 | IB31: =interpolate_look_up(IB2,25:25,26:26) -> 1.2 | IC31: =interpolate_look_up(IC2,25:25,26:26) -> 1.2 | ID31: =interpolate_look_up(ID2,25:25,26:26) -> 1.2 | IE31: =interpolate_look_up(IE2,25:25,26:26) -> 1.2 | IF31: =interpolate_look_up(IF2,25:25,26:26) -> 1.2 | IG31: =interpolate_look_up(IG2,25:25,26:26) -> 1.2 | IH31: =interpolate_look_up(IH2,25:25,26:26) -> 1.2 | II31: =interpolate_look_up(II2,25:25,26:26) -> 1.2 | IJ31: =interpolate_look_up(IJ2,25:25,26:26) -> 1.2 | IK31: =interpolate_look_up(IK2,25:25,26:26) -> 1.2 | IL31: =interpolate_look_up(IL2,25:25,26:26) -> 1.2 | IM31: =interpolate_look_up(IM2,25:25,26:26) -> 1.2 | IN31: =interpolate_look_up(IN2,25:25,26:26) -> 1.2 | IO31: =interpolate_look_up(IO2,25:25,26:26) -> 1.2 | IP31: =interpolate_look_up(IP2,25:25,26:26) -> 1.2 | IQ31: =interpolate_look_up(IQ2,25:25,26:26) -> 1.2 | IR31: =interpolate_look_up(IR2,25:25,26:26) -> 1.2 | IS31: =interpolate_look_up(IS2,25:25,26:26) -> 1.2 | IT31: =interpolate_look_up(IT2,25:25,26:26) -> 1.2 | IU31: =interpolate_look_up(IU2,25:25,26:26) -> 1.2 | IV31: =interpolate_look_up(IV2,25:25,26:26) -> 1.2 | IW31: =interpolate_look_up(IW2,25:25,26:26) -> 1.2 | IX31: =interpolate_look_up(IX2,25:25,26:26) -> 1.2 | IY31: =interpolate_look_up(IY2,25:25,26:26) -> 1.2 | IZ31: =interpolate_look_up(IZ2,25:25,26:26) -> 1.2 | JA31: =interpolate_look_up(JA2,25:25,26:26) -> 1.2 | JB31: =interpolate_look_up(JB2,25:25,26:26) -> 1.2 | JC31: =interpolate_look_up(JC2,25:25,26:26) -> 1.2 | JD31: =interpolate_look_up(JD2,25:25,26:26) -> 1.2 | JE31: =interpolate_look_up(JE2,25:25,26:26) -> 1.2 | JF31: =interpolate_look_up(JF2,25:25,26:26) -> 1.2 | JG31: =interpolate_look_up(JG2,25:25,26:26) -> 1.2 | JH31: =interpolate_look_up(JH2,25:25,26:26) -> 1.2 | JI31: =interpolate_look_up(JI2,25:25,26:26) -> 1.2 | JJ31: =interpolate_look_up(JJ2,25:25,26:26) -> 1.2 | JK31: =interpolate_look_up(JK2,25:25,26:26) -> 1.2 | JL31: =interpolate_look_up(JL2,25:25,26:26) -> 1.2 | JM31: =interpolate_look_up(JM2,25:25,26:26) -> 1.2 | JN31: =interpolate_look_up(JN2,25:25,26:26) -> 1.2 | JO31: =interpolate_look_up(JO2,25:25,26:26) -> 1.2 | JP31: =interpolate_look_up(JP2,25:25,26:26) -> 1.2 | JQ31: =interpolate_look_up(JQ2,25:25,26:26) -> 1.2 | JR31: =interpolate_look_up(JR2,25:25,26:26) -> 1.2 | JS31: =interpolate_look_up(JS2,25:25,26:26) -> 1.2 | JT31: =interpolate_look_up(JT2,25:25,26:26) -> 1.2 | JU31: =interpolate_look_up(JU2,25:25,26:26) -> 1.2 | JV31: =interpolate_look_up(JV2,25:25,26:26) -> 1.2 | JW31: =interpolate_look_up(JW2,25:25,26:26) -> 1.2 | JX31: =interpolate_look_up(JX2,25:25,26:26) -> 1.2 | JY31: =interpolate_look_up(JY2,25:25,26:26) -> 1.2 | JZ31: =interpolate_look_up(JZ2,25:25,26:26) -> 1.2 | KA31: =interpolate_look_up(KA2,25:25,26:26) -> 1.2 | KB31: =interpolate_look_up(KB2,25:25,26:26) -> 1.2 | KC31: =interpolate_look_up(KC2,25:25,26:26) -> 1.2 | KD31: =interpolate_look_up(KD2,25:25,26:26) -> 1.2 | KE31: =interpolate_look_up(KE2,25:25,26:26) -> 1.2 | KF31: =interpolate_look_up(KF2,25:25,26:26) -> 1.2 | KG31: =interpolate_look_up(KG2,25:25,26:26) -> 1.2 | KH31: =interpolate_look_up(KH2,25:25,26:26) -> 1.2 | KI31: =interpolate_look_up(KI2,25:25,26:26) -> 1.2 | KJ31: =interpolate_look_up(KJ2,25:25,26:26) -> 1.2 | KK31: =interpolate_look_up(KK2,25:25,26:26) -> 1.2 | KL31: =interpolate_look_up(KL2,25:25,26:26) -> 1.2 | KM31: =interpolate_look_up(KM2,25:25,26:26) -> 1.2 | KN31: =interpolate_look_up(KN2,25:25,26:26) -> 1.2 | KO31: =interpolate_look_up(KO2,25:25,26:26) -> 1.2 | KP31: =interpolate_look_up(KP2,25:25,26:26) -> 1.2 | KQ31: =interpolate_look_up(KQ2,25:25,26:26) -> 1.2 | KR31: =interpolate_look_up(KR2,25:25,26:26) -> 1.2 | KS31: =interpolate_look_up(KS2,25:25,26:26) -> 1.2 | KT31: =interpolate_look_up(KT2,25:25,26:26) -> 1.2
D32: Base CFADS | G32: =100/12 -> 8.333333333 | H32: =G32 -> 8.333333333 | I32: =H32 -> 8.333333333 | J32: 8.333333333 | K32: 8.333333333 | L32: 8.333333333 | M32: 8.333333333 | N32: 8.333333333 | O32: 8.333333333 | P32: 8.333333333 | Q32: 8.333333333 | R32: 8.333333333 | S32: 8.333333333 | T32: 8.333333333 | U32: 8.333333333 | V32: 8.333333333 | W32: 8.333333333 | X32: 8.333333333 | Y32: 8.333333333 | Z32: 8.333333333 | AA32: 8.333333333 | AB32: 8.333333333 | AC32: 8.333333333 | AD32: =AC32 -> 8.333333333 | AE32: =AD32 -> 8.333333333 | AF32: =AE32 -> 8.333333333 | AG32: =AF32 -> 8.333333333 | AH32: =AG32 -> 8.333333333 | AI32: =AH32 -> 8.333333333 | AJ32: =AI32 -> 8.333333333 | AK32: =AJ32 -> 8.333333333 | AL32: =AK32 -> 8.333333333 | AM32: =AL32 -> 8.333333333 | AN32: =AM32 -> 8.333333333 | AO32: =AN32 -> 8.333333333 | AP32: =AO32 -> 8.333333333 | AQ32: =AP32 -> 8.333333333 | AR32: =AQ32 -> 8.333333333 | AS32: =AR32 -> 8.333333333 | AT32: =AS32 -> 8.333333333 | AU32: =AT32 -> 8.333333333 | AV32: =AU32 -> 8.333333333 | AW32: =AV32 -> 8.333333333 | AX32: =AW32 -> 8.333333333 | AY32: =AX32 -> 8.333333333 | AZ32: =AY32 -> 8.333333333 | BA32: =AZ32 -> 8.333333333 | BB32: =BA32 -> 8.333333333 | BC32: =BB32 -> 8.333333333 | BD32: =BC32 -> 8.333333333 | BE32: =BD32 -> 8.333333333 | BF32: =BE32 -> 8.333333333 | BG32: =BF32 -> 8.333333333 | BH32: =BG32 -> 8.333333333 | BI32: =BH32 -> 8.333333333 | BJ32: =BI32 -> 8.333333333 | BK32: =BJ32 -> 8.333333333 | BL32: =BK32 -> 8.333333333 | BM32: =BL32 -> 8.333333333 | BN32: =BM32 -> 8.333333333 | BO32: =BN32 -> 8.333333333 | BP32: =BO32 -> 8.333333333 | BQ32: =BP32 -> 8.333333333 | BR32: =BQ32 -> 8.333333333 | BS32: =BR32 -> 8.333333333 | BT32: =BS32 -> 8.333333333 | BU32: =BT32 -> 8.333333333 | BV32: =BU32 -> 8.333333333 | BW32: =BV32 -> 8.333333333 | BX32: =BW32 -> 8.333333333 | BY32: =BX32 -> 8.333333333 | BZ32: =BY32 -> 8.333333333 | CA32: =BZ32 -> 8.333333333 | CB32: =CA32 -> 8.333333333 | CC32: =CB32 -> 8.333333333 | CD32: =CC32 -> 8.333333333 | CE32: =CD32 -> 8.333333333 | CF32: =CE32 -> 8.333333333 | CG32: =CF32 -> 8.333333333 | CH32: =CG32 -> 8.333333333 | CI32: =CH32 -> 8.333333333 | CJ32: =CI32 -> 8.333333333 | CK32: =CJ32 -> 8.333333333 | CL32: =CK32 -> 8.333333333 | CM32: =CL32 -> 8.333333333 | CN32: =CM32 -> 8.333333333 | CO32: =CN32 -> 8.333333333 | CP32: =CO32 -> 8.333333333 | CQ32: =CP32 -> 8.333333333 | CR32: =CQ32 -> 8.333333333 | CS32: =CR32 -> 8.333333333 | CT32: =CS32 -> 8.333333333 | CU32: =CT32 -> 8.333333333 | CV32: =CU32 -> 8.333333333 | CW32: =CV32 -> 8.333333333 | CX32: =CW32 -> 8.333333333 | CY32: =CX32 -> 8.333333333 | CZ32: =CY32 -> 8.333333333 | DA32: =CZ32 -> 8.333333333 | DB32: =DA32 -> 8.333333333 | DC32: =DB32 -> 8.333333333 | DD32: =DC32 -> 8.333333333 | DE32: =DD32 -> 8.333333333 | DF32: =DE32 -> 8.333333333 | DG32: =DF32 -> 8.333333333 | DH32: =DG32 -> 8.333333333 | DI32: =DH32 -> 8.333333333 | DJ32: =DI32 -> 8.333333333 | DK32: =DJ32 -> 8.333333333 | DL32: =DK32 -> 8.333333333 | DM32: =DL32 -> 8.333333333 | DN32: =DM32 -> 8.333333333 | DO32: =DN32 -> 8.333333333 | DP32: =DO32 -> 8.333333333 | DQ32: =DP32 -> 8.333333333 | DR32: =DQ32 -> 8.333333333 | DS32: =DR32 -> 8.333333333 | DT32: =DS32 -> 8.333333333 | DU32: =DT32 -> 8.333333333 | DV32: =DU32 -> 8.333333333 | DW32: =DV32 -> 8.333333333 | DX32: =DW32 -> 8.333333333 | DY32: =DX32 -> 8.333333333 | DZ32: =DY32 -> 8.333333333 | EA32: =DZ32 -> 8.333333333 | EB32: =EA32 -> 8.333333333 | EC32: =EB32 -> 8.333333333 | ED32: =EC32 -> 8.333333333 | EE32: =ED32 -> 8.333333333 | EF32: =EE32 -> 8.333333333 | EG32: =EF32 -> 8.333333333 | EH32: =EG32 -> 8.333333333 | EI32: =EH32 -> 8.333333333 | EJ32: =EI32 -> 8.333333333 | EK32: =EJ32 -> 8.333333333 | EL32: =EK32 -> 8.333333333 | EM32: =EL32 -> 8.333333333 | EN32: =EM32 -> 8.333333333 | EO32: =EN32 -> 8.333333333 | EP32: =EO32 -> 8.333333333 | EQ32: =EP32 -> 8.333333333 | ER32: =EQ32 -> 8.333333333 | ES32: =ER32 -> 8.333333333 | ET32: =ES32 -> 8.333333333 | EU32: =ET32 -> 8.333333333 | EV32: =EU32 -> 8.333333333 | EW32: =EV32 -> 8.333333333 | EX32: =EW32 -> 8.333333333 | EY32: =EX32 -> 8.333333333 | EZ32: =EY32 -> 8.333333333 | FA32: =EZ32 -> 8.333333333 | FB32: =FA32 -> 8.333333333 | FC32: =FB32 -> 8.333333333 | FD32: =FC32 -> 8.333333333 | FE32: =FD32 -> 8.333333333 | FF32: =FE32 -> 8.333333333 | FG32: =FF32 -> 8.333333333 | FH32: =FG32 -> 8.333333333 | FI32: =FH32 -> 8.333333333 | FJ32: =FI32 -> 8.333333333 | FK32: =FJ32 -> 8.333333333 | FL32: =FK32 -> 8.333333333 | FM32: =FL32 -> 8.333333333 | FN32: =FM32 -> 8.333333333 | FO32: =FN32 -> 8.333333333 | FP32: =FO32 -> 8.333333333 | FQ32: =FP32 -> 8.333333333 | FR32: =FQ32 -> 8.333333333 | FS32: =FR32 -> 8.333333333 | FT32: =FS32 -> 8.333333333 | FU32: =FT32 -> 8.333333333 | FV32: =FU32 -> 8.333333333 | FW32: =FV32 -> 8.333333333 | FX32: =FW32 -> 8.333333333 | FY32: =FX32 -> 8.333333333 | FZ32: =FY32 -> 8.333333333 | GA32: =FZ32 -> 8.333333333 | GB32: =GA32 -> 8.333333333 | GC32: =GB32 -> 8.333333333 | GD32: =GC32 -> 8.333333333 | GE32: =GD32 -> 8.333333333 | GF32: =GE32 -> 8.333333333 | GG32: =GF32 -> 8.333333333 | GH32: =GG32 -> 8.333333333 | GI32: =GH32 -> 8.333333333 | GJ32: =GI32 -> 8.333333333 | GK32: =GJ32 -> 8.333333333 | GL32: =GK32 -> 8.333333333 | GM32: =GL32 -> 8.333333333 | GN32: =GM32 -> 8.333333333 | GO32: =GN32 -> 8.333333333 | GP32: =GO32 -> 8.333333333 | GQ32: =GP32 -> 8.333333333 | GR32: =GQ32 -> 8.333333333 | GS32: =GR32 -> 8.333333333 | GT32: =GS32 -> 8.333333333 | GU32: =GT32 -> 8.333333333 | GV32: =GU32 -> 8.333333333 | GW32: =GV32 -> 8.333333333 | GX32: =GW32 -> 8.333333333 | GY32: =GX32 -> 8.333333333 | GZ32: =GY32 -> 8.333333333 | HA32: =GZ32 -> 8.333333333 | HB32: =HA32 -> 8.333333333 | HC32: =HB32 -> 8.333333333 | HD32: =HC32 -> 8.333333333 | HE32: =HD32 -> 8.333333333 | HF32: =HE32 -> 8.333333333 | HG32: =HF32 -> 8.333333333 | HH32: =HG32 -> 8.333333333 | HI32: =HH32 -> 8.333333333 | HJ32: =HI32 -> 8.333333333 | HK32: =HJ32 -> 8.333333333 | HL32: =HK32 -> 8.333333333 | HM32: =HL32 -> 8.333333333 | HN32: =HM32 -> 8.333333333 | HO32: =HN32 -> 8.333333333 | HP32: =HO32 -> 8.333333333 | HQ32: =HP32 -> 8.333333333 | HR32: =HQ32 -> 8.333333333 | HS32: =HR32 -> 8.333333333 | HT32: =HS32 -> 8.333333333 | HU32: =HT32 -> 8.333333333 | HV32: =HU32 -> 8.333333333 | HW32: =HV32 -> 8.333333333 | HX32: =HW32 -> 8.333333333 | HY32: =HX32 -> 8.333333333 | HZ32: =HY32 -> 8.333333333 | IA32: =HZ32 -> 8.333333333 | IB32: =IA32 -> 8.333333333 | IC32: =IB32 -> 8.333333333 | ID32: =IC32 -> 8.333333333 | IE32: =ID32 -> 8.333333333 | IF32: =IE32 -> 8.333333333 | IG32: =IF32 -> 8.333333333 | IH32: =IG32 -> 8.333333333 | II32: =IH32 -> 8.333333333 | IJ32: =II32 -> 8.333333333 | IK32: =IJ32 -> 8.333333333 | IL32: =IK32 -> 8.333333333 | IM32: =IL32 -> 8.333333333 | IN32: =IM32 -> 8.333333333 | IO32: =IN32 -> 8.333333333 | IP32: =IO32 -> 8.333333333 | IQ32: =IP32 -> 8.333333333 | IR32: =IQ32 -> 8.333333333 | IS32: =IR32 -> 8.333333333 | IT32: =IS32 -> 8.333333333 | IU32: =IT32 -> 8.333333333 | IV32: =IU32 -> 8.333333333 | IW32: =IV32 -> 8.333333333 | IX32: =IW32 -> 8.333333333 | IY32: =IX32 -> 8.333333333 | IZ32: =IY32 -> 8.333333333 | JA32: =IZ32 -> 8.333333333 | JB32: =JA32 -> 8.333333333 | JC32: =JB32 -> 8.333333333 | JD32: =JC32 -> 8.333333333 | JE32: =JD32 -> 8.333333333 | JF32: =JE32 -> 8.333333333 | JG32: =JF32 -> 8.333333333 | JH32: =JG32 -> 8.333333333 | JI32: =JH32 -> 8.333333333 | JJ32: =JI32 -> 8.333333333 | JK32: =JJ32 -> 8.333333333 | JL32: =JK32 -> 8.333333333 | JM32: =JL32 -> 8.333333333 | JN32: =JM32 -> 8.333333333 | JO32: =JN32 -> 8.333333333 | JP32: =JO32 -> 8.333333333 | JQ32: =JP32 -> 8.333333333 | JR32: =JQ32 -> 8.333333333 | JS32: =JR32 -> 8.333333333 | JT32: =JS32 -> 8.333333333 | JU32: =JT32 -> 8.333333333 | JV32: =JU32 -> 8.333333333 | JW32: =JV32 -> 8.333333333 | JX32: =JW32 -> 8.333333333 | JY32: =JX32 -> 8.333333333 | JZ32: =JY32 -> 8.333333333 | KA32: =JZ32 -> 8.333333333 | KB32: =KA32 -> 8.333333333 | KC32: =KB32 -> 8.333333333 | KD32: =KC32 -> 8.333333333 | KE32: =KD32 -> 8.333333333 | KF32: =KE32 -> 8.333333333 | KG32: =KF32 -> 8.333333333 | KH32: =KG32 -> 8.333333333 | KI32: =KH32 -> 8.333333333 | KJ32: =KI32 -> 8.333333333 | KK32: =KJ32 -> 8.333333333 | KL32: =KK32 -> 8.333333333 | KM32: =KL32 -> 8.333333333 | KN32: =KM32 -> 8.333333333 | KO32: =KN32 -> 8.333333333 | KP32: =KO32 -> 8.333333333 | KQ32: =KP32 -> 8.333333333 | KR32: =KQ32 -> 8.333333333 | KS32: =KR32 -> 8.333333333 | KT32: =KS32 -> 8.333333333
B34: CFADS
D35: Growth Rate | G35: =(LOOKUP(G2,17:17,18:18)+1)^(1/12)-1 -> 0.007207323316 | H35: 0.007207323316 | I35: 0.00643403011 | J35: 0.00643403011 | K35: 0.00643403011 | L35: 0.00643403011 | M35: 0.002466269772 | N35: 0.002466269772 | O35: 0.002466269772 | P35: 0.001651581302 | Q35: 0.001651581302 | R35: 0.001651581302 | S35: 0.001651581302 | T35: 0.001651581302 | U35: 0.001651581302 | V35: 0.001651581302 | W35: 0.001651581302 | X35: 0.001651581302 | Y35: 0.001651581302 | Z35: 0.001651581302 | AA35: 0.001651581302 | AB35: 0.001651581302 | AC35: 0.001651581302 | AD35: 0.001651581302 | AE35: 0.001651581302 | AF35: 0.001651581302 | AG35: 0.001651581302 | AH35: 0.001651581302 | AI35: 0.001651581302 | AJ35: 0.001651581302 | AK35: 0.001651581302 | AL35: 0.001651581302 | AM35: 0.001651581302 | AN35: 0.001651581302 | AO35: 0.001651581302 | AP35: 0.001651581302 | AQ35: 0.001651581302 | AR35: 0.001651581302 | AS35: 0.001651581302 | AT35: 0.001651581302 | AU35: 0.001651581302 | AV35: 0.001651581302 | AW35: 0.001651581302 | AX35: 0.001651581302 | AY35: 0.001651581302 | AZ35: 0.001651581302 | BA35: 0.001651581302 | BB35: 0.001651581302 | BC35: 0.001651581302 | BD35: 0.001651581302 | BE35: 0.001651581302 | BF35: 0.001651581302 | BG35: 0.001651581302 | BH35: 0.001651581302 | BI35: 0.001651581302 | BJ35: 0.001651581302 | BK35: 0.001651581302 | BL35: 0.001651581302 | BM35: 0.001651581302 | BN35: 0.001651581302 | BO35: 0.001651581302 | BP35: 0.001651581302 | BQ35: 0.001651581302 | BR35: 0.001651581302 | BS35: =(LOOKUP(BS2,17:17,18:18)+1)^(1/12)-1 -> 0.001651581302 | BT35: 0.001651581302 | BU35: 0.001651581302 | BV35: 0.001651581302 | BW35: 0.001651581302 | BX35: 0.001651581302 | BY35: 0.001651581302 | BZ35: 0.001651581302 | CA35: 0.001651581302 | CB35: 0.001651581302 | CC35: 0.001651581302 | CD35: 0.001651581302 | CE35: 0.001651581302 | CF35: 0.001651581302 | CG35: 0.001651581302 | CH35: 0.001651581302 | CI35: 0.001651581302 | CJ35: 0.001651581302 | CK35: 0.001651581302 | CL35: 0.001651581302 | CM35: 0.001651581302 | CN35: 0.001651581302 | CO35: 0.001651581302 | CP35: 0.001651581302 | CQ35: 0.001651581302 | CR35: 0.001651581302 | CS35: 0.001651581302 | CT35: 0.001651581302 | CU35: 0.001651581302 | CV35: 0.001651581302 | CW35: 0.001651581302 | CX35: 0.001651581302 | CY35: 0.001651581302 | CZ35: 0.001651581302 | DA35: 0.001651581302 | DB35: 0.001651581302 | DC35: 0.001651581302 | DD35: 0.001651581302 | DE35: 0.001651581302 | DF35: 0.001651581302 | DG35: 0.001651581302 | DH35: 0.001651581302 | DI35: 0.001651581302 | DJ35: 0.001651581302 | DK35: 0.001651581302 | DL35: 0.001651581302 | DM35: 0.001651581302 | DN35: 0.001651581302 | DO35: 0.001651581302 | DP35: 0.001651581302 | DQ35: 0.001651581302 | DR35: 0.001651581302 | DS35: 0.001651581302 | DT35: 0.001651581302 | DU35: 0.001651581302 | DV35: 0.001651581302 | DW35: 0.001651581302 | DX35: 0.001651581302 | DY35: 0.001651581302 | DZ35: 0.001651581302 | EA35: 0.001651581302 | EB35: 0.001651581302 | EC35: 0.001651581302 | ED35: 0.001651581302 | EE35: =(LOOKUP(EE2,17:17,18:18)+1)^(1/12)-1 -> 0.001651581302 | EF35: 0.001651581302 | EG35: 0.001651581302 | EH35: 0.001651581302 | EI35: 0.001651581302 | EJ35: 0.001651581302 | EK35: 0.001651581302 | EL35: 0.001651581302 | EM35: 0.001651581302 | EN35: 0.001651581302 | EO35: 0.001651581302 | EP35: 0.001651581302 | EQ35: 0.001651581302 | ER35: 0.001651581302 | ES35: 0.001651581302 | ET35: 0.001651581302 | EU35: 0.001651581302 | EV35: 0.001651581302 | EW35: 0.001651581302 | EX35: 0.001651581302 | EY35: 0.001651581302 | EZ35: 0.001651581302 | FA35: 0.001651581302 | FB35: 0.001651581302 | FC35: 0.001651581302 | FD35: 0.001651581302 | FE35: 0.001651581302 | FF35: 0.001651581302 | FG35: 0.001651581302 | FH35: 0.001651581302 | FI35: 0.001651581302 | FJ35: 0.001651581302 | FK35: 0.001651581302 | FL35: 0.001651581302 | FM35: 0.001651581302 | FN35: 0.001651581302 | FO35: 0.001651581302 | FP35: 0.001651581302 | FQ35: 0.001651581302 | FR35: 0.001651581302 | FS35: 0.001651581302 | FT35: 0.001651581302 | FU35: 0.001651581302 | FV35: 0.001651581302 | FW35: 0.001651581302 | FX35: 0.001651581302 | FY35: 0.001651581302 | FZ35: 0.001651581302 | GA35: 0.001651581302 | GB35: 0.001651581302 | GC35: 0.001651581302 | GD35: 0.001651581302 | GE35: 0.001651581302 | GF35: 0.001651581302 | GG35: 0.001651581302 | GH35: 0.001651581302 | GI35: 0.001651581302 | GJ35: 0.001651581302 | GK35: 0.001651581302 | GL35: 0.001651581302 | GM35: 0.001651581302 | GN35: 0.001651581302 | GO35: 0.001651581302 | GP35: 0.001651581302 | GQ35: =(LOOKUP(GQ2,17:17,18:18)+1)^(1/12)-1 -> 0.001651581302 | GR35: 0.001651581302 | GS35: 0.001651581302 | GT35: 0.001651581302 | GU35: 0.001651581302 | GV35: 0.001651581302 | GW35: 0.001651581302 | GX35: 0.001651581302 | GY35: 0.001651581302 | GZ35: 0.001651581302 | HA35: 0.001651581302 | HB35: 0.001651581302 | HC35: 0.001651581302 | HD35: 0.001651581302 | HE35: 0.001651581302 | HF35: 0.001651581302 | HG35: 0.001651581302 | HH35: 0.001651581302 | HI35: 0.001651581302 | HJ35: 0.001651581302 | HK35: 0.001651581302 | HL35: 0.001651581302 | HM35: 0.001651581302 | HN35: 0.001651581302 | HO35: 0.001651581302 | HP35: 0.001651581302 | HQ35: 0.001651581302 | HR35: 0.001651581302 | HS35: 0.001651581302 | HT35: 0.001651581302 | HU35: 0.001651581302 | HV35: 0.001651581302 | HW35: 0.001651581302 | HX35: 0.001651581302 | HY35: 0.001651581302 | HZ35: 0.001651581302 | IA35: 0.001651581302 | IB35: 0.001651581302 | IC35: 0.001651581302 | ID35: 0.001651581302 | IE35: 0.001651581302 | IF35: 0.001651581302 | IG35: 0.001651581302 | IH35: 0.001651581302 | II35: 0.001651581302 | IJ35: 0.001651581302 | IK35: 0.001651581302 | IL35: 0.001651581302 | IM35: 0.001651581302 | IN35: 0.001651581302 | IO35: 0.001651581302 | IP35: 0.001651581302 | IQ35: 0.001651581302 | IR35: 0.001651581302 | IS35: 0.001651581302 | IT35: 0.001651581302 | IU35: 0.001651581302 | IV35: 0.001651581302 | IW35: 0.001651581302 | IX35: 0.001651581302 | IY35: 0.001651581302 | IZ35: 0.001651581302 | JA35: 0.001651581302 | JB35: 0.001651581302 | JC35: =(LOOKUP(JC2,17:17,18:18)+1)^(1/12)-1 -> 0.001651581302 | JD35: 0.001651581302 | JE35: 0.001651581302 | JF35: 0.001651581302 | JG35: 0.001651581302 | JH35: 0.001651581302 | JI35: 0.001651581302 | JJ35: 0.001651581302 | JK35: 0.001651581302 | JL35: 0.001651581302 | JM35: 0.001651581302 | JN35: 0.001651581302 | JO35: 0.001651581302 | JP35: 0.001651581302 | JQ35: 0.001651581302 | JR35: 0.001651581302 | JS35: 0.001651581302 | JT35: 0.001651581302 | JU35: 0.001651581302 | JV35: 0.001651581302 | JW35: 0.001651581302 | JX35: 0.001651581302 | JY35: 0.001651581302 | JZ35: 0.001651581302 | KA35: 0.001651581302 | KB35: 0.001651581302 | KC35: 0.001651581302 | KD35: 0.001651581302 | KE35: 0.001651581302 | KF35: 0.001651581302 | KG35: 0.001651581302 | KH35: 0.001651581302 | KI35: 0.001651581302 | KJ35: 0.001651581302 | KK35: 0.001651581302 | KL35: 0.001651581302 | KM35: 0.001651581302 | KN35: 0.001651581302 | KO35: 0.001651581302 | KP35: 0.001651581302 | KQ35: 0.001651581302 | KR35: 0.001651581302 | KS35: 0.001651581302 | KT35: 0.001651581302
D36: CFADS Index - Lookup | F36: 1 | G36: =F36*(1+G35) -> 1.007207323 | H36: =G36*(1+H35) -> 1.014466592 | I36: 1.020993701 | J36: 1.027562805 | K36: 1.034174175 | L36: 1.040828083 | M36: 1.043395046 | N36: 1.045968339 | O36: 1.048547979 | P36: 1.050279742 | Q36: 1.052014364 | R36: 1.053751851 | S36: 1.055492208 | T36: 1.057235439 | U36: 1.05898155 | V36: 1.060730544 | W36: 1.062482426 | X36: 1.064237203 | Y36: 1.065994877 | Z36: 1.067755454 | AA36: 1.069518939 | AB36: 1.071285336 | AC36: 1.073054651 | AD36: =AC36*(1+AD35) -> 1.074826888 | AE36: =AD36*(1+AE35) -> 1.076602052 | AF36: =AE36*(1+AF35) -> 1.078380148 | AG36: =AF36*(1+AG35) -> 1.080161181 | AH36: =AG36*(1+AH35) -> 1.081945155 | AI36: =AH36*(1+AI35) -> 1.083732075 | AJ36: =AI36*(1+AJ35) -> 1.085521947 | AK36: =AJ36*(1+AK35) -> 1.087314774 | AL36: =AK36*(1+AL35) -> 1.089110563 | AM36: =AL36*(1+AM35) -> 1.090909318 | AN36: =AM36*(1+AN35) -> 1.092711043 | AO36: =AN36*(1+AO35) -> 1.094515744 | AP36: =AO36*(1+AP35) -> 1.096323426 | AQ36: =AP36*(1+AQ35) -> 1.098134093 | AR36: =AQ36*(1+AR35) -> 1.099947751 | AS36: =AR36*(1+AS35) -> 1.101764404 | AT36: =AS36*(1+AT35) -> 1.103584058 | AU36: =AT36*(1+AU35) -> 1.105406716 | AV36: =AU36*(1+AV35) -> 1.107232386 | AW36: =AV36*(1+AW35) -> 1.10906107 | AX36: =AW36*(1+AX35) -> 1.110892774 | AY36: =AX36*(1+AY35) -> 1.112727504 | AZ36: =AY36*(1+AZ35) -> 1.114565264 | BA36: =AZ36*(1+BA35) -> 1.116406059 | BB36: =BA36*(1+BB35) -> 1.118249895 | BC36: =BB36*(1+BC35) -> 1.120096775 | BD36: =BC36*(1+BD35) -> 1.121946706 | BE36: =BD36*(1+BE35) -> 1.123799692 | BF36: =BE36*(1+BF35) -> 1.125655739 | BG36: =BF36*(1+BG35) -> 1.127514851 | BH36: =BG36*(1+BH35) -> 1.129377033 | BI36: =BH36*(1+BI35) -> 1.131242291 | BJ36: =BI36*(1+BJ35) -> 1.13311063 | BK36: =BJ36*(1+BK35) -> 1.134982054 | BL36: =BK36*(1+BL35) -> 1.136856569 | BM36: =BL36*(1+BM35) -> 1.13873418 | BN36: =BM36*(1+BN35) -> 1.140614892 | BO36: =BN36*(1+BO35) -> 1.142498711 | BP36: =BO36*(1+BP35) -> 1.14438564 | BQ36: =BP36*(1+BQ35) -> 1.146275686 | BR36: =BQ36*(1+BR35) -> 1.148168854 | BS36: =BR36*(1+BS35) -> 1.150065148 | BT36: =BS36*(1+BT35) -> 1.151964574 | BU36: =BT36*(1+BU35) -> 1.153867137 | BV36: =BU36*(1+BV35) -> 1.155772842 | BW36: =BV36*(1+BW35) -> 1.157681695 | BX36: =BW36*(1+BX35) -> 1.159593701 | BY36: =BX36*(1+BY35) -> 1.161508864 | BZ36: =BY36*(1+BZ35) -> 1.16342719 | CA36: =BZ36*(1+CA35) -> 1.165348685 | CB36: =CA36*(1+CB35) -> 1.167273353 | CC36: =CB36*(1+CC35) -> 1.1692012 | CD36: =CC36*(1+CD35) -> 1.171132231 | CE36: =CD36*(1+CE35) -> 1.173066451 | CF36: =CE36*(1+CF35) -> 1.175003865 | CG36: =CF36*(1+CG35) -> 1.17694448 | CH36: =CG36*(1+CH35) -> 1.178888299 | CI36: =CH36*(1+CI35) -> 1.180835329 | CJ36: =CI36*(1+CJ35) -> 1.182785575 | CK36: =CJ36*(1+CK35) -> 1.184739041 | CL36: =CK36*(1+CL35) -> 1.186695734 | CM36: =CL36*(1+CM35) -> 1.188655659 | CN36: =CM36*(1+CN35) -> 1.19061882 | CO36: =CN36*(1+CO35) -> 1.192585224 | CP36: =CO36*(1+CP35) -> 1.194554875 | CQ36: =CP36*(1+CQ35) -> 1.19652778 | CR36: =CQ36*(1+CR35) -> 1.198503943 | CS36: =CR36*(1+CS35) -> 1.200483369 | CT36: =CS36*(1+CT35) -> 1.202466065 | CU36: =CT36*(1+CU35) -> 1.204452036 | CV36: =CU36*(1+CV35) -> 1.206441286 | CW36: =CV36*(1+CW35) -> 1.208433822 | CX36: =CW36*(1+CX35) -> 1.210429649 | CY36: =CX36*(1+CY35) -> 1.212428772 | CZ36: =CY36*(1+CZ35) -> 1.214431196 | DA36: =CZ36*(1+DA35) -> 1.216436928 | DB36: =DA36*(1+DB35) -> 1.218445973 | DC36: =DB36*(1+DC35) -> 1.220458335 | DD36: =DC36*(1+DD35) -> 1.222474022 | DE36: =DD36*(1+DE35) -> 1.224493037 | DF36: =DE36*(1+DF35) -> 1.226515387 | DG36: =DF36*(1+DG35) -> 1.228541076 | DH36: =DG36*(1+DH35) -> 1.230570112 | DI36: =DH36*(1+DI35) -> 1.232602499 | DJ36: =DI36*(1+DJ35) -> 1.234638242 | DK36: =DJ36*(1+DK35) -> 1.236677347 | DL36: =DK36*(1+DL35) -> 1.23871982 | DM36: =DL36*(1+DM35) -> 1.240765667 | DN36: =DM36*(1+DN35) -> 1.242814892 | DO36: =DN36*(1+DO35) -> 1.244867502 | DP36: =DO36*(1+DP35) -> 1.246923502 | DQ36: =DP36*(1+DQ35) -> 1.248982898 | DR36: =DQ36*(1+DR35) -> 1.251045694 | DS36: =DR36*(1+DS35) -> 1.253111898 | DT36: =DS36*(1+DT35) -> 1.255181514 | DU36: =DT36*(1+DU35) -> 1.257254548 | DV36: =DU36*(1+DV35) -> 1.259331007 | DW36: =DV36*(1+DW35) -> 1.261410894 | DX36: =DW36*(1+DX35) -> 1.263494217 | DY36: =DX36*(1+DY35) -> 1.26558098 | DZ36: =DY36*(1+DZ35) -> 1.26767119 | EA36: =DZ36*(1+EA35) -> 1.269764852 | EB36: =EA36*(1+EB35) -> 1.271861972 | EC36: =EB36*(1+EC35) -> 1.273962555 | ED36: =EC36*(1+ED35) -> 1.276066608 | EE36: =ED36*(1+EE35) -> 1.278174136 | EF36: =EE36*(1+EF35) -> 1.280285144 | EG36: =EF36*(1+EG35) -> 1.282399639 | EH36: =EG36*(1+EH35) -> 1.284517627 | EI36: =EH36*(1+EI35) -> 1.286639112 | EJ36: =EI36*(1+EJ35) -> 1.288764101 | EK36: =EJ36*(1+EK35) -> 1.2908926 | EL36: =EK36*(1+EL35) -> 1.293024614 | EM36: =EL36*(1+EM35) -> 1.295160149 | EN36: =EM36*(1+EN35) -> 1.297299211 | EO36: =EN36*(1+EO35) -> 1.299441807 | EP36: =EO36*(1+EP35) -> 1.30158794 | EQ36: =EP36*(1+EQ35) -> 1.303737619 | ER36: =EQ36*(1+ER35) -> 1.305890847 | ES36: =ER36*(1+ES35) -> 1.308047632 | ET36: =ES36*(1+ET35) -> 1.310207979 | EU36: =ET36*(1+EU35) -> 1.312371894 | EV36: =EU36*(1+EV35) -> 1.314539383 | EW36: =EV36*(1+EW35) -> 1.316710452 | EX36: =EW36*(1+EX35) -> 1.318885106 | EY36: =EX36*(1+EY35) -> 1.321063352 | EZ36: =EY36*(1+EZ35) -> 1.323245196 | FA36: =EZ36*(1+FA35) -> 1.325430643 | FB36: =FA36*(1+FB35) -> 1.327619699 | FC36: =FB36*(1+FC35) -> 1.329812371 | FD36: =FC36*(1+FD35) -> 1.332008664 | FE36: =FD36*(1+FE35) -> 1.334208585 | FF36: =FE36*(1+FF35) -> 1.336412139 | FG36: =FF36*(1+FG35) -> 1.338619332 | FH36: =FG36*(1+FH35) -> 1.340830171 | FI36: =FH36*(1+FI35) -> 1.343044661 | FJ36: =FI36*(1+FJ35) -> 1.345262808 | FK36: =FJ36*(1+FK35) -> 1.347484619 | FL36: =FK36*(1+FL35) -> 1.3497101 | FM36: =FL36*(1+FM35) -> 1.351939256 | FN36: =FM36*(1+FN35) -> 1.354172093 | FO36: =FN36*(1+FO35) -> 1.356408618 | FP36: =FO36*(1+FP35) -> 1.358648838 | FQ36: =FP36*(1+FQ35) -> 1.360892757 | FR36: =FQ36*(1+FR35) -> 1.363140382 | FS36: =FR36*(1+FS35) -> 1.365391719 | FT36: =FS36*(1+FT35) -> 1.367646774 | FU36: =FT36*(1+FU35) -> 1.369905554 | FV36: =FU36*(1+FV35) -> 1.372168064 | FW36: =FV36*(1+FW35) -> 1.374434312 | FX36: =FW36*(1+FX35) -> 1.376704302 | FY36: =FX36*(1+FY35) -> 1.378978041 | FZ36: =FY36*(1+FZ35) -> 1.381255535 | GA36: =FZ36*(1+GA35) -> 1.383536791 | GB36: =GA36*(1+GB35) -> 1.385821814 | GC36: =GB36*(1+GC35) -> 1.388110612 | GD36: =GC36*(1+GD35) -> 1.390403189 | GE36: =GD36*(1+GE35) -> 1.392699553 | GF36: =GE36*(1+GF35) -> 1.39499971 | GG36: =GF36*(1+GG35) -> 1.397303665 | GH36: =GG36*(1+GH35) -> 1.399611426 | GI36: =GH36*(1+GI35) -> 1.401922998 | GJ36: =GI36*(1+GJ35) -> 1.404238388 | GK36: =GJ36*(1+GK35) -> 1.406557601 | GL36: =GK36*(1+GL35) -> 1.408880646 | GM36: =GL36*(1+GM35) -> 1.411207527 | GN36: =GM36*(1+GN35) -> 1.413538251 | GO36: =GN36*(1+GO35) -> 1.415872824 | GP36: =GO36*(1+GP35) -> 1.418211253 | GQ36: =GP36*(1+GQ35) -> 1.420553544 | GR36: =GQ36*(1+GR35) -> 1.422899704 | GS36: =GR36*(1+GS35) -> 1.425249738 | GT36: =GS36*(1+GT35) -> 1.427603654 | GU36: =GT36*(1+GU35) -> 1.429961458 | GV36: =GU36*(1+GV35) -> 1.432323155 | GW36: =GV36*(1+GW35) -> 1.434688753 | GX36: =GW36*(1+GX35) -> 1.437058259 | GY36: =GX36*(1+GY35) -> 1.439431677 | GZ36: =GY36*(1+GZ35) -> 1.441809016 | HA36: =GZ36*(1+HA35) -> 1.44419028 | HB36: =HA36*(1+HB35) -> 1.446575478 | HC36: =HB36*(1+HC35) -> 1.448964615 | HD36: =HC36*(1+HD35) -> 1.451357698 | HE36: =HD36*(1+HE35) -> 1.453754733 | HF36: =HE36*(1+HF35) -> 1.456155727 | HG36: =HF36*(1+HG35) -> 1.458560687 | HH36: =HG36*(1+HH35) -> 1.460969618 | HI36: =HH36*(1+HI35) -> 1.463382529 | HJ36: =HI36*(1+HJ35) -> 1.465799424 | HK36: =HJ36*(1+HK35) -> 1.468220311 | HL36: =HK36*(1+HL35) -> 1.470645196 | HM36: =HL36*(1+HM35) -> 1.473074086 | HN36: =HM36*(1+HN35) -> 1.475506988 | HO36: =HN36*(1+HO35) -> 1.477943907 | HP36: =HO36*(1+HP35) -> 1.480384852 | HQ36: =HP36*(1+HQ35) -> 1.482829828 | HR36: =HQ36*(1+HR35) -> 1.485278842 | HS36: =HR36*(1+HS35) -> 1.487731901 | HT36: =HS36*(1+HT35) -> 1.490189011 | HU36: =HT36*(1+HU35) -> 1.492650179 | HV36: =HU36*(1+HV35) -> 1.495115412 | HW36: =HV36*(1+HW35) -> 1.497584717 | HX36: =HW36*(1+HX35) -> 1.5000581 | HY36: =HX36*(1+HY35) -> 1.502535568 | HZ36: =HY36*(1+HZ35) -> 1.505017127 | IA36: =HZ36*(1+IA35) -> 1.507502786 | IB36: =IA36*(1+IB35) -> 1.509992549 | IC36: =IB36*(1+IC35) -> 1.512486424 | ID36: =IC36*(1+ID35) -> 1.514984419 | IE36: =ID36*(1+IE35) -> 1.517486539 | IF36: =IE36*(1+IF35) -> 1.519992791 | IG36: =IF36*(1+IG35) -> 1.522503183 | IH36: =IG36*(1+IH35) -> 1.525017721 | II36: =IH36*(1+II35) -> 1.527536411 | IJ36: =II36*(1+IJ35) -> 1.530059262 | IK36: =IJ36*(1+IK35) -> 1.532586279 | IL36: =IK36*(1+IL35) -> 1.53511747 | IM36: =IL36*(1+IM35) -> 1.537652841 | IN36: =IM36*(1+IN35) -> 1.5401924 | IO36: =IN36*(1+IO35) -> 1.542736153 | IP36: =IO36*(1+IP35) -> 1.545284107 | IQ36: =IP36*(1+IQ35) -> 1.547836269 | IR36: =IQ36*(1+IR35) -> 1.550392647 | IS36: =IR36*(1+IS35) -> 1.552953246 | IT36: =IS36*(1+IT35) -> 1.555518075 | IU36: =IT36*(1+IU35) -> 1.558087139 | IV36: =IU36*(1+IV35) -> 1.560660447 | IW36: =IV36*(1+IW35) -> 1.563238005 | IX36: =IW36*(1+IX35) -> 1.565819819 | IY36: =IX36*(1+IY35) -> 1.568405898 | IZ36: =IY36*(1+IZ35) -> 1.570996248 | JA36: =IZ36*(1+JA35) -> 1.573590876 | JB36: =JA36*(1+JB35) -> 1.576189789 | JC36: =JB36*(1+JC35) -> 1.578792995 | JD36: =JC36*(1+JD35) -> 1.5814005 | JE36: =JD36*(1+JE35) -> 1.584012311 | JF36: =JE36*(1+JF35) -> 1.586628436 | JG36: =JF36*(1+JG35) -> 1.589248882 | JH36: =JG36*(1+JH35) -> 1.591873656 | JI36: =JH36*(1+JI35) -> 1.594502765 | JJ36: =JI36*(1+JJ35) -> 1.597136216 | JK36: =JJ36*(1+JK35) -> 1.599774016 | JL36: =JK36*(1+JL35) -> 1.602416173 | JM36: =JL36*(1+JM35) -> 1.605062693 | JN36: =JM36*(1+JN35) -> 1.607713585 | JO36: =JN36*(1+JO35) -> 1.610368855 | JP36: =JO36*(1+JP35) -> 1.61302851 | JQ36: =JP36*(1+JQ35) -> 1.615692558 | JR36: =JQ36*(1+JR35) -> 1.618361005 | JS36: =JR36*(1+JS35) -> 1.62103386 | JT36: =JS36*(1+JT35) -> 1.623711129 | JU36: =JT36*(1+JU35) -> 1.62639282 | JV36: =JU36*(1+JV35) -> 1.62907894 | JW36: =JV36*(1+JW35) -> 1.631769496 | JX36: =JW36*(1+JX35) -> 1.634464496 | JY36: =JX36*(1+JY35) -> 1.637163947 | JZ36: =JY36*(1+JZ35) -> 1.639867857 | KA36: =JZ36*(1+KA35) -> 1.642576232 | KB36: =KA36*(1+KB35) -> 1.64528908 | KC36: =KB36*(1+KC35) -> 1.648006409 | KD36: =KC36*(1+KD35) -> 1.650728225 | KE36: =KD36*(1+KE35) -> 1.653454537 | KF36: =KE36*(1+KF35) -> 1.656185352 | KG36: =KF36*(1+KG35) -> 1.658920676 | KH36: =KG36*(1+KH35) -> 1.661660519 | KI36: =KH36*(1+KI35) -> 1.664404886 | KJ36: =KI36*(1+KJ35) -> 1.667153786 | KK36: =KJ36*(1+KK35) -> 1.669907226 | KL36: =KK36*(1+KL35) -> 1.672665214 | KM36: =KL36*(1+KM35) -> 1.675427756 | KN36: =KM36*(1+KN35) -> 1.678194862 | KO36: =KN36*(1+KO35) -> 1.680966537 | KP36: =KO36*(1+KP35) -> 1.68374279 | KQ36: =KP36*(1+KQ35) -> 1.686523628 | KR36: =KQ36*(1+KR35) -> 1.689309059 | KS36: =KR36*(1+KS35) -> 1.69209909 | KT36: =KS36*(1+KT35) -> 1.694893729
D37: Growth Rate Interpolate | G37: =(1+interpolate_look_up(G4,17:17,18:18))^(1/12)-1 -> 0.007207323316 | H37: =(1+interpolate_look_up(H4,17:17,18:18))^(1/12)-1 -> 0.007207323316 | I37: =(1+interpolate_look_up(I4,17:17,18:18))^(1/12)-1 -> 0.007207323316 | J37: =(1+interpolate_look_up(J4,17:17,18:18))^(1/12)-1 -> 0.007207323316 | K37: =(1+interpolate_look_up(K4,17:17,18:18))^(1/12)-1 -> 0.007207323316 | L37: =(1+interpolate_look_up(L4,17:17,18:18))^(1/12)-1 -> 0.007207323316 | M37: =(1+interpolate_look_up(M4,17:17,18:18))^(1/12)-1 -> 0.007207323316 | N37: =(1+interpolate_look_up(N4,17:17,18:18))^(1/12)-1 -> 0.007207323316 | O37: =(1+interpolate_look_up(O4,17:17,18:18))^(1/12)-1 -> 0.007207323316 | P37: =(1+interpolate_look_up(P4,17:17,18:18))^(1/12)-1 -> 0.007207323316 | Q37: =(1+interpolate_look_up(Q4,17:17,18:18))^(1/12)-1 -> 0.007207323316 | R37: =(1+interpolate_look_up(R4,17:17,18:18))^(1/12)-1 -> 0.006810110916 | S37: =(1+interpolate_look_up(S4,17:17,18:18))^(1/12)-1 -> 0.006810110916 | T37: =(1+interpolate_look_up(T4,17:17,18:18))^(1/12)-1 -> 0.006810110916 | U37: =(1+interpolate_look_up(U4,17:17,18:18))^(1/12)-1 -> 0.006810110916 | V37: =(1+interpolate_look_up(V4,17:17,18:18))^(1/12)-1 -> 0.006810110916 | W37: =(1+interpolate_look_up(W4,17:17,18:18))^(1/12)-1 -> 0.006810110916 | X37: =(1+interpolate_look_up(X4,17:17,18:18))^(1/12)-1 -> 0.006810110916 | Y37: =(1+interpolate_look_up(Y4,17:17,18:18))^(1/12)-1 -> 0.006810110916 | Z37: =(1+interpolate_look_up(Z4,17:17,18:18))^(1/12)-1 -> 0.006810110916 | AA37: =(1+interpolate_look_up(AA4,17:17,18:18))^(1/12)-1 -> 0.006810110916 | AB37: =(1+interpolate_look_up(AB4,17:17,18:18))^(1/12)-1 -> 0.006810110916 | AC37: =(1+interpolate_look_up(AC4,17:17,18:18))^(1/12)-1 -> 0.006810110916 | AD37: =(1+interpolate_look_up(AD4,17:17,18:18))^(1/12)-1 -> 0.00643403011 | AE37: =(1+interpolate_look_up(AE4,17:17,18:18))^(1/12)-1 -> 0.00643403011 | AF37: =(1+interpolate_look_up(AF4,17:17,18:18))^(1/12)-1 -> 0.00643403011 | AG37: =(1+interpolate_look_up(AG4,17:17,18:18))^(1/12)-1 -> 0.00643403011 | AH37: =(1+interpolate_look_up(AH4,17:17,18:18))^(1/12)-1 -> 0.00643403011 | AI37: =(1+interpolate_look_up(AI4,17:17,18:18))^(1/12)-1 -> 0.00643403011 | AJ37: =(1+interpolate_look_up(AJ4,17:17,18:18))^(1/12)-1 -> 0.00643403011 | AK37: =(1+interpolate_look_up(AK4,17:17,18:18))^(1/12)-1 -> 0.00643403011 | AL37: =(1+interpolate_look_up(AL4,17:17,18:18))^(1/12)-1 -> 0.00643403011 | AM37: =(1+interpolate_look_up(AM4,17:17,18:18))^(1/12)-1 -> 0.00643403011 | AN37: =(1+interpolate_look_up(AN4,17:17,18:18))^(1/12)-1 -> 0.00643403011 | AO37: =(1+interpolate_look_up(AO4,17:17,18:18))^(1/12)-1 -> 0.00643403011 | AP37: =(1+interpolate_look_up(AP4,17:17,18:18))^(1/12)-1 -> 0.005072984141 | AQ37: =(1+interpolate_look_up(AQ4,17:17,18:18))^(1/12)-1 -> 0.005072984141 | AR37: =(1+interpolate_look_up(AR4,17:17,18:18))^(1/12)-1 -> 0.005072984141 | AS37: =(1+interpolate_look_up(AS4,17:17,18:18))^(1/12)-1 -> 0.005072984141 | AT37: =(1+interpolate_look_up(AT4,17:17,18:18))^(1/12)-1 -> 0.005072984141 | AU37: =(1+interpolate_look_up(AU4,17:17,18:18))^(1/12)-1 -> 0.005072984141 | AV37: =(1+interpolate_look_up(AV4,17:17,18:18))^(1/12)-1 -> 0.005072984141 | AW37: =(1+interpolate_look_up(AW4,17:17,18:18))^(1/12)-1 -> 0.005072984141 | AX37: =(1+interpolate_look_up(AX4,17:17,18:18))^(1/12)-1 -> 0.005072984141 | AY37: =(1+interpolate_look_up(AY4,17:17,18:18))^(1/12)-1 -> 0.005072984141 | AZ37: =(1+interpolate_look_up(AZ4,17:17,18:18))^(1/12)-1 -> 0.005072984141 | BA37: =(1+interpolate_look_up(BA4,17:17,18:18))^(1/12)-1 -> 0.005072984141 | BB37: =(1+interpolate_look_up(BB4,17:17,18:18))^(1/12)-1 -> 0.003993586609 | BC37: =(1+interpolate_look_up(BC4,17:17,18:18))^(1/12)-1 -> 0.003993586609 | BD37: =(1+interpolate_look_up(BD4,17:17,18:18))^(1/12)-1 -> 0.003993586609 | BE37: =(1+interpolate_look_up(BE4,17:17,18:18))^(1/12)-1 -> 0.003993586609 | BF37: =(1+interpolate_look_up(BF4,17:17,18:18))^(1/12)-1 -> 0.003993586609 | BG37: =(1+interpolate_look_up(BG4,17:17,18:18))^(1/12)-1 -> 0.003993586609 | BH37: =(1+interpolate_look_up(BH4,17:17,18:18))^(1/12)-1 -> 0.003993586609 | BI37: =(1+interpolate_look_up(BI4,17:17,18:18))^(1/12)-1 -> 0.003993586609 | BJ37: =(1+interpolate_look_up(BJ4,17:17,18:18))^(1/12)-1 -> 0.003993586609 | BK37: =(1+interpolate_look_up(BK4,17:17,18:18))^(1/12)-1 -> 0.003993586609 | BL37: =(1+interpolate_look_up(BL4,17:17,18:18))^(1/12)-1 -> 0.003993586609 | BM37: =(1+interpolate_look_up(BM4,17:17,18:18))^(1/12)-1 -> 0.003993586609 | BN37: =(1+interpolate_look_up(BN4,17:17,18:18))^(1/12)-1 -> 0.003139918951 | BO37: =(1+interpolate_look_up(BO4,17:17,18:18))^(1/12)-1 -> 0.003139918951 | BP37: =(1+interpolate_look_up(BP4,17:17,18:18))^(1/12)-1 -> 0.003139918951 | BQ37: =(1+interpolate_look_up(BQ4,17:17,18:18))^(1/12)-1 -> 0.003139918951 | BR37: =(1+interpolate_look_up(BR4,17:17,18:18))^(1/12)-1 -> 0.003139918951 | BS37: =(1+interpolate_look_up(BS4,17:17,18:18))^(1/12)-1 -> 0.003139918951 | BT37: =(1+interpolate_look_up(BT4,17:17,18:18))^(1/12)-1 -> 0.003139918951 | BU37: =(1+interpolate_look_up(BU4,17:17,18:18))^(1/12)-1 -> 0.003139918951 | BV37: =(1+interpolate_look_up(BV4,17:17,18:18))^(1/12)-1 -> 0.003139918951 | BW37: =(1+interpolate_look_up(BW4,17:17,18:18))^(1/12)-1 -> 0.003139918951 | BX37: =(1+interpolate_look_up(BX4,17:17,18:18))^(1/12)-1 -> 0.003139918951 | BY37: =(1+interpolate_look_up(BY4,17:17,18:18))^(1/12)-1 -> 0.003139918951 | BZ37: =(1+interpolate_look_up(BZ4,17:17,18:18))^(1/12)-1 -> 0.002466269772 | CA37: =(1+interpolate_look_up(CA4,17:17,18:18))^(1/12)-1 -> 0.002466269772 | CB37: =(1+interpolate_look_up(CB4,17:17,18:18))^(1/12)-1 -> 0.002466269772 | CC37: =(1+interpolate_look_up(CC4,17:17,18:18))^(1/12)-1 -> 0.002466269772 | CD37: =(1+interpolate_look_up(CD4,17:17,18:18))^(1/12)-1 -> 0.002466269772 | CE37: =(1+interpolate_look_up(CE4,17:17,18:18))^(1/12)-1 -> 0.002466269772 | CF37: =(1+interpolate_look_up(CF4,17:17,18:18))^(1/12)-1 -> 0.002466269772 | CG37: =(1+interpolate_look_up(CG4,17:17,18:18))^(1/12)-1 -> 0.002466269772 | CH37: =(1+interpolate_look_up(CH4,17:17,18:18))^(1/12)-1 -> 0.002466269772 | CI37: =(1+interpolate_look_up(CI4,17:17,18:18))^(1/12)-1 -> 0.002466269772 | CJ37: =(1+interpolate_look_up(CJ4,17:17,18:18))^(1/12)-1 -> 0.002466269772 | CK37: =(1+interpolate_look_up(CK4,17:17,18:18))^(1/12)-1 -> 0.002466269772 | CL37: =(1+interpolate_look_up(CL4,17:17,18:18))^(1/12)-1 -> 0.002158149138 | CM37: =(1+interpolate_look_up(CM4,17:17,18:18))^(1/12)-1 -> 0.002158149138 | CN37: =(1+interpolate_look_up(CN4,17:17,18:18))^(1/12)-1 -> 0.002158149138 | CO37: =(1+interpolate_look_up(CO4,17:17,18:18))^(1/12)-1 -> 0.002158149138 | CP37: =(1+interpolate_look_up(CP4,17:17,18:18))^(1/12)-1 -> 0.002158149138 | CQ37: =(1+interpolate_look_up(CQ4,17:17,18:18))^(1/12)-1 -> 0.002158149138 | CR37: =(1+interpolate_look_up(CR4,17:17,18:18))^(1/12)-1 -> 0.002158149138 | CS37: =(1+interpolate_look_up(CS4,17:17,18:18))^(1/12)-1 -> 0.002158149138 | CT37: =(1+interpolate_look_up(CT4,17:17,18:18))^(1/12)-1 -> 0.002158149138 | CU37: =(1+interpolate_look_up(CU4,17:17,18:18))^(1/12)-1 -> 0.002158149138 | CV37: =(1+interpolate_look_up(CV4,17:17,18:18))^(1/12)-1 -> 0.002158149138 | CW37: =(1+interpolate_look_up(CW4,17:17,18:18))^(1/12)-1 -> 0.002158149138 | CX37: =(1+interpolate_look_up(CX4,17:17,18:18))^(1/12)-1 -> 0.00188812554 | CY37: =(1+interpolate_look_up(CY4,17:17,18:18))^(1/12)-1 -> 0.00188812554 | CZ37: =(1+interpolate_look_up(CZ4,17:17,18:18))^(1/12)-1 -> 0.00188812554 | DA37: =(1+interpolate_look_up(DA4,17:17,18:18))^(1/12)-1 -> 0.00188812554 | DB37: =(1+interpolate_look_up(DB4,17:17,18:18))^(1/12)-1 -> 0.00188812554 | DC37: =(1+interpolate_look_up(DC4,17:17,18:18))^(1/12)-1 -> 0.00188812554 | DD37: =(1+interpolate_look_up(DD4,17:17,18:18))^(1/12)-1 -> 0.00188812554 | DE37: =(1+interpolate_look_up(DE4,17:17,18:18))^(1/12)-1 -> 0.00188812554 | DF37: =(1+interpolate_look_up(DF4,17:17,18:18))^(1/12)-1 -> 0.00188812554 | DG37: =(1+interpolate_look_up(DG4,17:17,18:18))^(1/12)-1 -> 0.00188812554 | DH37: =(1+interpolate_look_up(DH4,17:17,18:18))^(1/12)-1 -> 0.00188812554 | DI37: =(1+interpolate_look_up(DI4,17:17,18:18))^(1/12)-1 -> 0.00188812554 | DJ37: =(1+interpolate_look_up(DJ4,17:17,18:18))^(1/12)-1 -> 0.001651581302 | DK37: =(1+interpolate_look_up(DK4,17:17,18:18))^(1/12)-1 -> 0.001651581302 | DL37: =(1+interpolate_look_up(DL4,17:17,18:18))^(1/12)-1 -> 0.001651581302 | DM37: =(1+interpolate_look_up(DM4,17:17,18:18))^(1/12)-1 -> 0.001651581302 | DN37: =(1+interpolate_look_up(DN4,17:17,18:18))^(1/12)-1 -> 0.001651581302 | DO37: =(1+interpolate_look_up(DO4,17:17,18:18))^(1/12)-1 -> 0.001651581302 | DP37: =(1+interpolate_look_up(DP4,17:17,18:18))^(1/12)-1 -> 0.001651581302 | DQ37: =(1+interpolate_look_up(DQ4,17:17,18:18))^(1/12)-1 -> 0.001651581302 | DR37: =(1+interpolate_look_up(DR4,17:17,18:18))^(1/12)-1 -> 0.001651581302 | DS37: =(1+interpolate_look_up(DS4,17:17,18:18))^(1/12)-1 -> 0.001651581302 | DT37: =(1+interpolate_look_up(DT4,17:17,18:18))^(1/12)-1 -> 0.001651581302 | DU37: =(1+interpolate_look_up(DU4,17:17,18:18))^(1/12)-1 -> 0.001651581302 | DV37: =(1+interpolate_look_up(DV4,17:17,18:18))^(1/12)-1 -> 0.001651581302 | DW37: =(1+interpolate_look_up(DW4,17:17,18:18))^(1/12)-1 -> 0.001651581302 | DX37: =(1+interpolate_look_up(DX4,17:17,18:18))^(1/12)-1 -> 0.001651581302 | DY37: =(1+interpolate_look_up(DY4,17:17,18:18))^(1/12)-1 -> 0.001651581302 | DZ37: =(1+interpolate_look_up(DZ4,17:17,18:18))^(1/12)-1 -> 0.001651581302 | EA37: =(1+interpolate_look_up(EA4,17:17,18:18))^(1/12)-1 -> 0.001651581302 | EB37: =(1+interpolate_look_up(EB4,17:17,18:18))^(1/12)-1 -> 0.001651581302 | EC37: =(1+interpolate_look_up(EC4,17:17,18:18))^(1/12)-1 -> 0.001651581302 | ED37: =(1+interpolate_look_up(ED4,17:17,18:18))^(1/12)-1 -> 0.001651581302 | EE37: =(1+interpolate_look_up(EE4,17:17,18:18))^(1/12)-1 -> 0.001651581302 | EF37: =(1+interpolate_look_up(EF4,17:17,18:18))^(1/12)-1 -> 0.001651581302 | EG37: =(1+interpolate_look_up(EG4,17:17,18:18))^(1/12)-1 -> 0.001651581302 | EH37: =(1+interpolate_look_up(EH4,17:17,18:18))^(1/12)-1 -> 0.001651581302 | EI37: =(1+interpolate_look_up(EI4,17:17,18:18))^(1/12)-1 -> 0.001651581302 | EJ37: =(1+interpolate_look_up(EJ4,17:17,18:18))^(1/12)-1 -> 0.001651581302 | EK37: =(1+interpolate_look_up(EK4,17:17,18:18))^(1/12)-1 -> 0.001651581302 | EL37: =(1+interpolate_look_up(EL4,17:17,18:18))^(1/12)-1 -> 0.001651581302 | EM37: =(1+interpolate_look_up(EM4,17:17,18:18))^(1/12)-1 -> 0.001651581302 | EN37: =(1+interpolate_look_up(EN4,17:17,18:18))^(1/12)-1 -> 0.001651581302 | EO37: =(1+interpolate_look_up(EO4,17:17,18:18))^(1/12)-1 -> 0.001651581302 | EP37: =(1+interpolate_look_up(EP4,17:17,18:18))^(1/12)-1 -> 0.001651581302 | EQ37: =(1+interpolate_look_up(EQ4,17:17,18:18))^(1/12)-1 -> 0.001651581302 | ER37: =(1+interpolate_look_up(ER4,17:17,18:18))^(1/12)-1 -> 0.001651581302 | ES37: =(1+interpolate_look_up(ES4,17:17,18:18))^(1/12)-1 -> 0.001651581302 | ET37: =(1+interpolate_look_up(ET4,17:17,18:18))^(1/12)-1 -> 0.001651581302 | EU37: =(1+interpolate_look_up(EU4,17:17,18:18))^(1/12)-1 -> 0.001651581302 | EV37: =(1+interpolate_look_up(EV4,17:17,18:18))^(1/12)-1 -> 0.001651581302 | EW37: =(1+interpolate_look_up(EW4,17:17,18:18))^(1/12)-1 -> 0.001651581302 | EX37: =(1+interpolate_look_up(EX4,17:17,18:18))^(1/12)-1 -> 0.001651581302 | EY37: =(1+interpolate_look_up(EY4,17:17,18:18))^(1/12)-1 -> 0.001651581302 | EZ37: =(1+interpolate_look_up(EZ4,17:17,18:18))^(1/12)-1 -> 0.001651581302 | FA37: =(1+interpolate_look_up(FA4,17:17,18:18))^(1/12)-1 -> 0.001651581302 | FB37: =(1+interpolate_look_up(FB4,17:17,18:18))^(1/12)-1 -> 0.001651581302 | FC37: =(1+interpolate_look_up(FC4,17:17,18:18))^(1/12)-1 -> 0.001651581302 | FD37: =(1+interpolate_look_up(FD4,17:17,18:18))^(1/12)-1 -> 0.001651581302 | FE37: =(1+interpolate_look_up(FE4,17:17,18:18))^(1/12)-1 -> 0.001651581302 | FF37: =(1+interpolate_look_up(FF4,17:17,18:18))^(1/12)-1 -> 0.001651581302 | FG37: =(1+interpolate_look_up(FG4,17:17,18:18))^(1/12)-1 -> 0.001651581302 | FH37: =(1+interpolate_look_up(FH4,17:17,18:18))^(1/12)-1 -> 0.001651581302 | FI37: =(1+interpolate_look_up(FI4,17:17,18:18))^(1/12)-1 -> 0.001651581302 | FJ37: =(1+interpolate_look_up(FJ4,17:17,18:18))^(1/12)-1 -> 0.001651581302 | FK37: =(1+interpolate_look_up(FK4,17:17,18:18))^(1/12)-1 -> 0.001651581302 | FL37: =(1+interpolate_look_up(FL4,17:17,18:18))^(1/12)-1 -> 0.001651581302 | FM37: =(1+interpolate_look_up(FM4,17:17,18:18))^(1/12)-1 -> 0.001651581302 | FN37: =(1+interpolate_look_up(FN4,17:17,18:18))^(1/12)-1 -> 0.001651581302 | FO37: =(1+interpolate_look_up(FO4,17:17,18:18))^(1/12)-1 -> 0.001651581302 | FP37: =(1+interpolate_look_up(FP4,17:17,18:18))^(1/12)-1 -> 0.001651581302 | FQ37: =(1+interpolate_look_up(FQ4,17:17,18:18))^(1/12)-1 -> 0.001651581302 | FR37: =(1+interpolate_look_up(FR4,17:17,18:18))^(1/12)-1 -> 0.001651581302 | FS37: =(1+interpolate_look_up(FS4,17:17,18:18))^(1/12)-1 -> 0.001651581302 | FT37: =(1+interpolate_look_up(FT4,17:17,18:18))^(1/12)-1 -> 0.001651581302 | FU37: =(1+interpolate_look_up(FU4,17:17,18:18))^(1/12)-1 -> 0.001651581302 | FV37: =(1+interpolate_look_up(FV4,17:17,18:18))^(1/12)-1 -> 0.001651581302 | FW37: =(1+interpolate_look_up(FW4,17:17,18:18))^(1/12)-1 -> 0.001651581302 | FX37: =(1+interpolate_look_up(FX4,17:17,18:18))^(1/12)-1 -> 0.001651581302 | FY37: =(1+interpolate_look_up(FY4,17:17,18:18))^(1/12)-1 -> 0.001651581302 | FZ37: =(1+interpolate_look_up(FZ4,17:17,18:18))^(1/12)-1 -> 0.001651581302 | GA37: =(1+interpolate_look_up(GA4,17:17,18:18))^(1/12)-1 -> 0.001651581302 | GB37: =(1+interpolate_look_up(GB4,17:17,18:18))^(1/12)-1 -> 0.001651581302 | GC37: =(1+interpolate_look_up(GC4,17:17,18:18))^(1/12)-1 -> 0.001651581302 | GD37: =(1+interpolate_look_up(GD4,17:17,18:18))^(1/12)-1 -> 0.001651581302 | GE37: =(1+interpolate_look_up(GE4,17:17,18:18))^(1/12)-1 -> 0.001651581302 | GF37: =(1+interpolate_look_up(GF4,17:17,18:18))^(1/12)-1 -> 0.001651581302 | GG37: =(1+interpolate_look_up(GG4,17:17,18:18))^(1/12)-1 -> 0.001651581302 | GH37: =(1+interpolate_look_up(GH4,17:17,18:18))^(1/12)-1 -> 0.001651581302 | GI37: =(1+interpolate_look_up(GI4,17:17,18:18))^(1/12)-1 -> 0.001651581302 | GJ37: =(1+interpolate_look_up(GJ4,17:17,18:18))^(1/12)-1 -> 0.001651581302 | GK37: =(1+interpolate_look_up(GK4,17:17,18:18))^(1/12)-1 -> 0.001651581302 | GL37: =(1+interpolate_look_up(GL4,17:17,18:18))^(1/12)-1 -> 0.001651581302 | GM37: =(1+interpolate_look_up(GM4,17:17,18:18))^(1/12)-1 -> 0.001651581302 | GN37: =(1+interpolate_look_up(GN4,17:17,18:18))^(1/12)-1 -> 0.001651581302 | GO37: =(1+interpolate_look_up(GO4,17:17,18:18))^(1/12)-1 -> 0.001651581302 | GP37: =(1+interpolate_look_up(GP4,17:17,18:18))^(1/12)-1 -> 0.001651581302 | GQ37: =(1+interpolate_look_up(GQ4,17:17,18:18))^(1/12)-1 -> 0.001651581302 | GR37: =(1+interpolate_look_up(GR4,17:17,18:18))^(1/12)-1 -> 0.001651581302 | GS37: =(1+interpolate_look_up(GS4,17:17,18:18))^(1/12)-1 -> 0.001651581302 | GT37: =(1+interpolate_look_up(GT4,17:17,18:18))^(1/12)-1 -> 0.001651581302 | GU37: =(1+interpolate_look_up(GU4,17:17,18:18))^(1/12)-1 -> 0.001651581302 | GV37: =(1+interpolate_look_up(GV4,17:17,18:18))^(1/12)-1 -> 0.001651581302 | GW37: =(1+interpolate_look_up(GW4,17:17,18:18))^(1/12)-1 -> 0.001651581302 | GX37: =(1+interpolate_look_up(GX4,17:17,18:18))^(1/12)-1 -> 0.001651581302 | GY37: =(1+interpolate_look_up(GY4,17:17,18:18))^(1/12)-1 -> 0.001651581302 | GZ37: =(1+interpolate_look_up(GZ4,17:17,18:18))^(1/12)-1 -> 0.001651581302 | HA37: =(1+interpolate_look_up(HA4,17:17,18:18))^(1/12)-1 -> 0.001651581302 | HB37: =(1+interpolate_look_up(HB4,17:17,18:18))^(1/12)-1 -> 0.001651581302 | HC37: =(1+interpolate_look_up(HC4,17:17,18:18))^(1/12)-1 -> 0.001651581302 | HD37: =(1+interpolate_look_up(HD4,17:17,18:18))^(1/12)-1 -> 0.001651581302 | HE37: =(1+interpolate_look_up(HE4,17:17,18:18))^(1/12)-1 -> 0.001651581302 | HF37: =(1+interpolate_look_up(HF4,17:17,18:18))^(1/12)-1 -> 0.001651581302 | HG37: =(1+interpolate_look_up(HG4,17:17,18:18))^(1/12)-1 -> 0.001651581302 | HH37: =(1+interpolate_look_up(HH4,17:17,18:18))^(1/12)-1 -> 0.001651581302 | HI37: =(1+interpolate_look_up(HI4,17:17,18:18))^(1/12)-1 -> 0.001651581302 | HJ37: =(1+interpolate_look_up(HJ4,17:17,18:18))^(1/12)-1 -> 0.001651581302 | HK37: =(1+interpolate_look_up(HK4,17:17,18:18))^(1/12)-1 -> 0.001651581302 | HL37: =(1+interpolate_look_up(HL4,17:17,18:18))^(1/12)-1 -> 0.001651581302 | HM37: =(1+interpolate_look_up(HM4,17:17,18:18))^(1/12)-1 -> 0.001651581302 | HN37: =(1+interpolate_look_up(HN4,17:17,18:18))^(1/12)-1 -> 0.001651581302 | HO37: =(1+interpolate_look_up(HO4,17:17,18:18))^(1/12)-1 -> 0.001651581302 | HP37: =(1+interpolate_look_up(HP4,17:17,18:18))^(1/12)-1 -> 0.001651581302 | HQ37: =(1+interpolate_look_up(HQ4,17:17,18:18))^(1/12)-1 -> 0.001651581302 | HR37: =(1+interpolate_look_up(HR4,17:17,18:18))^(1/12)-1 -> 0.001651581302 | HS37: =(1+interpolate_look_up(HS4,17:17,18:18))^(1/12)-1 -> 0.001651581302 | HT37: =(1+interpolate_look_up(HT4,17:17,18:18))^(1/12)-1 -> 0.001651581302 | HU37: =(1+interpolate_look_up(HU4,17:17,18:18))^(1/12)-1 -> 0.001651581302 | HV37: =(1+interpolate_look_up(HV4,17:17,18:18))^(1/12)-1 -> 0.001651581302 | HW37: =(1+interpolate_look_up(HW4,17:17,18:18))^(1/12)-1 -> 0.001651581302 | HX37: =(1+interpolate_look_up(HX4,17:17,18:18))^(1/12)-1 -> 0.001651581302 | HY37: =(1+interpolate_look_up(HY4,17:17,18:18))^(1/12)-1 -> 0.001651581302 | HZ37: =(1+interpolate_look_up(HZ4,17:17,18:18))^(1/12)-1 -> 0.001651581302 | IA37: =(1+interpolate_look_up(IA4,17:17,18:18))^(1/12)-1 -> 0.001651581302 | IB37: =(1+interpolate_look_up(IB4,17:17,18:18))^(1/12)-1 -> 0.001651581302 | IC37: =(1+interpolate_look_up(IC4,17:17,18:18))^(1/12)-1 -> 0.001651581302 | ID37: =(1+interpolate_look_up(ID4,17:17,18:18))^(1/12)-1 -> 0.001651581302 | IE37: =(1+interpolate_look_up(IE4,17:17,18:18))^(1/12)-1 -> 0.001651581302 | IF37: =(1+interpolate_look_up(IF4,17:17,18:18))^(1/12)-1 -> 0.001651581302 | IG37: =(1+interpolate_look_up(IG4,17:17,18:18))^(1/12)-1 -> 0.001651581302 | IH37: =(1+interpolate_look_up(IH4,17:17,18:18))^(1/12)-1 -> 0.001651581302 | II37: =(1+interpolate_look_up(II4,17:17,18:18))^(1/12)-1 -> 0.001651581302 | IJ37: =(1+interpolate_look_up(IJ4,17:17,18:18))^(1/12)-1 -> 0.001651581302 | IK37: =(1+interpolate_look_up(IK4,17:17,18:18))^(1/12)-1 -> 0.001651581302 | IL37: =(1+interpolate_look_up(IL4,17:17,18:18))^(1/12)-1 -> 0.001651581302 | IM37: =(1+interpolate_look_up(IM4,17:17,18:18))^(1/12)-1 -> 0.001651581302 | IN37: =(1+interpolate_look_up(IN4,17:17,18:18))^(1/12)-1 -> 0.001651581302 | IO37: =(1+interpolate_look_up(IO4,17:17,18:18))^(1/12)-1 -> 0.001651581302 | IP37: =(1+interpolate_look_up(IP4,17:17,18:18))^(1/12)-1 -> 0.001651581302 | IQ37: =(1+interpolate_look_up(IQ4,17:17,18:18))^(1/12)-1 -> 0.001651581302 | IR37: =(1+interpolate_look_up(IR4,17:17,18:18))^(1/12)-1 -> 0.001651581302 | IS37: =(1+interpolate_look_up(IS4,17:17,18:18))^(1/12)-1 -> 0.001651581302 | IT37: =(1+interpolate_look_up(IT4,17:17,18:18))^(1/12)-1 -> 0.001651581302 | IU37: =(1+interpolate_look_up(IU4,17:17,18:18))^(1/12)-1 -> 0.001651581302 | IV37: =(1+interpolate_look_up(IV4,17:17,18:18))^(1/12)-1 -> 0.001651581302 | IW37: =(1+interpolate_look_up(IW4,17:17,18:18))^(1/12)-1 -> 0.001651581302 | IX37: =(1+interpolate_look_up(IX4,17:17,18:18))^(1/12)-1 -> 0.001651581302 | IY37: =(1+interpolate_look_up(IY4,17:17,18:18))^(1/12)-1 -> 0.001651581302 | IZ37: =(1+interpolate_look_up(IZ4,17:17,18:18))^(1/12)-1 -> 0.001651581302 | JA37: =(1+interpolate_look_up(JA4,17:17,18:18))^(1/12)-1 -> 0.001651581302 | JB37: =(1+interpolate_look_up(JB4,17:17,18:18))^(1/12)-1 -> 0.001651581302 | JC37: =(1+interpolate_look_up(JC4,17:17,18:18))^(1/12)-1 -> 0.001651581302 | JD37: =(1+interpolate_look_up(JD4,17:17,18:18))^(1/12)-1 -> 0.001651581302 | JE37: =(1+interpolate_look_up(JE4,17:17,18:18))^(1/12)-1 -> 0.001651581302 | JF37: =(1+interpolate_look_up(JF4,17:17,18:18))^(1/12)-1 -> 0.001651581302 | JG37: =(1+interpolate_look_up(JG4,17:17,18:18))^(1/12)-1 -> 0.001651581302 | JH37: =(1+interpolate_look_up(JH4,17:17,18:18))^(1/12)-1 -> 0.001651581302 | JI37: =(1+interpolate_look_up(JI4,17:17,18:18))^(1/12)-1 -> 0.001651581302 | JJ37: =(1+interpolate_look_up(JJ4,17:17,18:18))^(1/12)-1 -> 0.001651581302 | JK37: =(1+interpolate_look_up(JK4,17:17,18:18))^(1/12)-1 -> 0.001651581302 | JL37: =(1+interpolate_look_up(JL4,17:17,18:18))^(1/12)-1 -> 0.001651581302 | JM37: =(1+interpolate_look_up(JM4,17:17,18:18))^(1/12)-1 -> 0.001651581302 | JN37: =(1+interpolate_look_up(JN4,17:17,18:18))^(1/12)-1 -> 0.001651581302 | JO37: =(1+interpolate_look_up(JO4,17:17,18:18))^(1/12)-1 -> 0.001651581302 | JP37: =(1+interpolate_look_up(JP4,17:17,18:18))^(1/12)-1 -> 0.001651581302 | JQ37: =(1+interpolate_look_up(JQ4,17:17,18:18))^(1/12)-1 -> 0.001651581302 | JR37: =(1+interpolate_look_up(JR4,17:17,18:18))^(1/12)-1 -> 0.001651581302 | JS37: =(1+interpolate_look_up(JS4,17:17,18:18))^(1/12)-1 -> 0.001651581302 | JT37: =(1+interpolate_look_up(JT4,17:17,18:18))^(1/12)-1 -> 0.001651581302 | JU37: =(1+interpolate_look_up(JU4,17:17,18:18))^(1/12)-1 -> 0.001651581302 | JV37: =(1+interpolate_look_up(JV4,17:17,18:18))^(1/12)-1 -> 0.001651581302 | JW37: =(1+interpolate_look_up(JW4,17:17,18:18))^(1/12)-1 -> 0.001651581302 | JX37: =(1+interpolate_look_up(JX4,17:17,18:18))^(1/12)-1 -> 0.001651581302 | JY37: =(1+interpolate_look_up(JY4,17:17,18:18))^(1/12)-1 -> 0.001651581302 | JZ37: =(1+interpolate_look_up(JZ4,17:17,18:18))^(1/12)-1 -> 0.001651581302 | KA37: =(1+interpolate_look_up(KA4,17:17,18:18))^(1/12)-1 -> 0.001651581302 | KB37: =(1+interpolate_look_up(KB4,17:17,18:18))^(1/12)-1 -> 0.001651581302 | KC37: =(1+interpolate_look_up(KC4,17:17,18:18))^(1/12)-1 -> 0.001651581302 | KD37: =(1+interpolate_look_up(KD4,17:17,18:18))^(1/12)-1 -> 0.001651581302 | KE37: =(1+interpolate_look_up(KE4,17:17,18:18))^(1/12)-1 -> 0.001651581302 | KF37: =(1+interpolate_look_up(KF4,17:17,18:18))^(1/12)-1 -> 0.001651581302 | KG37: =(1+interpolate_look_up(KG4,17:17,18:18))^(1/12)-1 -> 0.001651581302 | KH37: =(1+interpolate_look_up(KH4,17:17,18:18))^(1/12)-1 -> 0.001651581302 | KI37: =(1+interpolate_look_up(KI4,17:17,18:18))^(1/12)-1 -> 0.001651581302 | KJ37: =(1+interpolate_look_up(KJ4,17:17,18:18))^(1/12)-1 -> 0.001651581302 | KK37: =(1+interpolate_look_up(KK4,17:17,18:18))^(1/12)-1 -> 0.001651581302 | KL37: =(1+interpolate_look_up(KL4,17:17,18:18))^(1/12)-1 -> 0.001651581302 | KM37: =(1+interpolate_look_up(KM4,17:17,18:18))^(1/12)-1 -> 0.001651581302 | KN37: =(1+interpolate_look_up(KN4,17:17,18:18))^(1/12)-1 -> 0.001651581302 | KO37: =(1+interpolate_look_up(KO4,17:17,18:18))^(1/12)-1 -> 0.001651581302 | KP37: =(1+interpolate_look_up(KP4,17:17,18:18))^(1/12)-1 -> 0.001651581302 | KQ37: =(1+interpolate_look_up(KQ4,17:17,18:18))^(1/12)-1 -> 0.001651581302 | KR37: =(1+interpolate_look_up(KR4,17:17,18:18))^(1/12)-1 -> 0.001651581302 | KS37: =(1+interpolate_look_up(KS4,17:17,18:18))^(1/12)-1 -> 0.001651581302 | KT37: =(1+interpolate_look_up(KT4,17:17,18:18))^(1/12)-1 -> 0.001651581302
D38: CFADS Index - Interpolate | F38: 1 | G38: =F38*(1+G37) -> 1.007207323 | H38: =G38*(1+H37) -> 1.014466592 | I38: 1.021778181 | J38: 1.029142467 | K38: 1.036559829 | L38: 1.044030651 | M38: 1.051555317 | N38: 1.059134217 | O38: 1.066767739 | P38: 1.074456279 | Q38: 1.082200233 | R38: 1.089570137 | S38: 1.09699023 | T38: 1.104460855 | U38: 1.111982356 | V38: 1.119555079 | W38: 1.127179374 | X38: 1.13485559 | Y38: 1.142584083 | Z38: 1.150365207 | AA38: 1.158199322 | AB38: 1.166086787 | AC38: 1.174027968 | AD38: =AC38*(1+AD37) -> 1.181581699 | AE38: =AD38*(1+AE37) -> 1.189184031 | AF38: =AE38*(1+AF37) -> 1.196835277 | AG38: =AF38*(1+AG37) -> 1.204535751 | AH38: =AG38*(1+AH37) -> 1.212285771 | AI38: =AH38*(1+AI37) -> 1.220085654 | AJ38: =AI38*(1+AJ37) -> 1.227935722 | AK38: =AJ38*(1+AK37) -> 1.235836297 | AL38: =AK38*(1+AL37) -> 1.243787705 | AM38: =AL38*(1+AM37) -> 1.251790273 | AN38: =AM38*(1+AN37) -> 1.259844329 | AO38: =AN38*(1+AO37) -> 1.267950205 | AP38: =AO38*(1+AP37) -> 1.274382497 | AQ38: =AP38*(1+AQ37) -> 1.280847419 | AR38: =AQ38*(1+AR37) -> 1.287345137 | AS38: =AR38*(1+AS37) -> 1.293875819 | AT38: =AS38*(1+AT37) -> 1.30043963 | AU38: =AT38*(1+AU37) -> 1.30703674 | AV38: =AU38*(1+AV37) -> 1.313667317 | AW38: =AV38*(1+AW37) -> 1.32033153 | AX38: =AW38*(1+AX37) -> 1.327029551 | AY38: =AX38*(1+AY37) -> 1.333761551 | AZ38: =AY38*(1+AZ37) -> 1.340527702 | BA38: =AZ38*(1+BA37) -> 1.347328178 | BB38: =BA38*(1+BB37) -> 1.35270885 | BC38: =BB38*(1+BC37) -> 1.35811101 | BD38: =BC38*(1+BD37) -> 1.363534744 | BE38: =BD38*(1+BE37) -> 1.368980138 | BF38: =BE38*(1+BF37) -> 1.374447278 | BG38: =BF38*(1+BG37) -> 1.379936253 | BH38: =BG38*(1+BH37) -> 1.385447148 | BI38: =BH38*(1+BI37) -> 1.390980051 | BJ38: =BI38*(1+BJ37) -> 1.39653505 | BK38: =BJ38*(1+BK37) -> 1.402112234 | BL38: =BK38*(1+BL37) -> 1.40771169 | BM38: =BL38*(1+BM37) -> 1.413333509 | BN38: =BM38*(1+BN37) -> 1.417771262 | BO38: =BN38*(1+BO37) -> 1.422222948 | BP38: =BO38*(1+BP37) -> 1.426688613 | BQ38: =BP38*(1+BQ37) -> 1.4311683 | BR38: =BQ38*(1+BR37) -> 1.435662052 | BS38: =BR38*(1+BS37) -> 1.440169915 | BT38: =BS38*(1+BT37) -> 1.444691932 | BU38: =BT38*(1+BU37) -> 1.449228147 | BV38: =BU38*(1+BV37) -> 1.453778606 | BW38: =BV38*(1+BW37) -> 1.458343353 | BX38: =BW38*(1+BX37) -> 1.462922433 | BY38: =BX38*(1+BY37) -> 1.467515891 | BZ38: =BY38*(1+BZ37) -> 1.471135181 | CA38: =BZ38*(1+CA37) -> 1.474763397 | CB38: =CA38*(1+CB37) -> 1.478400562 | CC38: =CB38*(1+CC37) -> 1.482046696 | CD38: =CC38*(1+CD37) -> 1.485701823 | CE38: =CD38*(1+CE37) -> 1.489365965 | CF38: =CE38*(1+CF37) -> 1.493039143 | CG38: =CF38*(1+CG37) -> 1.49672138 | CH38: =CG38*(1+CH37) -> 1.500412699 | CI38: =CH38*(1+CI37) -> 1.504113121 | CJ38: =CI38*(1+CJ37) -> 1.50782267 | CK38: =CJ38*(1+CK37) -> 1.511541368 | CL38: =CK38*(1+CL37) -> 1.514803499 | CM38: =CL38*(1+CM37) -> 1.518072671 | CN38: =CM38*(1+CN37) -> 1.521348898 | CO38: =CN38*(1+CO37) -> 1.524632196 | CP38: =CO38*(1+CP37) -> 1.52792258 | CQ38: =CP38*(1+CQ37) -> 1.531220065 | CR38: =CQ38*(1+CR37) -> 1.534524666 | CS38: =CR38*(1+CS37) -> 1.537836399 | CT38: =CS38*(1+CT37) -> 1.541155279 | CU38: =CT38*(1+CU37) -> 1.544481322 | CV38: =CU38*(1+CV37) -> 1.547814543 | CW38: =CV38*(1+CW37) -> 1.551154958 | CX38: =CW38*(1+CX37) -> 1.554083733 | CY38: =CX38*(1+CY37) -> 1.557018038 | CZ38: =CY38*(1+CZ37) -> 1.559957884 | DA38: =CZ38*(1+DA37) -> 1.56290328 | DB38: =DA38*(1+DB37) -> 1.565854238 | DC38: =DB38*(1+DC37) -> 1.568810767 | DD38: =DC38*(1+DD37) -> 1.571772879 | DE38: =DD38*(1+DE37) -> 1.574740583 | DF38: =DE38*(1+DF37) -> 1.577713891 | DG38: =DF38*(1+DG37) -> 1.580692813 | DH38: =DG38*(1+DH37) -> 1.58367736 | DI38: =DH38*(1+DI37) -> 1.586667541 | DJ38: =DI38*(1+DJ37) -> 1.589288052 | DK38: =DJ38*(1+DK37) -> 1.59191289 | DL38: =DK38*(1+DL37) -> 1.594542064 | DM38: =DL38*(1+DM37) -> 1.59717558 | DN38: =DM38*(1+DN37) -> 1.599813445 | DO38: =DN38*(1+DO37) -> 1.602455667 | DP38: =DO38*(1+DP37) -> 1.605102253 | DQ38: =DP38*(1+DQ37) -> 1.60775321 | DR38: =DQ38*(1+DR37) -> 1.610408545 | DS38: =DR38*(1+DS37) -> 1.613068265 | DT38: =DS38*(1+DT37) -> 1.615732379 | DU38: =DT38*(1+DU37) -> 1.618400892 | DV38: =DU38*(1+DV37) -> 1.621073813 | DW38: =DV38*(1+DW37) -> 1.623751148 | DX38: =DW38*(1+DX37) -> 1.626432905 | DY38: =DX38*(1+DY37) -> 1.629119091 | DZ38: =DY38*(1+DZ37) -> 1.631809714 | EA38: =DZ38*(1+EA37) -> 1.63450478 | EB38: =EA38*(1+EB37) -> 1.637204298 | EC38: =EB38*(1+EC37) -> 1.639908274 | ED38: =EC38*(1+ED37) -> 1.642616716 | EE38: =ED38*(1+EE37) -> 1.645329631 | EF38: =EE38*(1+EF37) -> 1.648047026 | EG38: =EF38*(1+EG37) -> 1.65076891 | EH38: =EG38*(1+EH37) -> 1.653495289 | EI38: =EH38*(1+EI37) -> 1.656226171 | EJ38: =EI38*(1+EJ37) -> 1.658961563 | EK38: =EJ38*(1+EK37) -> 1.661701473 | EL38: =EK38*(1+EL37) -> 1.664445908 | EM38: =EL38*(1+EM37) -> 1.667194876 | EN38: =EM38*(1+EN37) -> 1.669948384 | EO38: =EN38*(1+EO37) -> 1.672706439 | EP38: =EO38*(1+EP37) -> 1.67546905 | EQ38: =EP38*(1+EQ37) -> 1.678236223 | ER38: =EQ38*(1+ER37) -> 1.681007967 | ES38: =ER38*(1+ES37) -> 1.683784288 | ET38: =ES38*(1+ET37) -> 1.686565195 | EU38: =ET38*(1+EU37) -> 1.689350694 | EV38: =EU38*(1+EV37) -> 1.692140794 | EW38: =EV38*(1+EW37) -> 1.694935503 | EX38: =EW38*(1+EX37) -> 1.697734826 | EY38: =EX38*(1+EY37) -> 1.700538773 | EZ38: =EY38*(1+EZ37) -> 1.703347351 | FA38: =EZ38*(1+FA37) -> 1.706160568 | FB38: =FA38*(1+FB37) -> 1.708978431 | FC38: =FB38*(1+FC37) -> 1.711800948 | FD38: =FC38*(1+FD37) -> 1.714628126 | FE38: =FD38*(1+FE37) -> 1.717459974 | FF38: =FE38*(1+FF37) -> 1.720296499 | FG38: =FF38*(1+FG37) -> 1.723137708 | FH38: =FG38*(1+FH37) -> 1.72598361 | FI38: =FH38*(1+FI37) -> 1.728834213 | FJ38: =FI38*(1+FJ37) -> 1.731689523 | FK38: =FJ38*(1+FK37) -> 1.734549549 | FL38: =FK38*(1+FL37) -> 1.737414298 | FM38: =FL38*(1+FM37) -> 1.740283779 | FN38: =FM38*(1+FN37) -> 1.743158 | FO38: =FN38*(1+FO37) -> 1.746036967 | FP38: =FO38*(1+FP37) -> 1.748920689 | FQ38: =FP38*(1+FQ37) -> 1.751809173 | FR38: =FQ38*(1+FR37) -> 1.754702429 | FS38: =FR38*(1+FS37) -> 1.757600462 | FT38: =FS38*(1+FT37) -> 1.760503283 | FU38: =FT38*(1+FU37) -> 1.763410897 | FV38: =FU38*(1+FV37) -> 1.766323313 | FW38: =FV38*(1+FW37) -> 1.76924054 | FX38: =FW38*(1+FX37) -> 1.772162584 | FY38: =FX38*(1+FY37) -> 1.775089455 | FZ38: =FY38*(1+FZ37) -> 1.77802116 | GA38: =FZ38*(1+GA37) -> 1.780957706 | GB38: =GA38*(1+GB37) -> 1.783899103 | GC38: =GB38*(1+GC37) -> 1.786845357 | GD38: =GC38*(1+GD37) -> 1.789796477 | GE38: =GD38*(1+GE37) -> 1.792752472 | GF38: =GE38*(1+GF37) -> 1.795713348 | GG38: =GF38*(1+GG37) -> 1.798679115 | GH38: =GG38*(1+GH37) -> 1.80164978 | GI38: =GH38*(1+GI37) -> 1.804625351 | GJ38: =GI38*(1+GJ37) -> 1.807605836 | GK38: =GJ38*(1+GK37) -> 1.810591244 | GL38: =GK38*(1+GL37) -> 1.813581583 | GM38: =GL38*(1+GM37) -> 1.81657686 | GN38: =GM38*(1+GN37) -> 1.819577085 | GO38: =GN38*(1+GO37) -> 1.822582264 | GP38: =GO38*(1+GP37) -> 1.825592407 | GQ38: =GP38*(1+GQ37) -> 1.828607521 | GR38: =GQ38*(1+GR37) -> 1.831627615 | GS38: =GR38*(1+GS37) -> 1.834652697 | GT38: =GS38*(1+GT37) -> 1.837682775 | GU38: =GT38*(1+GU37) -> 1.840717858 | GV38: =GU38*(1+GV37) -> 1.843757953 | GW38: =GV38*(1+GW37) -> 1.846803069 | GX38: =GW38*(1+GX37) -> 1.849853214 | GY38: =GX38*(1+GY37) -> 1.852908397 | GZ38: =GY38*(1+GZ37) -> 1.855968626 | HA38: =GZ38*(1+HA37) -> 1.859033909 | HB38: =HA38*(1+HB37) -> 1.862104255 | HC38: =HB38*(1+HC37) -> 1.865179672 | HD38: =HC38*(1+HD37) -> 1.868260167 | HE38: =HD38*(1+HE37) -> 1.871345751 | HF38: =HE38*(1+HF37) -> 1.874436431 | HG38: =HF38*(1+HG37) -> 1.877532215 | HH38: =HG38*(1+HH37) -> 1.880633112 | HI38: =HH38*(1+HI37) -> 1.88373913 | HJ38: =HI38*(1+HJ37) -> 1.886850279 | HK38: =HJ38*(1+HK37) -> 1.889966565 | HL38: =HK38*(1+HL37) -> 1.893087999 | HM38: =HL38*(1+HM37) -> 1.896214588 | HN38: =HM38*(1+HN37) -> 1.89934634 | HO38: =HN38*(1+HO37) -> 1.902483265 | HP38: =HO38*(1+HP37) -> 1.905625371 | HQ38: =HP38*(1+HQ37) -> 1.908772666 | HR38: =HQ38*(1+HR37) -> 1.911925159 | HS38: =HR38*(1+HS37) -> 1.915082859 | HT38: =HS38*(1+HT37) -> 1.918245774 | HU38: =HT38*(1+HU37) -> 1.921413913 | HV38: =HU38*(1+HV37) -> 1.924587284 | HW38: =HV38*(1+HW37) -> 1.927765897 | HX38: =HW38*(1+HX37) -> 1.930949759 | HY38: =HX38*(1+HY37) -> 1.934138879 | HZ38: =HY38*(1+HZ37) -> 1.937333267 | IA38: =HZ38*(1+IA37) -> 1.94053293 | IB38: =IA38*(1+IB37) -> 1.943737878 | IC38: =IB38*(1+IC37) -> 1.946948119 | ID38: =IC38*(1+ID37) -> 1.950163662 | IE38: =ID38*(1+IE37) -> 1.953384516 | IF38: =IE38*(1+IF37) -> 1.95661069 | IG38: =IF38*(1+IG37) -> 1.959842191 | IH38: =IG38*(1+IH37) -> 1.96307903 | II38: =IH38*(1+II37) -> 1.966321215 | IJ38: =II38*(1+IJ37) -> 1.969568754 | IK38: =IJ38*(1+IK37) -> 1.972821657 | IL38: =IK38*(1+IL37) -> 1.976079932 | IM38: =IL38*(1+IM37) -> 1.979343589 | IN38: =IM38*(1+IN37) -> 1.982612636 | IO38: =IN38*(1+IO37) -> 1.985887082 | IP38: =IO38*(1+IP37) -> 1.989166936 | IQ38: =IP38*(1+IQ37) -> 1.992452207 | IR38: =IQ38*(1+IR37) -> 1.995742903 | IS38: =IR38*(1+IS37) -> 1.999039035 | IT38: =IS38*(1+IT37) -> 2.002340611 | IU38: =IT38*(1+IU37) -> 2.005647639 | IV38: =IU38*(1+IV37) -> 2.008960129 | IW38: =IV38*(1+IW37) -> 2.01227809 | IX38: =IW38*(1+IX37) -> 2.015601531 | IY38: =IX38*(1+IY37) -> 2.018930461 | IZ38: =IY38*(1+IZ37) -> 2.022264888 | JA38: =IZ38*(1+JA37) -> 2.025604823 | JB38: =JA38*(1+JB37) -> 2.028950274 | JC38: =JB38*(1+JC37) -> 2.032301251 | JD38: =JC38*(1+JD37) -> 2.035657761 | JE38: =JD38*(1+JE37) -> 2.039019816 | JF38: =JE38*(1+JF37) -> 2.042387423 | JG38: =JF38*(1+JG37) -> 2.045760592 | JH38: =JG38*(1+JH37) -> 2.049139332 | JI38: =JH38*(1+JI37) -> 2.052523652 | JJ38: =JI38*(1+JJ37) -> 2.055913561 | JK38: =JJ38*(1+JK37) -> 2.05930907 | JL38: =JK38*(1+JL37) -> 2.062710186 | JM38: =JL38*(1+JM37) -> 2.06611692 | JN38: =JM38*(1+JN37) -> 2.06952928 | JO38: =JN38*(1+JO37) -> 2.072947276 | JP38: =JO38*(1+JP37) -> 2.076370917 | JQ38: =JP38*(1+JQ37) -> 2.079800212 | JR38: =JQ38*(1+JR37) -> 2.083235171 | JS38: =JR38*(1+JS37) -> 2.086675803 | JT38: =JS38*(1+JT37) -> 2.090122118 | JU38: =JT38*(1+JU37) -> 2.093574125 | JV38: =JU38*(1+JV37) -> 2.097031833 | JW38: =JV38*(1+JW37) -> 2.100495251 | JX38: =JW38*(1+JX37) -> 2.10396439 | JY38: =JX38*(1+JY37) -> 2.107439258 | JZ38: =JY38*(1+JZ37) -> 2.110919865 | KA38: =JZ38*(1+KA37) -> 2.114406221 | KB38: =KA38*(1+KB37) -> 2.117898335 | KC38: =KB38*(1+KC37) -> 2.121396216 | KD38: =KC38*(1+KD37) -> 2.124899875 | KE38: =KD38*(1+KE37) -> 2.12840932 | KF38: =KE38*(1+KF37) -> 2.131924561 | KG38: =KF38*(1+KG37) -> 2.135445607 | KH38: =KG38*(1+KH37) -> 2.138972469 | KI38: =KH38*(1+KI37) -> 2.142505156 | KJ38: =KI38*(1+KJ37) -> 2.146043678 | KK38: =KJ38*(1+KK37) -> 2.149588043 | KL38: =KK38*(1+KL37) -> 2.153138263 | KM38: =KL38*(1+KM37) -> 2.156694346 | KN38: =KM38*(1+KN37) -> 2.160256302 | KO38: =KN38*(1+KO37) -> 2.163824141 | KP38: =KO38*(1+KP37) -> 2.167397872 | KQ38: =KP38*(1+KQ37) -> 2.170977506 | KR38: =KQ38*(1+KR37) -> 2.174563052 | KS38: =KR38*(1+KS37) -> 2.178154519 | KT38: =KS38*(1+KT37) -> 2.181751919
D39: Month | G39: =IF(MOD(G2,12)=0,12,MOD(G2,12)) -> 1 | H39: =IF(MOD(H2,12)=0,12,MOD(H2,12)) -> 2 | I39: 3 | J39: 4 | K39: 5 | L39: 6 | M39: 7 | N39: 8 | O39: 9 | P39: 10 | Q39: 11 | R39: 12 | S39: 1 | T39: 2 | U39: 3 | V39: 4 | W39: 5 | X39: 6 | Y39: 7 | Z39: 8 | AA39: 9 | AB39: 10 | AC39: 11 | AD39: 12 | AE39: 1 | AF39: 2 | AG39: 3 | AH39: 4 | AI39: 5 | AJ39: 6 | AK39: 7 | AL39: 8 | AM39: 9 | AN39: 10 | AO39: 11 | AP39: 12 | AQ39: 1 | AR39: 2 | AS39: 3 | AT39: 4 | AU39: 5 | AV39: 6 | AW39: 7 | AX39: 8 | AY39: 9 | AZ39: 10 | BA39: 11 | BB39: 12 | BC39: 1 | BD39: 2 | BE39: 3 | BF39: 4 | BG39: 5 | BH39: 6 | BI39: 7 | BJ39: 8 | BK39: 9 | BL39: 10 | BM39: 11 | BN39: 12 | BO39: 1 | BP39: 2 | BQ39: 3 | BR39: 4 | BS39: 5 | BT39: =IF(MOD(BT2,12)=0,12,MOD(BT2,12)) -> 6 | BU39: 7 | BV39: 8 | BW39: 9 | BX39: 10 | BY39: 11 | BZ39: 12 | CA39: 1 | CB39: 2 | CC39: 3 | CD39: 4 | CE39: 5 | CF39: 6 | CG39: 7 | CH39: 8 | CI39: 9 | CJ39: 10 | CK39: 11 | CL39: 12 | CM39: 1 | CN39: 2 | CO39: 3 | CP39: 4 | CQ39: 5 | CR39: 6 | CS39: 7 | CT39: 8 | CU39: 9 | CV39: 10 | CW39: 11 | CX39: 12 | CY39: 1 | CZ39: 2 | DA39: 3 | DB39: 4 | DC39: 5 | DD39: 6 | DE39: 7 | DF39: 8 | DG39: 9 | DH39: 10 | DI39: 11 | DJ39: 12 | DK39: 1 | DL39: 2 | DM39: 3 | DN39: 4 | DO39: 5 | DP39: 6 | DQ39: 7 | DR39: 8 | DS39: 9 | DT39: 10 | DU39: 11 | DV39: 12 | DW39: 1 | DX39: 2 | DY39: 3 | DZ39: 4 | EA39: 5 | EB39: 6 | EC39: 7 | ED39: 8 | EE39: 9 | EF39: =IF(MOD(EF2,12)=0,12,MOD(EF2,12)) -> 10 | EG39: 11 | EH39: 12 | EI39: 1 | EJ39: 2 | EK39: 3 | EL39: 4 | EM39: 5 | EN39: 6 | EO39: 7 | EP39: 8 | EQ39: 9 | ER39: 10 | ES39: 11 | ET39: 12 | EU39: 1 | EV39: 2 | EW39: 3 | EX39: 4 | EY39: 5 | EZ39: 6 | FA39: 7 | FB39: 8 | FC39: 9 | FD39: 10 | FE39: 11 | FF39: 12 | FG39: 1 | FH39: 2 | FI39: 3 | FJ39: 4 | FK39: 5 | FL39: 6 | FM39: 7 | FN39: 8 | FO39: 9 | FP39: 10 | FQ39: 11 | FR39: 12 | FS39: 1 | FT39: 2 | FU39: 3 | FV39: 4 | FW39: 5 | FX39: 6 | FY39: 7 | FZ39: 8 | GA39: 9 | GB39: 10 | GC39: 11 | GD39: 12 | GE39: 1 | GF39: 2 | GG39: 3 | GH39: 4 | GI39: 5 | GJ39: 6 | GK39: 7 | GL39: 8 | GM39: 9 | GN39: 10 | GO39: 11 | GP39: 12 | GQ39: 1 | GR39: =IF(MOD(GR2,12)=0,12,MOD(GR2,12)) -> 2 | GS39: 3 | GT39: 4 | GU39: 5 | GV39: 6 | GW39: 7 | GX39: 8 | GY39: 9 | GZ39: 10 | HA39: 11 | HB39: 12 | HC39: 1 | HD39: 2 | HE39: 3 | HF39: 4 | HG39: 5 | HH39: 6 | HI39: 7 | HJ39: 8 | HK39: 9 | HL39: 10 | HM39: 11 | HN39: 12 | HO39: 1 | HP39: 2 | HQ39: 3 | HR39: 4 | HS39: 5 | HT39: 6 | HU39: 7 | HV39: 8 | HW39: 9 | HX39: 10 | HY39: 11 | HZ39: 12 | IA39: 1 | IB39: 2 | IC39: 3 | ID39: 4 | IE39: 5 | IF39: 6 | IG39: 7 | IH39: 8 | II39: 9 | IJ39: 10 | IK39: 11 | IL39: 12 | IM39: 1 | IN39: 2 | IO39: 3 | IP39: 4 | IQ39: 5 | IR39: 6 | IS39: 7 | IT39: 8 | IU39: 9 | IV39: 10 | IW39: 11 | IX39: 12 | IY39: 1 | IZ39: 2 | JA39: 3 | JB39: 4 | JC39: 5 | JD39: =IF(MOD(JD2,12)=0,12,MOD(JD2,12)) -> 6 | JE39: 7 | JF39: 8 | JG39: 9 | JH39: 10 | JI39: 11 | JJ39: 12 | JK39: 1 | JL39: 2 | JM39: 3 | JN39: 4 | JO39: 5 | JP39: 6 | JQ39: 7 | JR39: 8 | JS39: 9 | JT39: 10 | JU39: 11 | JV39: 12 | JW39: 1 | JX39: 2 | JY39: 3 | JZ39: 4 | KA39: 5 | KB39: 6 | KC39: 7 | KD39: 8 | KE39: 9 | KF39: 10 | KG39: 11 | KH39: 12 | KI39: 1 | KJ39: 2 | KK39: 3 | KL39: 4 | KM39: 5 | KN39: 6 | KO39: 7 | KP39: 8 | KQ39: 9 | KR39: 10 | KS39: 11 | KT39: 12
D40: Seasonal Factor | G40: =LOOKUP(G39,22:22,23:23) -> 0.03331637671 | H40: =LOOKUP(H39,22:22,23:23) -> 0.05188048971 | I40: 0.07814291044 | J40: 0.1084070947 | K40: 0.1198969037 | L40: 0.1231118798 | M40: 0.1232610981 | N40: 0.108671618 | O40: 0.1052599451 | P40: 0.05841218164 | Q40: 0.05014413131 | R40: 0.03949537084 | S40: 0.03331637671 | T40: 0.05188048971 | U40: 0.07814291044 | V40: 0.1084070947 | W40: 0.1198969037 | X40: 0.1231118798 | Y40: 0.1232610981 | Z40: 0.108671618 | AA40: 0.1052599451 | AB40: 0.05841218164 | AC40: 0.05014413131 | AD40: 0.03949537084 | AE40: 0.03331637671 | AF40: 0.05188048971 | AG40: 0.07814291044 | AH40: 0.1084070947 | AI40: 0.1198969037 | AJ40: 0.1231118798 | AK40: 0.1232610981 | AL40: 0.108671618 | AM40: 0.1052599451 | AN40: 0.05841218164 | AO40: 0.05014413131 | AP40: 0.03949537084 | AQ40: 0.03331637671 | AR40: 0.05188048971 | AS40: 0.07814291044 | AT40: 0.1084070947 | AU40: 0.1198969037 | AV40: 0.1231118798 | AW40: 0.1232610981 | AX40: 0.108671618 | AY40: 0.1052599451 | AZ40: 0.05841218164 | BA40: 0.05014413131 | BB40: 0.03949537084 | BC40: 0.03331637671 | BD40: 0.05188048971 | BE40: 0.07814291044 | BF40: 0.1084070947 | BG40: 0.1198969037 | BH40: 0.1231118798 | BI40: 0.1232610981 | BJ40: 0.108671618 | BK40: 0.1052599451 | BL40: 0.05841218164 | BM40: 0.05014413131 | BN40: 0.03949537084 | BO40: 0.03331637671 | BP40: 0.05188048971 | BQ40: 0.07814291044 | BR40: 0.1084070947 | BS40: 0.1198969037 | BT40: =LOOKUP(BT39,22:22,23:23) -> 0.1231118798 | BU40: 0.1232610981 | BV40: 0.108671618 | BW40: 0.1052599451 | BX40: 0.05841218164 | BY40: 0.05014413131 | BZ40: 0.03949537084 | CA40: 0.03331637671 | CB40: 0.05188048971 | CC40: 0.07814291044 | CD40: 0.1084070947 | CE40: 0.1198969037 | CF40: 0.1231118798 | CG40: 0.1232610981 | CH40: 0.108671618 | CI40: 0.1052599451 | CJ40: 0.05841218164 | CK40: 0.05014413131 | CL40: 0.03949537084 | CM40: 0.03331637671 | CN40: 0.05188048971 | CO40: 0.07814291044 | CP40: 0.1084070947 | CQ40: 0.1198969037 | CR40: 0.1231118798 | CS40: 0.1232610981 | CT40: 0.108671618 | CU40: 0.1052599451 | CV40: 0.05841218164 | CW40: 0.05014413131 | CX40: 0.03949537084 | CY40: 0.03331637671 | CZ40: 0.05188048971 | DA40: 0.07814291044 | DB40: 0.1084070947 | DC40: 0.1198969037 | DD40: 0.1231118798 | DE40: 0.1232610981 | DF40: 0.108671618 | DG40: 0.1052599451 | DH40: 0.05841218164 | DI40: 0.05014413131 | DJ40: 0.03949537084 | DK40: 0.03331637671 | DL40: 0.05188048971 | DM40: 0.07814291044 | DN40: 0.1084070947 | DO40: 0.1198969037 | DP40: 0.1231118798 | DQ40: 0.1232610981 | DR40: 0.108671618 | DS40: 0.1052599451 | DT40: 0.05841218164 | DU40: 0.05014413131 | DV40: 0.03949537084 | DW40: 0.03331637671 | DX40: 0.05188048971 | DY40: 0.07814291044 | DZ40: 0.1084070947 | EA40: 0.1198969037 | EB40: 0.1231118798 | EC40: 0.1232610981 | ED40: 0.108671618 | EE40: 0.1052599451 | EF40: =LOOKUP(EF39,22:22,23:23) -> 0.05841218164 | EG40: 0.05014413131 | EH40: 0.03949537084 | EI40: 0.03331637671 | EJ40: 0.05188048971 | EK40: 0.07814291044 | EL40: 0.1084070947 | EM40: 0.1198969037 | EN40: 0.1231118798 | EO40: 0.1232610981 | EP40: 0.108671618 | EQ40: 0.1052599451 | ER40: 0.05841218164 | ES40: 0.05014413131 | ET40: 0.03949537084 | EU40: 0.03331637671 | EV40: 0.05188048971 | EW40: 0.07814291044 | EX40: 0.1084070947 | EY40: 0.1198969037 | EZ40: 0.1231118798 | FA40: 0.1232610981 | FB40: 0.108671618 | FC40: 0.1052599451 | FD40: 0.05841218164 | FE40: 0.05014413131 | FF40: 0.03949537084 | FG40: 0.03331637671 | FH40: 0.05188048971 | FI40: 0.07814291044 | FJ40: 0.1084070947 | FK40: 0.1198969037 | FL40: 0.1231118798 | FM40: 0.1232610981 | FN40: 0.108671618 | FO40: 0.1052599451 | FP40: 0.05841218164 | FQ40: 0.05014413131 | FR40: 0.03949537084 | FS40: 0.03331637671 | FT40: 0.05188048971 | FU40: 0.07814291044 | FV40: 0.1084070947 | FW40: 0.1198969037 | FX40: 0.1231118798 | FY40: 0.1232610981 | FZ40: 0.108671618 | GA40: 0.1052599451 | GB40: 0.05841218164 | GC40: 0.05014413131 | GD40: 0.03949537084 | GE40: 0.03331637671 | GF40: 0.05188048971 | GG40: 0.07814291044 | GH40: 0.1084070947 | GI40: 0.1198969037 | GJ40: 0.1231118798 | GK40: 0.1232610981 | GL40: 0.108671618 | GM40: 0.1052599451 | GN40: 0.05841218164 | GO40: 0.05014413131 | GP40: 0.03949537084 | GQ40: 0.03331637671 | GR40: =LOOKUP(GR39,22:22,23:23) -> 0.05188048971 | GS40: 0.07814291044 | GT40: 0.1084070947 | GU40: 0.1198969037 | GV40: 0.1231118798 | GW40: 0.1232610981 | GX40: 0.108671618 | GY40: 0.1052599451 | GZ40: 0.05841218164 | HA40: 0.05014413131 | HB40: 0.03949537084 | HC40: 0.03331637671 | HD40: 0.05188048971 | HE40: 0.07814291044 | HF40: 0.1084070947 | HG40: 0.1198969037 | HH40: 0.1231118798 | HI40: 0.1232610981 | HJ40: 0.108671618 | HK40: 0.1052599451 | HL40: 0.05841218164 | HM40: 0.05014413131 | HN40: 0.03949537084 | HO40: 0.03331637671 | HP40: 0.05188048971 | HQ40: 0.07814291044 | HR40: 0.1084070947 | HS40: 0.1198969037 | HT40: 0.1231118798 | HU40: 0.1232610981 | HV40: 0.108671618 | HW40: 0.1052599451 | HX40: 0.05841218164 | HY40: 0.05014413131 | HZ40: 0.03949537084 | IA40: 0.03331637671 | IB40: 0.05188048971 | IC40: 0.07814291044 | ID40: 0.1084070947 | IE40: 0.1198969037 | IF40: 0.1231118798 | IG40: 0.1232610981 | IH40: 0.108671618 | II40: 0.1052599451 | IJ40: 0.05841218164 | IK40: 0.05014413131 | IL40: 0.03949537084 | IM40: 0.03331637671 | IN40: 0.05188048971 | IO40: 0.07814291044 | IP40: 0.1084070947 | IQ40: 0.1198969037 | IR40: 0.1231118798 | IS40: 0.1232610981 | IT40: 0.108671618 | IU40: 0.1052599451 | IV40: 0.05841218164 | IW40: 0.05014413131 | IX40: 0.03949537084 | IY40: 0.03331637671 | IZ40: 0.05188048971 | JA40: 0.07814291044 | JB40: 0.1084070947 | JC40: 0.1198969037 | JD40: =LOOKUP(JD39,22:22,23:23) -> 0.1231118798 | JE40: 0.1232610981 | JF40: 0.108671618 | JG40: 0.1052599451 | JH40: 0.05841218164 | JI40: 0.05014413131 | JJ40: 0.03949537084 | JK40: 0.03331637671 | JL40: 0.05188048971 | JM40: 0.07814291044 | JN40: 0.1084070947 | JO40: 0.1198969037 | JP40: 0.1231118798 | JQ40: 0.1232610981 | JR40: 0.108671618 | JS40: 0.1052599451 | JT40: 0.05841218164 | JU40: 0.05014413131 | JV40: 0.03949537084 | JW40: 0.03331637671 | JX40: 0.05188048971 | JY40: 0.07814291044 | JZ40: 0.1084070947 | KA40: 0.1198969037 | KB40: 0.1231118798 | KC40: 0.1232610981 | KD40: 0.108671618 | KE40: 0.1052599451 | KF40: 0.05841218164 | KG40: 0.05014413131 | KH40: 0.03949537084 | KI40: 0.03331637671 | KJ40: 0.05188048971 | KK40: 0.07814291044 | KL40: 0.1084070947 | KM40: 0.1198969037 | KN40: 0.1231118798 | KO40: 0.1232610981 | KP40: 0.108671618 | KQ40: 0.1052599451 | KR40: 0.05841218164 | KS40: 0.05014413131 | KT40: 0.03949537084
D41: CFADS per Month | G41: =G32*G38*12*G40 -> 3.355649861 | H41: =H32*H38*12*H40 -> 5.263102359 | I41: 7.984472087 | J41: 11.15663448 | K41: 12.4280314 | L41: 12.8532576 | M41: 12.96158631 | N41: 11.5097829 | O41: 11.22879136 | P41: 6.276133535 | Q41: 5.426599059 | R41: 4.30329766 | S41: 3.654773975 | T41: 5.729997003 | U41: 8.689353767 | V41: 12.13677135 | W41: 13.51453168 | X41: 13.9714205 | Y41: 14.08361687 | Z41: 12.50120483 | AA41: 12.1911997 | AB41: 6.811367324 | AC41: 5.887061258 | AD41: 4.666700739 | AE41: 3.961930316 | AF41: 6.209240028 | AG41: 9.412592934 | AH41: 13.14203783 | AI41: 14.62844922 | AJ41: 15.1173475 | AK41: 15.23305391 | AL41: 13.51644224 | AM41: 13.17633753 | AN41: 7.359025578 | AO41: 6.358026159 | AP41: 5.033220929 | AQ41: 4.267319511 | AR41: 6.678809615 | AS41: 10.11072222 | AT41: 14.09768821 | AU41: 15.67096582 | AV41: 16.17280528 | AW41: 16.27455143 | AX41: 14.42104484 | AY41: 14.03916676 | AZ41: 7.830314763 | BA41: 6.756060107 | BB41: 5.342573766 | BC41: 4.524733801 | BD41: 7.074085023 | BE41: 10.69760923 | BF41: 14.89998362 | BG41: 16.5450084 | BH41: 17.05650027 | BI41: 17.14537285 | BJ41: 15.17637235 | BK41: 14.75862567 | BL41: 8.222751095 | BM41: 7.087038106 | BN41: 5.599540174 | BO41: 4.738331551 | BP41: 7.401730391 | BQ41: 11.18356563 | BR41: 15.5635952 | BS41: 17.26719136 | BT41: =BT32*BT38*12*BT40 -> 17.78587394 | BU41: 17.86334528 | BV41: 15.79844733 | BW41: 15.35051412 | BX41: 8.545249088 | BY41: 7.358730953 | BZ41: 5.810302953 | CA41: 4.91337729 | CB41: 7.670014512 | CC41: 11.58114422 | CD41: 16.10606182 | CE41: 17.85703677 | CF41: 18.38108555 | CG41: 18.44875209 | CH41: 16.30522757 | CI41: 15.83228645 | CJ41: 8.807521169 | CK41: 7.579492882 | CL41: 5.982772596 | CM41: 5.057668098 | CN41: 7.892832586 | CO41: 11.91391972 | CP41: 16.56376477 | CQ41: 18.35885447 | CR41: 18.89182162 | CS41: 18.95554033 | CT41: 16.74798378 | CU41: 16.25720191 | CV41: 9.041122424 | CW41: 7.778131789 | CX41: 6.137911336 | CY41: 5.187419951 | CZ41: 8.093137894 | DA41: 12.2129811 | DB41: 16.97497086 | DC41: 18.80955535 | DD41: 19.35039138 | DE41: 19.41042535 | DF41: 17.14527213 | DG41: 16.63836387 | DH41: 9.250604959 | DI41: 7.956206554 | DJ41: 6.276952098 | DK41: 5.303676954 | DL41: 8.272562313 | DM41: 12.48079483 | DN41: 17.34311276 | DO41: 19.21294728 | DP41: 19.76071556 | DQ41: 19.81734261 | DR41: 17.50057022 | DS41: 16.9791477 | DT41: 9.437845319 | DU41: 8.115330685 | DV41: 6.40249114 | DW41: 5.409750493 | DX41: 8.438013559 | DY41: 12.73041072 | DZ41: 17.68997501 | EA41: 19.59720623 | EB41: 20.15592987 | EC41: 20.21368946 | ED41: 17.85058162 | EE41: 17.31873065 | EF41: =EF32*EF38*12*EF40 -> 9.626602225 | EG41: 8.277637299 | EH41: 6.530540963 | EI41: 5.517945503 | EJ41: 8.60677383 | EK41: 12.98501894 | EL41: 18.04377451 | EM41: 19.98915035 | EN41: 20.55904847 | EO41: 20.61796325 | EP41: 18.20759326 | EQ41: 17.66510527 | ER41: 9.81913427 | ES41: 8.443190045 | ET41: 6.661151782 | EU41: 5.628304413 | EV41: 8.778909307 | EW41: 13.24471932 | EX41: 18.40465 | EY41: 20.38893336 | EZ41: 20.97022944 | FA41: 21.03032252 | FB41: 18.57174512 | FC41: 18.01840737 | FD41: 10.01551696 | FE41: 8.612053846 | FF41: 6.794374818 | FG41: 5.740870501 | FH41: 8.954487493 | FI41: 13.5096137 | FJ41: 18.772743 | FK41: 20.79671203 | FL41: 21.38963403 | FM41: 21.45092897 | FN41: 18.94318002 | FO41: 18.37877552 | FP41: 10.21582729 | FQ41: 8.784294923 | FR41: 6.930262314 | FS41: 5.855687911 | FT41: 9.133577243 | FU41: 13.77980598 | FV41: 19.14819786 | FW41: 21.21264627 | FX41: 21.81742671 | FY41: 21.87994755 | FZ41: 19.32204363 | GA41: 18.74635103 | GB41: 10.42014384 | GC41: 8.959980821 | GD41: 7.06886756 | GE41: 5.972801669 | GF41: 9.316248788 | GG41: 14.0554021 | GH41: 19.53116182 | GI41: 21.63689919 | GJ41: 22.25377524 | GK41: 22.3175465 | GL41: 19.7084845 | GM41: 19.12127805 | GN41: 10.62854672 | GO41: 9.139180438 | GP41: 7.210244911 | GQ41: 6.092257703 | GR41: =GR32*GR38*12*GR40 -> 9.502573763 | GS41: 14.33651014 | GT41: 19.92178505 | GU41: 22.06963718 | GV41: 22.69885075 | GW41: 22.76389743 | GX41: 20.10265419 | GY41: 19.50370361 | GZ41: 10.84111765 | HA41: 9.321964046 | HB41: 7.35444981 | HC41: 6.214102857 | HD41: 9.692625239 | HE41: 14.62324034 | HF41: 20.32022076 | HG41: 22.51102992 | HH41: 23.15282776 | HI41: 23.21917538 | HJ41: 20.50470727 | HK41: 19.89377768 | HL41: 11.05794 | HM41: 9.508403327 | HN41: 7.501538806 | HO41: 6.338384914 | HP41: 9.886477743 | HQ41: 14.91570515 | HR41: 20.72662517 | HS41: 22.96125052 | HT41: 23.61588432 | HU41: 23.68355888 | HV41: 20.91480142 | HW41: 20.29165324 | HX41: 11.2790988 | HY41: 9.698571394 | HZ41: 7.651569582 | IA41: 6.465152612 | IB41: 10.0842073 | IC41: 15.21401925 | ID41: 21.14115767 | IE41: 23.42047553 | IF41: 24.08820201 | IG41: 24.15723006 | IH41: 21.33309745 | II41: 20.6974863 | IJ41: 11.50468078 | IK41: 9.892542822 | IL41: 7.804600974 | IM41: 6.594455664 | IN41: 10.28589144 | IO41: 15.51829964 | IP41: 21.56398083 | IQ41: 23.88888504 | IR41: 24.56996605 | IS41: 24.64037466 | IT41: 21.75975939 | IU41: 21.11143603 | IV41: 11.7347744 | IW41: 10.09039368 | IX41: 7.960692993 | IY41: 6.726344778 | IZ41: 10.49160927 | JA41: 15.82866563 | JB41: 21.99526044 | JC41: 24.36666274 | JD41: =JD32*JD38*12*JD40 -> 25.06136537 | JE41: 25.13318216 | JF41: 22.19495458 | JG41: 21.53366475 | JH41: 11.96946988 | JI41: 10.29220155 | JJ41: 8.119906853 | JK41: 6.860871673 | JL41: 10.70144146 | JM41: 16.14523894 | JN41: 22.43516565 | JO41: 24.85399599 | JP41: 25.56259267 | JQ41: 25.6358458 | JR41: 22.63885367 | JS41: 21.96433804 | JT41: 12.20885928 | JU41: 10.49804558 | JV41: 8.28230499 | JW41: 6.998089107 | JX41: 10.91547029 | JY41: 16.46814372 | JZ41: 22.88386897 | KA41: 25.35107591 | KB41: 26.07384453 | KC41: 26.14856272 | KD41: 23.09163075 | KE41: 22.4036248 | KF41: 12.45303647 | KG41: 10.70800649 | KH41: 8.44795109 | KI41: 7.138050889 | KJ41: 11.13377969 | KK41: 16.79750659 | KL41: 23.34154635 | KM41: 25.85809743 | KN41: 26.59532142 | KO41: 26.67153397 | KP41: 23.55346336 | KQ41: 22.8516973 | KR41: 12.7020972 | KS41: 10.92216662 | KT41: 8.616910112
D42: Adjusted Counter | G42: =F42+F5 -> 0 | H42: 0 | I42: 0 | J42: 0 | K42: 0 | L42: 0 | M42: 1 | N42: 1 | O42: 1 | P42: 1 | Q42: 1 | R42: 1 | S42: 2 | T42: 2 | U42: 2 | V42: 2 | W42: 2 | X42: 2 | Y42: 3 | Z42: 3 | AA42: 3 | AB42: 3 | AC42: 3 | AD42: 3 | AE42: 4 | AF42: 4 | AG42: 4 | AH42: 4 | AI42: 4 | AJ42: 4 | AK42: 5 | AL42: 5 | AM42: 5 | AN42: 5 | AO42: 5 | AP42: 5 | AQ42: 6 | AR42: 6 | AS42: 6 | AT42: 6 | AU42: 6 | AV42: 6 | AW42: 7 | AX42: 7 | AY42: 7 | AZ42: 7 | BA42: 7 | BB42: 7 | BC42: 8 | BD42: 8 | BE42: 8 | BF42: 8 | BG42: 8 | BH42: 8 | BI42: 9 | BJ42: 9 | BK42: 9 | BL42: 9 | BM42: 9 | BN42: 9 | BO42: 10 | BP42: 10 | BQ42: 10 | BR42: 10 | BS42: =BR42+BR5 -> 10 | BT42: 10 | BU42: 11 | BV42: 11 | BW42: 11 | BX42: 11 | BY42: 11 | BZ42: 11 | CA42: 12 | CB42: 12 | CC42: 12 | CD42: 12 | CE42: 12 | CF42: 12 | CG42: 13 | CH42: 13 | CI42: 13 | CJ42: 13 | CK42: 13 | CL42: 13 | CM42: 14 | CN42: 14 | CO42: 14 | CP42: 14 | CQ42: 14 | CR42: 14 | CS42: 15 | CT42: 15 | CU42: 15 | CV42: 15 | CW42: 15 | CX42: 15 | CY42: 16 | CZ42: 16 | DA42: 16 | DB42: 16 | DC42: 16 | DD42: 16 | DE42: 17 | DF42: 17 | DG42: 17 | DH42: 17 | DI42: 17 | DJ42: 17 | DK42: 18 | DL42: 18 | DM42: 18 | DN42: 18 | DO42: 18 | DP42: 18 | DQ42: 19 | DR42: 19 | DS42: 19 | DT42: 19 | DU42: 19 | DV42: 19 | DW42: 20 | DX42: 20 | DY42: 20 | DZ42: 20 | EA42: 20 | EB42: 20 | EC42: 21 | ED42: 21 | EE42: =ED42+ED5 -> 21 | EF42: 21 | EG42: 21 | EH42: 21 | EI42: 22 | EJ42: 22 | EK42: 22 | EL42: 22 | EM42: 22 | EN42: 22 | EO42: 23 | EP42: 23 | EQ42: 23 | ER42: 23 | ES42: 23 | ET42: 23 | EU42: 24 | EV42: 24 | EW42: 24 | EX42: 24 | EY42: 24 | EZ42: 24 | FA42: 25 | FB42: 25 | FC42: 25 | FD42: 25 | FE42: 25 | FF42: 25 | FG42: 26 | FH42: 26 | FI42: 26 | FJ42: 26 | FK42: 26 | FL42: 26 | FM42: 27 | FN42: 27 | FO42: 27 | FP42: 27 | FQ42: 27 | FR42: 27 | FS42: 28 | FT42: 28 | FU42: 28 | FV42: 28 | FW42: 28 | FX42: 28 | FY42: 29 | FZ42: 29 | GA42: 29 | GB42: 29 | GC42: 29 | GD42: 29 | GE42: 30 | GF42: 30 | GG42: 30 | GH42: 30 | GI42: 30 | GJ42: 30 | GK42: 31 | GL42: 31 | GM42: 31 | GN42: 31 | GO42: 31 | GP42: 31 | GQ42: =GP42+GP5 -> 32 | GR42: 32 | GS42: 32 | GT42: 32 | GU42: 32 | GV42: 32 | GW42: 33 | GX42: 33 | GY42: 33 | GZ42: 33 | HA42: 33 | HB42: 33 | HC42: 34 | HD42: 34 | HE42: 34 | HF42: 34 | HG42: 34 | HH42: 34 | HI42: 35 | HJ42: 35 | HK42: 35 | HL42: 35 | HM42: 35 | HN42: 35 | HO42: 36 | HP42: 36 | HQ42: 36 | HR42: 36 | HS42: 36 | HT42: 36 | HU42: 37 | HV42: 37 | HW42: 37 | HX42: 37 | HY42: 37 | HZ42: 37 | IA42: 38 | IB42: 38 | IC42: 38 | ID42: 38 | IE42: 38 | IF42: 38 | IG42: 39 | IH42: 39 | II42: 39 | IJ42: 39 | IK42: 39 | IL42: 39 | IM42: 40 | IN42: 40 | IO42: 40 | IP42: 40 | IQ42: 40 | IR42: 40 | IS42: 41 | IT42: 41 | IU42: 41 | IV42: 41 | IW42: 41 | IX42: 41 | IY42: 42 | IZ42: 42 | JA42: 42 | JB42: 42 | JC42: =JB42+JB5 -> 42 | JD42: 42 | JE42: 43 | JF42: 43 | JG42: 43 | JH42: 43 | JI42: 43 | JJ42: 43 | JK42: 44 | JL42: 44 | JM42: 44 | JN42: 44 | JO42: 44 | JP42: 44 | JQ42: 45 | JR42: 45 | JS42: 45 | JT42: 45 | JU42: 45 | JV42: 45 | JW42: 46 | JX42: 46 | JY42: 46 | JZ42: 46 | KA42: 46 | KB42: 46 | KC42: 47 | KD42: 47 | KE42: 47 | KF42: 47 | KG42: 47 | KH42: 47 | KI42: 48 | KJ42: 48 | KK42: 48 | KL42: 48 | KM42: 48 | KN42: 48 | KO42: 49 | KP42: 49 | KQ42: 49 | KR42: 49 | KS42: 49 | KT42: 49
D43: Sum of CFADS for Semi-Annual Period | G43: =SUMIF(42:42,G42,41:41) -> 53.04114779 | H43: 53.04114779 | I43: 53.04114779 | J43: 53.04114779 | K43: 53.04114779 | L43: 53.04114779 | M43: 51.70619083 | N43: 51.70619083 | O43: 51.70619083 | P43: 51.70619083 | Q43: 51.70619083 | R43: 51.70619083 | S43: 57.69684828 | T43: 57.69684828 | U43: 57.69684828 | V43: 57.69684828 | W43: 57.69684828 | X43: 57.69684828 | Y43: 56.14115072 | Z43: 56.14115072 | AA43: 56.14115072 | AB43: 56.14115072 | AC43: 56.14115072 | AD43: 56.14115072 | AE43: 62.47159782 | AF43: 62.47159782 | AG43: 62.47159782 | AH43: 62.47159782 | AI43: 62.47159782 | AJ43: 62.47159782 | AK43: 60.67610634 | AL43: 60.67610634 | AM43: 60.67610634 | AN43: 60.67610634 | AO43: 60.67610634 | AP43: 60.67610634 | AQ43: 66.99831066 | AR43: 66.99831066 | AS43: 66.99831066 | AT43: 66.99831066 | AU43: 66.99831066 | AV43: 66.99831066 | AW43: 64.66371166 | AX43: 64.66371166 | AY43: 64.66371166 | AZ43: 64.66371166 | BA43: 64.66371166 | BB43: 64.66371166 | BC43: 70.79792034 | BD43: 70.79792034 | BE43: 70.79792034 | BF43: 70.79792034 | BG43: 70.79792034 | BH43: 70.79792034 | BI43: 67.98970024 | BJ43: 67.98970024 | BK43: 67.98970024 | BL43: 67.98970024 | BM43: 67.98970024 | BN43: 67.98970024 | BO43: 73.94028807 | BP43: 73.94028807 | BQ43: 73.94028807 | BR43: 73.94028807 | BS43: =SUMIF(42:42,BS42,41:41) -> 73.94028807 | BT43: 73.94028807 | BU43: 70.72658973 | BV43: 70.72658973 | BW43: 70.72658973 | BX43: 70.72658973 | BY43: 70.72658973 | BZ43: 70.72658973 | CA43: 76.50872016 | CB43: 76.50872016 | CC43: 76.50872016 | CD43: 76.50872016 | CE43: 76.50872016 | CF43: 76.50872016 | CG43: 72.95605275 | CH43: 72.95605275 | CI43: 72.95605275 | CJ43: 72.95605275 | CK43: 72.95605275 | CL43: 72.95605275 | CM43: 78.67886126 | CN43: 78.67886126 | CO43: 78.67886126 | CP43: 78.67886126 | CQ43: 78.67886126 | CR43: 78.67886126 | CS43: 74.91789157 | CT43: 74.91789157 | CU43: 74.91789157 | CV43: 74.91789157 | CW43: 74.91789157 | CX43: 74.91789157 | CY43: 80.62845653 | CZ43: 80.62845653 | DA43: 80.62845653 | DB43: 80.62845653 | DC43: 80.62845653 | DD43: 80.62845653 | DE43: 76.67782496 | DF43: 76.67782496 | DG43: 76.67782496 | DH43: 76.67782496 | DI43: 76.67782496 | DJ43: 76.67782496 | DK43: 82.37380969 | DL43: 82.37380969 | DM43: 82.37380969 | DN43: 82.37380969 | DO43: 82.37380969 | DP43: 82.37380969 | DQ43: 78.25272767 | DR43: 78.25272767 | DS43: 78.25272767 | DT43: 78.25272767 | DU43: 78.25272767 | DV43: 78.25272767 | DW43: 84.02128589 | DX43: 84.02128589 | DY43: 84.02128589 | DZ43: 84.02128589 | EA43: 84.02128589 | EB43: 84.02128589 | EC43: 79.81778223 | ED43: 79.81778223 | EE43: =SUMIF(42:42,EE42,41:41) -> 79.81778223 | EF43: 79.81778223 | EG43: 79.81778223 | EH43: 79.81778223 | EI43: 85.7017116 | EJ43: 85.7017116 | EK43: 85.7017116 | EL43: 85.7017116 | EM43: 85.7017116 | EN43: 85.7017116 | EO43: 81.41413787 | EP43: 81.41413787 | EQ43: 81.41413787 | ER43: 81.41413787 | ES43: 81.41413787 | ET43: 81.41413787 | EU43: 87.41574584 | EV43: 87.41574584 | EW43: 87.41574584 | EX43: 87.41574584 | EY43: 87.41574584 | EZ43: 87.41574584 | FA43: 83.04242063 | FB43: 83.04242063 | FC43: 83.04242063 | FD43: 83.04242063 | FE43: 83.04242063 | FF43: 83.04242063 | FG43: 89.16406075 | FH43: 89.16406075 | FI43: 89.16406075 | FJ43: 89.16406075 | FK43: 89.16406075 | FL43: 89.16406075 | FM43: 84.70326904 | FN43: 84.70326904 | FO43: 84.70326904 | FP43: 84.70326904 | FQ43: 84.70326904 | FR43: 84.70326904 | FS43: 90.94734197 | FT43: 90.94734197 | FU43: 90.94734197 | FV43: 90.94734197 | FW43: 90.94734197 | FX43: 90.94734197 | FY43: 86.39733442 | FZ43: 86.39733442 | GA43: 86.39733442 | GB43: 86.39733442 | GC43: 86.39733442 | GD43: 86.39733442 | GE43: 92.76628881 | GF43: 92.76628881 | GG43: 92.76628881 | GH43: 92.76628881 | GI43: 92.76628881 | GJ43: 92.76628881 | GK43: 88.12528111 | GL43: 88.12528111 | GM43: 88.12528111 | GN43: 88.12528111 | GO43: 88.12528111 | GP43: 88.12528111 | GQ43: =SUMIF(42:42,GQ42,41:41) -> 94.62161458 | GR43: 94.62161458 | GS43: 94.62161458 | GT43: 94.62161458 | GU43: 94.62161458 | GV43: 94.62161458 | GW43: 89.88778673 | GX43: 89.88778673 | GY43: 89.88778673 | GZ43: 89.88778673 | HA43: 89.88778673 | HB43: 89.88778673 | HC43: 96.51404688 | HD43: 96.51404688 | HE43: 96.51404688 | HF43: 96.51404688 | HG43: 96.51404688 | HH43: 96.51404688 | HI43: 91.68554247 | HJ43: 91.68554247 | HK43: 91.68554247 | HL43: 91.68554247 | HM43: 91.68554247 | HN43: 91.68554247 | HO43: 98.44432781 | HP43: 98.44432781 | HQ43: 98.44432781 | HR43: 98.44432781 | HS43: 98.44432781 | HT43: 98.44432781 | HU43: 93.51925332 | HV43: 93.51925332 | HW43: 93.51925332 | HX43: 93.51925332 | HY43: 93.51925332 | HZ43: 93.51925332 | IA43: 100.4132144 | IB43: 100.4132144 | IC43: 100.4132144 | ID43: 100.4132144 | IE43: 100.4132144 | IF43: 100.4132144 | IG43: 95.38963838 | IH43: 95.38963838 | II43: 95.38963838 | IJ43: 95.38963838 | IK43: 95.38963838 | IL43: 95.38963838 | IM43: 102.4214787 | IN43: 102.4214787 | IO43: 102.4214787 | IP43: 102.4214787 | IQ43: 102.4214787 | IR43: 102.4214787 | IS43: 97.29743115 | IT43: 97.29743115 | IU43: 97.29743115 | IV43: 97.29743115 | IW43: 97.29743115 | IX43: 97.29743115 | IY43: 104.4699082 | IZ43: 104.4699082 | JA43: 104.4699082 | JB43: 104.4699082 | JC43: =SUMIF(42:42,JC42,41:41) -> 104.4699082 | JD43: 104.4699082 | JE43: 99.24337978 | JF43: 99.24337978 | JG43: 99.24337978 | JH43: 99.24337978 | JI43: 99.24337978 | JJ43: 99.24337978 | JK43: 106.5593064 | JL43: 106.5593064 | JM43: 106.5593064 | JN43: 106.5593064 | JO43: 106.5593064 | JP43: 106.5593064 | JQ43: 101.2282474 | JR43: 101.2282474 | JS43: 101.2282474 | JT43: 101.2282474 | JU43: 101.2282474 | JV43: 101.2282474 | JW43: 108.6904925 | JX43: 108.6904925 | JY43: 108.6904925 | JZ43: 108.6904925 | KA43: 108.6904925 | KB43: 108.6904925 | KC43: 103.2528123 | KD43: 103.2528123 | KE43: 103.2528123 | KF43: 103.2528123 | KG43: 103.2528123 | KH43: 103.2528123 | KI43: 110.8643024 | KJ43: 110.8643024 | KK43: 110.8643024 | KL43: 110.8643024 | KM43: 110.8643024 | KN43: 110.8643024 | KO43: 105.3178686 | KP43: 105.3178686 | KQ43: 105.3178686 | KR43: 105.3178686 | KS43: 105.3178686 | KT43: 105.3178686
D44: Semi-Annual CFADS | G44: =G43*G5*G7 -> 0 | H44: =H43*H5*H7 -> 0 | I44: 0 | J44: 0 | K44: 0 | L44: 53.04114779 | M44: 0 | N44: 0 | O44: 0 | P44: 0 | Q44: 0 | R44: 51.70619083 | S44: 0 | T44: 0 | U44: 0 | V44: 0 | W44: 0 | X44: 57.69684828 | Y44: 0 | Z44: 0 | AA44: 0 | AB44: 0 | AC44: 0 | AD44: 56.14115072 | AE44: 0 | AF44: 0 | AG44: 0 | AH44: 0 | AI44: 0 | AJ44: 62.47159782 | AK44: 0 | AL44: 0 | AM44: 0 | AN44: 0 | AO44: 0 | AP44: 60.67610634 | AQ44: 0 | AR44: 0 | AS44: 0 | AT44: 0 | AU44: 0 | AV44: 66.99831066 | AW44: 0 | AX44: 0 | AY44: 0 | AZ44: 0 | BA44: 0 | BB44: 64.66371166 | BC44: 0 | BD44: 0 | BE44: 0 | BF44: 0 | BG44: 0 | BH44: 70.79792034 | BI44: 0 | BJ44: 0 | BK44: 0 | BL44: 0 | BM44: 0 | BN44: 67.98970024 | BO44: 0 | BP44: 0 | BQ44: 0 | BR44: 0 | BS44: 0 | BT44: =BT43*BT5*BT7 -> 73.94028807 | BU44: 0 | BV44: 0 | BW44: 0 | BX44: 0 | BY44: 0 | BZ44: 70.72658973 | CA44: 0 | CB44: 0 | CC44: 0 | CD44: 0 | CE44: 0 | CF44: 76.50872016 | CG44: 0 | CH44: 0 | CI44: 0 | CJ44: 0 | CK44: 0 | CL44: 72.95605275 | CM44: 0 | CN44: 0 | CO44: 0 | CP44: 0 | CQ44: 0 | CR44: 78.67886126 | CS44: 0 | CT44: 0 | CU44: 0 | CV44: 0 | CW44: 0 | CX44: 74.91789157 | CY44: 0 | CZ44: 0 | DA44: 0 | DB44: 0 | DC44: 0 | DD44: 80.62845653 | DE44: 0 | DF44: 0 | DG44: 0 | DH44: 0 | DI44: 0 | DJ44: 76.67782496 | DK44: 0 | DL44: 0 | DM44: 0 | DN44: 0 | DO44: 0 | DP44: 82.37380969 | DQ44: 0 | DR44: 0 | DS44: 0 | DT44: 0 | DU44: 0 | DV44: 78.25272767 | DW44: 0 | DX44: 0 | DY44: 0 | DZ44: 0 | EA44: 0 | EB44: 84.02128589 | EC44: 0 | ED44: 0 | EE44: 0 | EF44: =EF43*EF5*EF7 -> 0 | EG44: 0 | EH44: 79.81778223 | EI44: 0 | EJ44: 0 | EK44: 0 | EL44: 0 | EM44: 0 | EN44: 85.7017116 | EO44: 0 | EP44: 0 | EQ44: 0 | ER44: 0 | ES44: 0 | ET44: 81.41413787 | EU44: 0 | EV44: 0 | EW44: 0 | EX44: 0 | EY44: 0 | EZ44: 87.41574584 | FA44: 0 | FB44: 0 | FC44: 0 | FD44: 0 | FE44: 0 | FF44: 83.04242063 | FG44: 0 | FH44: 0 | FI44: 0 | FJ44: 0 | FK44: 0 | FL44: 89.16406075 | FM44: 0 | FN44: 0 | FO44: 0 | FP44: 0 | FQ44: 0 | FR44: 84.70326904 | FS44: 0 | FT44: 0 | FU44: 0 | FV44: 0 | FW44: 0 | FX44: 90.94734197 | FY44: 0 | FZ44: 0 | GA44: 0 | GB44: 0 | GC44: 0 | GD44: 86.39733442 | GE44: 0 | GF44: 0 | GG44: 0 | GH44: 0 | GI44: 0 | GJ44: 92.76628881 | GK44: 0 | GL44: 0 | GM44: 0 | GN44: 0 | GO44: 0 | GP44: 88.12528111 | GQ44: 0 | GR44: =GR43*GR5*GR7 -> 0 | GS44: 0 | GT44: 0 | GU44: 0 | GV44: 94.62161458 | GW44: 0 | GX44: 0 | GY44: 0 | GZ44: 0 | HA44: 0 | HB44: 89.88778673 | HC44: 0 | HD44: 0 | HE44: 0 | HF44: 0 | HG44: 0 | HH44: 96.51404688 | HI44: 0 | HJ44: 0 | HK44: 0 | HL44: 0 | HM44: 0 | HN44: 91.68554247 | HO44: 0 | HP44: 0 | HQ44: 0 | HR44: 0 | HS44: 0 | HT44: 98.44432781 | HU44: 0 | HV44: 0 | HW44: 0 | HX44: 0 | HY44: 0 | HZ44: 93.51925332 | IA44: 0 | IB44: 0 | IC44: 0 | ID44: 0 | IE44: 0 | IF44: 100.4132144 | IG44: 0 | IH44: 0 | II44: 0 | IJ44: 0 | IK44: 0 | IL44: 0 | IM44: 0 | IN44: 0 | IO44: 0 | IP44: 0 | IQ44: 0 | IR44: 0 | IS44: 0 | IT44: 0 | IU44: 0 | IV44: 0 | IW44: 0 | IX44: 0 | IY44: 0 | IZ44: 0 | JA44: 0 | JB44: 0 | JC44: 0 | JD44: =JD43*JD5*JD7 -> 0 | JE44: 0 | JF44: 0 | JG44: 0 | JH44: 0 | JI44: 0 | JJ44: 0 | JK44: 0 | JL44: 0 | JM44: 0 | JN44: 0 | JO44: 0 | JP44: 0 | JQ44: 0 | JR44: 0 | JS44: 0 | JT44: 0 | JU44: 0 | JV44: 0 | JW44: 0 | JX44: 0 | JY44: 0 | JZ44: 0 | KA44: 0 | KB44: 0 | KC44: 0 | KD44: 0 | KE44: 0 | KF44: 0 | KG44: 0 | KH44: 0 | KI44: 0 | KJ44: 0 | KK44: 0 | KL44: 0 | KM44: 0 | KN44: 0 | KO44: 0 | KP44: 0 | KQ44: 0 | KR44: 0 | KS44: 0 | KT44: 0
D46: Interest Rate | G46: =LOOKUP(G2,17:17,20:20)/2 -> 0.02125 | H46: 0.02125 | I46: 0.0225 | J46: 0.0225 | K46: 0.0225 | L46: 0.0225 | M46: 0.025 | N46: 0.025 | O46: 0.025 | P46: 0.02625 | Q46: 0.02625 | R46: 0.02625 | S46: 0.02625 | T46: 0.02625 | U46: 0.02625 | V46: 0.02625 | W46: 0.02625 | X46: 0.02625 | Y46: 0.02625 | Z46: 0.02625 | AA46: 0.02625 | AB46: 0.02625 | AC46: 0.02625 | AD46: 0.02625 | AE46: 0.02625 | AF46: 0.02625 | AG46: 0.02625 | AH46: 0.02625 | AI46: 0.02625 | AJ46: 0.02625 | AK46: 0.02625 | AL46: 0.02625 | AM46: 0.02625 | AN46: 0.02625 | AO46: 0.02625 | AP46: 0.02625 | AQ46: 0.02625 | AR46: 0.02625 | AS46: 0.02625 | AT46: 0.02625 | AU46: 0.02625 | AV46: 0.02625 | AW46: 0.02625 | AX46: 0.02625 | AY46: 0.02625 | AZ46: 0.02625 | BA46: 0.02625 | BB46: 0.02625 | BC46: 0.02625 | BD46: 0.02625 | BE46: 0.02625 | BF46: 0.02625 | BG46: 0.02625 | BH46: 0.02625 | BI46: 0.02625 | BJ46: 0.02625 | BK46: 0.02625 | BL46: 0.02625 | BM46: 0.02625 | BN46: 0.02625 | BO46: 0.02625 | BP46: 0.02625 | BQ46: 0.02625 | BR46: 0.02625 | BS46: =LOOKUP(BS2,17:17,20:20)/2 -> 0.02625 | BT46: 0.02625 | BU46: 0.02625 | BV46: 0.02625 | BW46: 0.02625 | BX46: 0.02625 | BY46: 0.02625 | BZ46: 0.02625 | CA46: 0.02625 | CB46: 0.02625 | CC46: 0.02625 | CD46: 0.02625 | CE46: 0.02625 | CF46: 0.02625 | CG46: 0.02625 | CH46: 0.02625 | CI46: 0.02625 | CJ46: 0.02625 | CK46: 0.02625 | CL46: 0.02625 | CM46: 0.02625 | CN46: 0.02625 | CO46: 0.02625 | CP46: 0.02625 | CQ46: 0.02625 | CR46: 0.02625 | CS46: 0.02625 | CT46: 0.02625 | CU46: 0.02625 | CV46: 0.02625 | CW46: 0.02625 | CX46: 0.02625 | CY46: 0.02625 | CZ46: 0.02625 | DA46: 0.02625 | DB46: 0.02625 | DC46: 0.02625 | DD46: 0.02625 | DE46: 0.02625 | DF46: 0.02625 | DG46: 0.02625 | DH46: 0.02625 | DI46: 0.02625 | DJ46: 0.02625 | DK46: 0.02625 | DL46: 0.02625 | DM46: 0.02625 | DN46: 0.02625 | DO46: 0.02625 | DP46: 0.02625 | DQ46: 0.02625 | DR46: 0.02625 | DS46: 0.02625 | DT46: 0.02625 | DU46: 0.02625 | DV46: 0.02625 | DW46: 0.02625 | DX46: 0.02625 | DY46: 0.02625 | DZ46: 0.02625 | EA46: 0.02625 | EB46: 0.02625 | EC46: 0.02625 | ED46: 0.02625 | EE46: =LOOKUP(EE2,17:17,20:20)/2 -> 0.02625 | EF46: 0.02625 | EG46: 0.02625 | EH46: 0.02625 | EI46: 0.02625 | EJ46: 0.02625 | EK46: 0.02625 | EL46: 0.02625 | EM46: 0.02625 | EN46: 0.02625 | EO46: 0.02625 | EP46: 0.02625 | EQ46: 0.02625 | ER46: 0.02625 | ES46: 0.02625 | ET46: 0.02625 | EU46: 0.02625 | EV46: 0.02625 | EW46: 0.02625 | EX46: 0.02625 | EY46: 0.02625 | EZ46: 0.02625 | FA46: 0.02625 | FB46: 0.02625 | FC46: 0.02625 | FD46: 0.02625 | FE46: 0.02625 | FF46: 0.02625 | FG46: 0.02625 | FH46: 0.02625 | FI46: 0.02625 | FJ46: 0.02625 | FK46: 0.02625 | FL46: 0.02625 | FM46: 0.02625 | FN46: 0.02625 | FO46: 0.02625 | FP46: 0.02625 | FQ46: 0.02625 | FR46: 0.02625 | FS46: 0.02625 | FT46: 0.02625 | FU46: 0.02625 | FV46: 0.02625 | FW46: 0.02625 | FX46: 0.02625 | FY46: 0.02625 | FZ46: 0.02625 | GA46: 0.02625 | GB46: 0.02625 | GC46: 0.02625 | GD46: 0.02625 | GE46: 0.02625 | GF46: 0.02625 | GG46: 0.02625 | GH46: 0.02625 | GI46: 0.02625 | GJ46: 0.02625 | GK46: 0.02625 | GL46: 0.02625 | GM46: 0.02625 | GN46: 0.02625 | GO46: 0.02625 | GP46: 0.02625 | GQ46: =LOOKUP(GQ2,17:17,20:20)/2 -> 0.02625 | GR46: 0.02625 | GS46: 0.02625 | GT46: 0.02625 | GU46: 0.02625 | GV46: 0.02625 | GW46: 0.02625 | GX46: 0.02625 | GY46: 0.02625 | GZ46: 0.02625 | HA46: 0.02625 | HB46: 0.02625 | HC46: 0.02625 | HD46: 0.02625 | HE46: 0.02625 | HF46: 0.02625 | HG46: 0.02625 | HH46: 0.02625 | HI46: 0.02625 | HJ46: 0.02625 | HK46: 0.02625 | HL46: 0.02625 | HM46: 0.02625 | HN46: 0.02625 | HO46: 0.02625 | HP46: 0.02625 | HQ46: 0.02625 | HR46: 0.02625 | HS46: 0.02625 | HT46: 0.02625 | HU46: 0.02625 | HV46: 0.02625 | HW46: 0.02625 | HX46: 0.02625 | HY46: 0.02625 | HZ46: 0.02625 | IA46: 0.02625 | IB46: 0.02625 | IC46: 0.02625 | ID46: 0.02625 | IE46: 0.02625 | IF46: 0.02625 | IG46: 0.02625 | IH46: 0.02625 | II46: 0.02625 | IJ46: 0.02625 | IK46: 0.02625 | IL46: 0.02625 | IM46: 0.02625 | IN46: 0.02625 | IO46: 0.02625 | IP46: 0.02625 | IQ46: 0.02625 | IR46: 0.02625 | IS46: 0.02625 | IT46: 0.02625 | IU46: 0.02625 | IV46: 0.02625 | IW46: 0.02625 | IX46: 0.02625 | IY46: 0.02625 | IZ46: 0.02625 | JA46: 0.02625 | JB46: 0.02625 | JC46: =LOOKUP(JC2,17:17,20:20)/2 -> 0.02625 | JD46: 0.02625 | JE46: 0.02625 | JF46: 0.02625 | JG46: 0.02625 | JH46: 0.02625 | JI46: 0.02625 | JJ46: 0.02625 | JK46: 0.02625 | JL46: 0.02625 | JM46: 0.02625 | JN46: 0.02625 | JO46: 0.02625 | JP46: 0.02625 | JQ46: 0.02625 | JR46: 0.02625 | JS46: 0.02625 | JT46: 0.02625 | JU46: 0.02625 | JV46: 0.02625 | JW46: 0.02625 | JX46: 0.02625 | JY46: 0.02625 | JZ46: 0.02625 | KA46: 0.02625 | KB46: 0.02625 | KC46: 0.02625 | KD46: 0.02625 | KE46: 0.02625 | KF46: 0.02625 | KG46: 0.02625 | KH46: 0.02625 | KI46: 0.02625 | KJ46: 0.02625 | KK46: 0.02625 | KL46: 0.02625 | KM46: 0.02625 | KN46: 0.02625 | KO46: 0.02625 | KP46: 0.02625 | KQ46: 0.02625 | KR46: 0.02625 | KS46: 0.02625 | KT46: 0.02625
D47: Interest Rate Index | F47: 1 | G47: =F47*(1+G46*G5) -> 1 | H47: 1 | I47: 1 | J47: 1 | K47: 1 | L47: 1.0225 | M47: 1.0225 | N47: 1.0225 | O47: 1.0225 | P47: 1.0225 | Q47: 1.0225 | R47: 1.049340625 | S47: 1.049340625 | T47: 1.049340625 | U47: 1.049340625 | V47: 1.049340625 | W47: 1.049340625 | X47: 1.076885816 | Y47: 1.076885816 | Z47: 1.076885816 | AA47: 1.076885816 | AB47: 1.076885816 | AC47: 1.076885816 | AD47: 1.105154069 | AE47: 1.105154069 | AF47: 1.105154069 | AG47: 1.105154069 | AH47: 1.105154069 | AI47: 1.105154069 | AJ47: 1.134164363 | AK47: 1.134164363 | AL47: 1.134164363 | AM47: 1.134164363 | AN47: 1.134164363 | AO47: 1.134164363 | AP47: 1.163936178 | AQ47: 1.163936178 | AR47: 1.163936178 | AS47: 1.163936178 | AT47: 1.163936178 | AU47: 1.163936178 | AV47: 1.194489503 | AW47: 1.194489503 | AX47: 1.194489503 | AY47: 1.194489503 | AZ47: 1.194489503 | BA47: 1.194489503 | BB47: 1.225844852 | BC47: 1.225844852 | BD47: 1.225844852 | BE47: 1.225844852 | BF47: 1.225844852 | BG47: 1.225844852 | BH47: 1.258023279 | BI47: 1.258023279 | BJ47: 1.258023279 | BK47: 1.258023279 | BL47: 1.258023279 | BM47: 1.258023279 | BN47: 1.291046391 | BO47: 1.291046391 | BP47: 1.291046391 | BQ47: 1.291046391 | BR47: 1.291046391 | BS47: =BR47*(1+BS46*BS5) -> 1.291046391 | BT47: 1.324936358 | BU47: 1.324936358 | BV47: 1.324936358 | BW47: 1.324936358 | BX47: 1.324936358 | BY47: 1.324936358 | BZ47: 1.359715938 | CA47: 1.359715938 | CB47: 1.359715938 | CC47: 1.359715938 | CD47: 1.359715938 | CE47: 1.359715938 | CF47: 1.395408481 | CG47: 1.395408481 | CH47: 1.395408481 | CI47: 1.395408481 | CJ47: 1.395408481 | CK47: 1.395408481 | CL47: 1.432037954 | CM47: 1.432037954 | CN47: 1.432037954 | CO47: 1.432037954 | CP47: 1.432037954 | CQ47: 1.432037954 | CR47: 1.46962895 | CS47: 1.46962895 | CT47: 1.46962895 | CU47: 1.46962895 | CV47: 1.46962895 | CW47: 1.46962895 | CX47: 1.50820671 | CY47: 1.50820671 | CZ47: 1.50820671 | DA47: 1.50820671 | DB47: 1.50820671 | DC47: 1.50820671 | DD47: 1.547797136 | DE47: 1.547797136 | DF47: 1.547797136 | DG47: 1.547797136 | DH47: 1.547797136 | DI47: 1.547797136 | DJ47: 1.588426811 | DK47: 1.588426811 | DL47: 1.588426811 | DM47: 1.588426811 | DN47: 1.588426811 | DO47: 1.588426811 | DP47: 1.630123015 | DQ47: 1.630123015 | DR47: 1.630123015 | DS47: 1.630123015 | DT47: 1.630123015 | DU47: 1.630123015 | DV47: 1.672913744 | DW47: 1.672913744 | DX47: 1.672913744 | DY47: 1.672913744 | DZ47: 1.672913744 | EA47: 1.672913744 | EB47: 1.71682773 | EC47: 1.71682773 | ED47: 1.71682773 | EE47: =ED47*(1+EE46*EE5) -> 1.71682773 | EF47: 1.71682773 | EG47: 1.71682773 | EH47: 1.761894457 | EI47: 1.761894457 | EJ47: 1.761894457 | EK47: 1.761894457 | EL47: 1.761894457 | EM47: 1.761894457 | EN47: 1.808144187 | EO47: 1.808144187 | EP47: 1.808144187 | EQ47: 1.808144187 | ER47: 1.808144187 | ES47: 1.808144187 | ET47: 1.855607972 | EU47: 1.855607972 | EV47: 1.855607972 | EW47: 1.855607972 | EX47: 1.855607972 | EY47: 1.855607972 | EZ47: 1.904317681 | FA47: 1.904317681 | FB47: 1.904317681 | FC47: 1.904317681 | FD47: 1.904317681 | FE47: 1.904317681 | FF47: 1.95430602 | FG47: 1.95430602 | FH47: 1.95430602 | FI47: 1.95430602 | FJ47: 1.95430602 | FK47: 1.95430602 | FL47: 2.005606553 | FM47: 2.005606553 | FN47: 2.005606553 | FO47: 2.005606553 | FP47: 2.005606553 | FQ47: 2.005606553 | FR47: 2.058253725 | FS47: 2.058253725 | FT47: 2.058253725 | FU47: 2.058253725 | FV47: 2.058253725 | FW47: 2.058253725 | FX47: 2.112282886 | FY47: 2.112282886 | FZ47: 2.112282886 | GA47: 2.112282886 | GB47: 2.112282886 | GC47: 2.112282886 | GD47: 2.167730311 | GE47: 2.167730311 | GF47: 2.167730311 | GG47: 2.167730311 | GH47: 2.167730311 | GI47: 2.167730311 | GJ47: 2.224633232 | GK47: 2.224633232 | GL47: 2.224633232 | GM47: 2.224633232 | GN47: 2.224633232 | GO47: 2.224633232 | GP47: 2.283029854 | GQ47: =GP47*(1+GQ46*GQ5) -> 2.283029854 | GR47: 2.283029854 | GS47: 2.283029854 | GT47: 2.283029854 | GU47: 2.283029854 | GV47: 2.342959388 | GW47: 2.342959388 | GX47: 2.342959388 | GY47: 2.342959388 | GZ47: 2.342959388 | HA47: 2.342959388 | HB47: 2.404462072 | HC47: 2.404462072 | HD47: 2.404462072 | HE47: 2.404462072 | HF47: 2.404462072 | HG47: 2.404462072 | HH47: 2.467579201 | HI47: 2.467579201 | HJ47: 2.467579201 | HK47: 2.467579201 | HL47: 2.467579201 | HM47: 2.467579201 | HN47: 2.532353155 | HO47: 2.532353155 | HP47: 2.532353155 | HQ47: 2.532353155 | HR47: 2.532353155 | HS47: 2.532353155 | HT47: 2.598827426 | HU47: 2.598827426 | HV47: 2.598827426 | HW47: 2.598827426 | HX47: 2.598827426 | HY47: 2.598827426 | HZ47: 2.667046646 | IA47: 2.667046646 | IB47: 2.667046646 | IC47: 2.667046646 | ID47: 2.667046646 | IE47: 2.667046646 | IF47: 2.73705662 | IG47: 2.73705662 | IH47: 2.73705662 | II47: 2.73705662 | IJ47: 2.73705662 | IK47: 2.73705662 | IL47: 2.808904356 | IM47: 2.808904356 | IN47: 2.808904356 | IO47: 2.808904356 | IP47: 2.808904356 | IQ47: 2.808904356 | IR47: 2.882638096 | IS47: 2.882638096 | IT47: 2.882638096 | IU47: 2.882638096 | IV47: 2.882638096 | IW47: 2.882638096 | IX47: 2.958307346 | IY47: 2.958307346 | IZ47: 2.958307346 | JA47: 2.958307346 | JB47: 2.958307346 | JC47: =JB47*(1+JC46*JC5) -> 2.958307346 | JD47: 3.035962914 | JE47: 3.035962914 | JF47: 3.035962914 | JG47: 3.035962914 | JH47: 3.035962914 | JI47: 3.035962914 | JJ47: 3.11565694 | JK47: 3.11565694 | JL47: 3.11565694 | JM47: 3.11565694 | JN47: 3.11565694 | JO47: 3.11565694 | JP47: 3.197442935 | JQ47: 3.197442935 | JR47: 3.197442935 | JS47: 3.197442935 | JT47: 3.197442935 | JU47: 3.197442935 | JV47: 3.281375812 | JW47: 3.281375812 | JX47: 3.281375812 | JY47: 3.281375812 | JZ47: 3.281375812 | KA47: 3.281375812 | KB47: 3.367511927 | KC47: 3.367511927 | KD47: 3.367511927 | KE47: 3.367511927 | KF47: 3.367511927 | KG47: 3.367511927 | KH47: 3.455909115 | KI47: 3.455909115 | KJ47: 3.455909115 | KK47: 3.455909115 | KL47: 3.455909115 | KM47: 3.455909115 | KN47: 3.546626729 | KO47: 3.546626729 | KP47: 3.546626729 | KQ47: 3.546626729 | KR47: 3.546626729 | KS47: 3.546626729 | KT47: 3.639725681
D49: PV of CFADS | F49: =SUMPRODUCT(G44:KT44/G47:KT47) -> 1830.449989
D50: Debt | F50: =F13 -> 1190
D51: LLCR | F51: =F49/F50 -> 1.538193268
D53: Target DSCR | G53: =$F$51 -> 1.538193268 | H53: =$F$51 -> 1.538193268 | I53: 1.538193268 | J53: 1.538193268 | K53: 1.538193268 | L53: 1.538193268 | M53: 1.538193268 | N53: 1.538193268 | O53: 1.538193268 | P53: 1.538193268 | Q53: 1.538193268 | R53: 1.538193268 | S53: 1.538193268 | T53: 1.538193268 | U53: 1.538193268 | V53: 1.538193268 | W53: 1.538193268 | X53: 1.538193268 | Y53: 1.538193268 | Z53: 1.538193268 | AA53: 1.538193268 | AB53: 1.538193268 | AC53: 1.538193268 | AD53: 1.538193268 | AE53: 1.538193268 | AF53: 1.538193268 | AG53: 1.538193268 | AH53: 1.538193268 | AI53: 1.538193268 | AJ53: 1.538193268 | AK53: 1.538193268 | AL53: 1.538193268 | AM53: 1.538193268 | AN53: 1.538193268 | AO53: 1.538193268 | AP53: 1.538193268 | AQ53: 1.538193268 | AR53: 1.538193268 | AS53: 1.538193268 | AT53: 1.538193268 | AU53: 1.538193268 | AV53: 1.538193268 | AW53: 1.538193268 | AX53: 1.538193268 | AY53: 1.538193268 | AZ53: 1.538193268 | BA53: 1.538193268 | BB53: 1.538193268 | BC53: 1.538193268 | BD53: 1.538193268 | BE53: 1.538193268 | BF53: 1.538193268 | BG53: 1.538193268 | BH53: 1.538193268 | BI53: 1.538193268 | BJ53: 1.538193268 | BK53: 1.538193268 | BL53: 1.538193268 | BM53: 1.538193268 | BN53: 1.538193268 | BO53: 1.538193268 | BP53: 1.538193268 | BQ53: 1.538193268 | BR53: 1.538193268 | BS53: 1.538193268 | BT53: =$F$51 -> 1.538193268 | BU53: 1.538193268 | BV53: 1.538193268 | BW53: 1.538193268 | BX53: 1.538193268 | BY53: 1.538193268 | BZ53: 1.538193268 | CA53: 1.538193268 | CB53: 1.538193268 | CC53: 1.538193268 | CD53: 1.538193268 | CE53: 1.538193268 | CF53: 1.538193268 | CG53: 1.538193268 | CH53: 1.538193268 | CI53: 1.538193268 | CJ53: 1.538193268 | CK53: 1.538193268 | CL53: 1.538193268 | CM53: 1.538193268 | CN53: 1.538193268 | CO53: 1.538193268 | CP53: 1.538193268 | CQ53: 1.538193268 | CR53: 1.538193268 | CS53: 1.538193268 | CT53: 1.538193268 | CU53: 1.538193268 | CV53: 1.538193268 | CW53: 1.538193268 | CX53: 1.538193268 | CY53: 1.538193268 | CZ53: 1.538193268 | DA53: 1.538193268 | DB53: 1.538193268 | DC53: 1.538193268 | DD53: 1.538193268 | DE53: 1.538193268 | DF53: 1.538193268 | DG53: 1.538193268 | DH53: 1.538193268 | DI53: 1.538193268 | DJ53: 1.538193268 | DK53: 1.538193268 | DL53: 1.538193268 | DM53: 1.538193268 | DN53: 1.538193268 | DO53: 1.538193268 | DP53: 1.538193268 | DQ53: 1.538193268 | DR53: 1.538193268 | DS53: 1.538193268 | DT53: 1.538193268 | DU53: 1.538193268 | DV53: 1.538193268 | DW53: 1.538193268 | DX53: 1.538193268 | DY53: 1.538193268 | DZ53: 1.538193268 | EA53: 1.538193268 | EB53: 1.538193268 | EC53: 1.538193268 | ED53: 1.538193268 | EE53: 1.538193268 | EF53: =$F$51 -> 1.538193268 | EG53: 1.538193268 | EH53: 1.538193268 | EI53: 1.538193268 | EJ53: 1.538193268 | EK53: 1.538193268 | EL53: 1.538193268 | EM53: 1.538193268 | EN53: 1.538193268 | EO53: 1.538193268 | EP53: 1.538193268 | EQ53: 1.538193268 | ER53: 1.538193268 | ES53: 1.538193268 | ET53: 1.538193268 | EU53: 1.538193268 | EV53: 1.538193268 | EW53: 1.538193268 | EX53: 1.538193268 | EY53: 1.538193268 | EZ53: 1.538193268 | FA53: 1.538193268 | FB53: 1.538193268 | FC53: 1.538193268 | FD53: 1.538193268 | FE53: 1.538193268 | FF53: 1.538193268 | FG53: 1.538193268 | FH53: 1.538193268 | FI53: 1.538193268 | FJ53: 1.538193268 | FK53: 1.538193268 | FL53: 1.538193268 | FM53: 1.538193268 | FN53: 1.538193268 | FO53: 1.538193268 | FP53: 1.538193268 | FQ53: 1.538193268 | FR53: 1.538193268 | FS53: 1.538193268 | FT53: 1.538193268 | FU53: 1.538193268 | FV53: 1.538193268 | FW53: 1.538193268 | FX53: 1.538193268 | FY53: 1.538193268 | FZ53: 1.538193268 | GA53: 1.538193268 | GB53: 1.538193268 | GC53: 1.538193268 | GD53: 1.538193268 | GE53: 1.538193268 | GF53: 1.538193268 | GG53: 1.538193268 | GH53: 1.538193268 | GI53: 1.538193268 | GJ53: 1.538193268 | GK53: 1.538193268 | GL53: 1.538193268 | GM53: 1.538193268 | GN53: 1.538193268 | GO53: 1.538193268 | GP53: 1.538193268 | GQ53: 1.538193268 | GR53: =$F$51 -> 1.538193268 | GS53: 1.538193268 | GT53: 1.538193268 | GU53: 1.538193268 | GV53: 1.538193268 | GW53: 1.538193268 | GX53: 1.538193268 | GY53: 1.538193268 | GZ53: 1.538193268 | HA53: 1.538193268 | HB53: 1.538193268 | HC53: 1.538193268 | HD53: 1.538193268 | HE53: 1.538193268 | HF53: 1.538193268 | HG53: 1.538193268 | HH53: 1.538193268 | HI53: 1.538193268 | HJ53: 1.538193268 | HK53: 1.538193268 | HL53: 1.538193268 | HM53: 1.538193268 | HN53: 1.538193268 | HO53: 1.538193268 | HP53: 1.538193268 | HQ53: 1.538193268 | HR53: 1.538193268 | HS53: 1.538193268 | HT53: 1.538193268 | HU53: 1.538193268 | HV53: 1.538193268 | HW53: 1.538193268 | HX53: 1.538193268 | HY53: 1.538193268 | HZ53: 1.538193268 | IA53: 1.538193268 | IB53: 1.538193268 | IC53: 1.538193268 | ID53: 1.538193268 | IE53: 1.538193268 | IF53: 1.538193268 | IG53: 1.538193268 | IH53: 1.538193268 | II53: 1.538193268 | IJ53: 1.538193268 | IK53: 1.538193268 | IL53: 1.538193268 | IM53: 1.538193268 | IN53: 1.538193268 | IO53: 1.538193268 | IP53: 1.538193268 | IQ53: 1.538193268 | IR53: 1.538193268 | IS53: 1.538193268 | IT53: 1.538193268 | IU53: 1.538193268 | IV53: 1.538193268 | IW53: 1.538193268 | IX53: 1.538193268 | IY53: 1.538193268 | IZ53: 1.538193268 | JA53: 1.538193268 | JB53: 1.538193268 | JC53: 1.538193268 | JD53: =$F$51 -> 1.538193268 | JE53: 1.538193268 | JF53: 1.538193268 | JG53: 1.538193268 | JH53: 1.538193268 | JI53: 1.538193268 | JJ53: 1.538193268 | JK53: 1.538193268 | JL53: 1.538193268 | JM53: 1.538193268 | JN53: 1.538193268 | JO53: 1.538193268 | JP53: 1.538193268 | JQ53: 1.538193268 | JR53: 1.538193268 | JS53: 1.538193268 | JT53: 1.538193268 | JU53: 1.538193268 | JV53: 1.538193268 | JW53: 1.538193268 | JX53: 1.538193268 | JY53: 1.538193268 | JZ53: 1.538193268 | KA53: 1.538193268 | KB53: 1.538193268 | KC53: 1.538193268 | KD53: 1.538193268 | KE53: 1.538193268 | KF53: 1.538193268 | KG53: 1.538193268 | KH53: 1.538193268 | KI53: 1.538193268 | KJ53: 1.538193268 | KK53: 1.538193268 | KL53: 1.538193268 | KM53: 1.538193268 | KN53: 1.538193268 | KO53: 1.538193268 | KP53: 1.538193268 | KQ53: 1.538193268 | KR53: 1.538193268 | KS53: 1.538193268 | KT53: 1.538193268
D54: Target Debt Service with Periodic | G54: =G44/G53*G7*G5 -> 0 | H54: 0 | I54: 0 | J54: 0 | K54: 0 | L54: 34.48275902 | M54: 0 | N54: 0 | O54: 0 | P54: 0 | Q54: 0 | R54: 33.61488566 | S54: 0 | T54: 0 | U54: 0 | V54: 0 | W54: 0 | X54: 37.50949212 | Y54: 0 | Z54: 0 | AA54: 0 | AB54: 0 | AC54: 0 | AD54: 36.49811235 | AE54: 0 | AF54: 0 | AG54: 0 | AH54: 0 | AI54: 0 | AJ54: 40.61362061 | AK54: 0 | AL54: 0 | AM54: 0 | AN54: 0 | AO54: 0 | AP54: 39.44634761 | AQ54: 0 | AR54: 0 | AS54: 0 | AT54: 0 | AU54: 0 | AV54: 43.55649712 | AW54: 0 | AX54: 0 | AY54: 0 | AZ54: 0 | BA54: 0 | BB54: 42.03874312 | BC54: 0 | BD54: 0 | BE54: 0 | BF54: 0 | BG54: 0 | BH54: 46.02667416 | BI54: 0 | BJ54: 0 | BK54: 0 | BL54: 0 | BM54: 0 | BN54: 44.20101274 | BO54: 0 | BP54: 0 | BQ54: 0 | BR54: 0 | BS54: =BS44/BS53*BS7*BS5 -> 0 | BT54: 48.06956941 | BU54: 0 | BV54: 0 | BW54: 0 | BX54: 0 | BY54: 0 | BZ54: 45.98030117 | CA54: 0 | CB54: 0 | CC54: 0 | CD54: 0 | CE54: 0 | CF54: 49.73934144 | CG54: 0 | CH54: 0 | CI54: 0 | CJ54: 0 | CK54: 0 | CL54: 47.42970488 | CM54: 0 | CN54: 0 | CO54: 0 | CP54: 0 | CQ54: 0 | CR54: 51.15017917 | CS54: 0 | CT54: 0 | CU54: 0 | CV54: 0 | CW54: 0 | CX54: 48.70512251 | CY54: 0 | CZ54: 0 | DA54: 0 | DB54: 0 | DC54: 0 | DD54: 52.41763711 | DE54: 0 | DF54: 0 | DG54: 0 | DH54: 0 | DI54: 0 | DJ54: 49.84927873 | DK54: 0 | DL54: 0 | DM54: 0 | DN54: 0 | DO54: 0 | DP54: 53.55231452 | DQ54: 0 | DR54: 0 | DS54: 0 | DT54: 0 | DU54: 0 | DV54: 50.87314403 | DW54: 0 | DX54: 0 | DY54: 0 | DZ54: 0 | EA54: 0 | EB54: 54.62336081 | EC54: 0 | ED54: 0 | EE54: =EE44/EE53*EE7*EE5 -> 0 | EF54: 0 | EG54: 0 | EH54: 51.89060691 | EI54: 0 | EJ54: 0 | EK54: 0 | EL54: 0 | EM54: 0 | EN54: 55.71582803 | EO54: 0 | EP54: 0 | EQ54: 0 | ER54: 0 | ES54: 0 | ET54: 52.92841905 | EU54: 0 | EV54: 0 | EW54: 0 | EX54: 0 | EY54: 0 | EZ54: 56.83014459 | FA54: 0 | FB54: 0 | FC54: 0 | FD54: 0 | FE54: 0 | FF54: 53.98698743 | FG54: 0 | FH54: 0 | FI54: 0 | FJ54: 0 | FK54: 0 | FL54: 57.96674748 | FM54: 0 | FN54: 0 | FO54: 0 | FP54: 0 | FQ54: 0 | FR54: 55.06672718 | FS54: 0 | FT54: 0 | FU54: 0 | FV54: 0 | FW54: 0 | FX54: 59.12608243 | FY54: 0 | FZ54: 0 | GA54: 0 | GB54: 0 | GC54: 0 | GD54: 56.16806172 | GE54: 0 | GF54: 0 | GG54: 0 | GH54: 0 | GI54: 0 | GJ54: 60.30860408 | GK54: 0 | GL54: 0 | GM54: 0 | GN54: 0 | GO54: 0 | GP54: 57.29142295 | GQ54: =GQ44/GQ53*GQ7*GQ5 -> 0 | GR54: 0 | GS54: 0 | GT54: 0 | GU54: 0 | GV54: 61.51477616 | GW54: 0 | GX54: 0 | GY54: 0 | GZ54: 0 | HA54: 0 | HB54: 58.43725141 | HC54: 0 | HD54: 0 | HE54: 0 | HF54: 0 | HG54: 0 | HH54: 62.74507168 | HI54: 0 | HJ54: 0 | HK54: 0 | HL54: 0 | HM54: 0 | HN54: 59.60599644 | HO54: 0 | HP54: 0 | HQ54: 0 | HR54: 0 | HS54: 0 | HT54: 63.99997312 | HU54: 0 | HV54: 0 | HW54: 0 | HX54: 0 | HY54: 0 | HZ54: 60.79811637 | IA54: 0 | IB54: 0 | IC54: 0 | ID54: 0 | IE54: 0 | IF54: 65.27997258 | IG54: 0 | IH54: 0 | II54: 0 | IJ54: 0 | IK54: 0 | IL54: 0 | IM54: 0 | IN54: 0 | IO54: 0 | IP54: 0 | IQ54: 0 | IR54: 0 | IS54: 0 | IT54: 0 | IU54: 0 | IV54: 0 | IW54: 0 | IX54: 0 | IY54: 0 | IZ54: 0 | JA54: 0 | JB54: 0 | JC54: =JC44/JC53*JC7*JC5 -> 0 | JD54: 0 | JE54: 0 | JF54: 0 | JG54: 0 | JH54: 0 | JI54: 0 | JJ54: 0 | JK54: 0 | JL54: 0 | JM54: 0 | JN54: 0 | JO54: 0 | JP54: 0 | JQ54: 0 | JR54: 0 | JS54: 0 | JT54: 0 | JU54: 0 | JV54: 0 | JW54: 0 | JX54: 0 | JY54: 0 | JZ54: 0 | KA54: 0 | KB54: 0 | KC54: 0 | KD54: 0 | KE54: 0 | KF54: 0 | KG54: 0 | KH54: 0 | KI54: 0 | KJ54: 0 | KK54: 0 | KL54: 0 | KM54: 0 | KN54: 0 | KO54: 0 | KP54: 0 | KQ54: 0 | KR54: 0 | KS54: 0 | KT54: 0
D55: Target Debt Service Applied | E55: =F15 -> TRUE | G55: =G54 -> 0 | H55: =H54 -> 0 | I55: 0 | J55: 0 | K55: 0 | L55: 34.48275902 | M55: 0 | N55: 0 | O55: 0 | P55: 0 | Q55: 0 | R55: 33.61488566 | S55: 0 | T55: 0 | U55: 0 | V55: 0 | W55: 0 | X55: 37.50949212 | Y55: 0 | Z55: 0 | AA55: 0 | AB55: 0 | AC55: 0 | AD55: 36.49811235 | AE55: 0 | AF55: 0 | AG55: 0 | AH55: 0 | AI55: 0 | AJ55: 40.61362061 | AK55: 0 | AL55: 0 | AM55: 0 | AN55: 0 | AO55: 0 | AP55: 39.44634761 | AQ55: 0 | AR55: 0 | AS55: 0 | AT55: 0 | AU55: 0 | AV55: 43.55649712 | AW55: 0 | AX55: 0 | AY55: 0 | AZ55: 0 | BA55: 0 | BB55: 42.03874312 | BC55: 0 | BD55: 0 | BE55: 0 | BF55: 0 | BG55: 0 | BH55: 46.02667416 | BI55: 0 | BJ55: 0 | BK55: 0 | BL55: 0 | BM55: 0 | BN55: 44.20101274 | BO55: 0 | BP55: 0 | BQ55: 0 | BR55: 0 | BS55: 0 | BT55: =BT54 -> 48.06956941 | BU55: 0 | BV55: 0 | BW55: 0 | BX55: 0 | BY55: 0 | BZ55: 45.98030117 | CA55: 0 | CB55: 0 | CC55: 0 | CD55: 0 | CE55: 0 | CF55: 49.73934144 | CG55: 0 | CH55: 0 | CI55: 0 | CJ55: 0 | CK55: 0 | CL55: 47.42970488 | CM55: 0 | CN55: 0 | CO55: 0 | CP55: 0 | CQ55: 0 | CR55: 51.15017917 | CS55: 0 | CT55: 0 | CU55: 0 | CV55: 0 | CW55: 0 | CX55: 48.70512251 | CY55: 0 | CZ55: 0 | DA55: 0 | DB55: 0 | DC55: 0 | DD55: 52.41763711 | DE55: 0 | DF55: 0 | DG55: 0 | DH55: 0 | DI55: 0 | DJ55: 49.84927873 | DK55: 0 | DL55: 0 | DM55: 0 | DN55: 0 | DO55: 0 | DP55: 53.55231452 | DQ55: 0 | DR55: 0 | DS55: 0 | DT55: 0 | DU55: 0 | DV55: 50.87314403 | DW55: 0 | DX55: 0 | DY55: 0 | DZ55: 0 | EA55: 0 | EB55: 54.62336081 | EC55: 0 | ED55: 0 | EE55: 0 | EF55: =EF54 -> 0 | EG55: 0 | EH55: 51.89060691 | EI55: 0 | EJ55: 0 | EK55: 0 | EL55: 0 | EM55: 0 | EN55: 55.71582803 | EO55: 0 | EP55: 0 | EQ55: 0 | ER55: 0 | ES55: 0 | ET55: 52.92841905 | EU55: 0 | EV55: 0 | EW55: 0 | EX55: 0 | EY55: 0 | EZ55: 56.83014459 | FA55: 0 | FB55: 0 | FC55: 0 | FD55: 0 | FE55: 0 | FF55: 53.98698743 | FG55: 0 | FH55: 0 | FI55: 0 | FJ55: 0 | FK55: 0 | FL55: 57.96674748 | FM55: 0 | FN55: 0 | FO55: 0 | FP55: 0 | FQ55: 0 | FR55: 55.06672718 | FS55: 0 | FT55: 0 | FU55: 0 | FV55: 0 | FW55: 0 | FX55: 59.12608243 | FY55: 0 | FZ55: 0 | GA55: 0 | GB55: 0 | GC55: 0 | GD55: 56.16806172 | GE55: 0 | GF55: 0 | GG55: 0 | GH55: 0 | GI55: 0 | GJ55: 60.30860408 | GK55: 0 | GL55: 0 | GM55: 0 | GN55: 0 | GO55: 0 | GP55: 57.29142295 | GQ55: 0 | GR55: =GR54 -> 0 | GS55: 0 | GT55: 0 | GU55: 0 | GV55: 61.51477616 | GW55: 0 | GX55: 0 | GY55: 0 | GZ55: 0 | HA55: 0 | HB55: 58.43725141 | HC55: 0 | HD55: 0 | HE55: 0 | HF55: 0 | HG55: 0 | HH55: 62.74507168 | HI55: 0 | HJ55: 0 | HK55: 0 | HL55: 0 | HM55: 0 | HN55: 59.60599644 | HO55: 0 | HP55: 0 | HQ55: 0 | HR55: 0 | HS55: 0 | HT55: 63.99997312 | HU55: 0 | HV55: 0 | HW55: 0 | HX55: 0 | HY55: 0 | HZ55: 60.79811637 | IA55: 0 | IB55: 0 | IC55: 0 | ID55: 0 | IE55: 0 | IF55: 65.27997258 | IG55: 0 | IH55: 0 | II55: 0 | IJ55: 0 | IK55: 0 | IL55: 0 | IM55: 0 | IN55: 0 | IO55: 0 | IP55: 0 | IQ55: 0 | IR55: 0 | IS55: 0 | IT55: 0 | IU55: 0 | IV55: 0 | IW55: 0 | IX55: 0 | IY55: 0 | IZ55: 0 | JA55: 0 | JB55: 0 | JC55: 0 | JD55: =JD54 -> 0 | JE55: 0 | JF55: 0 | JG55: 0 | JH55: 0 | JI55: 0 | JJ55: 0 | JK55: 0 | JL55: 0 | JM55: 0 | JN55: 0 | JO55: 0 | JP55: 0 | JQ55: 0 | JR55: 0 | JS55: 0 | JT55: 0 | JU55: 0 | JV55: 0 | JW55: 0 | JX55: 0 | JY55: 0 | JZ55: 0 | KA55: 0 | KB55: 0 | KC55: 0 | KD55: 0 | KE55: 0 | KF55: 0 | KG55: 0 | KH55: 0 | KI55: 0 | KJ55: 0 | KK55: 0 | KL55: 0 | KM55: 0 | KN55: 0 | KO55: 0 | KP55: 0 | KQ55: 0 | KR55: 0 | KS55: 0 | KT55: 0
D57: PV of Debt Service | E57: =SUMPRODUCT(G55:KT55/G47:KT47) -> 1190
B59: Results
C60: Debt Balance
D61: Opening Balance | G61: =F63 -> 1190 | H61: 1190 | I61: 1190 | J61: 1190 | K61: 1190 | L61: 1190 | M61: 1182.292241 | N61: 1182.292241 | O61: 1182.292241 | P61: 1182.292241 | Q61: 1182.292241 | R61: 1182.292241 | S61: 1179.712527 | T61: 1179.712527 | U61: 1179.712527 | V61: 1179.712527 | W61: 1179.712527 | X61: 1179.712527 | Y61: 1173.170488 | Z61: 1173.170488 | AA61: 1173.170488 | AB61: 1173.170488 | AC61: 1173.170488 | AD61: =AC63 -> 1173.170488 | AE61: 1167.468101 | AF61: 1167.468101 | AG61: 1167.468101 | AH61: 1167.468101 | AI61: 1167.468101 | AJ61: 1167.468101 | AK61: 1157.500518 | AL61: 1157.500518 | AM61: 1157.500518 | AN61: 1157.500518 | AO61: 1157.500518 | AP61: 1157.500518 | AQ61: 1148.438559 | AR61: 1148.438559 | AS61: 1148.438559 | AT61: 1148.438559 | AU61: 1148.438559 | AV61: 1148.438559 | AW61: 1135.028574 | AX61: 1135.028574 | AY61: 1135.028574 | AZ61: 1135.028574 | BA61: 1135.028574 | BB61: 1135.028574 | BC61: 1122.784331 | BD61: 1122.784331 | BE61: 1122.784331 | BF61: 1122.784331 | BG61: 1122.784331 | BH61: 1122.784331 | BI61: 1106.230746 | BJ61: 1106.230746 | BK61: 1106.230746 | BL61: 1106.230746 | BM61: 1106.230746 | BN61: 1106.230746 | BO61: 1091.06829 | BP61: 1091.06829 | BQ61: 1091.06829 | BR61: 1091.06829 | BS61: 1091.06829 | BT61: 1091.06829 | BU61: 1071.639263 | BV61: 1071.639263 | BW61: 1071.639263 | BX61: 1071.639263 | BY61: 1071.639263 | BZ61: 1071.639263 | CA61: 1053.789493 | CB61: 1053.789493 | CC61: 1053.789493 | CD61: 1053.789493 | CE61: 1053.789493 | CF61: 1053.789493 | CG61: 1031.712126 | CH61: 1031.712126 | CI61: 1031.712126 | CJ61: 1031.712126 | CK61: 1031.712126 | CL61: 1031.712126 | CM61: 1011.364864 | CN61: 1011.364864 | CO61: 1011.364864 | CP61: =CO63 -> 1011.364864 | CQ61: 1011.364864 | CR61: 1011.364864 | CS61: 986.7630127 | CT61: 986.7630127 | CU61: 986.7630127 | CV61: 986.7630127 | CW61: 986.7630127 | CX61: 986.7630127 | CY61: 963.9604192 | CZ61: 963.9604192 | DA61: 963.9604192 | DB61: 963.9604192 | DC61: 963.9604192 | DD61: 963.9604192 | DE61: 936.8467431 | DF61: 936.8467431 | DG61: 936.8467431 | DH61: 936.8467431 | DI61: 936.8467431 | DJ61: 936.8467431 | DK61: 911.5896914 | DL61: 911.5896914 | DM61: 911.5896914 | DN61: 911.5896914 | DO61: 911.5896914 | DP61: 911.5896914 | DQ61: 881.9666063 | DR61: 881.9666063 | DS61: 881.9666063 | DT61: 881.9666063 | DU61: 881.9666063 | DV61: 881.9666063 | DW61: 854.2450857 | DX61: 854.2450857 | DY61: 854.2450857 | DZ61: 854.2450857 | EA61: 854.2450857 | EB61: 854.2450857 | EC61: 822.0456584 | ED61: 822.0456584 | EE61: 822.0456584 | EF61: 822.0456584 | EG61: 822.0456584 | EH61: 822.0456584 | EI61: 791.73375 | EJ61: 791.73375 | EK61: 791.73375 | EL61: 791.73375 | EM61: 791.73375 | EN61: 791.73375 | EO61: 756.8009329 | EP61: 756.8009329 | EQ61: 756.8009329 | ER61: 756.8009329 | ES61: 756.8009329 | ET61: 756.8009329 | EU61: 723.7385383 | EV61: 723.7385383 | EW61: 723.7385383 | EX61: 723.7385383 | EY61: 723.7385383 | EZ61: 723.7385383 | FA61: 685.9065304 | FB61: =FA63 -> 685.9065304 | FC61: 685.9065304 | FD61: 685.9065304 | FE61: 685.9065304 | FF61: 685.9065304 | FG61: 649.9245894 | FH61: 649.9245894 | FI61: 649.9245894 | FJ61: 649.9245894 | FK61: 649.9245894 | FL61: 649.9245894 | FM61: 609.0183624 | FN61: 609.0183624 | FO61: 609.0183624 | FP61: 609.0183624 | FQ61: 609.0183624 | FR61: 609.0183624 | FS61: 569.9383672 | FT61: 569.9383672 | FU61: 569.9383672 | FV61: 569.9383672 | FW61: 569.9383672 | FX61: 569.9383672 | FY61: 525.7731669 | FZ61: 525.7731669 | GA61: 525.7731669 | GB61: 525.7731669 | GC61: 525.7731669 | GD61: 525.7731669 | GE61: 483.4066508 | GF61: 483.4066508 | GG61: 483.4066508 | GH61: 483.4066508 | GI61: 483.4066508 | GJ61: 483.4066508 | GK61: 435.7874713 | GL61: 435.7874713 | GM61: 435.7874713 | GN61: 435.7874713 | GO61: 435.7874713 | GP61: 435.7874713 | GQ61: 389.9354695 | GR61: 389.9354695 | GS61: 389.9354695 | GT61: 389.9354695 | GU61: 389.9354695 | GV61: 389.9354695 | GW61: 338.6564994 | GX61: 338.6564994 | GY61: 338.6564994 | GZ61: 338.6564994 | HA61: 338.6564994 | HB61: 338.6564994 | HC61: 289.1089811 | HD61: 289.1089811 | HE61: 289.1089811 | HF61: 289.1089811 | HG61: 289.1089811 | HH61: 289.1089811 | HI61: 233.9530202 | HJ61: 233.9530202 | HK61: 233.9530202 | HL61: 233.9530202 | HM61: 233.9530202 | HN61: =HM63 -> 233.9530202 | HO61: 180.4882905 | HP61: 180.4882905 | HQ61: 180.4882905 | HR61: 180.4882905 | HS61: 180.4882905 | HT61: 180.4882905 | HU61: 121.226135 | HV61: 121.226135 | HW61: 121.226135 | HX61: 121.226135 | HY61: 121.226135 | HZ61: 121.226135 | IA61: 63.61020471 | IB61: 63.61020471 | IC61: 63.61020471 | ID61: 63.61020471 | IE61: 63.61020471 | IF61: 63.61020471 | IG61: -5.86197757e-12 | IH61: -5.86197757e-12 | II61: -5.86197757e-12 | IJ61: -5.86197757e-12 | IK61: -5.86197757e-12 | IL61: -5.86197757e-12 | IM61: -6.015854481e-12 | IN61: -6.015854481e-12 | IO61: -6.015854481e-12 | IP61: -6.015854481e-12 | IQ61: -6.015854481e-12 | IR61: -6.015854481e-12 | IS61: -6.173770661e-12 | IT61: -6.173770661e-12 | IU61: -6.173770661e-12 | IV61: -6.173770661e-12 | IW61: -6.173770661e-12 | IX61: -6.173770661e-12 | IY61: -6.335832141e-12 | IZ61: -6.335832141e-12 | JA61: -6.335832141e-12 | JB61: -6.335832141e-12 | JC61: -6.335832141e-12 | JD61: -6.335832141e-12 | JE61: -6.502147735e-12 | JF61: -6.502147735e-12 | JG61: -6.502147735e-12 | JH61: -6.502147735e-12 | JI61: -6.502147735e-12 | JJ61: -6.502147735e-12 | JK61: -6.672829113e-12 | JL61: -6.672829113e-12 | JM61: -6.672829113e-12 | JN61: -6.672829113e-12 | JO61: -6.672829113e-12 | JP61: -6.672829113e-12 | JQ61: -6.847990877e-12 | JR61: -6.847990877e-12 | JS61: -6.847990877e-12 | JT61: -6.847990877e-12 | JU61: -6.847990877e-12 | JV61: -6.847990877e-12 | JW61: =JV63 -> -7.027750638e-12 | JX61: -7.027750638e-12 | JY61: -7.027750638e-12 | JZ61: -7.027750638e-12 | KA61: -7.027750638e-12 | KB61: -7.027750638e-12 | KC61: -7.212229092e-12 | KD61: -7.212229092e-12 | KE61: -7.212229092e-12 | KF61: -7.212229092e-12 | KG61: -7.212229092e-12 | KH61: -7.212229092e-12 | KI61: -7.401550106e-12 | KJ61: -7.401550106e-12 | KK61: -7.401550106e-12 | KL61: -7.401550106e-12 | KM61: -7.401550106e-12 | KN61: -7.401550106e-12 | KO61: -7.595840796e-12 | KP61: -7.595840796e-12 | KQ61: -7.595840796e-12 | KR61: -7.595840796e-12 | KS61: -7.595840796e-12 | KT61: -7.595840796e-12
D62: Repayments | G62: =G55-G64 -> 0 | H62: 0 | I62: 0 | J62: 0 | K62: 0 | L62: 7.707759018 | M62: 0 | N62: 0 | O62: 0 | P62: 0 | Q62: 0 | R62: 2.579714332 | S62: 0 | T62: 0 | U62: 0 | V62: 0 | W62: 0 | X62: 6.542038299 | Y62: 0 | Z62: 0 | AA62: 0 | AB62: 0 | AC62: 0 | AD62: 5.702387033 | AE62: 0 | AF62: 0 | AG62: 0 | AH62: 0 | AI62: 0 | AJ62: 9.967582954 | AK62: 0 | AL62: 0 | AM62: 0 | AN62: 0 | AO62: 0 | AP62: 9.061958999 | AQ62: 0 | AR62: 0 | AS62: 0 | AT62: 0 | AU62: 0 | AV62: 13.40998494 | AW62: 0 | AX62: 0 | AY62: 0 | AZ62: 0 | BA62: 0 | BB62: 12.24424304 | BC62: 0 | BD62: 0 | BE62: 0 | BF62: 0 | BG62: 0 | BH62: 16.55358546 | BI62: 0 | BJ62: 0 | BK62: 0 | BL62: 0 | BM62: 0 | BN62: 15.16245566 | BO62: 0 | BP62: 0 | BQ62: 0 | BR62: 0 | BS62: =BS55-BS64 -> 0 | BT62: 19.42902679 | BU62: 0 | BV62: 0 | BW62: 0 | BX62: 0 | BY62: 0 | BZ62: 17.84977051 | CA62: 0 | CB62: 0 | CC62: 0 | CD62: 0 | CE62: 0 | CF62: 22.07736724 | CG62: 0 | CH62: 0 | CI62: 0 | CJ62: 0 | CK62: 0 | CL62: 20.34726158 | CM62: 0 | CN62: 0 | CO62: 0 | CP62: 0 | CQ62: 0 | CR62: 24.60185148 | CS62: 0 | CT62: 0 | CU62: 0 | CV62: 0 | CW62: 0 | CX62: 22.80259343 | CY62: 0 | CZ62: 0 | DA62: 0 | DB62: 0 | DC62: 0 | DD62: 27.1136761 | DE62: 0 | DF62: 0 | DG62: 0 | DH62: 0 | DI62: 0 | DJ62: 25.25705172 | DK62: 0 | DL62: 0 | DM62: 0 | DN62: 0 | DO62: 0 | DP62: 29.62308512 | DQ62: 0 | DR62: 0 | DS62: 0 | DT62: 0 | DU62: 0 | DV62: 27.72152061 | DW62: 0 | DX62: 0 | DY62: 0 | DZ62: 0 | EA62: 0 | EB62: 32.19942731 | EC62: 0 | ED62: 0 | EE62: =EE55-EE64 -> 0 | EF62: 0 | EG62: 0 | EH62: 30.31190838 | EI62: 0 | EJ62: 0 | EK62: 0 | EL62: 0 | EM62: 0 | EN62: 34.93281709 | EO62: 0 | EP62: 0 | EQ62: 0 | ER62: 0 | ES62: 0 | ET62: 33.06239456 | EU62: 0 | EV62: 0 | EW62: 0 | EX62: 0 | EY62: 0 | EZ62: 37.83200796 | FA62: 0 | FB62: 0 | FC62: 0 | FD62: 0 | FE62: 0 | FF62: 35.981941 | FG62: 0 | FH62: 0 | FI62: 0 | FJ62: 0 | FK62: 0 | FL62: 40.90622701 | FM62: 0 | FN62: 0 | FO62: 0 | FP62: 0 | FQ62: 0 | FR62: 39.07999516 | FS62: 0 | FT62: 0 | FU62: 0 | FV62: 0 | FW62: 0 | FX62: 44.16520029 | FY62: 0 | FZ62: 0 | GA62: 0 | GB62: 0 | GC62: 0 | GD62: 42.36651609 | GE62: 0 | GF62: 0 | GG62: 0 | GH62: 0 | GI62: 0 | GJ62: 47.61917949 | GK62: 0 | GL62: 0 | GM62: 0 | GN62: 0 | GO62: 0 | GP62: 45.85200183 | GQ62: =GQ55-GQ64 -> 0 | GR62: 0 | GS62: 0 | GT62: 0 | GU62: 0 | GV62: 51.27897009 | GW62: 0 | GX62: 0 | GY62: 0 | GZ62: 0 | HA62: 0 | HB62: 49.5475183 | HC62: 0 | HD62: 0 | HE62: 0 | HF62: 0 | HG62: 0 | HH62: 55.15596093 | HI62: 0 | HJ62: 0 | HK62: 0 | HL62: 0 | HM62: 0 | HN62: 53.46472966 | HO62: 0 | HP62: 0 | HQ62: 0 | HR62: 0 | HS62: 0 | HT62: 59.26215549 | HU62: 0 | HV62: 0 | HW62: 0 | HX62: 0 | HY62: 0 | HZ62: 57.61593033 | IA62: 0 | IB62: 0 | IC62: 0 | ID62: 0 | IE62: 0 | IF62: 63.61020471 | IG62: 0 | IH62: 0 | II62: 0 | IJ62: 0 | IK62: 0 | IL62: 1.538769112e-13 | IM62: 0 | IN62: 0 | IO62: 0 | IP62: 0 | IQ62: 0 | IR62: 1.579161801e-13 | IS62: 0 | IT62: 0 | IU62: 0 | IV62: 0 | IW62: 0 | IX62: 1.620614799e-13 | IY62: 0 | IZ62: 0 | JA62: 0 | JB62: 0 | JC62: =JC55-JC64 -> 0 | JD62: 1.663155937e-13 | JE62: 0 | JF62: 0 | JG62: 0 | JH62: 0 | JI62: 0 | JJ62: 1.70681378e-13 | JK62: 0 | JL62: 0 | JM62: 0 | JN62: 0 | JO62: 0 | JP62: 1.751617642e-13 | JQ62: 0 | JR62: 0 | JS62: 0 | JT62: 0 | JU62: 0 | JV62: 1.797597605e-13 | JW62: 0 | JX62: 0 | JY62: 0 | JZ62: 0 | KA62: 0 | KB62: 1.844784542e-13 | KC62: 0 | KD62: 0 | KE62: 0 | KF62: 0 | KG62: 0 | KH62: 1.893210137e-13 | KI62: 0 | KJ62: 0 | KK62: 0 | KL62: 0 | KM62: 0 | KN62: 1.942906903e-13 | KO62: 0 | KP62: 0 | KQ62: 0 | KR62: 0 | KS62: 0 | KT62: 1.993908209e-13
D63: Closing Balance | F63: =F13 -> 1190 | G63: =G61-G62 -> 1190 | H63: 1190 | I63: 1190 | J63: 1190 | K63: 1190 | L63: 1182.292241 | M63: 1182.292241 | N63: 1182.292241 | O63: 1182.292241 | P63: 1182.292241 | Q63: 1182.292241 | R63: 1179.712527 | S63: 1179.712527 | T63: 1179.712527 | U63: 1179.712527 | V63: 1179.712527 | W63: 1179.712527 | X63: 1173.170488 | Y63: 1173.170488 | Z63: 1173.170488 | AA63: 1173.170488 | AB63: 1173.170488 | AC63: 1173.170488 | AD63: =AD61-AD62 -> 1167.468101 | AE63: =AE61-AE62 -> 1167.468101 | AF63: =AF61-AF62 -> 1167.468101 | AG63: =AG61-AG62 -> 1167.468101 | AH63: =AH61-AH62 -> 1167.468101 | AI63: =AI61-AI62 -> 1167.468101 | AJ63: =AJ61-AJ62 -> 1157.500518 | AK63: =AK61-AK62 -> 1157.500518 | AL63: =AL61-AL62 -> 1157.500518 | AM63: =AM61-AM62 -> 1157.500518 | AN63: =AN61-AN62 -> 1157.500518 | AO63: =AO61-AO62 -> 1157.500518 | AP63: =AP61-AP62 -> 1148.438559 | AQ63: =AQ61-AQ62 -> 1148.438559 | AR63: =AR61-AR62 -> 1148.438559 | AS63: =AS61-AS62 -> 1148.438559 | AT63: =AT61-AT62 -> 1148.438559 | AU63: =AU61-AU62 -> 1148.438559 | AV63: =AV61-AV62 -> 1135.028574 | AW63: =AW61-AW62 -> 1135.028574 | AX63: =AX61-AX62 -> 1135.028574 | AY63: =AY61-AY62 -> 1135.028574 | AZ63: =AZ61-AZ62 -> 1135.028574 | BA63: =BA61-BA62 -> 1135.028574 | BB63: =BB61-BB62 -> 1122.784331 | BC63: =BC61-BC62 -> 1122.784331 | BD63: =BD61-BD62 -> 1122.784331 | BE63: =BE61-BE62 -> 1122.784331 | BF63: =BF61-BF62 -> 1122.784331 | BG63: =BG61-BG62 -> 1122.784331 | BH63: =BH61-BH62 -> 1106.230746 | BI63: =BI61-BI62 -> 1106.230746 | BJ63: =BJ61-BJ62 -> 1106.230746 | BK63: =BK61-BK62 -> 1106.230746 | BL63: =BL61-BL62 -> 1106.230746 | BM63: =BM61-BM62 -> 1106.230746 | BN63: =BN61-BN62 -> 1091.06829 | BO63: =BO61-BO62 -> 1091.06829 | BP63: =BP61-BP62 -> 1091.06829 | BQ63: =BQ61-BQ62 -> 1091.06829 | BR63: =BR61-BR62 -> 1091.06829 | BS63: =BS61-BS62 -> 1091.06829 | BT63: =BT61-BT62 -> 1071.639263 | BU63: =BU61-BU62 -> 1071.639263 | BV63: =BV61-BV62 -> 1071.639263 | BW63: =BW61-BW62 -> 1071.639263 | BX63: =BX61-BX62 -> 1071.639263 | BY63: =BY61-BY62 -> 1071.639263 | BZ63: =BZ61-BZ62 -> 1053.789493 | CA63: =CA61-CA62 -> 1053.789493 | CB63: =CB61-CB62 -> 1053.789493 | CC63: =CC61-CC62 -> 1053.789493 | CD63: =CD61-CD62 -> 1053.789493 | CE63: =CE61-CE62 -> 1053.789493 | CF63: =CF61-CF62 -> 1031.712126 | CG63: =CG61-CG62 -> 1031.712126 | CH63: =CH61-CH62 -> 1031.712126 | CI63: =CI61-CI62 -> 1031.712126 | CJ63: =CJ61-CJ62 -> 1031.712126 | CK63: =CK61-CK62 -> 1031.712126 | CL63: =CL61-CL62 -> 1011.364864 | CM63: =CM61-CM62 -> 1011.364864 | CN63: =CN61-CN62 -> 1011.364864 | CO63: =CO61-CO62 -> 1011.364864 | CP63: =CP61-CP62 -> 1011.364864 | CQ63: =CQ61-CQ62 -> 1011.364864 | CR63: =CR61-CR62 -> 986.7630127 | CS63: =CS61-CS62 -> 986.7630127 | CT63: =CT61-CT62 -> 986.7630127 | CU63: =CU61-CU62 -> 986.7630127 | CV63: =CV61-CV62 -> 986.7630127 | CW63: =CW61-CW62 -> 986.7630127 | CX63: =CX61-CX62 -> 963.9604192 | CY63: =CY61-CY62 -> 963.9604192 | CZ63: =CZ61-CZ62 -> 963.9604192 | DA63: =DA61-DA62 -> 963.9604192 | DB63: =DB61-DB62 -> 963.9604192 | DC63: =DC61-DC62 -> 963.9604192 | DD63: =DD61-DD62 -> 936.8467431 | DE63: =DE61-DE62 -> 936.8467431 | DF63: =DF61-DF62 -> 936.8467431 | DG63: =DG61-DG62 -> 936.8467431 | DH63: =DH61-DH62 -> 936.8467431 | DI63: =DI61-DI62 -> 936.8467431 | DJ63: =DJ61-DJ62 -> 911.5896914 | DK63: =DK61-DK62 -> 911.5896914 | DL63: =DL61-DL62 -> 911.5896914 | DM63: =DM61-DM62 -> 911.5896914 | DN63: =DN61-DN62 -> 911.5896914 | DO63: =DO61-DO62 -> 911.5896914 | DP63: =DP61-DP62 -> 881.9666063 | DQ63: =DQ61-DQ62 -> 881.9666063 | DR63: =DR61-DR62 -> 881.9666063 | DS63: =DS61-DS62 -> 881.9666063 | DT63: =DT61-DT62 -> 881.9666063 | DU63: =DU61-DU62 -> 881.9666063 | DV63: =DV61-DV62 -> 854.2450857 | DW63: =DW61-DW62 -> 854.2450857 | DX63: =DX61-DX62 -> 854.2450857 | DY63: =DY61-DY62 -> 854.2450857 | DZ63: =DZ61-DZ62 -> 854.2450857 | EA63: =EA61-EA62 -> 854.2450857 | EB63: =EB61-EB62 -> 822.0456584 | EC63: =EC61-EC62 -> 822.0456584 | ED63: =ED61-ED62 -> 822.0456584 | EE63: =EE61-EE62 -> 822.0456584 | EF63: =EF61-EF62 -> 822.0456584 | EG63: =EG61-EG62 -> 822.0456584 | EH63: =EH61-EH62 -> 791.73375 | EI63: =EI61-EI62 -> 791.73375 | EJ63: =EJ61-EJ62 -> 791.73375 | EK63: =EK61-EK62 -> 791.73375 | EL63: =EL61-EL62 -> 791.73375 | EM63: =EM61-EM62 -> 791.73375 | EN63: =EN61-EN62 -> 756.8009329 | EO63: =EO61-EO62 -> 756.8009329 | EP63: =EP61-EP62 -> 756.8009329 | EQ63: =EQ61-EQ62 -> 756.8009329 | ER63: =ER61-ER62 -> 756.8009329 | ES63: =ES61-ES62 -> 756.8009329 | ET63: =ET61-ET62 -> 723.7385383 | EU63: =EU61-EU62 -> 723.7385383 | EV63: =EV61-EV62 -> 723.7385383 | EW63: =EW61-EW62 -> 723.7385383 | EX63: =EX61-EX62 -> 723.7385383 | EY63: =EY61-EY62 -> 723.7385383 | EZ63: =EZ61-EZ62 -> 685.9065304 | FA63: =FA61-FA62 -> 685.9065304 | FB63: =FB61-FB62 -> 685.9065304 | FC63: =FC61-FC62 -> 685.9065304 | FD63: =FD61-FD62 -> 685.9065304 | FE63: =FE61-FE62 -> 685.9065304 | FF63: =FF61-FF62 -> 649.9245894 | FG63: =FG61-FG62 -> 649.9245894 | FH63: =FH61-FH62 -> 649.9245894 | FI63: =FI61-FI62 -> 649.9245894 | FJ63: =FJ61-FJ62 -> 649.9245894 | FK63: =FK61-FK62 -> 649.9245894 | FL63: =FL61-FL62 -> 609.0183624 | FM63: =FM61-FM62 -> 609.0183624 | FN63: =FN61-FN62 -> 609.0183624 | FO63: =FO61-FO62 -> 609.0183624 | FP63: =FP61-FP62 -> 609.0183624 | FQ63: =FQ61-FQ62 -> 609.0183624 | FR63: =FR61-FR62 -> 569.9383672 | FS63: =FS61-FS62 -> 569.9383672 | FT63: =FT61-FT62 -> 569.9383672 | FU63: =FU61-FU62 -> 569.9383672 | FV63: =FV61-FV62 -> 569.9383672 | FW63: =FW61-FW62 -> 569.9383672 | FX63: =FX61-FX62 -> 525.7731669 | FY63: =FY61-FY62 -> 525.7731669 | FZ63: =FZ61-FZ62 -> 525.7731669 | GA63: =GA61-GA62 -> 525.7731669 | GB63: =GB61-GB62 -> 525.7731669 | GC63: =GC61-GC62 -> 525.7731669 | GD63: =GD61-GD62 -> 483.4066508 | GE63: =GE61-GE62 -> 483.4066508 | GF63: =GF61-GF62 -> 483.4066508 | GG63: =GG61-GG62 -> 483.4066508 | GH63: =GH61-GH62 -> 483.4066508 | GI63: =GI61-GI62 -> 483.4066508 | GJ63: =GJ61-GJ62 -> 435.7874713 | GK63: =GK61-GK62 -> 435.7874713 | GL63: =GL61-GL62 -> 435.7874713 | GM63: =GM61-GM62 -> 435.7874713 | GN63: =GN61-GN62 -> 435.7874713 | GO63: =GO61-GO62 -> 435.7874713 | GP63: =GP61-GP62 -> 389.9354695 | GQ63: =GQ61-GQ62 -> 389.9354695 | GR63: =GR61-GR62 -> 389.9354695 | GS63: =GS61-GS62 -> 389.9354695 | GT63: =GT61-GT62 -> 389.9354695 | GU63: =GU61-GU62 -> 389.9354695 | GV63: =GV61-GV62 -> 338.6564994 | GW63: =GW61-GW62 -> 338.6564994 | GX63: =GX61-GX62 -> 338.6564994 | GY63: =GY61-GY62 -> 338.6564994 | GZ63: =GZ61-GZ62 -> 338.6564994 | HA63: =HA61-HA62 -> 338.6564994 | HB63: =HB61-HB62 -> 289.1089811 | HC63: =HC61-HC62 -> 289.1089811 | HD63: =HD61-HD62 -> 289.1089811 | HE63: =HE61-HE62 -> 289.1089811 | HF63: =HF61-HF62 -> 289.1089811 | HG63: =HG61-HG62 -> 289.1089811 | HH63: =HH61-HH62 -> 233.9530202 | HI63: =HI61-HI62 -> 233.9530202 | HJ63: =HJ61-HJ62 -> 233.9530202 | HK63: =HK61-HK62 -> 233.9530202 | HL63: =HL61-HL62 -> 233.9530202 | HM63: =HM61-HM62 -> 233.9530202 | HN63: =HN61-HN62 -> 180.4882905 | HO63: =HO61-HO62 -> 180.4882905 | HP63: =HP61-HP62 -> 180.4882905 | HQ63: =HQ61-HQ62 -> 180.4882905 | HR63: =HR61-HR62 -> 180.4882905 | HS63: =HS61-HS62 -> 180.4882905 | HT63: =HT61-HT62 -> 121.226135 | HU63: =HU61-HU62 -> 121.226135 | HV63: =HV61-HV62 -> 121.226135 | HW63: =HW61-HW62 -> 121.226135 | HX63: =HX61-HX62 -> 121.226135 | HY63: =HY61-HY62 -> 121.226135 | HZ63: =HZ61-HZ62 -> 63.61020471 | IA63: =IA61-IA62 -> 63.61020471 | IB63: =IB61-IB62 -> 63.61020471 | IC63: =IC61-IC62 -> 63.61020471 | ID63: =ID61-ID62 -> 63.61020471 | IE63: =IE61-IE62 -> 63.61020471 | IF63: =IF61-IF62 -> -5.86197757e-12 | IG63: =IG61-IG62 -> -5.86197757e-12 | IH63: =IH61-IH62 -> -5.86197757e-12 | II63: =II61-II62 -> -5.86197757e-12 | IJ63: =IJ61-IJ62 -> -5.86197757e-12 | IK63: =IK61-IK62 -> -5.86197757e-12 | IL63: =IL61-IL62 -> -6.015854481e-12 | IM63: =IM61-IM62 -> -6.015854481e-12 | IN63: =IN61-IN62 -> -6.015854481e-12 | IO63: =IO61-IO62 -> -6.015854481e-12 | IP63: =IP61-IP62 -> -6.015854481e-12 | IQ63: =IQ61-IQ62 -> -6.015854481e-12 | IR63: =IR61-IR62 -> -6.173770661e-12 | IS63: =IS61-IS62 -> -6.173770661e-12 | IT63: =IT61-IT62 -> -6.173770661e-12 | IU63: =IU61-IU62 -> -6.173770661e-12 | IV63: =IV61-IV62 -> -6.173770661e-12 | IW63: =IW61-IW62 -> -6.173770661e-12 | IX63: =IX61-IX62 -> -6.335832141e-12 | IY63: =IY61-IY62 -> -6.335832141e-12 | IZ63: =IZ61-IZ62 -> -6.335832141e-12 | JA63: =JA61-JA62 -> -6.335832141e-12 | JB63: =JB61-JB62 -> -6.335832141e-12 | JC63: =JC61-JC62 -> -6.335832141e-12 | JD63: =JD61-JD62 -> -6.502147735e-12 | JE63: =JE61-JE62 -> -6.502147735e-12 | JF63: =JF61-JF62 -> -6.502147735e-12 | JG63: =JG61-JG62 -> -6.502147735e-12 | JH63: =JH61-JH62 -> -6.502147735e-12 | JI63: =JI61-JI62 -> -6.502147735e-12 | JJ63: =JJ61-JJ62 -> -6.672829113e-12 | JK63: =JK61-JK62 -> -6.672829113e-12 | JL63: =JL61-JL62 -> -6.672829113e-12 | JM63: =JM61-JM62 -> -6.672829113e-12 | JN63: =JN61-JN62 -> -6.672829113e-12 | JO63: =JO61-JO62 -> -6.672829113e-12 | JP63: =JP61-JP62 -> -6.847990877e-12 | JQ63: =JQ61-JQ62 -> -6.847990877e-12 | JR63: =JR61-JR62 -> -6.847990877e-12 | JS63: =JS61-JS62 -> -6.847990877e-12 | JT63: =JT61-JT62 -> -6.847990877e-12 | JU63: =JU61-JU62 -> -6.847990877e-12 | JV63: =JV61-JV62 -> -7.027750638e-12 | JW63: =JW61-JW62 -> -7.027750638e-12 | JX63: =JX61-JX62 -> -7.027750638e-12 | JY63: =JY61-JY62 -> -7.027750638e-12 | JZ63: =JZ61-JZ62 -> -7.027750638e-12 | KA63: =KA61-KA62 -> -7.027750638e-12 | KB63: =KB61-KB62 -> -7.212229092e-12 | KC63: =KC61-KC62 -> -7.212229092e-12 | KD63: =KD61-KD62 -> -7.212229092e-12 | KE63: =KE61-KE62 -> -7.212229092e-12 | KF63: =KF61-KF62 -> -7.212229092e-12 | KG63: =KG61-KG62 -> -7.212229092e-12 | KH63: =KH61-KH62 -> -7.401550106e-12 | KI63: =KI61-KI62 -> -7.401550106e-12 | KJ63: =KJ61-KJ62 -> -7.401550106e-12 | KK63: =KK61-KK62 -> -7.401550106e-12 | KL63: =KL61-KL62 -> -7.401550106e-12 | KM63: =KM61-KM62 -> -7.401550106e-12 | KN63: =KN61-KN62 -> -7.595840796e-12 | KO63: =KO61-KO62 -> -7.595840796e-12 | KP63: =KP61-KP62 -> -7.595840796e-12 | KQ63: =KQ61-KQ62 -> -7.595840796e-12 | KR63: =KR61-KR62 -> -7.595840796e-12 | KS63: =KS61-KS62 -> -7.595840796e-12 | KT63: =KT61-KT62 -> -7.795231617e-12
D64: Interest | G64: =G61*G46*G5 -> 0 | H64: 0 | I64: 0 | J64: 0 | K64: 0 | L64: 26.775 | M64: 0 | N64: 0 | O64: 0 | P64: 0 | Q64: 0 | R64: 31.03517133 | S64: 0 | T64: 0 | U64: 0 | V64: 0 | W64: 0 | X64: 30.96745382 | Y64: 0 | Z64: 0 | AA64: 0 | AB64: 0 | AC64: 0 | AD64: 30.79572532 | AE64: 0 | AF64: 0 | AG64: 0 | AH64: 0 | AI64: 0 | AJ64: 30.64603766 | AK64: 0 | AL64: 0 | AM64: 0 | AN64: 0 | AO64: 0 | AP64: 30.38438861 | AQ64: 0 | AR64: 0 | AS64: 0 | AT64: 0 | AU64: 0 | AV64: 30.14651218 | AW64: 0 | AX64: 0 | AY64: 0 | AZ64: 0 | BA64: 0 | BB64: 29.79450008 | BC64: 0 | BD64: 0 | BE64: 0 | BF64: 0 | BG64: 0 | BH64: 29.4730887 | BI64: 0 | BJ64: 0 | BK64: 0 | BL64: 0 | BM64: 0 | BN64: 29.03855708 | BO64: 0 | BP64: 0 | BQ64: 0 | BR64: 0 | BS64: =BS61*BS46*BS5 -> 0 | BT64: 28.64054262 | BU64: 0 | BV64: 0 | BW64: 0 | BX64: 0 | BY64: 0 | BZ64: 28.13053067 | CA64: 0 | CB64: 0 | CC64: 0 | CD64: 0 | CE64: 0 | CF64: 27.66197419 | CG64: 0 | CH64: 0 | CI64: 0 | CJ64: 0 | CK64: 0 | CL64: 27.0824433 | CM64: 0 | CN64: 0 | CO64: 0 | CP64: 0 | CQ64: 0 | CR64: 26.54832768 | CS64: 0 | CT64: 0 | CU64: 0 | CV64: 0 | CW64: 0 | CX64: 25.90252908 | CY64: 0 | CZ64: 0 | DA64: 0 | DB64: 0 | DC64: 0 | DD64: 25.30396101 | DE64: 0 | DF64: 0 | DG64: 0 | DH64: 0 | DI64: 0 | DJ64: 24.59222701 | DK64: 0 | DL64: 0 | DM64: 0 | DN64: 0 | DO64: 0 | DP64: 23.9292294 | DQ64: 0 | DR64: 0 | DS64: 0 | DT64: 0 | DU64: 0 | DV64: 23.15162342 | DW64: 0 | DX64: 0 | DY64: 0 | DZ64: 0 | EA64: 0 | EB64: 22.4239335 | EC64: 0 | ED64: 0 | EE64: =EE61*EE46*EE5 -> 0 | EF64: 0 | EG64: 0 | EH64: 21.57869853 | EI64: 0 | EJ64: 0 | EK64: 0 | EL64: 0 | EM64: 0 | EN64: 20.78301094 | EO64: 0 | EP64: 0 | EQ64: 0 | ER64: 0 | ES64: 0 | ET64: 19.86602449 | EU64: 0 | EV64: 0 | EW64: 0 | EX64: 0 | EY64: 0 | EZ64: 18.99813663 | FA64: 0 | FB64: 0 | FC64: 0 | FD64: 0 | FE64: 0 | FF64: 18.00504642 | FG64: 0 | FH64: 0 | FI64: 0 | FJ64: 0 | FK64: 0 | FL64: 17.06052047 | FM64: 0 | FN64: 0 | FO64: 0 | FP64: 0 | FQ64: 0 | FR64: 15.98673201 | FS64: 0 | FT64: 0 | FU64: 0 | FV64: 0 | FW64: 0 | FX64: 14.96088214 | FY64: 0 | FZ64: 0 | GA64: 0 | GB64: 0 | GC64: 0 | GD64: 13.80154563 | GE64: 0 | GF64: 0 | GG64: 0 | GH64: 0 | GI64: 0 | GJ64: 12.68942458 | GK64: 0 | GL64: 0 | GM64: 0 | GN64: 0 | GO64: 0 | GP64: 11.43942112 | GQ64: =GQ61*GQ46*GQ5 -> 0 | GR64: 0 | GS64: 0 | GT64: 0 | GU64: 0 | GV64: 10.23580607 | GW64: 0 | GX64: 0 | GY64: 0 | GZ64: 0 | HA64: 0 | HB64: 8.88973311 | HC64: 0 | HD64: 0 | HE64: 0 | HF64: 0 | HG64: 0 | HH64: 7.589110754 | HI64: 0 | HJ64: 0 | HK64: 0 | HL64: 0 | HM64: 0 | HN64: 6.14126678 | HO64: 0 | HP64: 0 | HQ64: 0 | HR64: 0 | HS64: 0 | HT64: 4.737817626 | HU64: 0 | HV64: 0 | HW64: 0 | HX64: 0 | HY64: 0 | HZ64: 3.182186045 | IA64: 0 | IB64: 0 | IC64: 0 | ID64: 0 | IE64: 0 | IF64: 1.669767874 | IG64: 0 | IH64: 0 | II64: 0 | IJ64: 0 | IK64: 0 | IL64: -1.538769112e-13 | IM64: 0 | IN64: 0 | IO64: 0 | IP64: 0 | IQ64: 0 | IR64: -1.579161801e-13 | IS64: 0 | IT64: 0 | IU64: 0 | IV64: 0 | IW64: 0 | IX64: -1.620614799e-13 | IY64: 0 | IZ64: 0 | JA64: 0 | JB64: 0 | JC64: =JC61*JC46*JC5 -> 0 | JD64: -1.663155937e-13 | JE64: 0 | JF64: 0 | JG64: 0 | JH64: 0 | JI64: 0 | JJ64: -1.70681378e-13 | JK64: 0 | JL64: 0 | JM64: 0 | JN64: 0 | JO64: 0 | JP64: -1.751617642e-13 | JQ64: 0 | JR64: 0 | JS64: 0 | JT64: 0 | JU64: 0 | JV64: -1.797597605e-13 | JW64: 0 | JX64: 0 | JY64: 0 | JZ64: 0 | KA64: 0 | KB64: -1.844784542e-13 | KC64: 0 | KD64: 0 | KE64: 0 | KF64: 0 | KG64: 0 | KH64: -1.893210137e-13 | KI64: 0 | KJ64: 0 | KK64: 0 | KL64: 0 | KM64: 0 | KN64: -1.942906903e-13 | KO64: 0 | KP64: 0 | KQ64: 0 | KR64: 0 | KS64: 0 | KT64: -1.993908209e-13
D66: Check | E66: =ROUND(LOOKUP(E10,2:2,63:63),0)=0 -> FALSE
D68: DSCR | E68: =MIN(G68:AC68) -> 1.538193268 | G68: =IF(G55>1,G44/G55) -> FALSE | H68: =IF(H55>1,H44/H55) -> FALSE | I68: FALSE | J68: FALSE | K68: FALSE | L68: 1.538193268 | M68: FALSE | N68: FALSE | O68: FALSE | P68: FALSE | Q68: FALSE | R68: 1.538193268 | S68: FALSE | T68: FALSE | U68: FALSE | V68: FALSE | W68: FALSE | X68: 1.538193268 | Y68: FALSE | Z68: FALSE | AA68: FALSE | AB68: FALSE | AC68: FALSE | AD68: 1.538193268 | AE68: FALSE | AF68: FALSE | AG68: FALSE | AH68: FALSE | AI68: FALSE | AJ68: 1.538193268 | AK68: FALSE | AL68: FALSE | AM68: FALSE | AN68: FALSE | AO68: FALSE | AP68: 1.538193268 | AQ68: FALSE | AR68: FALSE | AS68: FALSE | AT68: FALSE | AU68: FALSE | AV68: 1.538193268 | AW68: FALSE | AX68: FALSE | AY68: FALSE | AZ68: FALSE | BA68: FALSE | BB68: 1.538193268 | BC68: FALSE | BD68: FALSE | BE68: FALSE | BF68: FALSE | BG68: FALSE | BH68: 1.538193268 | BI68: FALSE | BJ68: FALSE | BK68: FALSE | BL68: FALSE | BM68: FALSE | BN68: 1.538193268 | BO68: FALSE | BP68: FALSE | BQ68: FALSE | BR68: FALSE | BS68: FALSE | BT68: =IF(BT55>1,BT44/BT55) -> 1.538193268 | BU68: FALSE | BV68: FALSE | BW68: FALSE | BX68: FALSE | BY68: FALSE | BZ68: 1.538193268 | CA68: FALSE | CB68: FALSE | CC68: FALSE | CD68: FALSE | CE68: FALSE | CF68: 1.538193268 | CG68: FALSE | CH68: FALSE | CI68: FALSE | CJ68: FALSE | CK68: FALSE | CL68: 1.538193268 | CM68: FALSE | CN68: FALSE | CO68: FALSE | CP68: FALSE | CQ68: FALSE | CR68: 1.538193268 | CS68: FALSE | CT68: FALSE | CU68: FALSE | CV68: FALSE | CW68: FALSE | CX68: 1.538193268 | CY68: FALSE | CZ68: FALSE | DA68: FALSE | DB68: FALSE | DC68: FALSE | DD68: 1.538193268 | DE68: FALSE | DF68: FALSE | DG68: FALSE | DH68: FALSE | DI68: FALSE | DJ68: 1.538193268 | DK68: FALSE | DL68: FALSE | DM68: FALSE | DN68: FALSE | DO68: FALSE | DP68: 1.538193268 | DQ68: FALSE | DR68: FALSE | DS68: FALSE | DT68: FALSE | DU68: FALSE | DV68: 1.538193268 | DW68: FALSE | DX68: FALSE | DY68: FALSE | DZ68: FALSE | EA68: FALSE | EB68: 1.538193268 | EC68: FALSE | ED68: FALSE | EE68: FALSE | EF68: =IF(EF55>1,EF44/EF55) -> FALSE | EG68: FALSE | EH68: 1.538193268 | EI68: FALSE | EJ68: FALSE | EK68: FALSE | EL68: FALSE | EM68: FALSE | EN68: 1.538193268 | EO68: FALSE | EP68: FALSE | EQ68: FALSE | ER68: FALSE | ES68: FALSE | ET68: 1.538193268 | EU68: FALSE | EV68: FALSE | EW68: FALSE | EX68: FALSE | EY68: FALSE | EZ68: 1.538193268 | FA68: FALSE | FB68: FALSE | FC68: FALSE | FD68: FALSE | FE68: FALSE | FF68: 1.538193268 | FG68: FALSE | FH68: FALSE | FI68: FALSE | FJ68: FALSE | FK68: FALSE | FL68: 1.538193268 | FM68: FALSE | FN68: FALSE | FO68: FALSE | FP68: FALSE | FQ68: FALSE | FR68: 1.538193268 | FS68: FALSE | FT68: FALSE | FU68: FALSE | FV68: FALSE | FW68: FALSE | FX68: 1.538193268 | FY68: FALSE | FZ68: FALSE | GA68: FALSE | GB68: FALSE | GC68: FALSE | GD68: 1.538193268 | GE68: FALSE | GF68: FALSE | GG68: FALSE | GH68: FALSE | GI68: FALSE | GJ68: 1.538193268 | GK68: FALSE | GL68: FALSE | GM68: FALSE | GN68: FALSE | GO68: FALSE | GP68: 1.538193268 | GQ68: FALSE | GR68: =IF(GR55>1,GR44/GR55) -> FALSE | GS68: FALSE | GT68: FALSE | GU68: FALSE | GV68: 1.538193268 | GW68: FALSE | GX68: FALSE | GY68: FALSE | GZ68: FALSE | HA68: FALSE | HB68: 1.538193268 | HC68: FALSE | HD68: FALSE | HE68: FALSE | HF68: FALSE | HG68: FALSE | HH68: 1.538193268 | HI68: FALSE | HJ68: FALSE | HK68: FALSE | HL68: FALSE | HM68: FALSE | HN68: 1.538193268 | HO68: FALSE | HP68: FALSE | HQ68: FALSE | HR68: FALSE | HS68: FALSE | HT68: 1.538193268 | HU68: FALSE | HV68: FALSE | HW68: FALSE | HX68: FALSE | HY68: FALSE | HZ68: 1.538193268 | IA68: FALSE | IB68: FALSE | IC68: FALSE | ID68: FALSE | IE68: FALSE | IF68: 1.538193268 | IG68: FALSE | IH68: FALSE | II68: FALSE | IJ68: FALSE | IK68: FALSE | IL68: FALSE | IM68: FALSE | IN68: FALSE | IO68: FALSE | IP68: FALSE | IQ68: FALSE | IR68: FALSE | IS68: FALSE | IT68: FALSE | IU68: FALSE | IV68: FALSE | IW68: FALSE | IX68: FALSE | IY68: FALSE | IZ68: FALSE | JA68: FALSE | JB68: FALSE | JC68: FALSE | JD68: =IF(JD55>1,JD44/JD55) -> FALSE | JE68: FALSE | JF68: FALSE | JG68: FALSE | JH68: FALSE | JI68: FALSE | JJ68: FALSE | JK68: FALSE | JL68: FALSE | JM68: FALSE | JN68: FALSE | JO68: FALSE | JP68: FALSE | JQ68: FALSE | JR68: FALSE | JS68: FALSE | JT68: FALSE | JU68: FALSE | JV68: FALSE | JW68: FALSE | JX68: FALSE | JY68: FALSE | JZ68: FALSE | KA68: FALSE | KB68: FALSE | KC68: FALSE | KD68: FALSE | KE68: FALSE | KF68: FALSE | KG68: FALSE | KH68: FALSE | KI68: FALSE | KJ68: FALSE | KK68: FALSE | KL68: FALSE | KM68: FALSE | KN68: FALSE | KO68: FALSE | KP68: FALSE | KQ68: FALSE | KR68: FALSE | KS68: FALSE | KT68: FALSE
C72: IRR's
D73: Project Cash Flow | F73: =F41-F11 -> -1700 | G73: 3.355649861 | H73: 5.263102359 | I73: 7.984472087 | J73: 11.15663448 | K73: 12.4280314 | L73: 12.8532576 | M73: 12.96158631 | N73: 11.5097829 | O73: 11.22879136 | P73: 6.276133535 | Q73: 5.426599059 | R73: 4.30329766 | S73: 3.654773975 | T73: 5.729997003 | U73: 8.689353767 | V73: 12.13677135 | W73: 13.51453168 | X73: 13.9714205 | Y73: 14.08361687 | Z73: 12.50120483 | AA73: 12.1911997 | AB73: 6.811367324 | AC73: 5.887061258 | AD73: 4.666700739 | AE73: 3.961930316 | AF73: 6.209240028 | AG73: 9.412592934 | AH73: 13.14203783 | AI73: 14.62844922 | AJ73: 15.1173475 | AK73: 15.23305391 | AL73: 13.51644224 | AM73: 13.17633753 | AN73: 7.359025578 | AO73: 6.358026159 | AP73: 5.033220929 | AQ73: 4.267319511 | AR73: 6.678809615 | AS73: 10.11072222 | AT73: 14.09768821 | AU73: 15.67096582 | AV73: 16.17280528 | AW73: 16.27455143 | AX73: 14.42104484 | AY73: 14.03916676 | AZ73: 7.830314763 | BA73: 6.756060107 | BB73: 5.342573766 | BC73: 4.524733801 | BD73: 7.074085023 | BE73: 10.69760923 | BF73: 14.89998362 | BG73: 16.5450084 | BH73: 17.05650027 | BI73: 17.14537285 | BJ73: 15.17637235 | BK73: 14.75862567 | BL73: 8.222751095 | BM73: 7.087038106 | BN73: 5.599540174 | BO73: 4.738331551 | BP73: 7.401730391 | BQ73: 11.18356563 | BR73: =BR41-BR11 -> 15.5635952 | BS73: 17.26719136 | BT73: 17.78587394 | BU73: 17.86334528 | BV73: 15.79844733 | BW73: 15.35051412 | BX73: 8.545249088 | BY73: 7.358730953 | BZ73: 5.810302953 | CA73: 4.91337729 | CB73: 7.670014512 | CC73: 11.58114422 | CD73: 16.10606182 | CE73: 17.85703677 | CF73: 18.38108555 | CG73: 18.44875209 | CH73: 16.30522757 | CI73: 15.83228645 | CJ73: 8.807521169 | CK73: 7.579492882 | CL73: 5.982772596 | CM73: 5.057668098 | CN73: 7.892832586 | CO73: 11.91391972 | CP73: 16.56376477 | CQ73: 18.35885447 | CR73: 18.89182162 | CS73: 18.95554033 | CT73: 16.74798378 | CU73: 16.25720191 | CV73: 9.041122424 | CW73: 7.778131789 | CX73: 6.137911336 | CY73: 5.187419951 | CZ73: 8.093137894 | DA73: 12.2129811 | DB73: 16.97497086 | DC73: 18.80955535 | DD73: 19.35039138 | DE73: 19.41042535 | DF73: 17.14527213 | DG73: 16.63836387 | DH73: 9.250604959 | DI73: 7.956206554 | DJ73: 6.276952098 | DK73: 5.303676954 | DL73: 8.272562313 | DM73: 12.48079483 | DN73: 17.34311276 | DO73: 19.21294728 | DP73: 19.76071556 | DQ73: 19.81734261 | DR73: 17.50057022 | DS73: 16.9791477 | DT73: 9.437845319 | DU73: 8.115330685 | DV73: 6.40249114 | DW73: 5.409750493 | DX73: 8.438013559 | DY73: 12.73041072 | DZ73: 17.68997501 | EA73: 19.59720623 | EB73: 20.15592987 | EC73: 20.21368946 | ED73: =ED41-ED11 -> 17.85058162 | EE73: 17.31873065 | EF73: 9.626602225 | EG73: 8.277637299 | EH73: 6.530540963 | EI73: 5.517945503 | EJ73: 8.60677383 | EK73: 12.98501894 | EL73: 18.04377451 | EM73: 19.98915035 | EN73: 20.55904847 | EO73: 20.61796325 | EP73: 18.20759326 | EQ73: 17.66510527 | ER73: 9.81913427 | ES73: 8.443190045 | ET73: 6.661151782 | EU73: 5.628304413 | EV73: 8.778909307 | EW73: 13.24471932 | EX73: 18.40465 | EY73: 20.38893336 | EZ73: 20.97022944 | FA73: 21.03032252 | FB73: 18.57174512 | FC73: 18.01840737 | FD73: 10.01551696 | FE73: 8.612053846 | FF73: 6.794374818 | FG73: 5.740870501 | FH73: 8.954487493 | FI73: 13.5096137 | FJ73: 18.772743 | FK73: 20.79671203 | FL73: 21.38963403 | FM73: 21.45092897 | FN73: 18.94318002 | FO73: 18.37877552 | FP73: 10.21582729 | FQ73: 8.784294923 | FR73: 6.930262314 | FS73: 5.855687911 | FT73: 9.133577243 | FU73: 13.77980598 | FV73: 19.14819786 | FW73: 21.21264627 | FX73: 21.81742671 | FY73: 21.87994755 | FZ73: 19.32204363 | GA73: 18.74635103 | GB73: 10.42014384 | GC73: 8.959980821 | GD73: 7.06886756 | GE73: 5.972801669 | GF73: 9.316248788 | GG73: 14.0554021 | GH73: 19.53116182 | GI73: 21.63689919 | GJ73: 22.25377524 | GK73: 22.3175465 | GL73: 19.7084845 | GM73: 19.12127805 | GN73: 10.62854672 | GO73: 9.139180438 | GP73: =GP41-GP11 -> 7.210244911 | GQ73: 6.092257703 | GR73: 9.502573763 | GS73: 14.33651014 | GT73: 19.92178505 | GU73: 22.06963718 | GV73: 22.69885075 | GW73: 22.76389743 | GX73: 20.10265419 | GY73: 19.50370361 | GZ73: 10.84111765 | HA73: 9.321964046 | HB73: 7.35444981 | HC73: 6.214102857 | HD73: 9.692625239 | HE73: 14.62324034 | HF73: 20.32022076 | HG73: 22.51102992 | HH73: 23.15282776 | HI73: 23.21917538 | HJ73: 20.50470727 | HK73: 19.89377768 | HL73: 11.05794 | HM73: 9.508403327 | HN73: 7.501538806 | HO73: 6.338384914 | HP73: 9.886477743 | HQ73: 14.91570515 | HR73: 20.72662517 | HS73: 22.96125052 | HT73: 23.61588432 | HU73: 23.68355888 | HV73: 20.91480142 | HW73: 20.29165324 | HX73: 11.2790988 | HY73: 9.698571394 | HZ73: 7.651569582 | IA73: 6.465152612 | IB73: 10.0842073 | IC73: 15.21401925 | ID73: 21.14115767 | IE73: 23.42047553 | IF73: 24.08820201 | IG73: 24.15723006 | IH73: 21.33309745 | II73: 20.6974863 | IJ73: 11.50468078 | IK73: 9.892542822 | IL73: 7.804600974 | IM73: 6.594455664 | IN73: 10.28589144 | IO73: 15.51829964 | IP73: 21.56398083 | IQ73: 23.88888504 | IR73: 24.56996605 | IS73: 24.64037466 | IT73: 21.75975939 | IU73: 21.11143603 | IV73: 11.7347744 | IW73: 10.09039368 | IX73: 7.960692993 | IY73: 6.726344778 | IZ73: 10.49160927 | JA73: 15.82866563 | JB73: =JB41-JB11 -> 21.99526044 | JC73: 24.36666274 | JD73: 25.06136537 | JE73: 25.13318216 | JF73: 22.19495458 | JG73: 21.53366475 | JH73: 11.96946988 | JI73: 10.29220155 | JJ73: 8.119906853 | JK73: 6.860871673 | JL73: 10.70144146 | JM73: 16.14523894 | JN73: 22.43516565 | JO73: 24.85399599 | JP73: 25.56259267 | JQ73: 25.6358458 | JR73: 22.63885367 | JS73: 21.96433804 | JT73: 12.20885928 | JU73: 10.49804558 | JV73: 8.28230499 | JW73: 6.998089107 | JX73: 10.91547029 | JY73: 16.46814372 | JZ73: 22.88386897 | KA73: 25.35107591 | KB73: 26.07384453 | KC73: 26.14856272 | KD73: 23.09163075 | KE73: 22.4036248 | KF73: 12.45303647 | KG73: 10.70800649 | KH73: 8.44795109 | KI73: 7.138050889 | KJ73: 11.13377969 | KK73: 16.79750659 | KL73: 23.34154635 | KM73: 25.85809743 | KN73: 26.59532142 | KO73: 26.67153397 | KP73: 23.55346336 | KQ73: 22.8516973 | KR73: 12.7020972 | KS73: 10.92216662 | KT73: 8.616910112
D74: Project IRR | E74: =IRR(F73:KT73) -> 0.006361748379 | F74: =(1+E74)^(12)-1 -> 0.07906958502
D76: Equity Issued | F76: =F73+F63 -> -510
D77: Equity Cash Flow | F77: =F76 -> -510 | G77: =SUMIF(42:42,G42,41:41)*G5-G55 -> 0 | H77: =SUMIF(42:42,H42,41:41)*H5-H55 -> 0 | I77: 0 | J77: 0 | K77: 0 | L77: 18.55838877 | M77: 0 | N77: 0 | O77: 0 | P77: 0 | Q77: 0 | R77: 18.09130517 | S77: 0 | T77: 0 | U77: 0 | V77: 0 | W77: 0 | X77: 20.18735615 | Y77: 0 | Z77: 0 | AA77: 0 | AB77: 0 | AC77: 0 | AD77: 19.64303837 | AE77: 0 | AF77: 0 | AG77: 0 | AH77: 0 | AI77: 0 | AJ77: 21.85797721 | AK77: 0 | AL77: 0 | AM77: 0 | AN77: 0 | AO77: 0 | AP77: 21.22975874 | AQ77: 0 | AR77: 0 | AS77: 0 | AT77: 0 | AU77: 0 | AV77: 23.44181353 | AW77: 0 | AX77: 0 | AY77: 0 | AZ77: 0 | BA77: 0 | BB77: 22.62496855 | BC77: 0 | BD77: 0 | BE77: 0 | BF77: 0 | BG77: 0 | BH77: 24.77124619 | BI77: 0 | BJ77: 0 | BK77: 0 | BL77: 0 | BM77: 0 | BN77: 23.7886875 | BO77: 0 | BP77: 0 | BQ77: 0 | BR77: 0 | BS77: 0 | BT77: =SUMIF(42:42,BT42,41:41)*BT5-BT55 -> 25.87071866 | BU77: 0 | BV77: 0 | BW77: 0 | BX77: 0 | BY77: 0 | BZ77: 24.74628856 | CA77: 0 | CB77: 0 | CC77: 0 | CD77: 0 | CE77: 0 | CF77: 26.76937872 | CG77: 0 | CH77: 0 | CI77: 0 | CJ77: 0 | CK77: 0 | CL77: 25.52634788 | CM77: 0 | CN77: 0 | CO77: 0 | CP77: 0 | CQ77: 0 | CR77: 27.52868209 | CS77: 0 | CT77: 0 | CU77: 0 | CV77: 0 | CW77: 0 | CX77: 26.21276906 | CY77: 0 | CZ77: 0 | DA77: 0 | DB77: 0 | DC77: 0 | DD77: 28.21081942 | DE77: 0 | DF77: 0 | DG77: 0 | DH77: 0 | DI77: 0 | DJ77: 26.82854624 | DK77: 0 | DL77: 0 | DM77: 0 | DN77: 0 | DO77: 0 | DP77: 28.82149517 | DQ77: 0 | DR77: 0 | DS77: 0 | DT77: 0 | DU77: 0 | DV77: 27.37958365 | DW77: 0 | DX77: 0 | DY77: 0 | DZ77: 0 | EA77: 0 | EB77: 29.39792507 | EC77: 0 | ED77: 0 | EE77: 0 | EF77: =SUMIF(42:42,EF42,41:41)*EF5-EF55 -> 0 | EG77: 0 | EH77: 27.92717532 | EI77: 0 | EJ77: 0 | EK77: 0 | EL77: 0 | EM77: 0 | EN77: 29.98588358 | EO77: 0 | EP77: 0 | EQ77: 0 | ER77: 0 | ES77: 0 | ET77: 28.48571883 | EU77: 0 | EV77: 0 | EW77: 0 | EX77: 0 | EY77: 0 | EZ77: 30.58560125 | FA77: 0 | FB77: 0 | FC77: 0 | FD77: 0 | FE77: 0 | FF77: 29.0554332 | FG77: 0 | FH77: 0 | FI77: 0 | FJ77: 0 | FK77: 0 | FL77: 31.19731327 | FM77: 0 | FN77: 0 | FO77: 0 | FP77: 0 | FQ77: 0 | FR77: 29.63654187 | FS77: 0 | FT77: 0 | FU77: 0 | FV77: 0 | FW77: 0 | FX77: 31.82125954 | FY77: 0 | FZ77: 0 | GA77: 0 | GB77: 0 | GC77: 0 | GD77: 30.2292727 | GE77: 0 | GF77: 0 | GG77: 0 | GH77: 0 | GI77: 0 | GJ77: 32.45768473 | GK77: 0 | GL77: 0 | GM77: 0 | GN77: 0 | GO77: 0 | GP77: 30.83385816 | GQ77: 0 | GR77: =SUMIF(42:42,GR42,41:41)*GR5-GR55 -> 0 | GS77: 0 | GT77: 0 | GU77: 0 | GV77: 33.10683842 | GW77: 0 | GX77: 0 | GY77: 0 | GZ77: 0 | HA77: 0 | HB77: 31.45053532 | HC77: 0 | HD77: 0 | HE77: 0 | HF77: 0 | HG77: 0 | HH77: 33.76897519 | HI77: 0 | HJ77: 0 | HK77: 0 | HL77: 0 | HM77: 0 | HN77: 32.07954603 | HO77: 0 | HP77: 0 | HQ77: 0 | HR77: 0 | HS77: 0 | HT77: 34.44435469 | HU77: 0 | HV77: 0 | HW77: 0 | HX77: 0 | HY77: 0 | HZ77: 32.72113695 | IA77: 0 | IB77: 0 | IC77: 0 | ID77: 0 | IE77: 0 | IF77: 35.13324179 | IG77: 0 | IH77: 0 | II77: 0 | IJ77: 0 | IK77: 0 | IL77: 95.38963838 | IM77: 0 | IN77: 0 | IO77: 0 | IP77: 0 | IQ77: 0 | IR77: 102.4214787 | IS77: 0 | IT77: 0 | IU77: 0 | IV77: 0 | IW77: 0 | IX77: 97.29743115 | IY77: 0 | IZ77: 0 | JA77: 0 | JB77: 0 | JC77: 0 | JD77: =SUMIF(42:42,JD42,41:41)*JD5-JD55 -> 104.4699082 | JE77: 0 | JF77: 0 | JG77: 0 | JH77: 0 | JI77: 0 | JJ77: 99.24337978 | JK77: 0 | JL77: 0 | JM77: 0 | JN77: 0 | JO77: 0 | JP77: 106.5593064 | JQ77: 0 | JR77: 0 | JS77: 0 | JT77: 0 | JU77: 0 | JV77: 101.2282474 | JW77: 0 | JX77: 0 | JY77: 0 | JZ77: 0 | KA77: 0 | KB77: 108.6904925 | KC77: 0 | KD77: 0 | KE77: 0 | KF77: 0 | KG77: 0 | KH77: 103.2528123 | KI77: 0 | KJ77: 0 | KK77: 0 | KL77: 0 | KM77: 0 | KN77: 110.8643024 | KO77: 0 | KP77: 0 | KQ77: 0 | KR77: 0 | KS77: 0 | KT77: 105.3178686
D78: Equity IRR | E78: =IRR(F77:KTT77) -> 0.008841784378 | F78: =(1+E78)^(12)-1 -> 0.1114162426
C80: Graph
C82: Semi-annual | G82: 0 | H82: 1 | I82: 2 | J82: 3 | K82: 4 | L82: 5 | M82: 6 | N82: 7 | O82: 8 | P82: 9 | Q82: 10 | R82: 11 | S82: 12 | T82: 13 | U82: 14 | V82: 15 | W82: 16 | X82: 17 | Y82: 18 | Z82: 19 | AA82: 20 | AB82: 21 | AC82: 22 | AD82: 23 | AE82: 24 | AF82: 25 | AG82: 26 | AH82: 27 | AI82: 28 | AJ82: 29 | AK82: 30 | AL82: 31 | AM82: 32 | AN82: 33 | AO82: 34 | AP82: 35 | AQ82: 36 | AR82: 37 | AS82: 38 | AT82: 39 | AU82: 40 | AV82: 41 | AW82: 42 | AX82: 43 | AY82: 44 | AZ82: 45 | BA82: 46 | BB82: 47 | BC82: 48 | BD82: 49 | BE82: 50
D83: CFADS | G83: =SUMIF(42:42,G82,41:41) -> 53.04114779 | H83: 51.70619083 | I83: 57.69684828 | J83: 56.14115072 | K83: 62.47159782 | L83: 60.67610634 | M83: 66.99831066 | N83: 64.66371166 | O83: 70.79792034 | P83: 67.98970024 | Q83: 73.94028807 | R83: 70.72658973 | S83: 76.50872016 | T83: 72.95605275 | U83: 78.67886126 | V83: 74.91789157 | W83: 80.62845653 | X83: 76.67782496 | Y83: 82.37380969 | Z83: 78.25272767 | AA83: 84.02128589 | AB83: 79.81778223 | AC83: 85.7017116 | AD83: 81.41413787 | AE83: 87.41574584 | AF83: 83.04242063 | AG83: 89.16406075 | AH83: 84.70326904 | AI83: 90.94734197 | AJ83: 86.39733442 | AK83: 92.76628881 | AL83: 88.12528111 | AM83: =SUMIF(42:42,AM82,41:41) -> 94.62161458 | AN83: 89.88778673 | AO83: 96.51404688 | AP83: 91.68554247 | AQ83: 98.44432781 | AR83: 93.51925332 | AS83: 100.4132144 | AT83: 95.38963838 | AU83: 102.4214787 | AV83: 97.29743115 | AW83: 104.4699082 | AX83: 99.24337978 | AY83: 106.5593064 | AZ83: 101.2282474 | BA83: 108.6904925 | BB83: 103.2528123 | BC83: 110.8643024 | BD83: =SUMIF(42:42,BD82,41:41) -> 105.3178686 | BE83: 0
D84: Debt Service | G84: =SUMIF(42:42,G82,55:55) -> 34.48275902 | H84: =SUMIF(42:42,H82,55:55) -> 33.61488566 | I84: 37.50949212 | J84: 36.49811235 | K84: 40.61362061 | L84: 39.44634761 | M84: 43.55649712 | N84: 42.03874312 | O84: 46.02667416 | P84: 44.20101274 | Q84: 48.06956941 | R84: 45.98030117 | S84: 49.73934144 | T84: 47.42970488 | U84: 51.15017917 | V84: 48.70512251 | W84: 52.41763711 | X84: 49.84927873 | Y84: 53.55231452 | Z84: 50.87314403 | AA84: 54.62336081 | AB84: 51.89060691 | AC84: 55.71582803 | AD84: 52.92841905 | AE84: 56.83014459 | AF84: 53.98698743 | AG84: 57.96674748 | AH84: 55.06672718 | AI84: 59.12608243 | AJ84: 56.16806172 | AK84: 60.30860408 | AL84: 57.29142295 | AM84: 61.51477616 | AN84: 58.43725141 | AO84: 62.74507168 | AP84: 59.60599644 | AQ84: 63.99997312 | AR84: 60.79811637 | AS84: 65.27997258 | AT84: 0 | AU84: 0 | AV84: 0 | AW84: 0 | AX84: 0 | AY84: 0 | AZ84: 0 | BA84: 0 | BB84: 0 | BC84: 0 | BD84: 0 | BE84: 0

Sheet Multiple Issues One Fixed
D1: DSCR =CFADS/(DS1 + DS2)
D2: DS1 + DS2 =CFADS /DSCR
D3: DS1 =CFADS/DSCR - DS2
F4: 0 | G4: 1 | H4: 2 | I4: 3 | J4: 4 | K4: 5 | L4: 6 | M4: 7 | N4: 8 | O4: 9 | P4: 10 | Q4: 11 | R4: 12 | S4: 13 | T4: 14 | U4: 15
B5: Step 1: Aggregate DSCR
D6: CFADS | G6: 100 | H6: =G6 * 102% -> 102 | I6: =H6 * 102% -> 104.04 | J6: 106.1208 | K6: 108.243216 | L6: 110.4080803 | M6: 112.6162419 | N6: 114.8685668 | O6: 117.1659381 | P6: 119.5092569 | Q6: 121.899442 | R6: 124.3374308 | S6: 126.8241795 | T6: 129.360663 | U6: 131.9478763
D7: Aggregate Debt Service | E7: 1.25 | G7: =G6 / $E7 -> 80 | H7: 81.6 | I7: 83.232 | J7: 84.89664 | K7: 86.5945728 | L7: 88.32646426 | M7: 90.09299354 | N7: 91.89485341 | O7: 93.73275048 | P7: 95.60740549 | Q7: 97.5195536 | R7: 99.46994467 | S7: 101.4593436 | T7: 103.4885304 | U7: 105.558301
D9: Debt IRR - fixed | E9: =Debt_IRR_fixed -> 0.06284658814
D10: Total NPV of Debt Service | E10: =NPV($E9, G7:U7) -> 859.9221822
B12: Step 2: Non-Flexible Portion with Fixed Debt
D13: Issue 2 - Fixed | E13: 0.4
D14: Target Fixed Debt | E14: =E13*E10 -> 343.9688729
D15: Interest rate | G15: 0.03 | H15: 0.03 | I15: 0.03 | J15: 0.03 | K15: 0.03 | L15: 0.03 | M15: 0.03 | N15: 0.03 | O15: 0.03 | P15: 0.03 | Q15: 0.03 | R15: 0.03 | S15: 0.03 | T15: 0.03 | U15: 0.03
D16: Repayment Percent | G16: =1/10 -> 0.1 | H16: =1/10 -> 0.1 | I16: =1/10 -> 0.1 | J16: =1/10 -> 0.1 | K16: 0.1 | L16: 0.1 | M16: 0.1 | N16: 0.1 | O16: 0.1 | P16: 0.1 | Q16: 0 | R16: 0
D17: Repayment | F17: =E14 -> 343.9688729 | G17: =G16*$F$17 -> 34.39688729 | H17: =H16*$F$17 -> 34.39688729 | I17: 34.39688729 | J17: 34.39688729 | K17: 34.39688729 | L17: 34.39688729 | M17: 34.39688729 | N17: 34.39688729 | O17: 34.39688729 | P17: 34.39688729 | Q17: 0 | R17: 0 | S17: 0 | T17: 0 | U17: 0
D19: Balance | F19: =F17 -> 343.9688729 | G19: =F19-G17 -> 309.5719856 | H19: =G19-H17 -> 275.1750983 | I19: 240.778211 | J19: 206.3813237 | K19: 171.9844364 | L19: 137.5875492 | M19: 103.1906619 | N19: 68.79377458 | O19: 34.39688729 | P19: 0 | Q19: 0 | R19: 0 | S19: 0 | T19: 0 | U19: 0
D20: Interest | G20: =F19*G15 -> 10.31906619 | H20: =G19*H15 -> 9.287159568 | I20: 8.255252949 | J20: 7.223346331 | K20: 6.191439712 | L20: 5.159533093 | M20: 4.127626475 | N20: 3.095719856 | O20: 2.063813237 | P20: 1.031906619 | Q20: 0 | R20: 0 | S20: 0 | T20: 0 | U20: 0
D21: Debt Service | G21: =G20+G17 -> 44.71595348 | H21: =H20+H17 -> 43.68404686 | I21: 42.65214024 | J21: 41.62023362 | K21: 40.588327 | L21: 39.55642038 | M21: 38.52451376 | N21: 37.49260714 | O21: 36.46070053 | P21: 35.42879391 | Q21: 0 | R21: 0 | S21: 0 | T21: 0 | U21: 0
D23: Debt Service for Non-Capture | G23: =G21 -> 44.71595348 | H23: =H21 -> 43.68404686 | I23: 42.65214024 | J23: 41.62023362 | K23: 40.588327 | L23: 39.55642038 | M23: 38.52451376 | N23: 37.49260714 | O23: 36.46070053 | P23: 35.42879391 | Q23: 0 | R23: 0 | S23: 0 | T23: 0 | U23: 0
B25: Step 3: Flexible or Capture Issue
D26: Issue 1 - Capture Issue
D27: Interest rate | F27: 0.08
D28: Debt Service | G28: =G6/$E7 - G21 -> 35.28404652 | H28: 37.91595314 | I28: 40.57985976 | J28: 43.27640638 | K28: 46.0062458 | L28: 48.77004387 | M28: 51.56847978 | N28: 54.40224627 | O28: 57.27204995 | P28: 60.17861158 | Q28: 97.5195536 | R28: 99.46994467 | S28: 101.4593436 | T28: 103.4885304 | U28: 105.558301
D29: PV of Debt Service | E29: =NPV(F27, G28:U28) -> 494.3928705
D31: Total Debt | E31: =E14 + E29 -> 838.3617434
D32: Difference | E32: =E31-E40 -> -21.56043883
B34: Step 4: Total Debt Service and IRR
D35: Total debt cash flow | F35: =-E31 -> -838.3617434 | G35: =G23 + G28 -> 80 | H35: =H23 + H28 -> 81.6 | I35: 83.232 | J35: 84.89664 | K35: 86.5945728 | L35: 88.32646426 | M35: 90.09299354 | N35: 91.89485341 | O35: 93.73275048 | P35: 95.60740549 | Q35: 97.5195536 | R35: 99.46994467 | S35: 101.4593436 | T35: 103.4885304 | U35: 105.558301
D36: Debt IRR calculated | E36: =IRR(F35:U35) -> 0.06659918522
D37: Debt IRR fixed | E37: 0.06284658814
D38: Diff | E38: =Debt_IRR_calculated - Debt_IRR_fixed -> 0.003752597087
D40: Total Debt | E40: =E10 -> 859.9221822
D41: Target Debt | E41: =E29+F17 -> 838.3617434
B43: Graph
G44: =G4 -> 1 | H44: =H4 -> 2 | I44: 3 | J44: 4 | K44: 5 | L44: 6 | M44: 7 | N44: 8 | O44: 9 | P44: 10 | Q44: 11 | R44: 12 | S44: 13 | T44: 14 | U44: 15
D45: Debt Service 1 | G45: =G21 -> 44.71595348 | H45: =H21 -> 43.68404686 | I45: 42.65214024 | J45: 41.62023362 | K45: 40.588327 | L45: 39.55642038 | M45: 38.52451376 | N45: 37.49260714 | O45: 36.46070053 | P45: 35.42879391 | Q45: 0 | R45: 0 | S45: 0 | T45: 0 | U45: 0
D46: Debt Service 2 | G46: =G28 -> 35.28404652 | H46: =H28 -> 37.91595314 | I46: 40.57985976 | J46: 43.27640638 | K46: 46.0062458 | L46: 48.77004387 | M46: 51.56847978 | N46: 54.40224627 | O46: 57.27204995 | P46: 60.17861158 | Q46: 97.5195536 | R46: 99.46994467 | S46: 101.4593436 | T46: 103.4885304 | U46: 105.558301
D47: CFADS | G47: =G6-G45-G46 -> 20 | H47: =H6-H45-H46 -> 20.4 | I47: 20.808 | J47: 21.22416 | K47: 21.6486432 | L47: 22.08161606 | M47: 22.52324839 | N47: 22.97371335 | O47: 23.43318762 | P47: 23.90185137 | Q47: 24.3798884 | R47: 24.86748617 | S47: 25.36483589 | T47: 25.87213261 | U47: 26.38957526

Sheet Multiple Issues Flexible
E2: 0 | F2: 1 | G2: 2 | H2: 3 | I2: 4 | J2: 5 | K2: 6 | L2: 7 | M2: 8 | N2: 9 | O2: 10 | P2: 11 | Q2: 12 | R2: 13 | S2: 14 | T2: 15 | U2: 16 | V2: 17 | W2: 18 | X2: 19 | Y2: 20 | Z2: 21 | AA2: 22 | AB2: 23 | AC2: 24 | AD2: 25 | AE2: 26 | AF2: 27
C3: Longest Tenor | D3: 20 | F3: =F2<=$D$3 -> TRUE | G3: =G2<=$D$3 -> TRUE | H3: TRUE | I3: TRUE | J3: TRUE | K3: TRUE | L3: TRUE | M3: TRUE | N3: TRUE | O3: TRUE | P3: TRUE | Q3: TRUE | R3: TRUE | S3: TRUE | T3: TRUE | U3: TRUE | V3: TRUE | W3: TRUE | X3: TRUE | Y3: TRUE | Z3: FALSE | AA3: FALSE | AB3: FALSE | AC3: FALSE | AD3: FALSE | AE3: FALSE | AF3: FALSE
C4: CFADS | D4: 0.01 | F4: 100 | G4: =F4*(1+$D$4) -> 101 | H4: =G4*(1+$D$4) -> 102.01 | I4: 103.0301 | J4: 104.060401 | K4: 105.101005 | L4: 106.1520151 | M4: 107.2135352 | N4: 108.2856706 | O4: 109.3685273 | P4: 110.4622125 | Q4: 111.5668347 | R4: 112.682503 | S4: 113.809328 | T4: 114.9474213 | U4: =T4*(1+$D$4) -> 116.0968955 | V4: =U4*(1+$D$4) -> 117.2578645 | W4: =V4*(1+$D$4) -> 118.4304431 | X4: =W4*(1+$D$4) -> 119.6147476 | Y4: =X4*(1+$D$4) -> 120.810895 | Z4: =Y4*(1+$D$4) -> 122.019004 | AA4: =Z4*(1+$D$4) -> 123.239194 | AB4: =AA4*(1+$D$4) -> 124.471586 | AC4: =AB4*(1+$D$4) -> 125.7163018 | AD4: =AC4*(1+$D$4) -> 126.9734649 | AE4: =AD4*(1+$D$4) -> 128.2431995 | AF4: =AE4*(1+$D$4) -> 129.5256315
B6: Step 1: Aggregate Debt Size at Overall Debt IRR
C7: Aggregate Debt Service over Tenor | D7: 1.5
F8: =F4 / $D7*F3 -> 66.66666667 | G8: =G4 / $D7*G3 -> 67.33333333 | H8: 68.00666667 | I8: 68.68673333 | J8: 69.37360067 | K8: 70.06733667 | L8: 70.76801004 | M8: 71.47569014 | N8: 72.19044704 | O8: 72.91235151 | P8: 73.64147503 | Q8: 74.37788978 | R8: 75.12166868 | S8: 75.87288536 | T8: 76.63161422 | U8: 77.39793036 | V8: 78.17190966 | W8: 78.95362876 | X8: 79.74316505 | Y8: 80.5405967 | Z8: 0 | AA8: 0 | AB8: 0 | AC8: 0 | AD8: 0 | AE8: 0 | AF8: 0
C9: Debt IRR - for PV from Below | D9: =Debt_IRR_fixed -> 0.02896919399
C10: PV Debt Service =Debt | E10: =NPV($D9, F8:TT8) -> 1092.103504
C11: Difference | D11: =E31 -> 236.0192901
B13: Step 2: All of the Non-Capture Issue
C14: Issue 2 - Non-Capture | E14: 0.4
C15: Debt Amount from Percent | E15: =E14 * E$10 -> 436.8414015
C16: Tenor | E16: 13 | F16: =F2<=$E$16 -> TRUE | G16: =G2<=$E$16 -> TRUE | H16: TRUE | I16: TRUE | J16: TRUE | K16: TRUE | L16: TRUE | M16: TRUE | N16: TRUE | O16: TRUE | P16: TRUE | Q16: TRUE | R16: TRUE | S16: FALSE | T16: FALSE | U16: FALSE | V16: FALSE | W16: FALSE | X16: FALSE | Y16: FALSE | Z16: FALSE | AA16: FALSE | AB16: FALSE | AC16: FALSE | AD16: FALSE | AE16: FALSE | AF16: FALSE
C17: Interest rate | E17: 0.03 | F17: =E17 -> 0.03 | G17: =F17 -> 0.03 | H17: 0.03 | I17: 0.03 | J17: 0.03 | K17: 0.03 | L17: 0.03 | M17: 0.03 | N17: 0.03 | O17: 0.03 | P17: 0.03 | Q17: 0.03 | R17: 0.03 | S17: 0.03 | T17: 0.03 | U17: =T17 -> 0.03 | V17: =U17 -> 0.03 | W17: =V17 -> 0.03 | X17: =W17 -> 0.03 | Y17: =X17 -> 0.03 | Z17: =Y17 -> 0.03 | AA17: =Z17 -> 0.03 | AB17: =AA17 -> 0.03 | AC17: =AB17 -> 0.03 | AD17: =AC17 -> 0.03 | AE17: =AD17 -> 0.03 | AF17: =AE17 -> 0.03
C18: CFADS over Debt Tenor | F18: =F4*F16 -> 100 | G18: =G4*G16 -> 101 | H18: 102.01 | I18: 103.0301 | J18: 104.060401 | K18: 105.101005 | L18: 106.1520151 | M18: 107.2135352 | N18: 108.2856706 | O18: 109.3685273 | P18: 110.4622125 | Q18: 111.5668347 | R18: 112.682503 | S18: 0 | T18: 0 | U18: 0 | V18: 0 | W18: 0 | X18: 0 | Y18: 0 | Z18: 0 | AA18: 0 | AB18: 0 | AC18: 0 | AD18: 0 | AE18: 0 | AF18: 0
C19: PV CFADS | E19: =NPV(E17, F18:TT18) -> 1125.069278
C20: LLCR for Issue 2 | D20: =E19 / E15 -> 2.575463943
C21: DS for Issue 2 - Capture | D21: =NPV(E17,F21:TT21) -> 436.8414015 | F21: =F18 / $D20*F16 -> 38.82795575 | G21: =G18 / $D20*G16 -> 39.21623531 | H21: 39.60839766 | I21: 40.00448164 | J21: 40.40452645 | K21: 40.80857172 | L21: 41.21665744 | M21: 41.62882401 | N21: 42.04511225 | O21: 42.46556337 | P21: 42.89021901 | Q21: 43.3191212 | R21: 43.75231241 | S21: 0 | T21: 0 | U21: 0 | V21: 0 | W21: 0 | X21: 0 | Y21: 0 | Z21: 0 | AA21: 0 | AB21: 0 | AC21: 0 | AD21: 0 | AE21: 0 | AF21: 0
B23: Step 3: Compute Capture Debt Service
C24: Issue 1 - Capturing
C25: Interest rate | E25: 0.07 | F25: =$E$25 -> 0.07 | G25: =$E$25 -> 0.07 | H25: 0.07 | I25: 0.07 | J25: 0.07 | K25: 0.07 | L25: 0.07 | M25: 0.07 | N25: 0.07 | O25: 0.07 | P25: 0.07 | Q25: 0.07 | R25: 0.07 | S25: 0.07 | T25: 0.07 | U25: 0.07 | V25: 0.07 | W25: 0.07 | X25: 0.07 | Y25: 0.07 | Z25: 0.07 | AA25: 0.07 | AB25: 0.07 | AC25: 0.07 | AD25: 0.07 | AE25: 0.07 | AF25: 0.07
C26: Debt Service - Issue 1 Capturing | F26: =F4 / $D7 * F3- F21 -> 27.83871092 | G26: =G4 / $D7 * G3- G21 -> 28.11709803 | H26: 28.39826901 | I26: 28.6822517 | J26: 28.96907421 | K26: 29.25876496 | L26: 29.5513526 | M26: 29.84686613 | N26: 30.14533479 | O26: 30.44678814 | P26: 30.75125602 | Q26: 31.05876858 | R26: 31.36935627 | S26: 75.87288536 | T26: 76.63161422 | U26: 77.39793036 | V26: 78.17190966 | W26: 78.95362876 | X26: 79.74316505 | Y26: 80.5405967 | Z26: 0 | AA26: 0 | AB26: 0 | AC26: 0 | AD26: 0 | AE26: 0 | AF26: 0
C27: PV of DS | E27: =NPV(E25, F26:TT26) -> 419.2428122
C29: Total Debt Using PV | E29: =E15 + E27 -> 856.0842137
C30: Aggregate PV of Debt Service | E30: =E10 -> 1092.103504
C31: Diff | E31: =E10 - E29 -> 236.0192901
C33: Total debt cash flow Usin PV | E33: =-E29 -> -856.0842137 | F33: =F21 + F26 -> 66.66666667 | G33: 67.33333333 | H33: 68.00666667 | I33: 68.68673333 | J33: 69.37360067 | K33: 70.06733667 | L33: 70.76801004 | M33: 71.47569014 | N33: 72.19044704 | O33: 72.91235151 | P33: 73.64147503 | Q33: 74.37788978 | R33: 75.12166868 | S33: 75.87288536 | T33: 76.63161422 | U33: =U21 + U26 -> 77.39793036 | V33: 78.17190966 | W33: 78.95362876 | X33: 79.74316505 | Y33: 80.5405967 | Z33: 0 | AA33: 0 | AB33: 0 | AC33: 0 | AD33: 0 | AE33: 0 | AF33: 0
C34: Debt IRR | D34: =IRR(E33:T33) -> 0.02894338671
C35: Fixed Debt IRR | D35: 0.02896919399
C36: Difference | D36: =Debt_IRR_calculated - Debt_IRR_fixed -> -2.580727632e-05
C38: Capturing Debt | E38: DSCR =CFADS/(DS1 + DS2) | H38: DS1 + DS2 =CFADS /DSCR | K38: DS1 (capturing) =CFADS/DSCR - DS2
F40: =F2 -> 1 | G40: =G2 -> 2 | H40: 3 | I40: 4 | J40: 5 | K40: 6 | L40: 7 | M40: 8 | N40: 9 | O40: 10 | P40: 11 | Q40: 12 | R40: 13 | S40: 14 | T40: 15 | U40: 16 | V40: 17 | W40: 18 | X40: 19 | Y40: 20 | Z40: 21 | AA40: 22 | AB40: 23 | AC40: 24 | AD40: 25 | AE40: 26 | AF40: 27
C41: Debt Service 1 | F41: =F21 -> 38.82795575 | G41: =G21 -> 39.21623531 | H41: 39.60839766 | I41: 40.00448164 | J41: 40.40452645 | K41: 40.80857172 | L41: 41.21665744 | M41: 41.62882401 | N41: 42.04511225 | O41: 42.46556337 | P41: 42.89021901 | Q41: 43.3191212 | R41: 43.75231241 | S41: 0 | T41: 0 | U41: 0 | V41: 0 | W41: 0 | X41: 0 | Y41: 0 | Z41: 0 | AA41: 0 | AB41: 0 | AC41: 0 | AD41: 0 | AE41: 0 | AF41: 0
C42: Debt Service 2 | F42: =F26 -> 27.83871092 | G42: =G26 -> 28.11709803 | H42: 28.39826901 | I42: 28.6822517 | J42: 28.96907421 | K42: 29.25876496 | L42: 29.5513526 | M42: 29.84686613 | N42: 30.14533479 | O42: 30.44678814 | P42: 30.75125602 | Q42: 31.05876858 | R42: 31.36935627 | S42: 75.87288536 | T42: 76.63161422 | U42: 77.39793036 | V42: 78.17190966 | W42: 78.95362876 | X42: 79.74316505 | Y42: 80.5405967 | Z42: 0 | AA42: 0 | AB42: 0 | AC42: 0 | AD42: 0 | AE42: 0 | AF42: 0
C43: CFADS | F43: =F4-F41-F42 -> 33.33333333 | G43: =G4-G41-G42 -> 33.66666667 | H43: 34.00333333 | I43: =I4-I41-I42 -> 34.34336667 | J43: =J4-J41-J42 -> 34.68680033 | K43: =K4-K41-K42 -> 35.03366834 | L43: =L4-L41-L42 -> 35.38400502 | M43: =M4-M41-M42 -> 35.73784507 | N43: =N4-N41-N42 -> 36.09522352 | O43: =O4-O41-O42 -> 36.45617576 | P43: =P4-P41-P42 -> 36.82073751 | Q43: =Q4-Q41-Q42 -> 37.18894489 | R43: =R4-R41-R42 -> 37.56083434 | S43: =S4-S41-S42 -> 37.93644268 | T43: =T4-T41-T42 -> 38.31580711 | U43: =U4-U41-U42 -> 38.69896518 | V43: =V4-V41-V42 -> 39.08595483 | W43: =W4-W41-W42 -> 39.47681438 | X43: =X4-X41-X42 -> 39.87158252 | Y43: =Y4-Y41-Y42 -> 40.27029835 | Z43: =Z4-Z41-Z42 -> 122.019004 | AA43: =AA4-AA41-AA42 -> 123.239194 | AB43: =AB4-AB41-AB42 -> 124.471586 | AC43: =AC4-AC41-AC42 -> 125.7163018 | AD43: =AD4-AD41-AD42 -> 126.9734649 | AE43: =AE4-AE41-AE42 -> 128.2431995 | AF43: =AF4-AF41-AF42 -> 129.5256315

Sheet Fixed Debt Amt LLCR
E2: 0 | F2: 1 | G2: 2 | H2: 3 | I2: 4 | J2: 5 | K2: 6 | L2: 7 | M2: 8 | N2: 9 | O2: 10 | P2: 11 | Q2: 12 | R2: 13 | S2: 14 | T2: 15
C3: CFADS | E3: 0.03 | F3: 100 | G3: =F3*(1+$E$3) -> 103 | H3: =G3*(1+$E$3) -> 106.09 | I3: 109.2727 | J3: 112.550881 | K3: 115.9274074 | L3: 119.4052297 | M3: 122.9873865 | N3: 126.6770081 | O3: 130.4773184 | P3: 134.3916379 | Q3: 138.4233871 | R3: 142.5760887 | S3: 146.8533713 | T3: 151.2589725
B5: Inputs
C6: Total Debt | E6: 800
C7: Max Tenor | E7: =MAX(E21,E29) -> 12 | F7: =F2<=$E$7 -> TRUE | G7: =G2<=$E$7 -> TRUE | H7: TRUE | I7: TRUE | J7: TRUE | K7: TRUE | L7: TRUE | M7: TRUE | N7: TRUE | O7: TRUE | P7: TRUE | Q7: TRUE | R7: FALSE | S7: FALSE | T7: FALSE
B9: Aggregate - Just Add Up
C10: Aggregate DSCR from LLCR Below | E10: =E16 -> 1.368424458 | F10: =F3 / $E10*F7 -> 73.0767412 | G10: 75.26904344 | H10: 77.52711474 | I10: 79.85292818 | J10: 82.24851603 | K10: 84.71597151 | L10: 87.25745066 | M10: 89.87517418 | N10: 92.5714294 | O10: 95.34857228 | P10: 98.20902945 | Q10: 101.1553003 | R10: 0 | S10: 0 | T10: 0
C11: Fixed Debt | E11: =E6 -> 800
C12: CFADS over Tenor | F12: =F3*F7 -> 100 | G12: =G3*G7 -> 103 | H12: 106.09 | I12: 109.2727 | J12: 112.550881 | K12: 115.9274074 | L12: 119.4052297 | M12: 122.9873865 | N12: 126.6770081 | O12: 130.4773184 | P12: 134.3916379 | Q12: 138.4233871 | R12: 0 | S12: 0 | T12: 0
C13: Debt IRR | E13: =D39 -> 0.04
C14: PV CFADS | E14: =NPV(E13,F12:T12) -> 1094.739567
C15: No Circularity in Debt IRR
C16: LLCR from Aggregate PV CFADS | E16: =E14 / E11 -> 1.368424458
B18: Compute LLCR for Capture Debt Issue
C19: Issue 2 | D19: 0.4 | E19: =D19 * E$11 -> 320
C20: Interest rate | F20: 0.04 | G20: =F20 -> 0.04 | H20: =G20 -> 0.04 | I20: 0.04 | J20: 0.04 | K20: 0.04 | L20: 0.04 | M20: 0.04 | N20: 0.04 | O20: 0.04 | P20: 0.04 | Q20: 0.04 | R20: 0.04 | S20: 0.04 | T20: 0.04
C21: Tenor | E21: 8 | F21: =F2<=$E$21 -> TRUE | G21: TRUE | H21: TRUE | I21: TRUE | J21: TRUE | K21: TRUE | L21: TRUE | M21: TRUE | N21: FALSE | O21: FALSE | P21: FALSE | Q21: FALSE | R21: FALSE | S21: FALSE | T21: FALSE
C22: CFADS | F22: =F21*F3 -> 100 | G22: =G21*G3 -> 103 | H22: 106.09 | I22: 109.2727 | J22: 112.550881 | K22: 115.9274074 | L22: 119.4052297 | M22: 122.9873865 | N22: 0 | O22: 0 | P22: 0 | Q22: 0 | R22: 0 | S22: 0 | T22: 0
C23: PV CFADS at Interest Rate for Issue | E23: =NPV(F20, F22:T22) -> 743.8350954
C24: LLCR | E24: =E23 / E19 -> 2.324484673
C25: Debt Service - Non-Capture | E25: =NPV(F20,F25:T25) -> 320 | F25: =F3 / $E24*F21 -> 43.02028796 | G25: =G3 / $E24*G21 -> 44.3108966 | H25: 45.6402235 | I25: 47.0094302 | J25: 48.41971311 | K25: 49.8723045 | L25: 51.36847364 | M25: 52.90952785 | N25: 0 | O25: 0 | P25: 0 | Q25: 0 | R25: 0 | S25: 0 | T25: 0
B26: =#REF! -> 
C27: Interest rate | E27: 0.04
C28: Issue 1 | D28: =1 - D19 -> 0.6 | E28: =D28 * E11 -> 480
C29: Tenor | E29: 12 | F29: =F2<=$E$29 -> TRUE | G29: =G2<=$E$29 -> TRUE | H29: TRUE | I29: TRUE | J29: TRUE | K29: TRUE | L29: TRUE | M29: TRUE | N29: TRUE | O29: TRUE | P29: TRUE | Q29: TRUE | R29: FALSE | S29: FALSE | T29: FALSE
C30: Debt Service - Capture | F30: =F12/$E$16-F25 -> 30.05645324 | G30: 30.95814684 | H30: 31.88689124 | I30: 32.84349798 | J30: 33.82880292 | K30: 34.84366701 | L30: 35.88897702 | M30: 36.96564633 | N30: 92.5714294 | O30: 95.34857228 | P30: 98.20902945 | Q30: 101.1553003 | R30: 0 | S30: 0 | T30: 0
C32: DS Aggregate | F32: =F30 + F25 -> 73.0767412 | G32: 75.26904344 | H32: 77.52711474 | I32: 79.85292818 | J32: 82.24851603 | K32: 84.71597151 | L32: 87.25745066 | M32: 89.87517418 | N32: 92.5714294 | O32: 95.34857228 | P32: 98.20902945 | Q32: 101.1553003 | R32: 0 | S32: 0 | T32: 0
C33: PV of DS | E33: =NPV(E27,F30:T30) -> 480
C34: DSCR | F34: =IF(F32,F3/F32) -> 1.368424458 | G34: 1.368424458 | H34: 1.368424458 | I34: 1.368424458 | J34: 1.368424458 | K34: 1.368424458 | L34: 1.368424458 | M34: 1.368424458 | N34: 1.368424458 | O34: 1.368424458 | P34: 1.368424458 | Q34: 1.368424458 | R34: FALSE | S34: FALSE | T34: FALSE
B36: Compute Debt IRR
C37: Total debt cash flow | E37: =-E33-E25 -> -800 | F37: =F10 -> 73.0767412 | G37: =G32 -> 75.26904344 | H37: 77.52711474 | I37: 79.85292818 | J37: 82.24851603 | K37: 84.71597151 | L37: 87.25745066 | M37: 89.87517418 | N37: 92.5714294 | O37: 95.34857228 | P37: 98.20902945 | Q37: 101.1553003 | R37: 0 | S37: 0 | T37: 0
C38: Debt IRR | D38: =IRR(E37:T37) -> 0.04
C39: Fixed | D39: 0.04
C40: Difference | D40: =D38-D39 -> -1.33226763e-15
E42: DSCR =CFADS/(DS1 + DS2) | H42: DS1 + DS2 =CFADS /DSCR | K42: DS1 =CFADS/DSCR - DS2
B44: Graph | F44: =F2 -> 1 | G44: =G2 -> 2 | H44: 3 | I44: 4 | J44: 5 | K44: 6 | L44: 7 | M44: 8 | N44: 9 | O44: 10 | P44: 11 | Q44: 12 | R44: 13 | S44: 14 | T44: 15
C45: Debt Issue 1 | F45: =F25 -> 43.02028796 | G45: =G25 -> 44.3108966 | H45: 45.6402235 | I45: 47.0094302 | J45: 48.41971311 | K45: 49.8723045 | L45: 51.36847364 | M45: 52.90952785 | N45: 0 | O45: 0 | P45: 0 | Q45: 0 | R45: 0 | S45: 0 | T45: 0
C46: Debt Issue 2 | F46: =F30 -> 30.05645324 | G46: =G30 -> 30.95814684 | H46: 31.88689124 | I46: 32.84349798 | J46: 33.82880292 | K46: 34.84366701 | L46: 35.88897702 | M46: 36.96564633 | N46: 92.5714294 | O46: 95.34857228 | P46: 98.20902945 | Q46: 101.1553003 | R46: 0 | S46: 0 | T46: 0
C47: CFADS | F47: =F3-F45-F46 -> 26.9232588 | G47: =G3-G45-G46 -> 27.73095656 | H47: 28.56288526 | I47: =I3-I45-I46 -> 29.41977182 | J47: =J3-J45-J46 -> 30.30236497 | K47: =K3-K45-K46 -> 31.21143592 | L47: =L3-L45-L46 -> 32.147779 | M47: =M3-M45-M46 -> 33.11221237 | N47: =N3-N45-N46 -> 34.10557874 | O47: =O3-O45-O46 -> 35.1287461 | P47: =P3-P45-P46 -> 36.18260848 | Q47: =Q3-Q45-Q46 -> 37.26808674 | R47: =R3-R45-R46 -> 142.5760887 | S47: =S3-S45-S46 -> 146.8533713 | T47: =T3-T45-T46 -> 151.2589725

Sheet Steps (2)
C2: Do not need a capture issue
C4: 1. Use the Varying Input DSCR
C5: 3. Set the End Row to the Debt Tenor of the Shortest Issue
C8: 4. For the Non-Capture Issue, Use Same DSCR
C9: 4. For the Non-Capture Issue, Compute the PV of Debt Service
C10: 5. Compute a factor for the PV of Debt Service/Target Debt

Sheet Multiple Issues Changing DSCR
E2: 0 | F2: 1 | G2: 2 | H2: 3 | I2: 4 | J2: 5 | K2: 6 | L2: 7 | M2: 8 | N2: 9 | O2: 10 | P2: 11 | Q2: 12 | R2: 13 | S2: 14 | T2: 15 | U2: 16 | V2: 17 | W2: 18 | X2: 19 | Y2: 20 | Z2: 21 | AA2: 22 | AB2: 23 | AC2: 24 | AD2: 25 | AE2: 26 | AF2: 27
C3: Longest Tenor | D3: 17 | F3: =F2<=$D$3 -> TRUE | G3: =G2<=$D$3 -> TRUE | H3: TRUE | I3: TRUE | J3: TRUE | K3: TRUE | L3: TRUE | M3: TRUE | N3: TRUE | O3: TRUE | P3: TRUE | Q3: TRUE | R3: TRUE | S3: TRUE | T3: TRUE | U3: TRUE | V3: TRUE | W3: FALSE | X3: FALSE | Y3: FALSE | Z3: FALSE | AA3: FALSE | AB3: FALSE | AC3: FALSE | AD3: FALSE | AE3: FALSE | AF3: FALSE
C4: CFADS | D4: 0.01 | F4: 100 | G4: =F4*(1+$D$4) -> 101 | H4: =G4*(1+$D$4) -> 102.01 | I4: 103.0301 | J4: 104.060401 | K4: 105.101005 | L4: 106.1520151 | M4: 107.2135352 | N4: 108.2856706 | O4: 109.3685273 | P4: 110.4622125 | Q4: 111.5668347 | R4: 112.682503 | S4: 113.809328 | T4: 114.9474213 | U4: 116.0968955 | V4: 117.2578645 | W4: 118.4304431 | X4: 119.6147476 | Y4: 120.810895 | Z4: 122.019004 | AA4: 123.239194 | AB4: 124.471586 | AC4: 125.7163018 | AD4: 126.9734649 | AE4: 128.2431995 | AF4: 129.5256315
B6: Step 1: Aggregate Debt Size at Overall Debt IRR
C7: Aggregate Debt Service over Tenor | D7: 1.5
C8: DSCR | F8: 2 | G8: =F8-0.1 -> 1.9 | H8: =G8-0.1 -> 1.8 | I8: 1.7 | J8: 1.6 | K8: 1.5 | L8: 1.4 | M8: 1.3 | N8: 1.2 | O8: 1.2 | P8: 1.2 | Q8: 1.2 | R8: 1.2 | S8: 1.2 | T8: 1.2 | U8: 1.2 | V8: 1.2 | W8: 1.2 | X8: 1.2 | Y8: 1.2 | Z8: 1.2 | AA8: 1.2 | AB8: 1.2 | AC8: 1.2 | AD8: 1.2 | AE8: 1.2 | AF8: 1.2
C9: Debt Service | F9: =F4/F8*F3 -> 50 | G9: =G4/G8*G3 -> 53.15789474 | H9: 56.67222222 | I9: 60.60594118 | J9: 65.03775063 | K9: 70.06733667 | L9: 75.8228679 | M9: 82.47195016 | N9: 90.2380588 | O9: 91.14043939 | P9: 92.05184378 | Q9: 92.97236222 | R9: 93.90208584 | S9: 94.8411067 | T9: 95.78951777 | U9: 96.74741295 | V9: 97.71488708 | W9: 0 | X9: 0 | Y9: 0 | Z9: 0 | AA9: 0 | AB9: 0 | AC9: 0 | AD9: 0 | AE9: 0 | AF9: 0
C10: Debt IRR - for PV from Below | D10: =Debt_IRR_fixed -> 0.05116982896
C11: PV Debt Service =Debt | E11: =NPV($D10, F9:TT9) -> 849.6094526
C12: Difference | D12: =E33 -> -0.1893558703
B14: Step 2: All of the Non-Capture Issue
C15: Issue 2 - Non-Capture | E15: 0.6
C16: Debt Amount from Percent | E16: =E15 * E$11 -> 509.7656715
C17: Tenor | E17: 13 | F17: =F2<=$E$17 -> TRUE | G17: =G2<=$E$17 -> TRUE | H17: TRUE | I17: TRUE | J17: TRUE | K17: TRUE | L17: TRUE | M17: TRUE | N17: TRUE | O17: TRUE | P17: TRUE | Q17: TRUE | R17: TRUE | S17: FALSE | T17: FALSE | U17: FALSE | V17: FALSE | W17: FALSE | X17: FALSE | Y17: FALSE | Z17: FALSE | AA17: FALSE | AB17: FALSE | AC17: FALSE | AD17: FALSE | AE17: FALSE | AF17: FALSE
C18: Interest rate | E18: 0.03 | F18: =E18 -> 0.03 | G18: =F18 -> 0.03 | H18: 0.03 | I18: 0.03 | J18: 0.03 | K18: 0.03 | L18: 0.03 | M18: 0.03 | N18: 0.03 | O18: 0.03 | P18: 0.03 | Q18: 0.03 | R18: 0.03 | S18: 0.03 | T18: 0.03 | U18: 0.03 | V18: 0.03 | W18: 0.03 | X18: 0.03 | Y18: 0.03 | Z18: 0.03 | AA18: 0.03 | AB18: 0.03 | AC18: 0.03 | AD18: 0.03 | AE18: 0.03 | AF18: 0.03
C19: Full Debt Service at DSCR | F19: =F4/F8*F17 -> 50 | G19: =G4/G8*G17 -> 53.15789474 | H19: 56.67222222 | I19: 60.60594118 | J19: 65.03775063 | K19: 70.06733667 | L19: 75.8228679 | M19: 82.47195016 | N19: 90.2380588 | O19: 91.14043939 | P19: 92.05184378 | Q19: 92.97236222 | R19: 93.90208584 | S19: 0 | T19: 0 | U19: 0 | V19: 0 | W19: 0 | X19: 0 | Y19: 0 | Z19: 0 | AA19: 0 | AB19: 0 | AC19: 0 | AD19: 0 | AE19: 0 | AF19: 0
C20: Hypothetical PV of Full Debt Service | E20: =NPV(E18, F19:TT19) -> 778.5271948
C21: Total Debt from Multiplication | E21: =E15*E11 -> 509.7656715
C22: Factor to Apply to Debt Service | E22: =E21/E20 -> 0.6547821
C23: DS for Issue 2 - Capture | D23: =NPV(E18,F23:TT23) -> 509.7656715 | F23: =F19*$E$22 -> 32.739105 | G23: =G19*$E$22 -> 34.80683795 | H23: 37.10795668 | I23: 39.68368544 | J23: 42.58555493 | K23: 45.87883785 | L23: 49.64745667 | M23: 54.00115672 | N23: 59.08626564 | O23: 59.6771283 | P23: 60.27389958 | Q23: 60.87663858 | R23: 61.48540496 | S23: 0 | T23: 0 | U23: 0 | V23: 0 | W23: 0 | X23: 0 | Y23: 0 | Z23: 0 | AA23: 0 | AB23: 0 | AC23: 0 | AD23: 0 | AE23: 0 | AF23: 0
B25: Step 3: Compute Capture Debt Service
C26: Issue 1 - Capturing
C27: Interest rate | E27: 0.07 | F27: =$E$27 -> 0.07 | G27: =$E$27 -> 0.07 | H27: 0.07 | I27: 0.07 | J27: 0.07 | K27: 0.07 | L27: 0.07 | M27: 0.07 | N27: 0.07 | O27: 0.07 | P27: 0.07 | Q27: 0.07 | R27: 0.07 | S27: 0.07 | T27: 0.07 | U27: 0.07 | V27: 0.07 | W27: 0.07 | X27: 0.07 | Y27: 0.07 | Z27: 0.07 | AA27: 0.07 | AB27: 0.07 | AC27: 0.07 | AD27: 0.07 | AE27: 0.07 | AF27: 0.07
C28: Debt Service - Issue 1 Capturing | F28: =F4 / F8 * F3- F23 -> 17.260895 | G28: 18.35105679 | H28: 19.56426554 | I28: 20.92225574 | J28: 22.45219569 | K28: 24.18849882 | L28: 26.17541123 | M28: 28.47079344 | N28: 31.15179316 | O28: 31.46331109 | P28: 31.7779442 | Q28: 32.09572364 | R28: 32.41668088 | S28: 94.8411067 | T28: 95.78951777 | U28: 96.74741295 | V28: 97.71488708 | W28: 0 | X28: 0 | Y28: 0 | Z28: 0 | AA28: 0 | AB28: 0 | AC28: 0 | AD28: 0 | AE28: 0 | AF28: 0
C29: PV of DS | E29: =NPV(E27, F28:TT28) -> 340.0331369
C31: Total Debt Using PV | E31: =E16 + E29 -> 849.7988084
C32: Aggregate PV of Debt Service | E32: =E11 -> 849.6094526
C33: Diff | E33: =E11 - E31 -> -0.1893558703
C35: Total debt cash flow Usin PV | E35: =-E31 -> -849.7988084 | F35: =F23 + F28 -> 50 | G35: 53.15789474 | H35: 56.67222222 | I35: 60.60594118 | J35: 65.03775063 | K35: 70.06733667 | L35: 75.8228679 | M35: 82.47195016 | N35: 90.2380588 | O35: 91.14043939 | P35: 92.05184378 | Q35: 92.97236222 | R35: 93.90208584 | S35: 94.8411067 | T35: 95.78951777 | U35: 96.74741295 | V35: 97.71488708 | W35: 0 | X35: 0 | Y35: 0 | Z35: 0 | AA35: 0 | AB35: 0 | AC35: 0 | AD35: 0 | AE35: 0 | AF35: 0
C36: Debt IRR | D36: =IRR(E35:TT35) -> 0.05114338483
C37: Fixed Debt IRR | D37: 0.05116982896
C38: Difference | D38: =Debt_IRR_calculated - Debt_IRR_fixed -> -2.644413763e-05
C40: Capturing Debt | E40: DSCR =CFADS/(DS1 + DS2) | H40: DS1 + DS2 =CFADS /DSCR | K40: DS1 (capturing) =CFADS/DSCR - DS2
F42: =F2 -> 1 | G42: 2 | H42: 3 | I42: 4 | J42: 5 | K42: 6 | L42: 7 | M42: 8 | N42: 9 | O42: 10 | P42: 11 | Q42: 12 | R42: 13 | S42: 14 | T42: 15 | U42: 16 | V42: 17 | W42: 18 | X42: 19 | Y42: 20 | Z42: 21 | AA42: 22 | AB42: 23 | AC42: 24 | AD42: 25 | AE42: 26 | AF42: 27
C43: Debt Service 1 | F43: =F23 -> 32.739105 | G43: =G23 -> 34.80683795 | H43: 37.10795668 | I43: 39.68368544 | J43: 42.58555493 | K43: 45.87883785 | L43: 49.64745667 | M43: 54.00115672 | N43: 59.08626564 | O43: 59.6771283 | P43: 60.27389958 | Q43: 60.87663858 | R43: 61.48540496 | S43: 0 | T43: 0 | U43: 0 | V43: 0 | W43: 0 | X43: 0 | Y43: 0 | Z43: 0 | AA43: 0 | AB43: 0 | AC43: 0 | AD43: 0 | AE43: 0 | AF43: 0
C44: Debt Service 2 | F44: =F28 -> 17.260895 | G44: =G28 -> 18.35105679 | H44: 19.56426554 | I44: 20.92225574 | J44: 22.45219569 | K44: 24.18849882 | L44: 26.17541123 | M44: 28.47079344 | N44: 31.15179316 | O44: 31.46331109 | P44: 31.7779442 | Q44: 32.09572364 | R44: 32.41668088 | S44: 94.8411067 | T44: 95.78951777 | U44: 96.74741295 | V44: 97.71488708 | W44: 0 | X44: 0 | Y44: 0 | Z44: 0 | AA44: 0 | AB44: 0 | AC44: 0 | AD44: 0 | AE44: 0 | AF44: 0
C45: CFADS | F45: =F4-F43-F44 -> 50 | G45: 47.84210526 | H45: 45.33777778 | I45: 42.42415882 | J45: 39.02265037 | K45: 35.03366834 | L45: 30.32914716 | M45: 24.74158505 | N45: 18.04761176 | O45: 18.22808788 | P45: 18.41036876 | Q45: 18.59447244 | R45: 18.78041717 | S45: 18.96822134 | T45: 19.15790355 | U45: 19.34948259 | V45: 19.54297742 | W45: 118.4304431 | X45: 119.6147476 | Y45: 120.810895 | Z45: 122.019004 | AA45: 123.239194 | AB45: 124.471586 | AC45: 125.7163018 | AD45: 126.9734649 | AE45: 128.2431995 | AF45: 129.5256315

Sheet Changing DSCR - Fixed
D2: Time | G2: 1 | H2: 2 | I2: 3 | J2: 4 | K2: 5 | L2: 6 | M2: 7 | N2: 8 | O2: 9 | P2: 10 | Q2: 11 | R2: 12 | S2: 13
D3: CFADS | G3: 100 | H3: 120 | I3: 130 | J3: 80 | K3: 100 | L3: 150 | M3: 106 | N3: 107 | O3: 108 | P3: 109 | Q3: 110 | R3: 111 | S3: 112
D4: DSCR | G4: 2.5 | H4: 2.4 | I4: 2.3 | J4: 2.2 | K4: 2 | L4: 1.5 | M4: 1.5 | N4: 1.5 | O4: 1.5 | P4: 1.5 | Q4: 1.5 | R4: 1.5 | S4: 1.5
E6: Number | F6: Debt | G6: Tenor | H6: Rate
H7: 1 | I7: 5
D8: Capture | E8: 1 | F8: 200 | G8: 10 | H8: 0.1 | I8: 0.08
D9: Non Capture | E9: 2 | F9: 150 | G9: 7 | H9: 0.04 | I9: 0.03
D10: Non Capture | E10: 3 | F10: 130 | G10: 6 | H10: 0.02 | I10: 0.05
D12: Total | F12: =SUM(F8:F11) -> 480
D14: Aggregate Debt Service Before Adjustment | G14: =G3/G4 -> 40 | H14: 50 | I14: 56.52173913 | J14: 36.36363636 | K14: 50 | L14: 100 | M14: 70.66666667 | N14: 71.33333333 | O14: 72 | P14: 72.66666667 | Q14: 73.33333333 | R14: 74 | S14: 74.66666667
D15: Debt IRR
B17: Debt Service Calculations
D18: Debt 2 - Interest Rate | G18: =LOOKUP(G2,7:7,9:9) -> 0.04 | H18: 0.04 | I18: 0.04 | J18: 0.04 | K18: 0.03 | L18: 0.03 | M18: 0.03 | N18: 0.03 | O18: 0.03 | P18: 0.03 | Q18: 0.03 | R18: 0.03 | S18: 0.03
D19: Flag | E19: =G9 -> 7 | G19: =G2<=$E19 -> TRUE | H19: TRUE | I19: TRUE | J19: TRUE | K19: TRUE | L19: TRUE | M19: TRUE | N19: FALSE | O19: FALSE | P19: FALSE | Q19: FALSE | R19: FALSE | S19: FALSE
D20: PV Factor | F20: 1 | G20: =F20*(1+G18) -> 1.04 | H20: =G20*(1+H18) -> 1.0816 | I20: 1.124864 | J20: 1.16985856 | K20: 1.204954317 | L20: 1.241102946 | M20: 1.278336035 | N20: 1.316686116 | O20: 1.356186699 | P20: 1.3968723 | Q20: 1.438778469 | R20: 1.481941823 | S20: 1.526400078
D21: Debt Service | G21: =G14*G19 -> 40 | H21: 50 | I21: 56.52173913 | J21: 36.36363636 | K21: 50 | L21: 100 | M21: 70.66666667 | N21: 0 | O21: 0 | P21: 0 | Q21: 0 | R21: 0 | S21: 0
D22: PV of Debt Service without Adustment | E22: =SUMPRODUCT(G21:S21/G20:S20) -> 343.3697967
D23: Target Debt | E23: =F9 -> 150
D24: Sculpting Ratio | E24: =E23/E22 -> 0.436846809
D25: Debt Service Applied | G25: =G21*$E$24 -> 17.47387236 | H25: =H21*$E$24 -> 21.84234045 | I25: 24.69134138 | J25: 15.88533851 | K25: 21.84234045 | L25: 43.6846809 | M25: 30.87050784 | N25: 0 | O25: 0 | P25: 0 | Q25: 0 | R25: 0 | S25: 0
D27: Debt 3 - Interest Rate | G27: =LOOKUP(G2,7:7,10:10) -> 0.02 | H27: 0.02 | I27: 0.02 | J27: 0.02 | K27: 0.05 | L27: 0.05 | M27: 0.05 | N27: 0.05 | O27: 0.05 | P27: 0.05 | Q27: 0.05 | R27: 0.05 | S27: 0.05
D28: Flag | E28: =G10 -> 6 | G28: =G2<=$E$28 -> TRUE | H28: TRUE | I28: TRUE | J28: TRUE | K28: TRUE | L28: TRUE | M28: FALSE | N28: FALSE | O28: FALSE | P28: FALSE | Q28: FALSE | R28: FALSE | S28: FALSE
D29: PV Factor | F29: 1 | G29: =F29*(1+G27) -> 1.02 | H29: =G29*(1+H27) -> 1.0404 | I29: 1.061208 | J29: 1.08243216 | K29: 1.136553768 | L29: 1.193381456 | M29: 1.253050529 | N29: 1.315703056 | O29: 1.381488208 | P29: 1.450562619 | Q29: 1.52309075 | R29: 1.599245287 | S29: 1.679207552
D30: Debt Service | G30: =G28*G14 -> 40 | H30: 50 | I30: 56.52173913 | J30: 36.36363636 | K30: 50 | L30: 100 | M30: 0 | N30: 0 | O30: 0 | P30: 0 | Q30: 0 | R30: 0 | S30: 0
D31: PV of Debt Service without Adustment | E31: =SUMPRODUCT(G30:S30/G29:S29) -> 301.9183445
D32: Target Debt | E32: =F10 -> 130
D33: Sculpting Ratio | E33: =E32/E31 -> 0.4305799975
D34: Debt Service Applied | G34: =G30*$E$33 -> 17.2231999 | H34: =H30*$E$33 -> 21.52899987 | I34: 24.33713029 | J34: 15.65745445 | K34: 21.52899987 | L34: 43.05799975 | M34: 0 | N34: 0 | O34: 0 | P34: 0 | Q34: 0 | R34: 0 | S34: 0
D37: Debt 1 | G37: =LOOKUP(G2,7:7,8:8) -> 0.1 | H37: 0.1 | I37: 0.1 | J37: 0.1 | K37: 0.08 | L37: 0.08 | M37: 0.08 | N37: 0.08 | O37: 0.08 | P37: 0.08 | Q37: 0.08 | R37: 0.08 | S37: 0.08
